Workbook

Sheet Disclaimer
A17: Introduction and Disclaimer

Sheet Statistical Tests (hidden)
B2: Key | D2: Test 1 - Exploring the impact of timeframe | O2: Test 2 - Exploring implementation test as an identifier of poor total investment performers | AE2: Test 3 - Identifying 'bad' implementers in the presence of benchmarking noise | AP2: Test 4 - Aggregated test | BG2: Test 5 - Through-time test
B3: Input required
B4: Automatic calculations | E4: Timeframe | F4: 8 | G4: yrs | O4: Timeframe | P4: 8 | Q4: yrs | AE4: Timeframe | AF4: 8 | AG4: yrs | AP4: Timeframe | AQ4: 8 | AR4: yrs | BG4: Full Test Period | BH4: 8 | BI4: yrs
B5: Results | E5: Threshold | F5: -0.005 | O5: Threshold | P5: -0.005 | AE5: Threshold | AF5: -0.005 | AP5: Threshold | AQ5: -0.005 | BG5: Threshold | BH5: -0.005
F7: Good fund | G7: Bad fund | P7: Risk / AA | Q7: Implementation | R7: Total | AF7: Good fund | AG7: Bad fund | AQ7: Risk and AA | AR7: Implementation | AS7: Total | BG7: Lookback Period | BH7: 6 | BI7: yrs
E8: E(Ret) | F8: 0 | G8: -0.0075 | O8: E(Ret) | P8: 0 | Q8: 0 | R8: =SUM(P8:Q8) -> 0 | S8: =AVERAGE(R16:R10015) -> 5.544056641e-05 | T8: (This number should be close to E(Ret)) | AE8: E(Ret) | AF8: 0 | AG8: -0.0075 | AP8: E(Ret) | AQ8: -0.0075 | AR8: 0 | AS8: =SUM(AQ8:AR8) -> -0.0075 | AT8: =AVERAGE(AS16:AS10015) -> -0.007471619053 | AU8: (This number should be close to E(Ret)) | BG8: Ann. Performance to date: | BH8: -0.005
E9: Ann Std Dev | F9: 0.013 | G9: 0.036 | O9: Ann Std Dev | P9: 0.007 | Q9: 0.007 | R9: =SQRT(P9^2+Q9^2) -> 0.009899494937 | AE9: Ann Std Dev (Implementation) | AF9: 0.007 | AG9: 0.007 | AP9: Ann Std Dev (Implementation) | AQ9: 0.007 | AR9: 0.007 | AS9: =SQRT(AQ9^2+AR9^2) -> 0.009899494937
E10: Timeframe adjusted vol | F10: =F9*SQRT($F$4)/$F$4 -> 0.004596194078 | G10: =G9*SQRT($F$4)/$F$4 -> 0.01272792206 | O10: Timeframe adjusted vol | P10: =P9*SQRT($P$4)/$P$4 -> 0.002474873734 | Q10: =Q9*SQRT($P$4)/$P$4 -> 0.002474873734 | R10: =SQRT(P10^2+Q10^2) -> 0.0035 | S10: =STDEV(R16:R10015) -> 0.00347119808 | T10: (This number should be close to adj. vol.) | AE10: Ann Std Dev (Noise) | AF10: 0 | AG10: 0 | AP10: Ann Std Dev (Noise) | AQ10: 0 | AR10: 0.012 | AS10: =SQRT(AQ10^2+AR10^2) -> 0.012 | BG10: Remaining Timeframe | BH10: =BH4-BH7 -> 2 | BI10: yrs
O11: Testing (E(Ret)) | P11: =AVERAGE(P16:P10015) -> 9.11250837e-06 | Q11: =AVERAGE(Q16:Q10015) -> 4.625647219e-05 | R11: (These numbers should be close to E(Ret)) | X11: Results from 10,000 simulations: | AE11: Ann Std Dev (Total) | AF11: =SQRT(AF9^2+AF10^2) -> 0.007 | AG11: =SQRT(AG9^2+AG10^2) -> 0.007 | AP11: Ann Std Dev (Total) | AQ11: =SQRT(AQ9^2+AQ10^2) -> 0.007 | AR11: =SQRT(AR9^2+AR10^2) -> 0.01389244399 | AS11: =SQRT(AQ11^2+AR11^2) -> 0.01555634919 | AY11: Results from 10,000 simulations: | BG11: Remaining Threshold | BH11: =(BH4*BH5-BH7*BH8)/BH10 -> -0.005
D12: Mistakes: probability of mistakenly identifying a 'good' fund as 'bad'. | F12: =_xlfn.NORM.DIST($F$5,F8,F10,TRUE) -> 0.1383292121 | G12: =_xlfn.NORM.DIST($F$5,G8,G10,TRUE) -> 0.577858711 | O12: Testing (adj. vol.) | P12: =STDEV(P16:P10015) -> 0.002438479818 | Q12: =STDEV(Q16:Q10015) -> 0.00244133781 | R12: (These numbers should be close to adj. vol.) | X12: Expected number of 'Bad' funds: | Y12: =IF(R8<=P5,10000,0) -> 0 | AE12: Timeframe adjusted vol | AF12: =AF11*SQRT($AF$4)/$AF$4 -> 0.002474873734 | AG12: =AG11*SQRT($AF$4)/$AF$4 -> 0.002474873734 | AP12: Timeframe adjusted vol | AQ12: =AQ11*SQRT($AQ$4)/$AQ$4 -> 0.002474873734 | AR12: =AR11*SQRT($AQ$4)/$AQ$4 -> 0.004911720676 | AS12: =SQRT(AQ12^2+AR12^2) -> 0.0055 | AT12: =STDEV(AS16:AS10015) -> 0.005475820964 | AU12: (This number should be close to adj. vol.) | AY12: Expected number of 'Bad' funds: | AZ12: =IF(AS8<=AQ5,10000,0) -> 10000
G13: =1-G12 -> 0.422141289 | H13: Effectiveness: probability of failing to identify a 'bad' fund. | X13: # simulations of 'Bad' Total Performance breaching Threshold: | Y13: =SUM(S16:S10015) -> 718 | AP13: Testing (E(Ret)) | AQ13: =AVERAGE(AQ18:AQ10017) -> -0.007494700449 | AR13: =AVERAGE(AR18:AR10017) -> 2.463662821e-05 | AS13: (These numbers should be close to E(Ret)) | AY13: # simulations of 'Bad' Total Performance breaching Threshold: | AZ13: =SUM(AT18:AT10017) -> 6689 | BG13: From hereon assume a 'good' fund
O14: Simulation Results | X14: # simulations of 'Bad' Implementation Performance breaching Threshold: | Y14: =SUM(T16:T10015) -> 185 | AD14: Mistakes: probability of mistakenly identifying a 'good' fund as 'bad'. | AF14: =_xlfn.NORM.DIST($AF$5,AF8,AF12,TRUE) -> 0.02167587563 | AG14: =_xlfn.NORM.DIST($AF$5,AG8,AG12,TRUE) -> 0.8437888944 | AP14: Testing (adj. vol.) | AQ14: =STDEV(AQ18:AQ10017) -> 0.002433836644 | AR14: =STDEV(AR18:AR10017) -> 0.004910235485 | AS14: (These numbers should be close to adj. vol.) | AY14: # simulations of 'Bad' Implementation Performance breaching Threshold: | AZ14: =SUM(AU18:AU10017) -> 1518 | BG14: E(Ret) | BH14: 0
P15: Risk and AA | Q15: Implementation | R15: Total | S15: 'Bad' Performer | T15: Bad' Implementer | U15: Both | X15: # simulations of coincidence: observed 'Bad' Total Performers and 'Bad' Implementation: | Y15: =SUM(U16:U10015) -> 122 | AG15: =1-AG14 -> 0.1562111056 | AH15: Effectiveness: probability of failing to identify a 'bad' fund. | AY15: # simulations of coincidence: 'Bad' Total Performers and 'Bad' Implementation: | AZ15: =SUM(AV18:AV10017) -> 1518 | BG15: Ann Std Dev (Total) | BH15: 0.007
O16: 1 | P16: =$P$8+_xlfn.NORM.INV(RAND(),0,1)*$P$10 -> 0.0008524982173 | Q16: =$Q$8+_xlfn.NORM.INV(RAND(),0,1)*$Q$10 -> -3.735578045e-05 | R16: =(1+P16)*(1+Q16)-1 -> 0.0008151105912 | S16: =IF(R16<=$P$5,1,0) -> 0 | T16: =IF(Q16<=$P$5,1,0) -> 0 | U16: =S16*T16 -> 0 | AP16: Simulation Results | BG16: Timeframe adjusted vol | BH16: =BH15*SQRT(BH10)/BH10 -> 0.004949747468
O17: 2 | P17: =$P$8+_xlfn.NORM.INV(RAND(),0,1)*$P$10 -> 0.004101096156 | Q17: =$Q$8+_xlfn.NORM.INV(RAND(),0,1)*$Q$10 -> 0.0002603929621 | R17: 0.004362557014 | S17: 0 | T17: 0 | U17: 0 | AQ17: Risk and AA | AR17: Implementation | AS17: Total | AT17: Bad Performer | AU17: Bad Implementer | AV17: Both
O18: 3 | P18: -0.002080980532 | Q18: -0.00136251821 | R18: -0.003440663368 | S18: 0 | T18: 0 | U18: 0 | X18: Effectiveness: probability of failing to identify a 'bad' fund. | Y18: =IF(Y12=0,"N/A",(Y12-Y14)/Y12) -> N/A | Z18: =IF(Y12=0,"Fund not 'bad'","") -> Fund not 'bad' | AP18: 1 | AQ18: =$AQ$8+_xlfn.NORM.INV(RAND(),0,1)*$AQ$12 -> -0.007736521747 | AR18: =$AR$8+_xlfn.NORM.INV(RAND(),0,1)*$AR$12 -> -0.001591711192 | AS18: =(1+AQ18)*(1+AR18)-1 -> -0.009315918631 | AT18: =IF(AS18<=$AQ$5,1,0) -> 1 | AU18: =IF(AR18<=$AQ$5,1,0) -> 0 | AV18: =AT18*AU18 -> 0 | AY18: Effectiveness: probability of failing to identify a 'bad' fund. | AZ18: =IF(AZ12=0,"N/A",(AZ12-AZ14)/AZ12) -> 0.8482 | BA18: =IF(AZ12=0,"Fund not 'bad'","") ->  | BF18: Mistakes: probability of mistakenly identifying a 'good' fund as 'bad'. | BH18: =_xlfn.NORM.DIST(BH11,BH14,BH16,TRUE) -> 0.1562111056
O19: 4 | P19: -0.0004359677803 | Q19: 0.002557536563 | R19: 0.002120453779 | S19: 0 | T19: 0 | U19: 0 | X19: Attribution: due to variability and the timeframe: | Y19: =IF(Y12=0,"N/A",(Y12-Y13)/Y12) -> N/A | AP19: 2 | AQ19: =$AQ$8+_xlfn.NORM.INV(RAND(),0,1)*$AQ$12 -> -0.009956340988 | AR19: =$AR$8+_xlfn.NORM.INV(RAND(),0,1)*$AR$12 -> 0.006884791154 | AS19: =(1+AQ19)*(1+AR19)-1 -> -0.003140097162 | AT19: =IF(AS19<=$AQ$5,1,0) -> 0 | AU19: =IF(AR19<=$AQ$5,1,0) -> 0 | AV19: =AT19*AU19 -> 0 | AY19: Attribution: due to variability and the timeframe: | AZ19: =IF(AZ12=0,"N/A",(AZ12-AZ13)/AZ12) -> 0.3311
O20: 5 | P20: 0.00116077175 | Q20: -0.000436923929 | R20: 0.0007233406519 | S20: 0 | T20: 0 | U20: 0 | X20: Attribution: due to the test focusing on implementation and not total performance: | Y20: =IF(Y12=0,"N/A",(Y13-Y14)/Y12) -> N/A | AP20: 3 | AQ20: -0.006472024647 | AR20: 0.01052081966 | AS20: 0.003980704009 | AT20: 0 | AU20: 0 | AV20: 0 | AY20: Attribution: due to the test focusing on implementation and not total performance: | AZ20: =IF(AZ12=0,"N/A",(AZ13-AZ14)/AZ12) -> 0.5171
O21: 6 | P21: 0.003022035071 | Q21: -2.859365073e-05 | R21: 0.002993355009 | S21: 0 | T21: 0 | U21: 0 | AP21: 4 | AQ21: -0.004980149417 | AR21: -0.003727798857 | AS21: -0.008689383279 | AT21: 1 | AU21: 0 | AV21: 0
O22: 7 | P22: 0.003304987682 | Q22: 0.002410575683 | R22: 0.005723530288 | S22: 0 | T22: 0 | U22: 0 | X22: Mistakes: probability of mistakenly identifying a 'good' fund as 'bad'. | Y22: =IF(Y12=0,Y14/10000,"N/A") -> 0.0185 | Z22: =IF(Y12=10000,"Fund not 'good'","") ->  | AP22: 5 | AQ22: -0.004616093829 | AR22: -0.01140880914 | AS22: -0.01597223884 | AT22: 1 | AU22: 1 | AV22: 1 | AY22: Mistakes: probability of mistakenly identifying a 'good' fund as 'bad'. | AZ22: =IF(AZ12=0,AZ14/10000,"N/A") -> N/A | BA22: =IF(AZ12=10000,"Fund not 'good'","") -> Fund not 'good'
O23: 8 | P23: 0.005873669405 | Q23: 0.003796765731 | R23: 0.009692736083 | S23: 0 | T23: 0 | U23: 0 | X23: Attribution: due to variability and the timeframe: | Y23: =IF(Y12=0,(Y13)/10000,"N/A") -> 0.0718 | AP23: 6 | AQ23: -0.006840883695 | AR23: 0.003489745803 | AS23: -0.003375010837 | AT23: 0 | AU23: 0 | AV23: 0 | AY23: Attribution: due to variability and the timeframe: | AZ23: =IF(AZ12=0,(AZ13)/10000,"N/A") -> N/A
O24: 9 | P24: 0.0007609025449 | Q24: 0.002948473565 | R24: 0.003711619611 | S24: 0 | T24: 0 | U24: 0 | X24: Attribution: due to the test focusing on implementation and not total performance: | Y24: =IF(Y12=0,(Y14-Y13)/10000,"N/A") -> -0.0533 | AP24: 7 | AQ24: -0.003472887986 | AR24: -0.007490696501 | AS24: -0.01093757014 | AT24: 1 | AU24: 1 | AV24: 1 | AY24: Attribution: due to the test focusing on implementation and not total performance: | AZ24: =IF(AZ12=0,(AZ14-AZ13)/10000,"N/A") -> N/A
O25: 10 | P25: -0.002809127539 | Q25: 0.0002367536763 | R25: -0.002573038934 | S25: 0 | T25: 0 | U25: 0 | AP25: 8 | AQ25: -0.007976106169 | AR25: 0.003410475969 | AS25: -0.004592832518 | AT25: 0 | AU25: 0 | AV25: 0
O26: 11 | P26: 0.00278869058 | Q26: -0.004684449237 | R26: -0.001908822136 | S26: 0 | T26: 0 | U26: 0 | AP26: 9 | AQ26: -0.005510371579 | AR26: -0.007190849329 | AS26: -0.01266159666 | AT26: 1 | AU26: 1 | AV26: 1
O27: 12 | P27: -0.002024633452 | Q27: -0.0004713725898 | R27: -0.002495051685 | S27: 0 | T27: 0 | U27: 0 | AP27: 10 | AQ27: -0.005826757846 | AR27: -0.003842350397 | AS27: -0.009646719797 | AT27: 1 | AU27: 0 | AV27: 0
O28: 13 | P28: -0.001146546655 | Q28: -0.000943290716 | R28: -0.002088755844 | S28: 0 | T28: 0 | U28: 0 | AP28: 11 | AQ28: -0.005687876768 | AR28: 0.001492981509 | AS28: -0.004203387154 | AT28: 0 | AU28: 0 | AV28: 0
O29: 14 | P29: -0.002573993078 | Q29: -0.002120141639 | R29: -0.004688677487 | S29: 0 | T29: 0 | U29: 0 | AP29: 12 | AQ29: -0.008012140346 | AR29: -0.002263341494 | AS29: -0.01025734763 | AT29: 1 | AU29: 0 | AV29: 0
O30: 15 | P30: 0.001222356326 | Q30: 0.0007736173367 | R30: 0.001996919299 | S30: 0 | T30: 0 | U30: 0 | AP30: 13 | AQ30: -0.007672366973 | AR30: -0.001080414139 | AS30: -0.008744491778 | AT30: 1 | AU30: 0 | AV30: 0
O31: 16 | P31: -0.0005151009695 | Q31: -0.00242380985 | R31: -0.002937662313 | S31: 0 | T31: 0 | U31: 0 | AP31: 14 | AQ31: -0.007374484601 | AR31: -0.001346313708 | AS31: -0.008710869939 | AT31: 1 | AU31: 0 | AV31: 0
O32: 17 | P32: 6.205294531e-05 | Q32: 0.001374009086 | R32: 0.001436147293 | S32: 0 | T32: 0 | U32: 0 | AP32: 15 | AQ32: -0.007945978724 | AR32: -0.001359959566 | AS32: -0.009295132081 | AT32: 1 | AU32: 0 | AV32: 0
O33: 18 | P33: -0.002129171634 | Q33: -0.001065244424 | R33: -0.00319214797 | S33: 0 | T33: 0 | U33: 0 | AP33: 16 | AQ33: -0.009920509838 | AR33: -0.006352267425 | AS33: -0.01620975953 | AT33: 1 | AU33: 1 | AV33: 1
O34: 19 | P34: -0.00181457665 | Q34: 0.0005425509386 | R34: -0.001273010212 | S34: 0 | T34: 0 | U34: 0 | AP34: 17 | AQ34: -0.006351314309 | AR34: 0.00257735147 | AS34: -0.003790332408 | AT34: 0 | AU34: 0 | AV34: 0
O35: 20 | P35: -0.001136178608 | Q35: 0.0002592841145 | R35: -0.0008771890861 | S35: 0 | T35: 0 | U35: 0 | AP35: 18 | AQ35: -0.01120237165 | AR35: 0.003846394872 | AS35: -0.00739906552 | AT35: 1 | AU35: 0 | AV35: 0
O36: 21 | P36: -0.0004028247185 | Q36: 0.002196636004 | R36: 0.001792926426 | S36: 0 | T36: 0 | U36: 0 | AP36: 19 | AQ36: -0.006020926536 | AR36: -0.003358947406 | AS36: -0.009359649966 | AT36: 1 | AU36: 0 | AV36: 0
O37: 22 | P37: 0.0006126559394 | Q37: -0.004264666782 | R37: -0.003654623616 | S37: 0 | T37: 0 | U37: 0 | AP37: 20 | AQ37: -0.006170496559 | AR37: 0.007761289959 | AS37: 0.001542902387 | AT37: 0 | AU37: 0 | AV37: 0
O38: 23 | P38: 0.001698621386 | Q38: -0.0002205127622 | R38: 0.001477734056 | S38: 0 | T38: 0 | U38: 0 | AP38: 21 | AQ38: -0.005306464432 | AR38: -0.008104478214 | AS38: -0.01336793652 | AT38: 1 | AU38: 1 | AV38: 1
O39: 24 | P39: 0.001729164594 | Q39: -0.001512459771 | R39: 0.0002140895308 | S39: 0 | T39: 0 | U39: 0 | AP39: 22 | AQ39: -0.008084557374 | AR39: -0.0008372529292 | AS39: -0.008915041484 | AT39: 1 | AU39: 0 | AV39: 0
O40: 25 | P40: -0.001436163696 | Q40: 0.0002752601108 | R40: -0.001161298904 | S40: 0 | T40: 0 | U40: 0 | AP40: 23 | AQ40: -0.01253263407 | AR40: 0.003456941729 | AS40: -0.009119016929 | AT40: 1 | AU40: 0 | AV40: 0
O41: 26 | P41: 0.0004382586201 | Q41: 0.00212909488 | R41: 0.002568286595 | S41: 0 | T41: 0 | U41: 0 | AP41: 24 | AQ41: -0.006847670949 | AR41: -0.007839782435 | AS41: -0.01463376913 | AT41: 1 | AU41: 1 | AV41: 1
O42: 27 | P42: -0.002354608015 | Q42: 0.0009934527576 | R42: -0.001363494449 | S42: 0 | T42: 0 | U42: 0 | AP42: 25 | AQ42: -0.006098703376 | AR42: -0.005004748164 | AS42: -0.01107292907 | AT42: 1 | AU42: 1 | AV42: 1
O43: 28 | P43: -0.001632947063 | Q43: -0.00238801897 | R43: -0.004017066525 | S43: 0 | T43: 0 | U43: 0 | AP43: 26 | AQ43: -0.004871054953 | AR43: -0.0006367947045 | AS43: -0.005504747795 | AT43: 1 | AU43: 0 | AV43: 0
O44: 29 | P44: -0.002727247175 | Q44: 0.0006384675126 | R44: -0.002090520921 | S44: 0 | T44: 0 | U44: 0 | AP44: 27 | AQ44: -0.005179883245 | AR44: -0.005438667664 | AS44: -0.01059037925 | AT44: 1 | AU44: 1 | AV44: 1
O45: 30 | P45: 0.003296601672 | Q45: -0.001023681552 | R45: 0.00226954545 | S45: 0 | T45: 0 | U45: 0 | AP45: 28 | AQ45: -0.005999750749 | AR45: 0.002132800607 | AS45: -0.003879746414 | AT45: 0 | AU45: 0 | AV45: 0
O46: 31 | P46: -0.0007877197353 | Q46: 0.002180852833 | R46: 0.001391415197 | S46: 0 | T46: 0 | U46: 0 | AP46: 29 | AQ46: -0.009349512523 | AR46: -0.0003294911486 | AS46: -0.00967592309 | AT46: 1 | AU46: 0 | AV46: 0
O47: 32 | P47: -0.0007585310292 | Q47: 7.807898051e-06 | R47: -0.0007507290537 | S47: 0 | T47: 0 | U47: 0 | AP47: 30 | AQ47: -0.007961520607 | AR47: 0.0005161719547 | AS47: -0.007449458166 | AT47: 1 | AU47: 0 | AV47: 0
O48: 33 | P48: 0.002378270084 | Q48: 0.0006038466478 | R48: 0.002983552842 | S48: 0 | T48: 0 | U48: 0 | AP48: 31 | AQ48: -0.004652044861 | AR48: 0.004126450018 | AS48: -0.0005447912741 | AT48: 0 | AU48: 0 | AV48: 0
O49: 34 | P49: 0.00134181139 | Q49: -0.001369650031 | R49: -2.967645277e-05 | S49: 0 | T49: 0 | U49: 0 | AP49: 32 | AQ49: -0.006968896534 | AR49: 0.005684009718 | AS49: -0.001324498092 | AT49: 0 | AU49: 0 | AV49: 0
O50: 35 | P50: 0.001566471963 | Q50: 0.002207845872 | R50: 0.003777776364 | S50: 0 | T50: 0 | U50: 0 | AP50: 33 | AQ50: -0.003771732327 | AR50: 0.004039312623 | AS50: 0.0002523450901 | AT50: 0 | AU50: 0 | AV50: 0
O51: 36 | P51: 0.002492514982 | Q51: -0.001041115552 | R51: 0.001448804434 | S51: 0 | T51: 0 | U51: 0 | AP51: 34 | AQ51: -0.004908953462 | AR51: -0.006734141656 | AS51: -0.01161003753 | AT51: 1 | AU51: 1 | AV51: 1
O52: 37 | P52: -0.002530239947 | Q52: 0.002066844269 | R52: -0.0004686252896 | S52: 0 | T52: 0 | U52: 0 | AP52: 35 | AQ52: -0.009863722008 | AR52: -0.002947868597 | AS52: -0.01278251365 | AT52: 1 | AU52: 0 | AV52: 0
O53: 38 | P53: 0.001220573391 | Q53: -0.001651922997 | R53: -0.0004333659002 | S53: 0 | T53: 0 | U53: 0 | AP53: 36 | AQ53: -0.008106756091 | AR53: 0.0006693036941 | AS53: -0.007442878279 | AT53: 1 | AU53: 0 | AV53: 0
O54: 39 | P54: -0.001559993727 | Q54: -0.002207610284 | R54: -0.003764160153 | S54: 0 | T54: 0 | U54: 0 | AP54: 37 | AQ54: -0.00340935516 | AR54: -0.001169463787 | AS54: -0.004574831829 | AT54: 0 | AU54: 0 | AV54: 0
O55: 40 | P55: -0.002983899924 | Q55: 0.001149911096 | R55: -0.001837420048 | S55: 0 | T55: 0 | U55: 0 | AP55: 38 | AQ55: -0.008481394823 | AR55: -0.00516251535 | AS55: -0.01360012484 | AT55: 1 | AU55: 1 | AV55: 1
O56: 41 | P56: -0.003364096904 | Q56: -0.0009854929757 | R56: -0.004346274586 | S56: 0 | T56: 0 | U56: 0 | AP56: 39 | AQ56: -0.008422359361 | AR56: 0.005387377897 | AS56: -0.003080355897 | AT56: 0 | AU56: 0 | AV56: 0
O57: 42 | P57: 0.001291911418 | Q57: 0.005525224481 | R57: 0.006824274 | S57: 0 | T57: 0 | U57: 0 | AP57: 40 | AQ57: -0.0005603306836 | AR57: 0.0005016659746 | AS57: -5.894580786e-05 | AT57: 0 | AU57: 0 | AV57: 0
O58: 43 | P58: -0.002794247596 | Q58: 0.001530752377 | R58: -0.00126777252 | S58: 0 | T58: 0 | U58: 0 | AP58: 41 | AQ58: -0.007650649818 | AR58: -0.00275155975 | AS58: -0.01038115835 | AT58: 1 | AU58: 0 | AV58: 0
O59: 44 | P59: 0.000288541464 | Q59: -0.001828861991 | R59: -0.00154084823 | S59: 0 | T59: 0 | U59: 0 | AP59: 42 | AQ59: -0.008623517421 | AR59: 0.006536759399 | AS59: -0.002143127881 | AT59: 0 | AU59: 0 | AV59: 0
O60: 45 | P60: -0.000641344086 | Q60: 0.002815948992 | R60: 0.002172798914 | S60: 0 | T60: 0 | U60: 0 | AP60: 43 | AQ60: -0.01008878692 | AR60: -0.009196671386 | AS60: -0.01919267505 | AT60: 1 | AU60: 1 | AV60: 1
O61: 46 | P61: -0.001240113222 | Q61: 0.0009031287571 | R61: -0.0003381044472 | S61: 0 | T61: 0 | U61: 0 | AP61: 44 | AQ61: -0.009565068852 | AR61: -0.003361950908 | AS61: -0.01289486247 | AT61: 1 | AU61: 0 | AV61: 0
O62: 47 | P62: -0.0002580742223 | Q62: -0.0007308431238 | R62: -0.0009887287344 | S62: 0 | T62: 0 | U62: 0 | AP62: 45 | AQ62: -0.008840051582 | AR62: 0.0012268063 | AS62: -0.007624090313 | AT62: 1 | AU62: 0 | AV62: 0
O63: 48 | P63: 8.726758149e-05 | Q63: 0.0004674172567 | R63: 0.0005547256286 | S63: 0 | T63: 0 | U63: 0 | AP63: 46 | AQ63: -0.004025529194 | AR63: 0.0006347642583 | AS63: -0.003393320198 | AT63: 0 | AU63: 0 | AV63: 0
O64: 49 | P64: 0.00154356083 | Q64: 0.004801452183 | R64: 0.006352424346 | S64: 0 | T64: 0 | U64: 0 | AP64: 47 | AQ64: -0.005978658901 | AR64: -0.005665987701 | AS64: -0.01161077159 | AT64: 1 | AU64: 1 | AV64: 1
O65: 50 | P65: -0.002135543313 | Q65: 0.00088566625 | R65: -0.001251768441 | S65: 0 | T65: 0 | U65: 0 | AP65: 48 | AQ65: -0.01290113595 | AR65: -0.001052089998 | AS65: -0.01393965279 | AT65: 1 | AU65: 0 | AV65: 0
O66: 51 | P66: -0.0006563851105 | Q66: -0.002807998557 | R66: -0.003462540539 | S66: 0 | T66: 0 | U66: 0 | AP66: 49 | AQ66: -0.002720822282 | AR66: -0.001009893079 | AS66: -0.003727967621 | AT66: 0 | AU66: 0 | AV66: 0
O67: 52 | P67: -0.001444817959 | Q67: -0.001065954122 | R67: -0.002509231971 | S67: 0 | T67: 0 | U67: 0 | AP67: 50 | AQ67: -0.007385535151 | AR67: -0.003028378338 | AS67: -0.01039154729 | AT67: 1 | AU67: 0 | AV67: 0
O68: 53 | P68: 0.003722698667 | Q68: -0.002220630071 | R68: 0.001493801859 | S68: 0 | T68: 0 | U68: 0 | AP68: 51 | AQ68: -0.006568111464 | AR68: 0.002913348993 | AS68: -0.003673897672 | AT68: 0 | AU68: 0 | AV68: 0
O69: 54 | P69: -0.005161279671 | Q69: -0.0007480879513 | R69: -0.005905506531 | S69: 1 | T69: 0 | U69: 0 | AP69: 52 | AQ69: -0.005374967026 | AR69: 0.003995824022 | AS69: -0.001400620426 | AT69: 0 | AU69: 0 | AV69: 0
O70: 55 | P70: -0.001330656567 | Q70: -0.002685090125 | R70: -0.004012173759 | S70: 0 | T70: 0 | U70: 0 | AP70: 53 | AQ70: -0.008206205506 | AR70: -0.001493778581 | AS70: -0.009687725832 | AT70: 1 | AU70: 0 | AV70: 0
O71: 56 | P71: -0.0001377867192 | Q71: 0.001069296139 | R71: 0.0009313620849 | S71: 0 | T71: 0 | U71: 0 | AP71: 54 | AQ71: -0.009281048971 | AR71: 0.004383502924 | AS71: -0.004938229552 | AT71: 0 | AU71: 0 | AV71: 0
O72: 57 | P72: -0.004608901982 | Q72: 0.003509854874 | R72: -0.001115223684 | S72: 0 | T72: 0 | U72: 0 | AP72: 55 | AQ72: -0.009751251175 | AR72: 0.01420896431 | AS72: 0.004319157957 | AT72: 0 | AU72: 0 | AV72: 0
O73: 58 | P73: 0.001208791022 | Q73: 0.003552061905 | R73: 0.004765146627 | S73: 0 | T73: 0 | U73: 0 | AP73: 56 | AQ73: -0.006508755567 | AR73: 0.005139691897 | AS73: -0.001402516668 | AT73: 0 | AU73: 0 | AV73: 0
O74: 59 | P74: -0.002782515508 | Q74: -0.002447397011 | R74: -0.0052231026 | S74: 1 | T74: 0 | U74: 0 | AP74: 57 | AQ74: -0.00948959795 | AR74: -0.000955714853 | AS74: -0.01043624345 | AT74: 1 | AU74: 0 | AV74: 0
O75: 60 | P75: -0.00265584723 | Q75: -0.002795920088 | R75: -0.005444341781 | S75: 1 | T75: 0 | U75: 0 | AP75: 58 | AQ75: -0.006545191757 | AR75: -0.003800020684 | AS75: -0.01032034058 | AT75: 1 | AU75: 0 | AV75: 0
O76: 61 | P76: -0.002109918514 | Q76: 0.001724081144 | R76: -0.0003894750399 | S76: 0 | T76: 0 | U76: 0 | AP76: 59 | AQ76: -0.007003597212 | AR76: -0.004946158682 | AS76: -0.01191511499 | AT76: 1 | AU76: 0 | AV76: 0
O77: 62 | P77: -0.001274236662 | Q77: 0.0006511617184 | R77: -0.0006239046782 | S77: 0 | T77: 0 | U77: 0 | AP77: 60 | AQ77: -0.006287343094 | AR77: 0.005731158754 | AS77: -0.0005922181017 | AT77: 0 | AU77: 0 | AV77: 0
O78: 63 | P78: 0.001539726097 | Q78: 0.002367732468 | R78: 0.003911104225 | S78: 0 | T78: 0 | U78: 0 | AP78: 61 | AQ78: -0.003943796555 | AR78: 0.001765056652 | AS78: -0.002185700927 | AT78: 0 | AU78: 0 | AV78: 0
O79: 64 | P79: -0.001781267088 | Q79: -0.0007866096861 | R79: -0.002566475612 | S79: 0 | T79: 0 | U79: 0 | AP79: 62 | AQ79: -0.007568237483 | AR79: -0.0006359139157 | AS79: -0.008199338652 | AT79: 1 | AU79: 0 | AV79: 0
O80: 65 | P80: -0.002597123875 | Q80: -0.0003053975476 | R80: =(1+P80)*(1+Q80)-1 -> -0.002901728268 | S80: =IF(R80<=$P$5,1,0) -> 0 | T80: =IF(Q80<=$P$5,1,0) -> 0 | U80: =S80*T80 -> 0 | AP80: 63 | AQ80: -0.00832927802 | AR80: 0.001647811719 | AS80: -0.006695191383 | AT80: 1 | AU80: 0 | AV80: 0
O81: 66 | P81: =$P$8+_xlfn.NORM.INV(RAND(),0,1)*$P$10 -> -0.0006269924153 | Q81: =$Q$8+_xlfn.NORM.INV(RAND(),0,1)*$Q$10 -> 0.0006715377893 | R81: 4.412432491e-05 | S81: 0 | T81: 0 | U81: 0 | AP81: 64 | AQ81: -0.007229725629 | AR81: -0.001414715754 | AS81: -0.008634213375 | AT81: 1 | AU81: 0 | AV81: 0
O82: 67 | P82: -0.001858266042 | Q82: -0.003275093784 | R82: -0.005127273831 | S82: 1 | T82: 0 | U82: 0 | AP82: 65 | AQ82: -0.008042923954 | AR82: 0.0105283245 | AS82: 0.002400722035 | AT82: 0 | AU82: 0 | AV82: 0
O83: 68 | P83: 0.0008611180351 | Q83: -7.308144239e-05 | R83: 0.0007879736609 | S83: 0 | T83: 0 | U83: 0 | AP83: 66 | AQ83: =$AQ$8+_xlfn.NORM.INV(RAND(),0,1)*$AQ$12 -> -0.009911701207 | AR83: =$AR$8+_xlfn.NORM.INV(RAND(),0,1)*$AR$12 -> -0.009546386235 | AS83: =(1+AQ83)*(1+AR83)-1 -> -0.01936346651 | AT83: =IF(AS83<=$AQ$5,1,0) -> 1 | AU83: =IF(AR83<=$AQ$5,1,0) -> 1 | AV83: =AT83*AU83 -> 1
O84: 69 | P84: 0.0008931571516 | Q84: -0.00111193508 | R84: -0.0002197710608 | S84: 0 | T84: 0 | U84: 0 | AP84: 67 | AQ84: -0.005396226437 | AR84: -0.0008390586947 | AS84: -0.006230757381 | AT84: 1 | AU84: 0 | AV84: 0
O85: 70 | P85: -0.0002743185757 | Q85: 0.001598547062 | R85: 0.001323789975 | S85: 0 | T85: 0 | U85: 0 | AP85: 68 | AQ85: -0.008368095104 | AR85: -0.0009879383803 | AS85: -0.009347766322 | AT85: 1 | AU85: 0 | AV85: 0
O86: 71 | P86: 0.001548701049 | Q86: 0.0005717490917 | R86: 0.00212133561 | S86: 0 | T86: 0 | U86: 0 | AP86: 69 | AQ86: -0.005309258059 | AR86: -0.007386197167 | AS86: -0.01265624 | AT86: 1 | AU86: 1 | AV86: 1
O87: 72 | P87: 0.003587450676 | Q87: 0.004798638947 | R87: 0.008403304503 | S87: 0 | T87: 0 | U87: 0 | AP87: 70 | AQ87: -0.008248170973 | AR87: 0.000456003732 | AS87: -0.007795928438 | AT87: 1 | AU87: 0 | AV87: 0
O88: 73 | P88: 0.003912896729 | Q88: -0.0003296823795 | R88: 0.003581924336 | S88: 0 | T88: 0 | U88: 0 | AP88: 71 | AQ88: -0.009282992067 | AR88: -0.001891532927 | AS88: -0.01115696591 | AT88: 1 | AU88: 0 | AV88: 0
O89: 74 | P89: -0.001456872963 | Q89: 0.001360668807 | R89: -9.818647771e-05 | S89: 0 | T89: 0 | U89: 0 | AP89: 72 | AQ89: -0.00376741961 | AR89: -0.007057008334 | AS89: -0.01079784123 | AT89: 1 | AU89: 1 | AV89: 1
O90: 75 | P90: -0.000165523099 | Q90: -0.000235004582 | R90: -0.0004004887823 | S90: 0 | T90: 0 | U90: 0 | AP90: 73 | AQ90: -0.008214055405 | AR90: -0.0008160729738 | AS90: -0.00902342511 | AT90: 1 | AU90: 0 | AV90: 0
O91: 76 | P91: 0.001862426744 | Q91: 0.001107016676 | R91: 0.002971505158 | S91: 0 | T91: 0 | U91: 0 | AP91: 74 | AQ91: -0.008695859789 | AR91: 0.003384643409 | AS91: -0.005340648764 | AT91: 1 | AU91: 0 | AV91: 0
O92: 77 | P92: -0.0007728187725 | Q92: 0.001234499898 | R92: 0.0004607270807 | S92: 0 | T92: 0 | U92: 0 | AP92: 75 | AQ92: -0.008546684763 | AR92: -0.006082894657 | AS92: -0.01457759084 | AT92: 1 | AU92: 1 | AV92: 1
O93: 78 | P93: -0.002321772613 | Q93: -0.0004064759335 | R93: -0.002727304802 | S93: 0 | T93: 0 | U93: 0 | AP93: 76 | AQ93: -0.005783883843 | AR93: -0.00491906221 | AS93: -0.01067449477 | AT93: 1 | AU93: 0 | AV93: 0
O94: 79 | P94: 0.003565601106 | Q94: -0.0008157612912 | R94: 0.002746931135 | S94: 0 | T94: 0 | U94: 0 | AP94: 77 | AQ94: -0.008634730286 | AR94: -0.006440194504 | AS94: -0.01501931545 | AT94: 1 | AU94: 1 | AV94: 1
O95: 80 | P95: -0.0003750937242 | Q95: -0.003069410048 | R95: -0.003443352456 | S95: 0 | T95: 0 | U95: 0 | AP95: 78 | AQ95: -0.009500469204 | AR95: 0.002785410504 | AS95: -0.006741521406 | AT95: 1 | AU95: 0 | AV95: 0
O96: 81 | P96: -0.001689691978 | Q96: 0.002664146785 | R96: 0.0009699532195 | S96: 0 | T96: 0 | U96: 0 | AP96: 79 | AQ96: -0.01044236983 | AR96: 0.001256662562 | AS96: -0.009198829799 | AT96: 1 | AU96: 0 | AV96: 0
O97: 82 | P97: -0.001860797861 | Q97: -0.005370098622 | R97: -0.007220903815 | S97: 1 | T97: 1 | U97: 1 | AP97: 80 | AQ97: -0.006084193947 | AR97: -0.00190701894 | AS97: -0.007979610214 | AT97: 1 | AU97: 0 | AV97: 0
O98: 83 | P98: -0.001304867428 | Q98: 0.003808414851 | R98: 0.002498577947 | S98: 0 | T98: 0 | U98: 0 | AP98: 81 | AQ98: -0.00981825807 | AR98: 0.002697619566 | AS98: -0.00714712443 | AT98: 1 | AU98: 0 | AV98: 0
O99: 84 | P99: 0.004593529574 | Q99: -0.0010841099 | R99: 0.003504439783 | S99: 0 | T99: 0 | U99: 0 | AP99: 82 | AQ99: -0.008095841856 | AR99: -0.005226567152 | AS99: -0.01328009555 | AT99: 1 | AU99: 1 | AV99: 1
O100: 85 | P100: 0.002565472949 | Q100: -0.004343589333 | R100: -0.001789259745 | S100: 0 | T100: 0 | U100: 0 | AP100: 83 | AQ100: -0.005286535155 | AR100: -0.005436236056 | AS100: -0.01069403236 | AT100: 1 | AU100: 1 | AV100: 1
O101: 86 | P101: 0.002599239818 | Q101: -0.00334667958 | R101: -0.0007561385845 | S101: 0 | T101: 0 | U101: 0 | AP101: 84 | AQ101: -0.009659175548 | AR101: 0.009404254525 | AS101: -0.0003457583685 | AT101: 0 | AU101: 0 | AV101: 0
O102: 87 | P102: -0.003851907737 | Q102: -0.0007479391347 | R102: -0.004596965879 | S102: 0 | T102: 0 | U102: 0 | AP102: 85 | AQ102: -0.007189393605 | AR102: 0.002127696889 | AS102: -0.005076993567 | AT102: 1 | AU102: 0 | AV102: 0
O103: 88 | P103: 0.0009072392307 | Q103: 0.002701638268 | R103: 0.003611328531 | S103: 0 | T103: 0 | U103: 0 | AP103: 86 | AQ103: -0.004505773863 | AR103: -0.002253249787 | AS103: -0.006748871016 | AT103: 1 | AU103: 0 | AV103: 0
O104: 89 | P104: -0.004704206498 | Q104: 0.003712564034 | R104: -0.001009107132 | S104: 0 | T104: 0 | U104: 0 | AP104: 87 | AQ104: -0.009694112764 | AR104: 0.003724082041 | AS104: -0.006006132394 | AT104: 1 | AU104: 0 | AV104: 0
O105: 90 | P105: -0.002878770232 | Q105: 0.001125325972 | R105: -0.001756683814 | S105: 0 | T105: 0 | U105: 0 | AP105: 88 | AQ105: -0.006275476461 | AR105: -0.004873951087 | AS105: -0.01111884118 | AT105: 1 | AU105: 0 | AV105: 0
O106: 91 | P106: 6.815505502e-05 | Q106: 0.00120501613 | R106: 0.001273253313 | S106: 0 | T106: 0 | U106: 0 | AP106: 89 | AQ106: -0.007899197802 | AR106: 0.003942318113 | AS106: -0.00398802084 | AT106: 0 | AU106: 0 | AV106: 0
O107: 92 | P107: -0.003733400966 | Q107: -0.004767632349 | R107: -0.008483233831 | S107: 1 | T107: 0 | U107: 0 | AP107: 90 | AQ107: -0.004710143813 | AR107: -0.002462667771 | AS107: -0.007161212064 | AT107: 1 | AU107: 0 | AV107: 0
O108: 93 | P108: -0.001714183552 | Q108: -0.0004492589688 | R108: -0.002162672409 | S108: 0 | T108: 0 | U108: 0 | AP108: 91 | AQ108: -0.00652945079 | AR108: -0.01304317803 | AS108: -0.01948746403 | AT108: 1 | AU108: 1 | AV108: 1
O109: 94 | P109: 0.00384927565 | Q109: 0.003942107983 | R109: 0.007806557893 | S109: 0 | T109: 0 | U109: 0 | AP109: 92 | AQ109: -0.005544539598 | AR109: -0.001047260955 | AS109: -0.006585993973 | AT109: 1 | AU109: 0 | AV109: 0
O110: 95 | P110: -0.0007578971306 | Q110: 0.001799681295 | R110: 0.001040420191 | S110: 0 | T110: 0 | U110: 0 | AP110: 93 | AQ110: -0.008025498912 | AR110: -0.002803001504 | AS110: -0.01080600493 | AT110: 1 | AU110: 0 | AV110: 0
O111: 96 | P111: 0.001739163595 | Q111: 0.003126876703 | R111: 0.004871478449 | S111: 0 | T111: 0 | U111: 0 | AP111: 94 | AQ111: -0.01080246364 | AR111: -0.01097255227 | AS111: -0.02165648531 | AT111: 1 | AU111: 1 | AV111: 1
O112: 97 | P112: -0.001794972064 | Q112: 0.001448573514 | R112: -0.0003489986996 | S112: 0 | T112: 0 | U112: 0 | AP112: 95 | AQ112: -0.007313465828 | AR112: -0.00458556797 | AS112: -0.0118654974 | AT112: 1 | AU112: 0 | AV112: 0
O113: 98 | P113: 0.001428021969 | Q113: -0.0009329639005 | R113: 0.0004937257754 | S113: 0 | T113: 0 | U113: 0 | AP113: 96 | AQ113: -0.008957135553 | AR113: -0.001244931505 | AS113: -0.01019091604 | AT113: 1 | AU113: 0 | AV113: 0
O114: 99 | P114: -0.0004092745231 | Q114: 0.0002545180465 | R114: -0.0001548606443 | S114: 0 | T114: 0 | U114: 0 | AP114: 97 | AQ114: -0.01144484667 | AR114: -0.0117296793 | AS114: -0.02304028159 | AT114: 1 | AU114: 1 | AV114: 1
O115: 100 | P115: -0.001207859302 | Q115: 0.003272133515 | R115: 0.002060321936 | S115: 0 | T115: 0 | U115: 0 | AP115: 98 | AQ115: -0.007458984658 | AR115: 0.0006700625108 | AS115: -0.006793920133 | AT115: 1 | AU115: 0 | AV115: 0
O116: 101 | P116: -0.001207396092 | Q116: -0.0006756254218 | R116: -0.001882205767 | S116: 0 | T116: 0 | U116: 0 | AP116: 99 | AQ116: -0.008527670284 | AR116: 0.0003318632467 | AS116: -0.008198637058 | AT116: 1 | AU116: 0 | AV116: 0
O117: 102 | P117: -0.000194978493 | Q117: 0.001536897208 | R117: 0.001341619054 | S117: 0 | T117: 0 | U117: 0 | AP117: 100 | AQ117: -0.008867495721 | AR117: -0.003097352756 | AS117: -0.01193738272 | AT117: 1 | AU117: 0 | AV117: 0
O118: 103 | P118: 0.0008360524957 | Q118: -0.000727532915 | R118: 0.000107911325 | S118: 0 | T118: 0 | U118: 0 | AP118: 101 | AQ118: -0.007426355349 | AR118: -0.001990582383 | AS118: -0.00940215496 | AT118: 1 | AU118: 0 | AV118: 0
O119: 104 | P119: 0.001896135127 | Q119: -0.0014162605 | R119: 0.0004771892062 | S119: 0 | T119: 0 | U119: 0 | AP119: 102 | AQ119: -0.002902031896 | AR119: -0.005248588109 | AS119: -0.008135388436 | AT119: 1 | AU119: 1 | AV119: 1
O120: 105 | P120: 0.001540757557 | Q120: -0.004061558741 | R120: -0.002527059061 | S120: 0 | T120: 0 | U120: 0 | AP120: 103 | AQ120: -0.008675568775 | AR120: -0.001857026917 | AS120: -0.01051648493 | AT120: 1 | AU120: 0 | AV120: 0
O121: 106 | P121: 0.001223697665 | Q121: -0.0006867214298 | R121: 0.0005361358962 | S121: 0 | T121: 0 | U121: 0 | AP121: 104 | AQ121: -0.008643231107 | AR121: -0.001927984955 | AS121: -0.01055455204 | AT121: 1 | AU121: 0 | AV121: 0
O122: 107 | P122: 0.003949434707 | Q122: 0.001080117632 | R122: 0.005033818194 | S122: 0 | T122: 0 | U122: 0 | AP122: 105 | AQ122: -0.01003094129 | AR122: 0.007524287415 | AS122: -0.002582129564 | AT122: 0 | AU122: 0 | AV122: 0
O123: 108 | P123: -0.0001558357348 | Q123: 0.001450881197 | R123: 0.001294819363 | S123: 0 | T123: 0 | U123: 0 | AP123: 106 | AQ123: -0.004599326498 | AR123: -0.00536819157 | AS123: -0.009942828002 | AT123: 1 | AU123: 1 | AV123: 1
O124: 109 | P124: 0.0002537921602 | Q124: 0.002148001066 | R124: 0.002402338372 | S124: 0 | T124: 0 | U124: 0 | AP124: 107 | AQ124: -0.006083048784 | AR124: 0.003019818396 | AS124: -0.00308160009 | AT124: 0 | AU124: 0 | AV124: 0
O125: 110 | P125: 0.005099093553 | Q125: 0.000633065702 | R125: 0.005735387316 | S125: 0 | T125: 0 | U125: 0 | AP125: 108 | AQ125: -0.008910914718 | AR125: -0.001529376022 | AS125: -0.0104266626 | AT125: 1 | AU125: 0 | AV125: 0
O126: 111 | P126: 0.002039253654 | Q126: -0.0004149028864 | R126: 0.001623504675 | S126: 0 | T126: 0 | U126: 0 | AP126: 109 | AQ126: -0.005128659221 | AR126: -0.0008188948934 | AS126: -0.005943354281 | AT126: 1 | AU126: 0 | AV126: 0
O127: 112 | P127: -0.001092628351 | Q127: -0.0001347415968 | R127: -0.001227222726 | S127: 0 | T127: 0 | U127: 0 | AP127: 110 | AQ127: -0.01103801915 | AR127: 0.003375779904 | AS127: -0.007699501166 | AT127: 1 | AU127: 0 | AV127: 0
O128: 113 | P128: -0.0009568533023 | Q128: 0.002543941122 | R128: 0.001584653642 | S128: 0 | T128: 0 | U128: 0 | AP128: 111 | AQ128: -0.00766448486 | AR128: -0.0005073986912 | AS128: -0.008167994601 | AT128: 1 | AU128: 0 | AV128: 0
O129: 114 | P129: -0.000792743508 | Q129: 0.003345693031 | R129: 0.002550297247 | S129: 0 | T129: 0 | U129: 0 | AP129: 112 | AQ129: -0.005456909146 | AR129: -0.01092002583 | AS129: -0.01631734539 | AT129: 1 | AU129: 1 | AV129: 1
O130: 115 | P130: -0.0001918971429 | Q130: -0.00363685415 | R130: -0.003828053391 | S130: 0 | T130: 0 | U130: 0 | AP130: 113 | AQ130: -0.009077673994 | AR130: 0.009557662736 | AS130: 0.0003932273952 | AT130: 0 | AU130: 0 | AV130: 0
O131: 116 | P131: 0.002686682539 | Q131: -0.001703761221 | R131: 0.0009783438522 | S131: 0 | T131: 0 | U131: 0 | AP131: 114 | AQ131: -0.006681799049 | AR131: 0.000994344361 | AS131: -0.005694098697 | AT131: 1 | AU131: 0 | AV131: 0
O132: 117 | P132: -0.003221663631 | Q132: 0.002093591777 | R132: -0.001134816703 | S132: 0 | T132: 0 | U132: 0 | AP132: 115 | AQ132: -0.004960550909 | AR132: -0.003461540795 | AS132: -0.008404920555 | AT132: 1 | AU132: 0 | AV132: 0
O133: 118 | P133: -0.0006163350735 | Q133: 0.001178238936 | R133: 0.000561177673 | S133: 0 | T133: 0 | U133: 0 | AP133: 116 | AQ133: -0.006102292707 | AR133: 0.005430052945 | AS133: -0.0007053755342 | AT133: 0 | AU133: 0 | AV133: 0
O134: 119 | P134: -0.0006973399097 | Q134: -0.002427245747 | R134: -0.003122893042 | S134: 0 | T134: 0 | U134: 0 | AP134: 117 | AQ134: -0.004422194671 | AR134: -0.002798573226 | AS134: -0.007208392062 | AT134: 1 | AU134: 0 | AV134: 0
O135: 120 | P135: -0.001881562288 | Q135: 0.0007851798192 | R135: -0.001097859834 | S135: 0 | T135: 0 | U135: 0 | AP135: 118 | AQ135: -0.004120083885 | AR135: -0.006031409597 | AS135: -0.01012664357 | AT135: 1 | AU135: 1 | AV135: 1
O136: 121 | P136: -0.0008800922893 | Q136: 0.0002421830035 | R136: -0.0006381224291 | S136: 0 | T136: 0 | U136: 0 | AP136: 119 | AQ136: -0.01314283442 | AR136: -0.003258174266 | AS136: -0.01635818704 | AT136: 1 | AU136: 0 | AV136: 0
O137: 122 | P137: -0.004140097437 | Q137: 0.0002968582914 | R137: -0.003844468168 | S137: 0 | T137: 0 | U137: 0 | AP137: 120 | AQ137: -0.004049181337 | AR137: 0.001608475352 | AS137: -0.002447218993 | AT137: 0 | AU137: 0 | AV137: 0
O138: 123 | P138: 0.004968118311 | Q138: 0.001772385981 | R138: 0.006749309715 | S138: 0 | T138: 0 | U138: 0 | AP138: 121 | AQ138: -0.008905510251 | AR138: 0.005627696104 | AS138: -0.003327931652 | AT138: 0 | AU138: 0 | AV138: 0
O139: 124 | P139: 0.0009027808853 | Q139: 0.0002259833008 | R139: 0.0011289682 | S139: 0 | T139: 0 | U139: 0 | AP139: 122 | AQ139: -0.005820680844 | AR139: -0.008262514239 | AS139: -0.01403510162 | AT139: 1 | AU139: 1 | AV139: 1
O140: 125 | P140: 0.000615957964 | Q140: 0.001286396079 | R140: 0.001903146409 | S140: 0 | T140: 0 | U140: 0 | AP140: 123 | AQ140: -0.007910462226 | AR140: 0.003498242744 | AS140: -0.004439892199 | AT140: 0 | AU140: 0 | AV140: 0
O141: 126 | P141: 0.001757070386 | Q141: 0.001938880449 | R141: 0.003699357585 | S141: 0 | T141: 0 | U141: 0 | AP141: 124 | AQ141: -0.007096322548 | AR141: -0.005831375218 | AS141: -0.01288631645 | AT141: 1 | AU141: 1 | AV141: 1
O142: 127 | P142: -0.001609235174 | Q142: -0.0004865000325 | R142: -0.002094952313 | S142: 0 | T142: 0 | U142: 0 | AP142: 125 | AQ142: -0.00956708971 | AR142: 0.007128757168 | AS142: -0.002506534001 | AT142: 0 | AU142: 0 | AV142: 0
O143: 128 | P143: -0.001532030213 | Q143: -0.0003283351297 | R143: -0.001859862323 | S143: 0 | T143: 0 | U143: 0 | AP143: 126 | AQ143: -0.009044306631 | AR143: 0.007082498607 | AS143: -0.002025864313 | AT143: 0 | AU143: 0 | AV143: 0
O144: 129 | P144: -0.0006780325639 | Q144: 0.001579105978 | R144: =(1+P144)*(1+Q144)-1 -> 0.0009000027286 | S144: =IF(R144<=$P$5,1,0) -> 0 | T144: =IF(Q144<=$P$5,1,0) -> 0 | U144: =S144*T144 -> 0 | AP144: 127 | AQ144: -0.008118327208 | AR144: 0.0008729981882 | AS144: -0.007252416305 | AT144: 1 | AU144: 0 | AV144: 0
O145: 130 | P145: =$P$8+_xlfn.NORM.INV(RAND(),0,1)*$P$10 -> -0.001712188979 | Q145: =$Q$8+_xlfn.NORM.INV(RAND(),0,1)*$Q$10 -> 0.001855285511 | R145: 0.0001399199324 | S145: 0 | T145: 0 | U145: 0 | AP145: 128 | AQ145: -0.005082028765 | AR145: -0.001200936881 | AS145: -0.006276862451 | AT145: 1 | AU145: 0 | AV145: 0
O146: 131 | P146: 0.000447344165 | Q146: -0.0001210542845 | R146: 0.0003262357276 | S146: 0 | T146: 0 | U146: 0 | AP146: 129 | AQ146: -0.007634354874 | AR146: 0.007071032751 | AS146: -0.0006173048965 | AT146: 0 | AU146: 0 | AV146: 0
O147: 132 | P147: 0.0002252892964 | Q147: 0.001621210326 | R147: 0.001846864864 | S147: 0 | T147: 0 | U147: 0 | AP147: 130 | AQ147: =$AQ$8+_xlfn.NORM.INV(RAND(),0,1)*$AQ$12 -> -0.003417445304 | AR147: =$AR$8+_xlfn.NORM.INV(RAND(),0,1)*$AR$12 -> -0.007385228367 | AS147: =(1+AQ147)*(1+AR147)-1 -> -0.01077743506 | AT147: =IF(AS147<=$AQ$5,1,0) -> 1 | AU147: =IF(AR147<=$AQ$5,1,0) -> 1 | AV147: =AT147*AU147 -> 1
O148: 133 | P148: 0.001195929688 | Q148: -0.0001917739936 | R148: 0.001003926346 | S148: 0 | T148: 0 | U148: 0 | AP148: 131 | AQ148: -0.006275783572 | AR148: 0.0003039243309 | AS148: -0.005973766604 | AT148: 1 | AU148: 0 | AV148: 0
O149: 134 | P149: -0.002209149235 | Q149: 0.003204655301 | R149: 0.0009884265045 | S149: 0 | T149: 0 | U149: 0 | AP149: 132 | AQ149: -0.004269755848 | AR149: 0.01260762682 | AS149: 0.008284039486 | AT149: 0 | AU149: 0 | AV149: 0
O150: 135 | P150: 0.00219946191 | Q150: -0.0007955336663 | R150: 0.001402178497 | S150: 0 | T150: 0 | U150: 0 | AP150: 133 | AQ150: -0.006179125951 | AR150: 0.001675244041 | AS150: -0.004514233454 | AT150: 0 | AU150: 0 | AV150: 0
O151: 136 | P151: 0.001595325668 | Q151: 0.0009606544595 | R151: 0.002557512684 | S151: 0 | T151: 0 | U151: 0 | AP151: 134 | AQ151: -0.007708573001 | AR151: 0.001279239238 | AS151: -0.006439194871 | AT151: 1 | AU151: 0 | AV151: 0
O152: 137 | P152: 0.00194128258 | Q152: 0.001215750042 | R152: 0.003159392736 | S152: 0 | T152: 0 | U152: 0 | AP152: 135 | AQ152: -0.006060099934 | AR152: 0.00798867661 | AS152: 0.001880164497 | AT152: 0 | AU152: 0 | AV152: 0
O153: 138 | P153: 0.002795589541 | Q153: 0.002784524158 | R153: 0.005587898085 | S153: 0 | T153: 0 | U153: 0 | AP153: 136 | AQ153: -0.008273334475 | AR153: -0.0001461633163 | AS153: -0.008418288533 | AT153: 1 | AU153: 0 | AV153: 0
O154: 139 | P154: -0.002771602099 | Q154: -0.003416334714 | R154: -0.006178468092 | S154: 1 | T154: 0 | U154: 0 | AP154: 137 | AQ154: -0.008435061829 | AR154: -0.00412843377 | AS154: -0.012528672 | AT154: 1 | AU154: 0 | AV154: 0
O155: 140 | P155: 3.613783681e-05 | Q155: 0.004128385705 | R155: 0.004164672732 | S155: 0 | T155: 0 | U155: 0 | AP155: 138 | AQ155: -0.009711881713 | AR155: 0.0006655134606 | AS155: -0.009052831641 | AT155: 1 | AU155: 0 | AV155: 0
O156: 141 | P156: 0.00415383806 | Q156: 0.001842486104 | R156: 0.006003977553 | S156: 0 | T156: 0 | U156: 0 | AP156: 139 | AQ156: -0.007660687103 | AR156: -0.0008481227093 | AS156: -0.00850231261 | AT156: 1 | AU156: 0 | AV156: 0
O157: 142 | P157: 0.004163572635 | Q157: 0.000821115777 | R157: 0.004988107188 | S157: 0 | T157: 0 | U157: 0 | AP157: 140 | AQ157: -0.005256726941 | AR157: 0.005530054979 | AS157: 0.0002442580489 | AT157: 0 | AU157: 0 | AV157: 0
O158: 143 | P158: 0.0005623384395 | Q158: -0.001887752092 | R158: -0.001326475208 | S158: 0 | T158: 0 | U158: 0 | AP158: 141 | AQ158: -0.006466611972 | AR158: -0.003768212889 | AS158: -0.01021045729 | AT158: 1 | AU158: 0 | AV158: 0
O159: 144 | P159: -0.00475424116 | Q159: 0.003343992653 | R159: -0.001426146655 | S159: 0 | T159: 0 | U159: 0 | AP159: 142 | AQ159: -0.008092169577 | AR159: 0.004979563156 | AS159: -0.00315290189 | AT159: 0 | AU159: 0 | AV159: 0
O160: 145 | P160: 0.001014555555 | Q160: -0.003582068684 | R160: -0.002571147336 | S160: 0 | T160: 0 | U160: 0 | AP160: 143 | AQ160: -0.008490564796 | AR160: 0.002024283505 | AS160: -0.006483468601 | AT160: 1 | AU160: 0 | AV160: 0
O161: 146 | P161: -0.0008064885045 | Q161: -0.002996439477 | R161: -0.003800511387 | S161: 0 | T161: 0 | U161: 0 | AP161: 144 | AQ161: -0.003614796665 | AR161: 0.008478760039 | AS161: 0.004833314381 | AT161: 0 | AU161: 0 | AV161: 0
O162: 147 | P162: 0.001318218848 | Q162: -0.002084621872 | R162: -0.0007691510115 | S162: 0 | T162: 0 | U162: 0 | AP162: 145 | AQ162: -0.005463249476 | AR162: 0.006249510429 | AS162: 0.0007521183184 | AT162: 0 | AU162: 0 | AV162: 0
O163: 148 | P163: 0.002997928119 | Q163: 0.004018526755 | R163: 0.007028502128 | S163: 0 | T163: 0 | U163: 0 | AP163: 146 | AQ163: -0.009373805573 | AR163: 0.003203574807 | AS163: -0.006200260454 | AT163: 1 | AU163: 0 | AV163: 0
O164: 149 | P164: -0.0001589831092 | Q164: -0.0004749830367 | R164: -0.0006338906317 | S164: 0 | T164: 0 | U164: 0 | AP164: 147 | AQ164: -0.009022120596 | AR164: 0.00659294541 | AS164: -0.002488657535 | AT164: 0 | AU164: 0 | AV164: 0
O165: 150 | P165: 0.001391260571 | Q165: 0.002504281638 | R165: 0.003899026317 | S165: 0 | T165: 0 | U165: 0 | AP165: 148 | AQ165: -0.009331340738 | AR165: 0.006911170429 | AS165: -0.002484660796 | AT165: 0 | AU165: 0 | AV165: 0
O166: 151 | P166: 0.0001797429863 | Q166: 0.005132742606 | R166: 0.005313408167 | S166: 0 | T166: 0 | U166: 0 | AP166: 149 | AQ166: -0.0103989377 | AR166: -0.003035461283 | AS166: -0.01340283341 | AT166: 1 | AU166: 0 | AV166: 0
O167: 152 | P167: 0.005171916217 | Q167: -0.002257083511 | R167: 0.002903159259 | S167: 0 | T167: 0 | U167: 0 | AP167: 150 | AQ167: -0.005837954559 | AR167: 0.0004698559315 | AS167: -0.005370841625 | AT167: 1 | AU167: 0 | AV167: 0
O168: 153 | P168: -0.005049210748 | Q168: -0.001058030866 | R168: -0.006101899393 | S168: 1 | T168: 0 | U168: 0 | AP168: 151 | AQ168: -0.00567136519 | AR168: 0.0009486757684 | AS168: -0.004728069709 | AT168: 0 | AU168: 0 | AV168: 0
O169: 154 | P169: -0.002061770799 | Q169: -0.004217811962 | R169: -0.0062708866 | S169: 1 | T169: 0 | U169: 0 | AP169: 152 | AQ169: -0.01095182929 | AR169: 0.0009837379312 | AS169: -0.00997886509 | AT169: 1 | AU169: 0 | AV169: 0
O170: 155 | P170: 0.0001267468748 | Q170: 0.003047595203 | R170: 0.003174728351 | S170: 0 | T170: 0 | U170: 0 | AP170: 153 | AQ170: -0.004960669252 | AR170: -0.007712235261 | AS170: -0.01263464666 | AT170: 1 | AU170: 1 | AV170: 1
O171: 156 | P171: 0.002134478939 | Q171: -0.001965317376 | R171: 0.0001649666346 | S171: 0 | T171: 0 | U171: 0 | AP171: 154 | AQ171: -0.01130398703 | AR171: 0.002981650502 | AS171: -0.008356041065 | AT171: 1 | AU171: 0 | AV171: 0
O172: 157 | P172: -0.002800803465 | Q172: 0.003253953642 | R172: 0.0004440364923 | S172: 0 | T172: 0 | U172: 0 | AP172: 155 | AQ172: -0.01178047262 | AR172: 0.0008729431457 | AS172: -0.01091781316 | AT172: 1 | AU172: 0 | AV172: 0
O173: 158 | P173: -0.0007005504803 | Q173: 0.002660786373 | R173: 0.001958371877 | S173: 0 | T173: 0 | U173: 0 | AP173: 156 | AQ173: -0.008266285215 | AR173: -0.004698005955 | AS173: -0.01292545611 | AT173: 1 | AU173: 0 | AV173: 0
O174: 159 | P174: 0.005026207593 | Q174: 0.001144969329 | R174: 0.006176931776 | S174: 0 | T174: 0 | U174: 0 | AP174: 157 | AQ174: -0.006397227422 | AR174: 0.003770017269 | AS174: -0.002651327812 | AT174: 0 | AU174: 0 | AV174: 0
O175: 160 | P175: -0.001193427801 | Q175: -0.001447004506 | R175: -0.002638705412 | S175: 0 | T175: 0 | U175: 0 | AP175: 158 | AQ175: -0.009291669213 | AR175: -0.003249520357 | AS175: -0.0125109961 | AT175: 1 | AU175: 0 | AV175: 0
O176: 161 | P176: -0.00130336422 | Q176: 0.002292922642 | R176: 0.0009865699094 | S176: 0 | T176: 0 | U176: 0 | AP176: 159 | AQ176: -0.00837794362 | AR176: 7.724659592e-07 | AS176: -0.008377177626 | AT176: 1 | AU176: 0 | AV176: 0
O177: 162 | P177: 0.001540951347 | Q177: -0.0004671489101 | R177: 0.001073082583 | S177: 0 | T177: 0 | U177: 0 | AP177: 160 | AQ177: -0.004765456921 | AR177: 0.004885861911 | AS177: 9.712162535e-05 | AT177: 0 | AU177: 0 | AV177: 0
O178: 163 | P178: 0.001560884052 | Q178: -0.0003546213349 | R178: 0.001205709194 | S178: 0 | T178: 0 | U178: 0 | AP178: 161 | AQ178: -0.01061285946 | AR178: -0.005481725469 | AS178: -0.01603640814 | AT178: 1 | AU178: 1 | AV178: 1
O179: 164 | P179: 0.001309709087 | Q179: -0.0009461777343 | R179: 0.0003622921346 | S179: 0 | T179: 0 | U179: 0 | AP179: 162 | AQ179: -0.009100472541 | AR179: -0.006518750369 | AS179: -0.0155598992 | AT179: 1 | AU179: 1 | AV179: 1
O180: 165 | P180: 0.001039292149 | Q180: -0.002601419928 | R180: -0.001564831414 | S180: 0 | T180: 0 | U180: 0 | AP180: 163 | AQ180: -0.006469372653 | AR180: -0.002985247886 | AS180: -0.009435307857 | AT180: 1 | AU180: 0 | AV180: 0
O181: 166 | P181: 0.0002474030733 | Q181: -0.0009484783774 | R181: -0.0007013099606 | S181: 0 | T181: 0 | U181: 0 | AP181: 164 | AQ181: -0.009914014647 | AR181: -0.003571749703 | AS181: -0.01345035397 | AT181: 1 | AU181: 0 | AV181: 0
O182: 167 | P182: -0.004044496793 | Q182: 0.0008581280887 | R182: -0.003189839401 | S182: 0 | T182: 0 | U182: 0 | AP182: 165 | AQ182: -0.01119420165 | AR182: 0.005382497798 | AS182: -0.005871956619 | AT182: 1 | AU182: 0 | AV182: 0
O183: 168 | P183: -1.858140142e-05 | Q183: 0.000909776288 | R183: 0.0008911779817 | S183: 0 | T183: 0 | U183: 0 | AP183: 166 | AQ183: -0.006971553078 | AR183: -0.007278350209 | AS183: -0.01419916188 | AT183: 1 | AU183: 1 | AV183: 1
O184: 169 | P184: -0.001000115463 | Q184: 0.0009328651706 | R184: -6.818326508e-05 | S184: 0 | T184: 0 | U184: 0 | AP184: 167 | AQ184: -0.004809669176 | AR184: -0.0004170647814 | AS184: -0.005224728014 | AT184: 1 | AU184: 0 | AV184: 0
O185: 170 | P185: -0.0003663162903 | Q185: -0.001618209138 | R185: -0.001983932652 | S185: 0 | T185: 0 | U185: 0 | AP185: 168 | AQ185: -0.005902069787 | AR185: 0.009716803099 | AS185: 0.003757384062 | AT185: 0 | AU185: 0 | AV185: 0
O186: 171 | P186: 0.001802435812 | Q186: -0.0003845202192 | R186: 0.001417222519 | S186: 0 | T186: 0 | U186: 0 | AP186: 169 | AQ186: -0.01277834198 | AR186: -0.002398622109 | AS186: -0.01514631368 | AT186: 1 | AU186: 0 | AV186: 0
O187: 172 | P187: 0.001460814656 | Q187: -0.002417457526 | R187: -0.0009601743269 | S187: 0 | T187: 0 | U187: 0 | AP187: 170 | AQ187: -0.01007556729 | AR187: -0.005025530797 | AS187: -0.01505046301 | AT187: 1 | AU187: 1 | AV187: 1
O188: 173 | P188: -0.001812047623 | Q188: -0.0009310501943 | R188: -0.00274141071 | S188: 0 | T188: 0 | U188: 0 | AP188: 171 | AQ188: -0.01113493052 | AR188: -0.004388362729 | AS188: -0.01547442914 | AT188: 1 | AU188: 0 | AV188: 0
O189: 174 | P189: -0.001430971596 | Q189: 0.0005954322523 | R189: -0.0008363913906 | S189: 0 | T189: 0 | U189: 0 | AP189: 172 | AQ189: -0.00414269063 | AR189: -0.002092763572 | AS189: -0.00622678453 | AT189: 1 | AU189: 0 | AV189: 0
O190: 175 | P190: 0.00161418496 | Q190: 6.46560352e-05 | R190: 0.001678945362 | S190: 0 | T190: 0 | U190: 0 | AP190: 173 | AQ190: -0.01195625452 | AR190: -0.003126388602 | AS190: -0.01504526322 | AT190: 1 | AU190: 0 | AV190: 0
O191: 176 | P191: -0.002007671066 | Q191: 0.002255824276 | R191: 0.0002436242568 | S191: 0 | T191: 0 | U191: 0 | AP191: 174 | AQ191: -0.009612716505 | AR191: 0.007882505991 | AS191: -0.00180598281 | AT191: 0 | AU191: 0 | AV191: 0
O192: 177 | P192: -0.005113599429 | Q192: -0.002355986737 | R192: -0.007457538593 | S192: 1 | T192: 0 | U192: 0 | AP192: 175 | AQ192: -0.006542960477 | AR192: -0.001233449896 | AS192: -0.007768339958 | AT192: 1 | AU192: 0 | AV192: 0
O193: 178 | P193: 0.0022796044 | Q193: -0.002110696082 | R193: 0.0001640967657 | S193: 0 | T193: 0 | U193: 0 | AP193: 176 | AQ193: -0.007784785876 | AR193: 0.00678395158 | AS193: -0.001053645907 | AT193: 0 | AU193: 0 | AV193: 0
O194: 179 | P194: -0.0008452919771 | Q194: 0.004039727806 | R194: 0.003191021079 | S194: 0 | T194: 0 | U194: 0 | AP194: 177 | AQ194: -0.008592906955 | AR194: 0.000696536032 | AS194: -0.007902356192 | AT194: 1 | AU194: 0 | AV194: 0
O195: 180 | P195: 0.0005731664763 | Q195: 0.0008286246274 | R195: 0.001402266043 | S195: 0 | T195: 0 | U195: 0 | AP195: 178 | AQ195: -0.00942502898 | AR195: -0.008069508269 | AS195: -0.0174184819 | AT195: 1 | AU195: 1 | AV195: 1
O196: 181 | P196: 0.001519954137 | Q196: 0.002001983742 | R196: 0.003524980803 | S196: 0 | T196: 0 | U196: 0 | AP196: 179 | AQ196: -0.00480134024 | AR196: 0.001532190883 | AS196: -0.003276505927 | AT196: 0 | AU196: 0 | AV196: 0
O197: 182 | P197: -0.0005193580127 | Q197: -0.0006339527951 | R197: -0.001152981559 | S197: 0 | T197: 0 | U197: 0 | AP197: 180 | AQ197: -0.009890851772 | AR197: 0.003453191866 | AS197: -0.006471814915 | AT197: 1 | AU197: 0 | AV197: 0
O198: 183 | P198: -0.00100214645 | Q198: 0.00308860979 | R198: 0.002083368101 | S198: 0 | T198: 0 | U198: 0 | AP198: 181 | AQ198: -0.01035091704 | AR198: -0.005049299364 | AS198: -0.01534795153 | AT198: 1 | AU198: 1 | AV198: 1
O199: 184 | P199: 0.00103638013 | Q199: -5.296933652e-05 | R199: 0.0009833558973 | S199: 0 | T199: 0 | U199: 0 | AP199: 182 | AQ199: -0.005830828577 | AR199: -0.004439081099 | AS199: -0.01024402615 | AT199: 1 | AU199: 0 | AV199: 0
O200: 185 | P200: 0.004913044621 | Q200: -0.001437376119 | R200: 0.003468606609 | S200: 0 | T200: 0 | U200: 0 | AP200: 183 | AQ200: -0.009418386883 | AR200: -0.004314615498 | AS200: -0.01369236566 | AT200: 1 | AU200: 0 | AV200: 0
O201: 186 | P201: 0.001378805241 | Q201: -0.0002329342541 | R201: 0.001145549816 | S201: 0 | T201: 0 | U201: 0 | AP201: 184 | AQ201: -0.006896700264 | AR201: -0.001756949148 | AS201: -0.00864153226 | AT201: 1 | AU201: 0 | AV201: 0
O202: 187 | P202: 0.001460247978 | Q202: -9.744542653e-05 | R202: 0.001362660257 | S202: 0 | T202: 0 | U202: 0 | AP202: 185 | AQ202: -0.006094584707 | AR202: 0.0006637530932 | AS202: -0.005434876913 | AT202: 1 | AU202: 0 | AV202: 0
... 923 more rows

Sheet Active Risk TE Est (hidden)
A1: Active Risk Tracking Error Estimate
A2: Description: estimates tracking error across an entire portfolio. This feeds into the performance test tracking error estimate (next worksheet).
A3: Note: Tracking error for unlisted property and unlisted infrastructure assumed to be captured at the asset class level.
A5: Key | L5: Traditional VC-V calculation
A6: Input required | E6: # Mgrs | F6: Gross TE | G6: Net TE | H6: TE Cont.
A7: Automatic calculations | C7: Australian Equities | D7: 0.25 | E7: 4 | F7: 0.03 | G7: =SQRT(E7*((F7/E7)^2)) -> 0.015 | H7: =D7*G7 -> 0.00375 | L7: Australian Equities | M7: 1 | N7: 0 | O7: 0 | P7: 0 | Q7: 0 | S7: =SUMPRODUCT($H$7:$H$11,M7:M11) -> 0.00375
A8: Results | C8: Global Equities | D8: 0.25 | E8: 4 | F8: 0.03 | G8: =SQRT(E8*((F8/E8)^2)) -> 0.015 | H8: =D8*G8 -> 0.00375 | L8: Global Equities | M8: 0 | N8: 1 | O8: 0 | P8: 0 | Q8: 0 | S8: =SUMPRODUCT($H$7:$H$11,N7:N11) -> 0.00375
C9: Credit | D9: 0.05 | E9: 1 | F9: 0.02 | G9: 0.02 | H9: 0.001 | L9: Credit | M9: 0 | N9: 0 | O9: 1 | P9: 0 | Q9: 0 | S9: =SUMPRODUCT($H$7:$H$11,O7:O11) -> 0.001
C10: Fixed Income | D10: 0.2 | E10: 2 | F10: 0.01 | G10: 0.007071067812 | H10: 0.001414213562 | L10: Fixed Income | M10: 0 | N10: 0 | O10: 0 | P10: 1 | Q10: 0 | S10: =SUMPRODUCT($H$7:$H$11,P7:P11) -> 0.001414213562
C11: Cash | D11: 0.05 | E11: 1 | F11: 0 | G11: 0 | H11: 0 | L11: Cash | M11: 0 | N11: 0 | O11: 0 | P11: 0 | Q11: 1 | S11: =SUMPRODUCT($H$7:$H$11,Q7:Q11) -> 0
E13: Gross Volatility: | G13: =SUMPRODUCT(D7:D11,G7:G11) -> 0.009914213562 | S13: =SQRT(SUMPRODUCT(H7:H11,S7:S11)) -> 0.005578978401
E14: Net Volatility: | G14: =S13 -> 0.005578978401

Sheet Perf Test Tracking Error Est (hidden)
A1: Performance Test Tracking Error Estimate
A2: Description: estimates the performance test tracking error estimate of the entire portfolio accounting for benchmark risk and active risk (accounted for in previous worksheet).
I4: Traditional VC-V calculation
A5: Key | D5: Allocation | E5: Tracking Error to Performance Test benchmark | F5: Gross TE contribution | J5: Unlisted Property | K5: Unlisted Infrastructure | L5: High Yield
A6: Input required | C6: Unlisted Property | D6: 0.07 | E6: =3%*75%+6%*25% -> 0.0375 | F6: =D6*E6 -> 0.002625 | I6: Unlisted Property | J6: 1 | K6: 0.5 | L6: 0 | N6: =SUMPRODUCT($F$6:$F$8,J6:J8) -> 0.004375
A7: Automatic calculations | C7: Unlisted Infrastructure | D7: 0.07 | E7: 0.05 | F7: =D7*E7 -> 0.0035 | I7: Unlisted Infrastructure | J7: 0.5 | K7: 1 | L7: 0 | N7: =SUMPRODUCT($F$6:$F$8,K6:K8) -> 0.0048125
A8: Results | C8: High Yield | D8: 0.07 | E8: 0.09 | F8: 0.0063 | I8: High Yield | J8: 0 | K8: 0 | L8: 1 | N8: =SUMPRODUCT($F$6:$F$8,L6:L8) -> 0.0063
E10: Gross Total TE | F10: =SUM(F6:F8) -> 0.012425 | N10: =SQRT(SUMPRODUCT(F6:F8,N6:N8)) -> 0.008247310168
E11: Net Total TE | F11: =N10 -> 0.008247310168
E13: Vol from active | F13: ='Active Risk TE Est'!G14 -> 0.005578978401
E15: Portfolio performance test tracking error estimate | F15: =SQRT(F11^2+F13^2) -> 0.009957064075

Sheet Constraint Analysis (hidden)
A1: Probability of Failure and Through-Time Portfolio Management
B4: Key | F4: Case Study - Through-Time Tracking Error Management
B5: Input required
B6: Automatic calculations | F6: E(Ret) | G6: 0.005 | I6: Estimated probability of not exceeding threshold: no strategy changes permitted | N6: Estimated probability of no change in strategy over rolling 8 years
B7: Results | F7: Performance Test Tracking Error (Total) | G7: 0.01 | I7: =1-_xlfn.NORM.DIST($G$8,$G$6,$G$7/SQRT(8),TRUE) -> 0.9976611325 | N7: =OO24/1000 -> 0.948
F8: Threshold | G8: -0.005
F9: Threshold Probability | G9: 0.9
F10: Associated z-score | G10: =_xlfn.NORM.INV((1-G9),0,1) -> -1.281551566
OY20: Probability of no change | PB20: =OZ24/1000 -> 0.989
OF23: Rolling 8yr cycle which has been seasoned | ON23: Yes | OO23: =COUNTIF(OO28:OO1027, "=Yes") -> 52 | OQ23: Special case of the lifecycle of a new 8yr product | OY23: Yes | OZ23: =COUNTIF(OZ28:OZ1027, "=Yes") -> 11
ON24: No | OO24: =1000-OO23 -> 948 | OY24: No | OZ24: =1000-OZ23 -> 989
I26: Series 1 - Year 1 | P26: Series 1 - Year 2 | S26: Series 2 - Year 1 | AB26: Series 1 - Year 3 | AE26: Series 2 - Year 2 | AH26: Series 3 - Year 1 | AR26: Series 1 - Year 4 | AU26: Series 2 - Year 3 | AX26: Series 3 - Year 2 | BA26: Series 4 - Year 1 | BL26: Series 1 - Year 5 | BO26: Series 2 - Year 4 | BR26: Series 3 - Year 3 | BU26: Series 4 - Year 2 | BX26: Series 5 - Year 1 | CJ26: Series 1 - Year 6 | CM26: Series 2 - Year 5 | CP26: Series 3 - Year 4 | CS26: Series 4 - Year 3 | CV26: Series 5 - Year 2 | CY26: Series 6 - Year 1 | DL26: Series 1 - Year 7 | DO26: Series 2 - Year 6 | DR26: Series 3 - Year 5 | DU26: Series 4 - Year 4 | DX26: Series 5 - Year 3 | EA26: Series 6 - Year 2 | ED26: Series 7 - Year 1 | ER26: Series 2 - Year 7 | EU26: Series 3 - Year 6 | EX26: Series 4 - Year 5 | FA26: Series 5 - Year 4 | FD26: Series 6 - Year 3 | FG26: Series 7 - Year 2 | FJ26: Series 8 - Year 1 | FX26: Series 3 - Year 7 | GA26: Series 4 - Year 6 | GD26: Series 5 - Year 5 | GG26: Series 6 - Year 4 | GJ26: Series 7 - Year 3 | GM26: Series 8 - Year 2 | GP26: Series 9 - Year 1 | HD26: Series 4 - Year 7 | HG26: Series 5 - Year 6 | HJ26: Series 6 - Year 5 | HM26: Series 7 - Year 4 | HP26: Series 8 - Year 3 | HS26: Series 9 - Year 2 | HV26: Series 10 - Year 1 | IJ26: Series 5 - Year 7 | IM26: Series 6 - Year 6 | IP26: Series 7 - Year 5 | IS26: Series 8 - Year 4 | IV26: Series 9 - Year 3 | IY26: Series 10 - Year 2 | JB26: Series 11 - Year 1 | JP26: Series 6 - Year 7 | JS26: Series 7 - Year 6 | JV26: Series 8 - Year 5 | JY26: Series 9 - Year 4 | KB26: Series 10 - Year 3 | KE26: Series 11 - Year 2 | KH26: Series 12 - Year 1 | KV26: Series 7 - Year 7 | KY26: Series 8 - Year 6 | LB26: Series 9 - Year 5 | LE26: Series 10 - Year 4 | LH26: Series 11 - Year 3 | LK26: Series 12 - Year 2 | LN26: Series 13 - Year 1 | MB26: Series 8 - Year 7 | ME26: Series 9 - Year 6 | MH26: Series 10 - Year 5 | MK26: Series 11 - Year 4 | MN26: Series 12 - Year 3 | MQ26: Series 13 - Year 2 | MT26: Series 14 - Year 1 | NH26: Series 9 - Year 7 | NK26: Series 10 - Year 6 | NN26: Series 11 - Year 5 | NQ26: Series 12 - Year 4 | NT26: Series 13 - Year 3 | NW26: Series 14 - Year 2 | NZ26: Series 15 - Year 1 | OF26: Start of Year Volatilities | OQ26: Start of Year Volatilities
G27: Performance | H27: Series 1 Index | I27: Min. Required Perf. | J27: Likelihood of Passing | K27: Reviewed Volatility | M27: Performance | N27: Series 1 - Year 2 Index | O27: Series 2 - Year 1 Index | P27: Min. Required Perf. | Q27: Likelihood of Passing | R27: Reviewed Volatility | S27: Min. Required Perf. | T27: Likelihood of Passing | U27: Reviewed Volatility | V27: Final Volatility | X27: Performance | Y27: Series 1 - Year 3 Index | Z27: Series 2 - Year 2 Index | AA27: Series 3 - Year 1 Index | AB27: Min. Required Perf. | AC27: Likelihood of Passing | AD27: Reviewed Volatility | AE27: Min. Required Perf. | AF27: Likelihood of Passing | AG27: Reviewed Volatility | AH27: Min. Required Perf. | AI27: Likelihood of Passing | AJ27: Reviewed Volatility | AK27: Final Volatility | AM27: Performance | AN27: Series 1 - Year 4 Index | AO27: Series 2 - Year 3 Index | AP27: Series 3 - Year 2 Index | AQ27: Series 4 - Year 1 Index | AR27: Min. Required Perf. | AS27: Likelihood of Passing | AT27: Reviewed Volatility | AU27: Min. Required Perf. | AV27: Likelihood of Passing | AW27: Reviewed Volatility | AX27: Min. Required Perf. | AY27: Likelihood of Passing | AZ27: Reviewed Volatility | BA27: Min. Required Perf. | BB27: Likelihood of Passing | BC27: Reviewed Volatility | BD27: Final Volatility | BF27: Performance | BG27: Series 1 - Year 5 Index | BH27: Series 2 - Year 4 Index | BI27: Series 3 - Year 3 Index | BJ27: Series 4 - Year 2 Index | BK27: Series 5 - Year 1 Index | BL27: Min. Required Perf. | BM27: Likelihood of Passing | BN27: Reviewed Volatility | BO27: Min. Required Perf. | BP27: Likelihood of Passing | BQ27: Reviewed Volatility | BR27: Min. Required Perf. | BS27: Likelihood of Passing | BT27: Reviewed Volatility | BU27: Min. Required Perf. | BV27: Likelihood of Passing | BW27: Reviewed Volatility | BX27: Min. Required Perf. | BY27: Likelihood of Passing | BZ27: Reviewed Volatility | CA27: Final Volatility | CC27: Performance | CD27: Series 1 - Year 6 Index | CE27: Series 2 - Year 5 Index | CF27: Series 3 - Year 4 Index | CG27: Series 4 - Year 3 Index | CH27: Series 5 - Year 2 Index | CI27: Series 6 - Year 1 Index | CJ27: Min. Required Perf. | CK27: Likelihood of Passing | CL27: Reviewed Volatility | CM27: Min. Required Perf. | CN27: Likelihood of Passing | CO27: Reviewed Volatility | CP27: Min. Required Perf. | CQ27: Likelihood of Passing | CR27: Reviewed Volatility | CS27: Min. Required Perf. | CT27: Likelihood of Passing | CU27: Reviewed Volatility | CV27: Min. Required Perf. | CW27: Likelihood of Passing | CX27: Reviewed Volatility | CY27: Min. Required Perf. | CZ27: Likelihood of Passing | DA27: Reviewed Volatility | DB27: Final Volatility | DD27: Performance | DE27: Series 1 - Year 7 Index | DF27: Series 2 - Year 6 Index | DG27: Series 3 - Year 5 Index | DH27: Series 4 - Year 4 Index | DI27: Series 5 - Year 3 Index | DJ27: Series 6 - Year 2 Index | DK27: Series 7 - Year 1 Index | DL27: Min. Required Perf. | DM27: Likelihood of Passing | DN27: Reviewed Volatility | DO27: Min. Required Perf. | DP27: Likelihood of Passing | DQ27: Reviewed Volatility | DR27: Min. Required Perf. | DS27: Likelihood of Passing | DT27: Reviewed Volatility | DU27: Min. Required Perf. | DV27: Likelihood of Passing | DW27: Reviewed Volatility | DX27: Min. Required Perf. | DY27: Likelihood of Passing | DZ27: Reviewed Volatility | EA27: Min. Required Perf. | EB27: Likelihood of Passing | EC27: Reviewed Volatility | ED27: Min. Required Perf. | EE27: Likelihood of Passing | EF27: Reviewed Volatility | EG27: Final Volatility | EI27: Performance | EJ27: Series 1 - Year 8 Index | EK27: Series 2 - Year 7 Index | EL27: Series 3 - Year 6 Index | EM27: Series 4 - Year 5 Index | EN27: Series 5 - Year 4 Index | EO27: Series 6 - Year 3 Index | EP27: Series 7 - Year 2 Index | EQ27: Series 8 - Year 1 Index | ER27: Min. Required Perf. | ES27: Likelihood of Passing | ET27: Reviewed Volatility | EU27: Min. Required Perf. | EV27: Likelihood of Passing | EW27: Reviewed Volatility | EX27: Min. Required Perf. | EY27: Likelihood of Passing | EZ27: Reviewed Volatility | FA27: Min. Required Perf. | FB27: Likelihood of Passing | FC27: Reviewed Volatility | FD27: Min. Required Perf. | FE27: Likelihood of Passing | FF27: Reviewed Volatility | FG27: Min. Required Perf. | FH27: Likelihood of Passing | FI27: Reviewed Volatility | FJ27: Min. Required Perf. | FK27: Likelihood of Passing | FL27: Reviewed Volatility | FM27: Final Volatility | FO27: Performance | FP27: Series 2 - Year 8 Index | FQ27: Series 3 - Year 7 Index | FR27: Series 4 - Year 6 Index | FS27: Series 5 - Year 5 Index | FT27: Series 6 - Year 4 Index | FU27: Series 7 - Year 3 Index | FV27: Series 8 - Year 2 Index | FW27: Series 9 - Year 1 Index | FX27: Min. Required Perf. | FY27: Likelihood of Passing | FZ27: Reviewed Volatility | GA27: Min. Required Perf. | GB27: Likelihood of Passing | GC27: Reviewed Volatility | GD27: Min. Required Perf. | GE27: Likelihood of Passing | GF27: Reviewed Volatility | GG27: Min. Required Perf. | GH27: Likelihood of Passing | GI27: Reviewed Volatility | GJ27: Min. Required Perf. | GK27: Likelihood of Passing | GL27: Reviewed Volatility | GM27: Min. Required Perf. | GN27: Likelihood of Passing | GO27: Reviewed Volatility | GP27: Min. Required Perf. | GQ27: Likelihood of Passing | GR27: Reviewed Volatility | GS27: Final Volatility | GU27: Performance | GV27: Series 3 - Year 8 Index | GW27: Series 4 - Year 7 Index | GX27: Series 5 - Year 6 Index | GY27: Series 6 - Year 5 Index | GZ27: Series 7 - Year 4 Index | HA27: Series 8 - Year 3 Index | HB27: Series 9 - Year 2 Index | HC27: Series 10 - Year 1 Index | HD27: Min. Required Perf. | HE27: Likelihood of Passing | HF27: Reviewed Volatility | HG27: Min. Required Perf. | HH27: Likelihood of Passing | HI27: Reviewed Volatility | HJ27: Min. Required Perf. | HK27: Likelihood of Passing | HL27: Reviewed Volatility | HM27: Min. Required Perf. | HN27: Likelihood of Passing | HO27: Reviewed Volatility | HP27: Min. Required Perf. | HQ27: Likelihood of Passing | HR27: Reviewed Volatility | HS27: Min. Required Perf. | HT27: Likelihood of Passing | HU27: Reviewed Volatility | HV27: Min. Required Perf. | HW27: Likelihood of Passing | HX27: Reviewed Volatility | HY27: Final Volatility | IA27: Performance | IB27: Series 4 - Year 8 Index | IC27: Series 5 - Year 7 Index | ID27: Series 6 - Year 6 Index | IE27: Series 7 - Year 5 Index | IF27: Series 8 - Year 4 Index | IG27: Series 9 - Year 3 Index | IH27: Series 10 - Year 2 Index | II27: Series 11 - Year 1 Index | IJ27: Min. Required Perf. | IK27: Likelihood of Passing | IL27: Reviewed Volatility | IM27: Min. Required Perf. | IN27: Likelihood of Passing | IO27: Reviewed Volatility | IP27: Min. Required Perf. | IQ27: Likelihood of Passing | IR27: Reviewed Volatility | IS27: Min. Required Perf. | IT27: Likelihood of Passing | IU27: Reviewed Volatility | IV27: Min. Required Perf. | IW27: Likelihood of Passing | IX27: Reviewed Volatility | IY27: Min. Required Perf. | IZ27: Likelihood of Passing | JA27: Reviewed Volatility | JB27: Min. Required Perf. | JC27: Likelihood of Passing | JD27: Reviewed Volatility | JE27: Final Volatility | JG27: Performance | JH27: Series 5 - Year 8 Index | JI27: Series 6 - Year 7 Index | JJ27: Series 7 - Year 6 Index | JK27: Series 8 - Year 5 Index | JL27: Series 9 - Year 4 Index | JM27: Series 10 - Year 3 Index | JN27: Series 11 - Year 2 Index | JO27: Series 12 - Year 1 Index | JP27: Min. Required Perf. | JQ27: Likelihood of Passing | JR27: Reviewed Volatility | JS27: Min. Required Perf. | JT27: Likelihood of Passing | JU27: Reviewed Volatility | JV27: Min. Required Perf. | JW27: Likelihood of Passing | JX27: Reviewed Volatility | JY27: Min. Required Perf. | JZ27: Likelihood of Passing | KA27: Reviewed Volatility | KB27: Min. Required Perf. | KC27: Likelihood of Passing | KD27: Reviewed Volatility | KE27: Min. Required Perf. | KF27: Likelihood of Passing | KG27: Reviewed Volatility | KH27: Min. Required Perf. | KI27: Likelihood of Passing | KJ27: Reviewed Volatility | KK27: Final Volatility | KM27: Performance | KN27: Series 6 - Year 8 Index | KO27: Series 7 - Year 7 Index | KP27: Series 8 - Year 6 Index | KQ27: Series 9 - Year 5 Index | KR27: Series 10 - Year 4 Index | KS27: Series 11 - Year 3 Index | KT27: Series 12 - Year 2 Index | KU27: Series 13 - Year 1 Index | KV27: Min. Required Perf. | KW27: Likelihood of Passing | KX27: Reviewed Volatility | KY27: Min. Required Perf. | KZ27: Likelihood of Passing | LA27: Reviewed Volatility | LB27: Min. Required Perf. | LC27: Likelihood of Passing | LD27: Reviewed Volatility | LE27: Min. Required Perf. | LF27: Likelihood of Passing | LG27: Reviewed Volatility | LH27: Min. Required Perf. | LI27: Likelihood of Passing | LJ27: Reviewed Volatility | LK27: Min. Required Perf. | LL27: Likelihood of Passing | LM27: Reviewed Volatility | LN27: Min. Required Perf. | LO27: Likelihood of Passing | LP27: Reviewed Volatility | LQ27: Final Volatility | LS27: Performance | LT27: Series 7 - Year 8 Index | LU27: Series 8 - Year 7 Index | LV27: Series 9 - Year 6 Index | LW27: Series 10 - Year 5 Index | LX27: Series 11 - Year 4 Index | LY27: Series 12 - Year 3 Index | LZ27: Series 13 - Year 2 Index | MA27: Series 14 - Year 1 Index | MB27: Min. Required Perf. | MC27: Likelihood of Passing | MD27: Reviewed Volatility | ME27: Min. Required Perf. | MF27: Likelihood of Passing | MG27: Reviewed Volatility | MH27: Min. Required Perf. | MI27: Likelihood of Passing | MJ27: Reviewed Volatility | MK27: Min. Required Perf. | ML27: Likelihood of Passing | MM27: Reviewed Volatility | MN27: Min. Required Perf. | MO27: Likelihood of Passing | MP27: Reviewed Volatility | MQ27: Min. Required Perf. | MR27: Likelihood of Passing | MS27: Reviewed Volatility | MT27: Min. Required Perf. | MU27: Likelihood of Passing | MV27: Reviewed Volatility | MW27: Final Volatility | MY27: Performance | MZ27: Series 8 - Year 8 Index | NA27: Series 9 - Year 7 Index | NB27: Series 10 - Year 6 Index | NC27: Series 11 - Year 5 Index | ND27: Series 12 - Year 4 Index | NE27: Series 13 - Year 3 Index | NF27: Series 14 - Year 2 Index | NG27: Series 15 - Year 1 Index | NH27: Min. Required Perf. | NI27: Likelihood of Passing | NJ27: Reviewed Volatility | NK27: Min. Required Perf. | NL27: Likelihood of Passing | NM27: Reviewed Volatility | NN27: Min. Required Perf. | NO27: Likelihood of Passing | NP27: Reviewed Volatility | NQ27: Min. Required Perf. | NR27: Likelihood of Passing | NS27: Reviewed Volatility | NT27: Min. Required Perf. | NU27: Likelihood of Passing | NV27: Reviewed Volatility | NW27: Min. Required Perf. | NX27: Likelihood of Passing | NY27: Reviewed Volatility | NZ27: Min. Required Perf. | OA27: Likelihood of Passing | OB27: Reviewed Volatility | OC27: Final Volatility | OF27: Year 1 | OG27: Year 2 | OH27: Year 3 | OI27: Year 4 | OJ27: Year 5 | OK27: Year 6 | OL27: Year 7 | OM27: Year 8 | OO27: Change | OQ27: Year 1 | OR27: Year 2 | OS27: Year 3 | OT27: Year 4 | OU27: Year 5 | OV27: Year 6 | OW27: Year 7 | OX27: Year 8 | OZ27: Change
F28: 1 | G28: =_xlfn.NORM.INV(RAND(),$G$6,$G$7) -> 0.007858265762 | H28: =100*(1+G28) -> 100.7858266 | I28: =(((100*(1+8*$G$8))-H28)/100)/7 -> -0.006836895109 | J28: =1-_xlfn.NORM.DIST(I28,$G$6,$G$7/SQRT(7),TRUE) -> 0.9991311554 | K28: =MAX(MIN(SQRT(7)*(I28-$G$6)/$G$10,$G$7),0.01%) -> 0.01 | M28: =_xlfn.NORM.INV(RAND(),$G$6,K28) -> 0.008406320114 | N28: =IF(M28="","",H28*(1+M28)) -> 101.6330645 | O28: =100*(1+M28) -> 100.840632 | P28: =(((100*(1+8*$G$8))-N28)/100)/6 -> -0.009388440829 | Q28: =1-_xlfn.NORM.DIST(P28,$G$6,$G$7/SQRT(6),TRUE) -> 0.9997878056 | R28: =MAX(MIN(SQRT(6)*(P28-$G$6)/$G$10,$G$7),0.01%) -> 0.01 | S28: =(((100*(1+8*$G$8))-O28)/100)/7 -> -0.006915188588 | T28: =1-_xlfn.NORM.DIST(S28,$G$6,$G$7/SQRT(7),TRUE) -> 0.9991905022 | U28: =MAX(MIN(SQRT(7)*(S28-$G$6)/$G$10,$G$7),0.01%) -> 0.01 | V28: =MIN(R28,U28) -> 0.01 | X28: =_xlfn.NORM.INV(RAND(),$G$6,V28) -> 0.01301526015 | Y28: =IF(X28="","",N28*(1+X28)) -> 102.9558453 | Z28: =(1+X28)*O28 -> 102.1530991 | AA28: =100*(1+X28) -> 101.301526 | AB28: =(((100*(1+8*$G$8))-Y28)/100)/5 -> -0.01391169054 | AC28: =1-_xlfn.NORM.DIST(AB28,$G$6,$G$7/SQRT(5),TRUE) -> 0.999988252 | AD28: =MAX(MIN(SQRT(5)*(AB28-$G$6)/$G$10,$G$7),0.01%) -> 0.01 | AE28: =(((100*(1+8*$G$8))-Z28)/100)/6 -> -0.01025516512 | AF28: =1-_xlfn.NORM.DIST(AE28,$G$6,$G$7/SQRT(6),TRUE) -> 0.9999067882 | AG28: =MAX(MIN(SQRT(6)*(AE28-$G$6)/$G$10,$G$7),0.01%) -> 0.01 | AH28: =(((100*(1+8*$G$8))-AA28)/100)/7 -> -0.007573608592 | AI28: =1-_xlfn.NORM.DIST(AH28,$G$6,$G$7/SQRT(7),TRUE) -> 0.9995605388 | AJ28: =MAX(MIN(SQRT(7)*(AH28-$G$6)/$G$10,$G$7),0.01%) -> 0.01 | AK28: =MIN(AD28,AG28,AJ28) -> 0.01 | AM28: =_xlfn.NORM.INV(RAND(),$G$6,AK28) -> 0.003942444408 | AN28: =IF(AM28="","",Y28*(1+AM28)) -> 103.361743 | AO28: =(1+AM28)*Z28 -> 102.555832 | AP28: =(1+AM28)*AA28 -> 101.7009016 | AQ28: =100*(1+AM28) -> 100.3942444 | AR28: =(((100*(1+8*$G$8))-AN28)/100)/4 -> -0.01840435742 | AS28: =1-_xlfn.NORM.DIST(AR28,$G$6,$G$7/SQRT(4),TRUE) -> 0.9999985717 | AT28: =MAX(MIN(SQRT(4)*(AR28-$G$6)/$G$10,$G$7),0.01%) -> 0.01 | AU28: =(((100*(1+8*$G$8))-AO28)/100)/5 -> -0.01311166397 | AV28: =1-_xlfn.NORM.DIST(AU28,$G$6,$G$7/SQRT(5),TRUE) -> 0.9999743793 | AW28: =MAX(MIN(SQRT(5)*(AU28-$G$6)/$G$10,$G$7),0.01%) -> 0.01 | AX28: =(((100*(1+8*$G$8))-AP28)/100)/6 -> -0.009501502749 | AY28: =1-_xlfn.NORM.DIST(AX28,$G$6,$G$7/SQRT(6),TRUE) -> 0.9998089357 | AZ28: =MAX(MIN(SQRT(6)*(AX28-$G$6)/$G$10,$G$7),0.01%) -> 0.01 | BA28: =(((100*(1+8*$G$8))-AQ28)/100)/7 -> -0.006277492058 | BB28: =1-_xlfn.NORM.DIST(BA28,$G$6,$G$7/SQRT(7),TRUE) -> 0.9985762752 | BC28: =MAX(MIN(SQRT(7)*(BA28-$G$6)/$G$10,$G$7),0.01%) -> 0.01 | BD28: =MIN(AT28,AW28,AZ28,BC28) -> 0.01 | BF28: =_xlfn.NORM.INV(RAND(),$G$6,BD28) -> 0.02999367181 | BG28: =IF(BF28="","",AN28*(1+BF28)) -> 106.4619412 | BH28: =(1+BF28)*AO28 -> 105.631858 | BI28: =(1+BF28)*AP28 -> 104.7512851 | BJ28: =(1+BF28)*AQ28 -> 103.4054365 | BK28: =100*(1+BF28) -> 102.9993672 | BL28: =(((100*(1+8*$G$8))-BG28)/100)/3 -> -0.03487313721 | BM28: =1-_xlfn.NORM.DIST(BL28,$G$6,$G$7/SQRT(3),TRUE) -> 1 | BN28: =MAX(MIN(SQRT(3)*(BL28-$G$6)/$G$10,$G$7),0.01%) -> 0.01 | BO28: =(((100*(1+8*$G$8))-BH28)/100)/4 -> -0.02407964488 | BP28: =1-_xlfn.NORM.DIST(BO28,$G$6,$G$7/SQRT(4),TRUE) -> 0.999999997 | BQ28: =MAX(MIN(SQRT(4)*(BO28-$G$6)/$G$10,$G$7),0.01%) -> 0.01 | BR28: =(((100*(1+8*$G$8))-BI28)/100)/5 -> -0.01750257023 | BS28: =1-_xlfn.NORM.DIST(BR28,$G$6,$G$7/SQRT(5),TRUE) -> 0.999999757 | BT28: =MAX(MIN(SQRT(5)*(BR28-$G$6)/$G$10,$G$7),0.01%) -> 0.01 | BU28: =(((100*(1+8*$G$8))-BJ28)/100)/6 -> -0.0123423941 | BV28: =1-_xlfn.NORM.DIST(BU28,$G$6,$G$7/SQRT(6),TRUE) -> 0.9999892157 | BW28: =MAX(MIN(SQRT(6)*(BU28-$G$6)/$G$10,$G$7),0.01%) -> 0.01 | BX28: =(((100*(1+8*$G$8))-BK28)/100)/7 -> -0.009999095972 | BY28: =1-_xlfn.NORM.DIST(BX28,$G$6,$G$7/SQRT(7),TRUE) -> 0.9999638197 | BZ28: =MAX(MIN(SQRT(7)*(BX28-$G$6)/$G$10,$G$7),0.01%) -> 0.01 | CA28: =MIN(BN28,BQ28,BT28,BW28,BZ28) -> 0.01 | CC28: =_xlfn.NORM.INV(RAND(),$G$6,CA28) -> -0.0005506076559 | CD28: =IF(CC28="","",BG28*(1+CC28)) -> 106.4033224 | CE28: =(1+CC28)*BH28 -> 105.5736962 | CF28: =(1+CC28)*BI28 -> 104.6936083 | CG28: =(1+CC28)*BJ28 -> 103.3485006 | CH28: =(1+CC28)*BK28 -> 102.9426549 | CI28: =100*(1+CC28) -> 99.94493923 | CJ28: =(((100*(1+8*$G$8))-CD28)/100)/2 -> -0.05201661202 | CK28: =1-_xlfn.NORM.DIST(CJ28,$G$6,$G$7/SQRT(2),TRUE) -> 1 | CL28: =MAX(MIN(SQRT(2)*(CJ28-$G$6)/$G$10,$G$7),0.01%) -> 0.01 | CM28: =(((100*(1+8*$G$8))-CE28)/100)/3 -> -0.0319123208 | CN28: =1-_xlfn.NORM.DIST(CM28,$G$6,$G$7/SQRT(3),TRUE) -> 0.9999999999 | CO28: =MAX(MIN(SQRT(3)*(CM28-$G$6)/$G$10,$G$7),0.01%) -> 0.01 | CP28: =(((100*(1+8*$G$8))-CF28)/100)/4 -> -0.02173402064 | CQ28: =1-_xlfn.NORM.DIST(CP28,$G$6,$G$7/SQRT(4),TRUE) -> 0.9999999552 | CR28: =MAX(MIN(SQRT(4)*(CP28-$G$6)/$G$10,$G$7),0.01%) -> 0.01 | CS28: =(((100*(1+8*$G$8))-CG28)/100)/5 -> -0.01469700127 | CT28: =1-_xlfn.NORM.DIST(CS28,$G$6,$G$7/SQRT(5),TRUE) -> 0.9999946957 | CU28: =MAX(MIN(SQRT(5)*(CS28-$G$6)/$G$10,$G$7),0.01%) -> 0.01 | CV28: =(((100*(1+8*$G$8))-CH28)/100)/6 -> -0.01157109157 | CW28: =1-_xlfn.NORM.DIST(CV28,$G$6,$G$7/SQRT(6),TRUE) -> 0.9999753659 | CX28: =MAX(MIN(SQRT(6)*(CV28-$G$6)/$G$10,$G$7),0.01%) -> 0.01 | CY28: =(((100*(1+8*$G$8))-CI28)/100)/7 -> -0.005635627478 | CZ28: =1-_xlfn.NORM.DIST(CY28,$G$6,$G$7/SQRT(7),TRUE) -> 0.997552949 | DA28: =MAX(MIN(SQRT(7)*(CY28-$G$6)/$G$10,$G$7),0.01%) -> 0.01 | DB28: =MIN(CL28,CO28,CR28,CU28,CX28,DA28) -> 0.01 | DD28: =_xlfn.NORM.INV(RAND(),$G$6,DB28) -> 0.0002159071921 | DE28: =IF(DD28="","",CD28*(1+DD28)) -> 106.4262956 | DF28: =(1+DD28)*CE28 -> 105.5964904 | DG28: =(1+DD28)*CF28 -> 104.7162124 | DH28: =(1+DD28)*CG28 -> 103.3708143 | DI28: =(1+DD28)*CH28 -> 102.964881 | DJ28: =(1+DD28)*CI28 -> 99.96651807 | DK28: =100*(1+DD28) -> 100.0215907 | DL28: =(((100*(1+8*$G$8))-DE28)/100)/1 -> -0.1042629565 | DM28: =1-_xlfn.NORM.DIST(DL28,$G$6,$G$7/SQRT(1),TRUE) -> 1 | DN28: =MAX(MIN(SQRT(1)*(DL28-$G$6)/$G$10,$G$7),0.01%) -> 0.01 | DO28: =(((100*(1+8*$G$8))-DF28)/100)/2 -> -0.04798245181 | DP28: =1-_xlfn.NORM.DIST(DO28,$G$6,$G$7/SQRT(2),TRUE) -> 1 | DQ28: =MAX(MIN(SQRT(2)*(DO28-$G$6)/$G$10,$G$7),0.01%) -> 0.01 | DR28: =(((100*(1+8*$G$8))-DG28)/100)/3 -> -0.0290540412 | DS28: =1-_xlfn.NORM.DIST(DR28,$G$6,$G$7/SQRT(3),TRUE) -> 0.9999999982 | DT28: =MAX(MIN(SQRT(3)*(DR28-$G$6)/$G$10,$G$7),0.01%) -> 0.01 | DU28: =(((100*(1+8*$G$8))-DH28)/100)/4 -> -0.0184270358 | DV28: =1-_xlfn.NORM.DIST(DU28,$G$6,$G$7/SQRT(4),TRUE) -> 0.999998603 | DW28: =MAX(MIN(SQRT(4)*(DU28-$G$6)/$G$10,$G$7),0.01%) -> 0.01 | DX28: =(((100*(1+8*$G$8))-DI28)/100)/5 -> -0.013929762 | DY28: =1-_xlfn.NORM.DIST(DX28,$G$6,$G$7/SQRT(5),TRUE) -> 0.9999884612 | DZ28: =MAX(MIN(SQRT(5)*(DX28-$G$6)/$G$10,$G$7),0.01%) -> 0.01 | EA28: =(((100*(1+8*$G$8))-DJ28)/100)/6 -> -0.006610863443 | EB28: =1-_xlfn.NORM.DIST(EA28,$G$6,$G$7/SQRT(6),TRUE) -> 0.9977729306 | EC28: =MAX(MIN(SQRT(6)*(EA28-$G$6)/$G$10,$G$7),0.01%) -> 0.01 | ED28: =(((100*(1+8*$G$8))-DK28)/100)/7 -> -0.005745129599 | EE28: =1-_xlfn.NORM.DIST(ED28,$G$6,$G$7/SQRT(7),TRUE) -> 0.9977647037 | EF28: =MAX(MIN(SQRT(7)*(ED28-$G$6)/$G$10,$G$7),0.01%) -> 0.01 | EG28: =MIN(DN28,DQ28,DT28,DW28,DZ28,EC28,EF28) -> 0.01 | EI28: =_xlfn.NORM.INV(RAND(),$G$6,EG28) -> 0.002994036211 | EJ28: =IF(EI28="","",DE28*(1+EI28)) -> 106.7449398 | EK28: =(1+EI28)*DF28 -> 105.9126501 | EL28: =(1+EI28)*DG28 -> 105.0297365 | EM28: =(1+EI28)*DH28 -> 103.6803103 | EN28: =(1+EI28)*DI28 -> 103.2731616 | EO28: =(1+EI28)*DJ28 -> 100.2658214 | EP28: =(1+EI28)*DK28 -> 100.321059 | EQ28: =(1+$EI28)*100 -> 100.2994036 | ER28: =(((100*(1+8*$G$8))-EK28)/100)/1 -> -0.09912650077 | ES28: =1-_xlfn.NORM.DIST(ER28,$G$6,$G$7/SQRT(1),TRUE) -> 1 | ET28: =MAX(MIN(SQRT(1)*(ER28-$G$6)/$G$10,$G$7),0.01%) -> 0.01 | EU28: =(((100*(1+8*$G$8))-EL28)/100)/2 -> -0.04514868245 | EV28: =1-_xlfn.NORM.DIST(EU28,$G$6,$G$7/SQRT(2),TRUE) -> 1 | EW28: =MAX(MIN(SQRT(2)*(EU28-$G$6)/$G$10,$G$7),0.01%) -> 0.01 | EX28: =(((100*(1+8*$G$8))-EM28)/100)/3 -> -0.02560103427 | EY28: =1-_xlfn.NORM.DIST(EX28,$G$6,$G$7/SQRT(3),TRUE) -> 0.9999999422 | EZ28: =MAX(MIN(SQRT(3)*(EX28-$G$6)/$G$10,$G$7),0.01%) -> 0.01 | FA28: =(((100*(1+8*$G$8))-EN28)/100)/4 -> -0.01818290396 | FB28: =1-_xlfn.NORM.DIST(FA28,$G$6,$G$7/SQRT(4),TRUE) -> 0.9999982289 | FC28: =MAX(MIN(SQRT(4)*(FA28-$G$6)/$G$10,$G$7),0.01%) -> 0.01 | FD28: =(((100*(1+8*$G$8))-EO28)/100)/5 -> -0.008531642881 | FE28: =1-_xlfn.NORM.DIST(FD28,$G$6,$G$7/SQRT(5),TRUE) -> 0.9987599847 | FF28: =MAX(MIN(SQRT(5)*(FD28-$G$6)/$G$10,$G$7),0.01%) -> 0.01 | FG28: =(((100*(1+8*$G$8))-EP28)/100)/6 -> -0.007201764973 | FH28: =1-_xlfn.NORM.DIST(FG28,$G$6,$G$7/SQRT(6),TRUE) -> 0.998599668 | FI28: =MAX(MIN(SQRT(6)*(FG28-$G$6)/$G$10,$G$7),0.01%) -> 0.01 | FJ28: =(((100*(1+8*$G$8))-EQ28)/100)/7 -> -0.006142005173 | FK28: =1-_xlfn.NORM.DIST(FJ28,$G$6,$G$7/SQRT(7),TRUE) -> 0.9984002843 | FL28: =MAX(MIN(SQRT(7)*(FJ28-$G$6)/$G$10,$G$7),0.01%) -> 0.01 | FM28: =MIN(ET28,EW28,EZ28,FC28,FF28,FI28,FL28) -> 0.01 | FO28: =_xlfn.NORM.INV(RAND(),$G$6,FM28) -> 0.002466928282 | FP28: =IF(FO28="","",EK28*(1+FO28)) -> 106.173929 | FQ28: =(1+FO28)*EL28 -> 105.2888373 | FR28: =(1+FO28)*EM28 -> 103.9360822 | FS28: =(1+FO28)*EN28 -> 103.5279291 | FT28: =(1+FO28)*EO28 -> 100.51317 | FU28: =(1+FO28)*EP28 -> 100.5685438 | FV28: =(1+FO28)*EQ28 -> 100.5468351 | FW28: =(1+FO28)*100 -> 100.2466928 | FX28: =(((100*(1+8*$G$8))-FQ28)/100)/1 -> -0.09288837318 | FY28: =1-_xlfn.NORM.DIST(FX28,$G$6,$G$7/SQRT(1),TRUE) -> 1 | FZ28: =MAX(MIN(SQRT(1)*(FX28-$G$6)/$G$10,$G$7),0.01%) -> 0.01 | GA28: =(((100*(1+8*$G$8))-FR28)/100)/2 -> -0.03968041085 | GB28: =1-_xlfn.NORM.DIST(GA28,$G$6,$G$7/SQRT(2),TRUE) -> 0.9999999999 | GC28: =MAX(MIN(SQRT(2)*(GA28-$G$6)/$G$10,$G$7),0.01%) -> 0.01 | GD28: =(((100*(1+8*$G$8))-FS28)/100)/3 -> -0.02509309688 | GE28: =1-_xlfn.NORM.DIST(GD28,$G$6,$G$7/SQRT(3),TRUE) -> 0.9999999067 | GF28: =MAX(MIN(SQRT(3)*(GD28-$G$6)/$G$10,$G$7),0.01%) -> 0.01 | GG28: =(((100*(1+8*$G$8))-FT28)/100)/4 -> -0.01128292508 | GH28: =1-_xlfn.NORM.DIST(GG28,$G$6,$G$7/SQRT(4),TRUE) -> 0.9994361942 | GI28: =MAX(MIN(SQRT(4)*(GG28-$G$6)/$G$10,$G$7),0.01%) -> 0.01 | GJ28: =(((100*(1+8*$G$8))-FU28)/100)/5 -> -0.009137087683 | GK28: =1-_xlfn.NORM.DIST(GJ28,$G$6,$G$7/SQRT(5),TRUE) -> 0.9992142593 | GL28: =MAX(MIN(SQRT(5)*(GJ28-$G$6)/$G$10,$G$7),0.01%) -> 0.01 | GM28: =(((100*(1+8*$G$8))-FV28)/100)/6 -> -0.007578058428 | GN28: =1-_xlfn.NORM.DIST(GM28,$G$6,$G$7/SQRT(6),TRUE) -> 0.9989684062 | GO28: =MAX(MIN(SQRT(6)*(GM28-$G$6)/$G$10,$G$7),0.01%) -> 0.01 | GP28: =(((100*(1+8*$G$8))-FW28)/100)/7 -> -0.00606670404 | GQ28: =1-_xlfn.NORM.DIST(GP28,$G$6,$G$7/SQRT(7),TRUE) -> 0.9982941108 | GR28: =MAX(MIN(SQRT(7)*(GP28-$G$6)/$G$10,$G$7),0.01%) -> 0.01 | GS28: =MIN(FZ28,GC28,GF28,GI28,GL28,GO28,GR28) -> 0.01 | GU28: =_xlfn.NORM.INV(RAND(),$G$6,GS28) -> -0.005688556175 | GV28: =IF(GU28="","",FQ28*(1+GU28)) -> 104.6898959 | GW28: =(1+GU28)*FR28 -> 103.3448359 | GX28: =(1+GU28)*FS28 -> 102.9390046 | GY28: =(1+GU28)*FT28 -> 99.94139522 | GZ28: =(1+GU28)*FU28 -> 99.99645403 | HA28: =(1+GU28)*FV28 -> 99.97486874 | HB28: =(1+GU28)*FW28 -> 99.67643388 | HC28: =(1+GU28)*100 -> 99.43114438 | HD28: =(((100*(1+8*$G$8))-GW28)/100)/1 -> -0.07344835928 | HE28: =1-_xlfn.NORM.DIST(HD28,$G$6,$G$7/SQRT(1),TRUE) -> 1 | HF28: =MAX(MIN(SQRT(1)*(HD28-$G$6)/$G$10,$G$7),0.01%) -> 0.01 | HG28: =(((100*(1+8*$G$8))-GX28)/100)/2 -> -0.03469502313 | HH28: =1-_xlfn.NORM.DIST(HG28,$G$6,$G$7/SQRT(2),TRUE) -> 0.9999999901 | HI28: =MAX(MIN(SQRT(2)*(HG28-$G$6)/$G$10,$G$7),0.01%) -> 0.01 | HJ28: =(((100*(1+8*$G$8))-GY28)/100)/3 -> -0.01313798406 | HK28: =1-_xlfn.NORM.DIST(HJ28,$G$6,$G$7/SQRT(3),TRUE) -> 0.9991598371 | HL28: =MAX(MIN(SQRT(3)*(HJ28-$G$6)/$G$10,$G$7),0.01%) -> 0.01 | HM28: =(((100*(1+8*$G$8))-GZ28)/100)/4 -> -0.009991135076 | HN28: =1-_xlfn.NORM.DIST(HM28,$G$6,$G$7/SQRT(4),TRUE) -> 0.9986422234 | HO28: =MAX(MIN(SQRT(4)*(HM28-$G$6)/$G$10,$G$7),0.01%) -> 0.01 | HP28: =(((100*(1+8*$G$8))-HA28)/100)/5 -> -0.007949737474 | HQ28: =1-_xlfn.NORM.DIST(HP28,$G$6,$G$7/SQRT(5),TRUE) -> 0.9981081252 | HR28: =MAX(MIN(SQRT(5)*(HP28-$G$6)/$G$10,$G$7),0.01%) -> 0.01 | HS28: =(((100*(1+8*$G$8))-HB28)/100)/6 -> -0.006127389808 | HT28: =1-_xlfn.NORM.DIST(HS28,$G$6,$G$7/SQRT(6),TRUE) -> 0.9967911788 | HU28: =MAX(MIN(SQRT(6)*(HS28-$G$6)/$G$10,$G$7),0.01%) -> 0.01 | HV28: =(((100*(1+8*$G$8))-HC28)/100)/7 -> -0.004901634832 | HW28: =1-_xlfn.NORM.DIST(HV28,$G$6,$G$7/SQRT(7),TRUE) -> 0.9955999822 | HX28: =MAX(MIN(SQRT(7)*(HV28-$G$6)/$G$10,$G$7),0.01%) -> 0.01 | HY28: =MIN(HF28,HI28,HL28,HO28,HR28,HU28,HX28) -> 0.01 | IA28: =_xlfn.NORM.INV(RAND(),$G$6,HY28) -> 0.03018536921 | IB28: =IF(IA28="","",GW28*(1+IA28)) -> 106.464338 | IC28: =(1+IA28)*GX28 -> 106.0462565 | ID28: =(1+IA28)*GY28 -> 102.9581631 | IE28: =(1+IA28)*GZ28 -> 103.0148839 | IF28: =(1+IA28)*HA28 -> 102.9926471 | IG28: =(1+IA28)*HB28 -> 102.6852038 | IH28: =(1+IA28)*HC28 -> 102.4325102 | II28: =(1+IA28)*100 -> 103.0185369 | IJ28: =(((100*(1+8*$G$8))-IC28)/100)/1 -> -0.1004625649 | IK28: =1-_xlfn.NORM.DIST(IJ28,$G$6,$G$7/SQRT(1),TRUE) -> 1 | IL28: =MAX(MIN(SQRT(1)*(IJ28-$G$6)/$G$10,$G$7),0.01%) -> 0.01 | IM28: =(((100*(1+8*$G$8))-ID28)/100)/2 -> -0.03479081566 | IN28: =1-_xlfn.NORM.DIST(IM28,$G$6,$G$7/SQRT(2),TRUE) -> 0.9999999908 | IO28: =MAX(MIN(SQRT(2)*(IM28-$G$6)/$G$10,$G$7),0.01%) -> 0.01 | IP28: =(((100*(1+8*$G$8))-IE28)/100)/3 -> -0.02338294638 | IQ28: =1-_xlfn.NORM.DIST(IP28,$G$6,$G$7/SQRT(3),TRUE) -> 0.9999995585 | IR28: =MAX(MIN(SQRT(3)*(IP28-$G$6)/$G$10,$G$7),0.01%) -> 0.01 | IS28: =(((100*(1+8*$G$8))-IF28)/100)/4 -> -0.01748161765 | IT28: =1-_xlfn.NORM.DIST(IS28,$G$6,$G$7/SQRT(4),TRUE) -> 0.9999965431 | IU28: =MAX(MIN(SQRT(4)*(IS28-$G$6)/$G$10,$G$7),0.01%) -> 0.01 | IV28: =(((100*(1+8*$G$8))-IG28)/100)/5 -> -0.01337040769 | IW28: =1-_xlfn.NORM.DIST(IV28,$G$6,$G$7/SQRT(5),TRUE) -> 0.9999800232 | IX28: =MAX(MIN(SQRT(5)*(IV28-$G$6)/$G$10,$G$7),0.01%) -> 0.01 | IY28: =(((100*(1+8*$G$8))-IH28)/100)/6 -> -0.01072085031 | IZ28: =1-_xlfn.NORM.DIST(IY28,$G$6,$G$7/SQRT(6),TRUE) -> 0.9999411352 | JA28: =MAX(MIN(SQRT(6)*(IY28-$G$6)/$G$10,$G$7),0.01%) -> 0.01 | JB28: =(((100*(1+8*$G$8))-II28)/100)/7 -> -0.01002648132 | JC28: =1-_xlfn.NORM.DIST(JB28,$G$6,$G$7/SQRT(7),TRUE) -> 0.9999649039 | JD28: =MAX(MIN(SQRT(7)*(JB28-$G$6)/$G$10,$G$7),0.01%) -> 0.01 | JE28: =MIN(IL28,IO28,IR28,IU28,IX28,JA28,JD28) -> 0.01 | JG28: =_xlfn.NORM.INV(RAND(),$G$6,JE28) -> 0.005190629592 | JH28: =IF(JG28="","",IC28*(1+JG28)) -> 106.5967033 | JI28: =(1+JG28)*ID28 -> 103.4925808 | JJ28: =(1+JG28)*IE28 -> 103.549596 | JK28: =(1+JG28)*IF28 -> 103.5272437 | JL28: =(1+JG28)*IG28 -> 103.2182047 | JM28: =(1+JG28)*IH28 -> 102.9641994 | JN28: =(1+JG28)*II28 -> 103.553268 | JO28: =(1+JG28)*100 -> 100.519063 | JP28: =(((100*(1+8*$G$8))-JI28)/100)/1 -> -0.0749258082 | JQ28: =1-_xlfn.NORM.DIST(JP28,$G$6,$G$7/SQRT(1),TRUE) -> 1 | JR28: =MAX(MIN(SQRT(1)*(JP28-$G$6)/$G$10,$G$7),0.01%) -> 0.01 | JS28: =(((100*(1+8*$G$8))-JJ28)/100)/2 -> -0.0377479801 | JT28: =1-_xlfn.NORM.DIST(JS28,$G$6,$G$7/SQRT(2),TRUE) -> 0.9999999993 | JU28: =MAX(MIN(SQRT(2)*(JS28-$G$6)/$G$10,$G$7),0.01%) -> 0.01 | JV28: =(((100*(1+8*$G$8))-JK28)/100)/3 -> -0.02509081248 | JW28: =1-_xlfn.NORM.DIST(JV28,$G$6,$G$7/SQRT(3),TRUE) -> 0.9999999065 | JX28: =MAX(MIN(SQRT(3)*(JV28-$G$6)/$G$10,$G$7),0.01%) -> 0.01 | JY28: =(((100*(1+8*$G$8))-JL28)/100)/4 -> -0.01804551175 | JZ28: =1-_xlfn.NORM.DIST(JY28,$G$6,$G$7/SQRT(4),TRUE) -> 0.9999979779 | KA28: =MAX(MIN(SQRT(4)*(JY28-$G$6)/$G$10,$G$7),0.01%) -> 0.01 | KB28: =(((100*(1+8*$G$8))-JM28)/100)/5 -> -0.01392839881 | KC28: =1-_xlfn.NORM.DIST(KB28,$G$6,$G$7/SQRT(5),TRUE) -> 0.9999884456 | KD28: =MAX(MIN(SQRT(5)*(KB28-$G$6)/$G$10,$G$7),0.01%) -> 0.01 | KE28: =(((100*(1+8*$G$8))-JN28)/100)/6 -> -0.01258877998 | KF28: =1-_xlfn.NORM.DIST(KE28,$G$6,$G$7/SQRT(6),TRUE) -> 0.9999917763 | KG28: =MAX(MIN(SQRT(6)*(KE28-$G$6)/$G$10,$G$7),0.01%) -> 0.01 | KH28: =(((100*(1+8*$G$8))-JO28)/100)/7 -> -0.006455804227 | KI28: =1-_xlfn.NORM.DIST(KH28,$G$6,$G$7/SQRT(7),TRUE) -> 0.9987809545 | KJ28: =MAX(MIN(SQRT(7)*(KH28-$G$6)/$G$10,$G$7),0.01%) -> 0.01 | KK28: =MIN(JR28,JU28,JX28,KA28,KD28,KG28,KJ28) -> 0.01 | KM28: =_xlfn.NORM.INV(RAND(),$G$6,KK28) -> -0.003239131043 | KN28: =IF(KM28="","",JI28*(1+KM28)) -> 103.1573548 | KO28: =(1+KM28)*JJ28 -> 103.2141853 | KP28: =(1+KM28)*JK28 -> 103.1919054 | KQ28: =(1+KM28)*JL28 -> 102.8838674 | KR28: =(1+KM28)*JM28 -> 102.6306849 | KS28: =(1+KM28)*JN28 -> 103.2178454 | KT28: =(1+KM28)*JO28 -> 100.1934685 | KU28: =(1+KM28)*100 -> 99.6760869 | KV28: =(((100*(1+8*$G$8))-KO28)/100)/1 -> -0.07214185309 | KW28: =1-_xlfn.NORM.DIST(KV28,$G$6,$G$7/SQRT(1),TRUE) -> 1 | KX28: =MAX(MIN(SQRT(1)*(KV28-$G$6)/$G$10,$G$7),0.01%) -> 0.01 | KY28: =(((100*(1+8*$G$8))-KP28)/100)/2 -> -0.03595952717 | KZ28: =1-_xlfn.NORM.DIST(KY28,$G$6,$G$7/SQRT(2),TRUE) -> 0.9999999965 | LA28: =MAX(MIN(SQRT(2)*(KY28-$G$6)/$G$10,$G$7),0.01%) -> 0.01 | LB28: =(((100*(1+8*$G$8))-KQ28)/100)/3 -> -0.0229462247 | LC28: =1-_xlfn.NORM.DIST(LB28,$G$6,$G$7/SQRT(3),TRUE) -> 0.9999993522 | LD28: =MAX(MIN(SQRT(3)*(LB28-$G$6)/$G$10,$G$7),0.01%) -> 0.01 | LE28: =(((100*(1+8*$G$8))-KR28)/100)/4 -> -0.01657671218 | LF28: =1-_xlfn.NORM.DIST(LE28,$G$6,$G$7/SQRT(4),TRUE) -> 0.9999920322 | LG28: =MAX(MIN(SQRT(4)*(LE28-$G$6)/$G$10,$G$7),0.01%) -> 0.01 | LH28: =(((100*(1+8*$G$8))-KS28)/100)/5 -> -0.01443569076 | LI28: =1-_xlfn.NORM.DIST(LH28,$G$6,$G$7/SQRT(5),TRUE) -> 0.9999930664 | LJ28: =MAX(MIN(SQRT(5)*(LH28-$G$6)/$G$10,$G$7),0.01%) -> 0.01 | LK28: =(((100*(1+8*$G$8))-KT28)/100)/6 -> -0.006989114237 | LL28: =1-_xlfn.NORM.DIST(LK28,$G$6,$G$7/SQRT(6),TRUE) -> 0.9983414894 | LM28: =MAX(MIN(SQRT(6)*(LK28-$G$6)/$G$10,$G$7),0.01%) -> 0.01 | LN28: =(((100*(1+8*$G$8))-KU28)/100)/7 -> -0.005251552708 | LO28: =1-_xlfn.NORM.DIST(LN28,$G$6,$G$7/SQRT(7),TRUE) -> 0.996659155 | LP28: =MAX(MIN(SQRT(7)*(LN28-$G$6)/$G$10,$G$7),0.01%) -> 0.01 | LQ28: =MIN(KX28,LA28,LD28,LG28,LJ28,LM28,LP28) -> 0.01 | LS28: =_xlfn.NORM.INV(RAND(),$G$6,LQ28) -> -0.0003299275135 | LT28: =IF(LS28="","",KO28*(1+LS28)) -> 103.1801321 | LU28: =(1+LS28)*KP28 -> 103.1578596 | LV28: =(1+LS28)*KQ28 -> 102.8499232 | LW28: =(1+LS28)*KR28 -> 102.5968242 | LX28: =(1+LS28)*KS28 -> 103.183791 | LY28: =(1+LS28)*KT28 -> 100.160412 | LZ28: =(1+LS28)*KU28 -> 99.64320101 | MA28: =(1+LS28)*100 -> 99.96700725 | MB28: =(((100*(1+8*$G$8))-LU28)/100)/1 -> -0.07157859586 | MC28: =1-_xlfn.NORM.DIST(MB28,$G$6,$G$7/SQRT(1),TRUE) -> 1 | MD28: =MAX(MIN(SQRT(1)*(MB28-$G$6)/$G$10,$G$7),0.01%) -> 0.01 | ME28: =(((100*(1+8*$G$8))-LV28)/100)/2 -> -0.03424961596 | MF28: =1-_xlfn.NORM.DIST(ME28,$G$6,$G$7/SQRT(2),TRUE) -> 0.9999999858 | MG28: =MAX(MIN(SQRT(2)*(ME28-$G$6)/$G$10,$G$7),0.01%) -> 0.01 | MH28: =(((100*(1+8*$G$8))-LW28)/100)/3 -> -0.02198941395 | MI28: =1-_xlfn.NORM.DIST(MH28,$G$6,$G$7/SQRT(3),TRUE) -> 0.9999985281 | MJ28: =MAX(MIN(SQRT(3)*(MH28-$G$6)/$G$10,$G$7),0.01%) -> 0.01 | MK28: =(((100*(1+8*$G$8))-LX28)/100)/4 -> -0.01795947744 | ML28: =1-_xlfn.NORM.DIST(MK28,$G$6,$G$7/SQRT(4),TRUE) -> 0.9999978038 | MM28: =MAX(MIN(SQRT(4)*(MK28-$G$6)/$G$10,$G$7),0.01%) -> 0.01 | MN28: =(((100*(1+8*$G$8))-LY28)/100)/5 -> -0.00832082392 | MO28: =1-_xlfn.NORM.DIST(MN28,$G$6,$G$7/SQRT(5),TRUE) -> 0.9985522839 | MP28: =MAX(MIN(SQRT(5)*(MN28-$G$6)/$G$10,$G$7),0.01%) -> 0.01 | MQ28: =(((100*(1+8*$G$8))-LZ28)/100)/6 -> -0.006072001687 | MR28: =1-_xlfn.NORM.DIST(MQ28,$G$6,$G$7/SQRT(6),TRUE) -> 0.9966568315 | MS28: =MAX(MIN(SQRT(6)*(MQ28-$G$6)/$G$10,$G$7),0.01%) -> 0.01 | MT28: =(((100*(1+8*$G$8))-MA28)/100)/7 -> -0.005667153212 | MU28: =1-_xlfn.NORM.DIST(MT28,$G$6,$G$7/SQRT(7),TRUE) -> 0.9976157008 | MV28: =MAX(MIN(SQRT(7)*(MT28-$G$6)/$G$10,$G$7),0.01%) -> 0.01 | MW28: =MIN(MD28,MG28,MJ28,MM28,MP28,MS28,MV28) -> 0.01 | MY28: =_xlfn.NORM.INV(RAND(),$G$6,MW28) -> -0.0003646146789 | MZ28: =IF(MY28="","",LU28*(1+MY28)) -> 103.1202467 | NA28: =(1+MY28)*LV28 -> 102.8124226 | NB28: =(1+MY28)*LW28 -> 102.5594159 | NC28: =(1+MY28)*LX28 -> 103.1461687 | ND28: =(1+MY28)*LY28 -> 100.123892 | NE28: =(1+MY28)*LZ28 -> 99.60686964 | NF28: =(1+MY28)*MA28 -> 99.93055781 | NG28: =(1+MY28)*100 -> 99.96353853 | NH28: =(((100*(1+8*$G$8))-NA28)/100)/1 -> -0.068124226 | NI28: =1-_xlfn.NORM.DIST(NH28,$G$6,$G$7/SQRT(1),TRUE) -> 1 | NJ28: =MAX(MIN(SQRT(1)*(NH28-$G$6)/$G$10,$G$7),0.01%) -> 0.01 | NK28: =(((100*(1+8*$G$8))-NB28)/100)/2 -> -0.03279707938 | NL28: =1-_xlfn.NORM.DIST(NK28,$G$6,$G$7/SQRT(2),TRUE) -> 0.9999999549 | NM28: =MAX(MIN(SQRT(2)*(NK28-$G$6)/$G$10,$G$7),0.01%) -> 0.01 | NN28: =(((100*(1+8*$G$8))-NC28)/100)/3 -> -0.02382056217 | NO28: =1-_xlfn.NORM.DIST(NN28,$G$6,$G$7/SQRT(3),TRUE) -> 0.999999701 | NP28: =MAX(MIN(SQRT(3)*(NN28-$G$6)/$G$10,$G$7),0.01%) -> 0.01 | NQ28: =(((100*(1+8*$G$8))-ND28)/100)/4 -> -0.01030973001 | NR28: =1-_xlfn.NORM.DIST(NQ28,$G$6,$G$7/SQRT(4),TRUE) -> 0.9989004844 | NS28: =MAX(MIN(SQRT(4)*(NQ28-$G$6)/$G$10,$G$7),0.01%) -> 0.01 | NT28: =(((100*(1+8*$G$8))-NE28)/100)/5 -> -0.007213739277 | NU28: =1-_xlfn.NORM.DIST(NT28,$G$6,$G$7/SQRT(5),TRUE) -> 0.996843596 | NV28: =MAX(MIN(SQRT(5)*(NT28-$G$6)/$G$10,$G$7),0.01%) -> 0.01 | NW28: =(((100*(1+8*$G$8))-NF28)/100)/6 -> -0.006550929684 | NX28: =1-_xlfn.NORM.DIST(NW28,$G$6,$G$7/SQRT(6),TRUE) -> 0.9976681467 | NY28: =MAX(MIN(SQRT(6)*(NW28-$G$6)/$G$10,$G$7),0.01%) -> 0.01 | NZ28: =(((100*(1+8*$G$8))-NG28)/100)/7 -> -0.005662197903 | OA28: =1-_xlfn.NORM.DIST(NZ28,$G$6,$G$7/SQRT(7),TRUE) -> 0.9976059347 | OB28: =MAX(MIN(SQRT(7)*(NZ28-$G$6)/$G$10,$G$7),0.01%) -> 0.01 | OC28: =MIN(NJ28,NM28,NP28,NS28,NV28,NY28,OB28) -> 0.01 | OF28: =FM28 -> 0.01 | OG28: =GS28 -> 0.01 | OH28: =HY28 -> 0.01 | OI28: =JE28 -> 0.01 | OJ28: =KK28 -> 0.01 | OK28: =LQ28 -> 0.01 | OL28: =MW28 -> 0.01 | OM28: =OC28 -> 0.01 | OO28: =IF(SUM(OF28:OM28)=8*OF28,"No","Yes") -> No | OQ28: =$G$7 -> 0.01 | OR28: =K28 -> 0.01 | OS28: =R28 -> 0.01 | OT28: =AD28 -> 0.01 | OU28: =AT28 -> 0.01 | OV28: =BN28 -> 0.01 | OW28: =CL28 -> 0.01 | OX28: =DN28 -> 0.01 | OZ28: =IF(SUM(OQ28:OX28)=8*$G$7,"No","Yes") -> No
F29: 2 | G29: -0.002773703335 | H29: =100*(1+G29) -> 99.72262967 | I29: =(((100*(1+8*$G$8))-H29)/100)/7 -> -0.005318042381 | J29: =1-_xlfn.NORM.DIST(I29,$G$6,$G$7/SQRT(7),TRUE) -> 0.9968322982 | K29: =MAX(MIN(SQRT(7)*(I29-$G$6)/$G$10,$G$7),0.01%) -> 0.01 | M29: =_xlfn.NORM.INV(RAND(),$G$6,K29) -> 0.01191291484 | N29: 100.9106169 | O29: 101.1912915 | P29: -0.008184361435 | Q29: =1-_xlfn.NORM.DIST(P29,$G$6,$G$7/SQRT(6),TRUE) -> 0.9993799565 | R29: =MAX(MIN(SQRT(6)*(P29-$G$6)/$G$10,$G$7),0.01%) -> 0.01 | S29: =(((100*(1+8*$G$8))-O29)/100)/7 -> -0.007416130691 | T29: =1-_xlfn.NORM.DIST(S29,$G$6,$G$7/SQRT(7),TRUE) -> 0.9994900871 | U29: =MAX(MIN(SQRT(7)*(S29-$G$6)/$G$10,$G$7),0.01%) -> 0.01 | V29: =MIN(R29,U29) -> 0.01 | X29: =_xlfn.NORM.INV(RAND(),$G$6,V29) -> 0.01188202986 | Y29: 102.1096398 | Z29: =(1+X29)*O29 -> 102.3936494 | AA29: =100*(1+X29) -> 101.188203 | AB29: =(((100*(1+8*$G$8))-Y29)/100)/5 -> -0.01221927965 | AC29: =1-_xlfn.NORM.DIST(AB29,$G$6,$G$7/SQRT(5),TRUE) -> 0.9999410249 | AD29: =MAX(MIN(SQRT(5)*(AB29-$G$6)/$G$10,$G$7),0.01%) -> 0.01 | AE29: =(((100*(1+8*$G$8))-Z29)/100)/6 -> -0.01065608238 | AF29: =1-_xlfn.NORM.DIST(AE29,$G$6,$G$7/SQRT(6),TRUE) -> 0.9999372029 | AG29: =MAX(MIN(SQRT(6)*(AE29-$G$6)/$G$10,$G$7),0.01%) -> 0.01 | AH29: =(((100*(1+8*$G$8))-AA29)/100)/7 -> -0.007411718552 | AI29: =1-_xlfn.NORM.DIST(AH29,$G$6,$G$7/SQRT(7),TRUE) -> 0.9994879704 | AJ29: =MAX(MIN(SQRT(7)*(AH29-$G$6)/$G$10,$G$7),0.01%) -> 0.01 | AK29: =MIN(AD29,AG29,AJ29) -> 0.01 | AM29: =_xlfn.NORM.INV(RAND(),$G$6,AK29) -> 0.01142993006 | AN29: =IF(AM29="","",Y29*(1+AM29)) -> 103.2767459 | AO29: =(1+AM29)*Z29 -> 103.5640017 | AP29: =(1+AM29)*AA29 -> 102.3447771 | AQ29: =100*(1+AM29) -> 101.142993 | AR29: =(((100*(1+8*$G$8))-AN29)/100)/4 -> -0.01819186466 | AS29: =1-_xlfn.NORM.DIST(AR29,$G$6,$G$7/SQRT(4),TRUE) -> 0.9999982442 | AT29: =MAX(MIN(SQRT(4)*(AR29-$G$6)/$G$10,$G$7),0.01%) -> 0.01 | AU29: =(((100*(1+8*$G$8))-AO29)/100)/5 -> -0.01512800336 | AV29: =1-_xlfn.NORM.DIST(AU29,$G$6,$G$7/SQRT(5),TRUE) -> 0.9999966144 | AW29: =MAX(MIN(SQRT(5)*(AU29-$G$6)/$G$10,$G$7),0.01%) -> 0.01 | AX29: =(((100*(1+8*$G$8))-AP29)/100)/6 -> -0.01057462845 | AY29: =1-_xlfn.NORM.DIST(AX29,$G$6,$G$7/SQRT(6),TRUE) -> 0.9999319056 | AZ29: =MAX(MIN(SQRT(6)*(AX29-$G$6)/$G$10,$G$7),0.01%) -> 0.01 | BA29: =(((100*(1+8*$G$8))-AQ29)/100)/7 -> -0.007347132866 | BB29: =1-_xlfn.NORM.DIST(BA29,$G$6,$G$7/SQRT(7),TRUE) -> 0.9994560405 | BC29: =MAX(MIN(SQRT(7)*(BA29-$G$6)/$G$10,$G$7),0.01%) -> 0.01 | BD29: =MIN(AT29,AW29,AZ29,BC29) -> 0.01 | BF29: =_xlfn.NORM.INV(RAND(),$G$6,BD29) -> 0.01114702312 | BG29: =IF(BF29="","",AN29*(1+BF29)) -> 104.4279741 | BH29: =(1+BF29)*AO29 -> 104.718432 | BI29: =(1+BF29)*AP29 -> 103.4856167 | BJ29: =(1+BF29)*AQ29 -> 102.2704363 | BK29: =100*(1+BF29) -> 101.1147023 | BL29: =(((100*(1+8*$G$8))-BG29)/100)/3 -> -0.02809324713 | BM29: =1-_xlfn.NORM.DIST(BL29,$G$6,$G$7/SQRT(3),TRUE) -> 0.999999995 | BN29: =MAX(MIN(SQRT(3)*(BL29-$G$6)/$G$10,$G$7),0.01%) -> 0.01 | BO29: =(((100*(1+8*$G$8))-BH29)/100)/4 -> -0.02179608001 | BP29: =1-_xlfn.NORM.DIST(BO29,$G$6,$G$7/SQRT(4),TRUE) -> 0.9999999582 | BQ29: =MAX(MIN(SQRT(4)*(BO29-$G$6)/$G$10,$G$7),0.01%) -> 0.01 | BR29: =(((100*(1+8*$G$8))-BI29)/100)/5 -> -0.01497123333 | BS29: =1-_xlfn.NORM.DIST(BR29,$G$6,$G$7/SQRT(5),TRUE) -> 0.9999960097 | BT29: =MAX(MIN(SQRT(5)*(BR29-$G$6)/$G$10,$G$7),0.01%) -> 0.01 | BU29: =(((100*(1+8*$G$8))-BJ29)/100)/6 -> -0.01045072715 | BV29: =1-_xlfn.NORM.DIST(BU29,$G$6,$G$7/SQRT(6),TRUE) -> 0.9999230343 | BW29: =MAX(MIN(SQRT(6)*(BU29-$G$6)/$G$10,$G$7),0.01%) -> 0.01 | BX29: =(((100*(1+8*$G$8))-BK29)/100)/7 -> -0.007306717589 | BY29: =1-_xlfn.NORM.DIST(BX29,$G$6,$G$7/SQRT(7),TRUE) -> 0.9994351336 | BZ29: =MAX(MIN(SQRT(7)*(BX29-$G$6)/$G$10,$G$7),0.01%) -> 0.01 | CA29: =MIN(BN29,BQ29,BT29,BW29,BZ29) -> 0.01 | CC29: =_xlfn.NORM.INV(RAND(),$G$6,CA29) -> 0.0132228494 | CD29: =IF(CC29="","",BG29*(1+CC29)) -> 105.8088095 | CE29: =(1+CC29)*BH29 -> 106.1031081 | CF29: =(1+CC29)*BI29 -> 104.8539914 | CG29: =(1+CC29)*BJ29 -> 103.6227429 | CH29: =(1+CC29)*BK29 -> 102.4517268 | CI29: =100*(1+CC29) -> 101.3222849 | CJ29: =(((100*(1+8*$G$8))-CD29)/100)/2 -> -0.04904404758 | CK29: =1-_xlfn.NORM.DIST(CJ29,$G$6,$G$7/SQRT(2),TRUE) -> 1 | CL29: =MAX(MIN(SQRT(2)*(CJ29-$G$6)/$G$10,$G$7),0.01%) -> 0.01 | CM29: =(((100*(1+8*$G$8))-CE29)/100)/3 -> -0.03367702687 | CN29: =1-_xlfn.NORM.DIST(CM29,$G$6,$G$7/SQRT(3),TRUE) -> 1 | CO29: =MAX(MIN(SQRT(3)*(CM29-$G$6)/$G$10,$G$7),0.01%) -> 0.01 | CP29: =(((100*(1+8*$G$8))-CF29)/100)/4 -> -0.02213497848 | CQ29: =1-_xlfn.NORM.DIST(CP29,$G$6,$G$7/SQRT(4),TRUE) -> 0.9999999713 | CR29: =MAX(MIN(SQRT(4)*(CP29-$G$6)/$G$10,$G$7),0.01%) -> 0.01 | CS29: =(((100*(1+8*$G$8))-CG29)/100)/5 -> -0.01524548573 | CT29: =1-_xlfn.NORM.DIST(CS29,$G$6,$G$7/SQRT(5),TRUE) -> 0.9999970091 | CU29: =MAX(MIN(SQRT(5)*(CS29-$G$6)/$G$10,$G$7),0.01%) -> 0.01 | CV29: =(((100*(1+8*$G$8))-CH29)/100)/6 -> -0.01075287799 | CW29: =1-_xlfn.NORM.DIST(CV29,$G$6,$G$7/SQRT(6),TRUE) -> 0.9999429928 | CX29: =MAX(MIN(SQRT(6)*(CV29-$G$6)/$G$10,$G$7),0.01%) -> 0.01 | CY29: =(((100*(1+8*$G$8))-CI29)/100)/7 -> -0.0076032642 | CZ29: =1-_xlfn.NORM.DIST(CY29,$G$6,$G$7/SQRT(7),TRUE) -> 0.9995727513 | DA29: =MAX(MIN(SQRT(7)*(CY29-$G$6)/$G$10,$G$7),0.01%) -> 0.01 | DB29: =MIN(CL29,CO29,CR29,CU29,CX29,DA29) -> 0.01 | DD29: =_xlfn.NORM.INV(RAND(),$G$6,DB29) -> 0.009221829397 | DE29: =IF(DD29="","",CD29*(1+DD29)) -> 106.7845603 | DF29: =(1+DD29)*CE29 -> 107.0815728 | DG29: =(1+DD29)*CF29 -> 105.820937 | DH29: =(1+DD29)*CG29 -> 104.5783341 | DI29: =(1+DD29)*CH29 -> 103.3965191 | DJ29: =(1+DD29)*CI29 -> 102.2566618 | DK29: =100*(1+DD29) -> 100.9221829 | DL29: =(((100*(1+8*$G$8))-DE29)/100)/1 -> -0.1078456031 | DM29: =1-_xlfn.NORM.DIST(DL29,$G$6,$G$7/SQRT(1),TRUE) -> 1 | DN29: =MAX(MIN(SQRT(1)*(DL29-$G$6)/$G$10,$G$7),0.01%) -> 0.01 | DO29: =(((100*(1+8*$G$8))-DF29)/100)/2 -> -0.0554078641 | DP29: =1-_xlfn.NORM.DIST(DO29,$G$6,$G$7/SQRT(2),TRUE) -> 1 | DQ29: =MAX(MIN(SQRT(2)*(DO29-$G$6)/$G$10,$G$7),0.01%) -> 0.01 | DR29: =(((100*(1+8*$G$8))-DG29)/100)/3 -> -0.0327364567 | DS29: =1-_xlfn.NORM.DIST(DR29,$G$6,$G$7/SQRT(3),TRUE) -> 1 | DT29: =MAX(MIN(SQRT(3)*(DR29-$G$6)/$G$10,$G$7),0.01%) -> 0.01 | DU29: =(((100*(1+8*$G$8))-DH29)/100)/4 -> -0.0214458353 | DV29: =1-_xlfn.NORM.DIST(DU29,$G$6,$G$7/SQRT(4),TRUE) -> 0.9999999386 | DW29: =MAX(MIN(SQRT(4)*(DU29-$G$6)/$G$10,$G$7),0.01%) -> 0.01 | DX29: =(((100*(1+8*$G$8))-DI29)/100)/5 -> -0.01479303828 | DY29: =1-_xlfn.NORM.DIST(DX29,$G$6,$G$7/SQRT(5),TRUE) -> 0.999995197 | DZ29: =MAX(MIN(SQRT(5)*(DX29-$G$6)/$G$10,$G$7),0.01%) -> 0.01 | EA29: =(((100*(1+8*$G$8))-DJ29)/100)/6 -> -0.01042776961 | EB29: =1-_xlfn.NORM.DIST(EA29,$G$6,$G$7/SQRT(6),TRUE) -> 0.9999212755 | EC29: =MAX(MIN(SQRT(6)*(EA29-$G$6)/$G$10,$G$7),0.01%) -> 0.01 | ED29: =(((100*(1+8*$G$8))-DK29)/100)/7 -> -0.007031689914 | EE29: =1-_xlfn.NORM.DIST(ED29,$G$6,$G$7/SQRT(7),TRUE) -> 0.9992719313 | EF29: =MAX(MIN(SQRT(7)*(ED29-$G$6)/$G$10,$G$7),0.01%) -> 0.01 | EG29: =MIN(DN29,DQ29,DT29,DW29,DZ29,EC29,EF29) -> 0.01 | EI29: 0.008907109586 | EJ29: 107.7357021 | EK29: 108.0353601 | EL29: 106.7634957 | EM29: 105.5098248 | EN29: 104.3174833 | EO29: 103.1674731 | EP29: 101.8211079 | EQ29: =(1+$EI29)*100 -> 100.890711 | ER29: -0.1203536012 | ES29: =1-_xlfn.NORM.DIST(ER29,$G$6,$G$7/SQRT(1),TRUE) -> 1 | ET29: =MAX(MIN(SQRT(1)*(ER29-$G$6)/$G$10,$G$7),0.01%) -> 0.01 | EU29: =(((100*(1+8*$G$8))-EL29)/100)/2 -> -0.05381747846 | EV29: =1-_xlfn.NORM.DIST(EU29,$G$6,$G$7/SQRT(2),TRUE) -> 1 | EW29: =MAX(MIN(SQRT(2)*(EU29-$G$6)/$G$10,$G$7),0.01%) -> 0.01 | EX29: =(((100*(1+8*$G$8))-EM29)/100)/3 -> -0.03169941601 | EY29: =1-_xlfn.NORM.DIST(EX29,$G$6,$G$7/SQRT(3),TRUE) -> 0.9999999999 | EZ29: =MAX(MIN(SQRT(3)*(EX29-$G$6)/$G$10,$G$7),0.01%) -> 0.01 | FA29: =(((100*(1+8*$G$8))-EN29)/100)/4 -> -0.02079370817 | FB29: =1-_xlfn.NORM.DIST(FA29,$G$6,$G$7/SQRT(4),TRUE) -> 0.9999998757 | FC29: =MAX(MIN(SQRT(4)*(FA29-$G$6)/$G$10,$G$7),0.01%) -> 0.01 | FD29: =(((100*(1+8*$G$8))-EO29)/100)/5 -> -0.01433494612 | FE29: =1-_xlfn.NORM.DIST(FD29,$G$6,$G$7/SQRT(5),TRUE) -> 0.9999923187 | FF29: =MAX(MIN(SQRT(5)*(FD29-$G$6)/$G$10,$G$7),0.01%) -> 0.01 | FG29: =(((100*(1+8*$G$8))-EP29)/100)/6 -> -0.009701846471 | FH29: =1-_xlfn.NORM.DIST(FG29,$G$6,$G$7/SQRT(6),TRUE) -> 0.9998416255 | FI29: =MAX(MIN(SQRT(6)*(FG29-$G$6)/$G$10,$G$7),0.01%) -> 0.01 | FJ29: =(((100*(1+8*$G$8))-EQ29)/100)/7 -> -0.006986729941 | FK29: =1-_xlfn.NORM.DIST(FJ29,$G$6,$G$7/SQRT(7),TRUE) -> 0.9992414451 | FL29: =MAX(MIN(SQRT(7)*(FJ29-$G$6)/$G$10,$G$7),0.01%) -> 0.01 | FM29: =MIN(ET29,EW29,EZ29,FC29,FF29,FI29,FL29) -> 0.01 | FO29: -0.003661425536 | FP29: 107.6397967 | FQ29: 106.3725891 | FR29: 105.1235084 | FS29: 103.9355326 | FT29: 102.789733 | FU29: 101.4482975 | FV29: 100.5213071 | FW29: =(1+FO29)*100 -> 99.63385745 | FX29: -0.103725891 | FY29: =1-_xlfn.NORM.DIST(FX29,$G$6,$G$7/SQRT(1),TRUE) -> 1 | FZ29: =MAX(MIN(SQRT(1)*(FX29-$G$6)/$G$10,$G$7),0.01%) -> 0.01 | GA29: =(((100*(1+8*$G$8))-FR29)/100)/2 -> -0.04561754219 | GB29: =1-_xlfn.NORM.DIST(GA29,$G$6,$G$7/SQRT(2),TRUE) -> 1 | GC29: =MAX(MIN(SQRT(2)*(GA29-$G$6)/$G$10,$G$7),0.01%) -> 0.01 | GD29: =(((100*(1+8*$G$8))-FS29)/100)/3 -> -0.02645177523 | GE29: =1-_xlfn.NORM.DIST(GD29,$G$6,$G$7/SQRT(3),TRUE) -> 0.9999999745 | GF29: =MAX(MIN(SQRT(3)*(GD29-$G$6)/$G$10,$G$7),0.01%) -> 0.01 | GG29: =(((100*(1+8*$G$8))-FT29)/100)/4 -> -0.01697433259 | GH29: =1-_xlfn.NORM.DIST(GG29,$G$6,$G$7/SQRT(4),TRUE) -> 0.999994458 | GI29: =MAX(MIN(SQRT(4)*(GG29-$G$6)/$G$10,$G$7),0.01%) -> 0.01 | GJ29: =(((100*(1+8*$G$8))-FU29)/100)/5 -> -0.01089659496 | GK29: =1-_xlfn.NORM.DIST(GJ29,$G$6,$G$7/SQRT(5),TRUE) -> 0.9998107132 | GL29: =MAX(MIN(SQRT(5)*(GJ29-$G$6)/$G$10,$G$7),0.01%) -> 0.01 | GM29: =(((100*(1+8*$G$8))-FV29)/100)/6 -> -0.007535511889 | GN29: =1-_xlfn.NORM.DIST(GM29,$G$6,$G$7/SQRT(6),TRUE) -> 0.998931714 | GO29: =MAX(MIN(SQRT(6)*(GM29-$G$6)/$G$10,$G$7),0.01%) -> 0.01 | GP29: =(((100*(1+8*$G$8))-FW29)/100)/7 -> -0.005191224923 | GQ29: =1-_xlfn.NORM.DIST(GP29,$G$6,$G$7/SQRT(7),TRUE) -> 0.9964947457 | GR29: =MAX(MIN(SQRT(7)*(GP29-$G$6)/$G$10,$G$7),0.01%) -> 0.01 | GS29: =MIN(FZ29,GC29,GF29,GI29,GL29,GO29,GR29) -> 0.01 | GU29: -0.00241740509 | GV29: 106.1154435 | GW29: 104.8693823 | GX29: 103.6842783 | GY29: 102.5412486 | GZ29: 101.2030558 | HA29: 100.2783064 | HB29: 99.39300205 | HC29: =(1+GU29)*100 -> 99.75825949 | HD29: -0.08869382333 | HE29: =1-_xlfn.NORM.DIST(HD29,$G$6,$G$7/SQRT(1),TRUE) -> 1 | HF29: =MAX(MIN(SQRT(1)*(HD29-$G$6)/$G$10,$G$7),0.01%) -> 0.01 | HG29: =(((100*(1+8*$G$8))-GX29)/100)/2 -> -0.03842139142 | HH29: =1-_xlfn.NORM.DIST(HG29,$G$6,$G$7/SQRT(2),TRUE) -> 0.9999999996 | HI29: =MAX(MIN(SQRT(2)*(HG29-$G$6)/$G$10,$G$7),0.01%) -> 0.01 | HJ29: =(((100*(1+8*$G$8))-GY29)/100)/3 -> -0.02180416205 | HK29: =1-_xlfn.NORM.DIST(HJ29,$G$6,$G$7/SQRT(3),TRUE) -> 0.9999982799 | HL29: =MAX(MIN(SQRT(3)*(HJ29-$G$6)/$G$10,$G$7),0.01%) -> 0.01 | HM29: =(((100*(1+8*$G$8))-GZ29)/100)/4 -> -0.01300763962 | HN29: =1-_xlfn.NORM.DIST(HM29,$G$6,$G$7/SQRT(4),TRUE) -> 0.9998418238 | HO29: =MAX(MIN(SQRT(4)*(HM29-$G$6)/$G$10,$G$7),0.01%) -> 0.01 | HP29: =(((100*(1+8*$G$8))-HA29)/100)/5 -> -0.008556612827 | HQ29: =1-_xlfn.NORM.DIST(HP29,$G$6,$G$7/SQRT(5),TRUE) -> 0.9987826889 | HR29: =MAX(MIN(SQRT(5)*(HP29-$G$6)/$G$10,$G$7),0.01%) -> 0.01 | HS29: =(((100*(1+8*$G$8))-HB29)/100)/6 -> -0.00565500342 | HT29: =1-_xlfn.NORM.DIST(HS29,$G$6,$G$7/SQRT(6),TRUE) -> 0.995471991 | HU29: =MAX(MIN(SQRT(6)*(HS29-$G$6)/$G$10,$G$7),0.01%) -> 0.01 | HV29: =(((100*(1+8*$G$8))-HC29)/100)/7 -> -0.00536894213 | HW29: =1-_xlfn.NORM.DIST(HV29,$G$6,$G$7/SQRT(7),TRUE) -> 0.9969593404 | HX29: =MAX(MIN(SQRT(7)*(HV29-$G$6)/$G$10,$G$7),0.01%) -> 0.01 | HY29: =MIN(HF29,HI29,HL29,HO29,HR29,HU29,HX29) -> 0.01 | IA29: 0.01093344394 | IB29: 106.0159658 | IC29: 104.8179045 | ID29: 103.6623776 | IE29: 102.3095538 | IF29: 101.3746937 | IG29: 100.4797099 | IH29: 100.8489608 | II29: =(1+IA29)*100 -> 101.0933444 | IJ29: -0.08817904528 | IK29: =1-_xlfn.NORM.DIST(IJ29,$G$6,$G$7/SQRT(1),TRUE) -> 1 | IL29: =MAX(MIN(SQRT(1)*(IJ29-$G$6)/$G$10,$G$7),0.01%) -> 0.01 | IM29: =(((100*(1+8*$G$8))-ID29)/100)/2 -> -0.03831188804 | IN29: =1-_xlfn.NORM.DIST(IM29,$G$6,$G$7/SQRT(2),TRUE) -> 0.9999999995 | IO29: =MAX(MIN(SQRT(2)*(IM29-$G$6)/$G$10,$G$7),0.01%) -> 0.01 | IP29: =(((100*(1+8*$G$8))-IE29)/100)/3 -> -0.02103184595 | IQ29: =1-_xlfn.NORM.DIST(IP29,$G$6,$G$7/SQRT(3),TRUE) -> 0.999996741 | IR29: =MAX(MIN(SQRT(3)*(IP29-$G$6)/$G$10,$G$7),0.01%) -> 0.01 | IS29: =(((100*(1+8*$G$8))-IF29)/100)/4 -> -0.01343673414 | IT29: =1-_xlfn.NORM.DIST(IS29,$G$6,$G$7/SQRT(4),TRUE) -> 0.9998866978 | IU29: =MAX(MIN(SQRT(4)*(IS29-$G$6)/$G$10,$G$7),0.01%) -> 0.01 | IV29: =(((100*(1+8*$G$8))-IG29)/100)/5 -> -0.008959419737 | IW29: =1-_xlfn.NORM.DIST(IV29,$G$6,$G$7/SQRT(5),TRUE) -> 0.9991000978 | IX29: =MAX(MIN(SQRT(5)*(IV29-$G$6)/$G$10,$G$7),0.01%) -> 0.01 | IY29: =(((100*(1+8*$G$8))-IH29)/100)/6 -> -0.008081601381 | IZ29: =1-_xlfn.NORM.DIST(IY29,$G$6,$G$7/SQRT(6),TRUE) -> 0.9993231018 | JA29: =MAX(MIN(SQRT(6)*(IY29-$G$6)/$G$10,$G$7),0.01%) -> 0.01 | JB29: =(((100*(1+8*$G$8))-II29)/100)/7 -> -0.007276206277 | JC29: =1-_xlfn.NORM.DIST(JB29,$G$6,$G$7/SQRT(7),TRUE) -> 0.9994188605 | JD29: =MAX(MIN(SQRT(7)*(JB29-$G$6)/$G$10,$G$7),0.01%) -> 0.01 | JE29: =MIN(IL29,IO29,IR29,IU29,IX29,JA29,JD29) -> 0.01 | JG29: 0.007836184104 | JH29: 105.6392769 | JI29: 104.4746951 | JJ29: 103.1112703 | JK29: 102.1690844 | JL29: 101.2670874 | JM29: 101.6392319 | JN29: 101.8855305 | JO29: =(1+JG29)*100 -> 100.7836184 | JP29: -0.08474695083 | JQ29: =1-_xlfn.NORM.DIST(JP29,$G$6,$G$7/SQRT(1),TRUE) -> 1 | JR29: =MAX(MIN(SQRT(1)*(JP29-$G$6)/$G$10,$G$7),0.01%) -> 0.01 | JS29: =(((100*(1+8*$G$8))-JJ29)/100)/2 -> -0.03555635142 | JT29: =1-_xlfn.NORM.DIST(JS29,$G$6,$G$7/SQRT(2),TRUE) -> 0.9999999951 | JU29: =MAX(MIN(SQRT(2)*(JS29-$G$6)/$G$10,$G$7),0.01%) -> 0.01 | JV29: =(((100*(1+8*$G$8))-JK29)/100)/3 -> -0.02056361473 | JW29: =1-_xlfn.NORM.DIST(JV29,$G$6,$G$7/SQRT(3),TRUE) -> 0.9999952389 | JX29: =MAX(MIN(SQRT(3)*(JV29-$G$6)/$G$10,$G$7),0.01%) -> 0.01 | JY29: =(((100*(1+8*$G$8))-JL29)/100)/4 -> -0.01316771843 | JZ29: =1-_xlfn.NORM.DIST(JY29,$G$6,$G$7/SQRT(4),TRUE) -> 0.9998602225 | KA29: =MAX(MIN(SQRT(4)*(JY29-$G$6)/$G$10,$G$7),0.01%) -> 0.01 | KB29: =(((100*(1+8*$G$8))-JM29)/100)/5 -> -0.01127846371 | KC29: =1-_xlfn.NORM.DIST(KB29,$G$6,$G$7/SQRT(5),TRUE) -> 0.9998636678 | KD29: =MAX(MIN(SQRT(5)*(KB29-$G$6)/$G$10,$G$7),0.01%) -> 0.01 | KE29: =(((100*(1+8*$G$8))-JN29)/100)/6 -> -0.009809217421 | KF29: =1-_xlfn.NORM.DIST(KE29,$G$6,$G$7/SQRT(6),TRUE) -> 0.9998569121 | KG29: =MAX(MIN(SQRT(6)*(KE29-$G$6)/$G$10,$G$7),0.01%) -> 0.01 | KH29: =(((100*(1+8*$G$8))-JO29)/100)/7 -> -0.006833740586 | KI29: =1-_xlfn.NORM.DIST(KH29,$G$6,$G$7/SQRT(7),TRUE) -> 0.9991286825 | KJ29: =MAX(MIN(SQRT(7)*(KH29-$G$6)/$G$10,$G$7),0.01%) -> 0.01 | KK29: =MIN(JR29,JU29,JX29,KA29,KD29,KG29,KJ29) -> 0.01 | KM29: -0.01146859816 | KN29: 103.2765168 | KO29: 101.9287286 | KP29: 100.9973482 | KQ29: 100.1056958 | KR29: 100.4735723 | KS29: 100.7170462 | KT29: 99.62777159 | KU29: =(1+KM29)*100 -> 98.85314018 | KV29: -0.0592872856 | KW29: =1-_xlfn.NORM.DIST(KV29,$G$6,$G$7/SQRT(1),TRUE) -> 0.9999999999 | KX29: =MAX(MIN(SQRT(1)*(KV29-$G$6)/$G$10,$G$7),0.01%) -> 0.01 | KY29: =(((100*(1+8*$G$8))-KP29)/100)/2 -> -0.02498674122 | KZ29: =1-_xlfn.NORM.DIST(KY29,$G$6,$G$7/SQRT(2),TRUE) -> 0.9999888621 | LA29: =MAX(MIN(SQRT(2)*(KY29-$G$6)/$G$10,$G$7),0.01%) -> 0.01 | LB29: =(((100*(1+8*$G$8))-KQ29)/100)/3 -> -0.01368565281 | LC29: =1-_xlfn.NORM.DIST(LB29,$G$6,$G$7/SQRT(3),TRUE) -> 0.9993948679 | LD29: =MAX(MIN(SQRT(3)*(LB29-$G$6)/$G$10,$G$7),0.01%) -> 0.01 | LE29: =(((100*(1+8*$G$8))-KR29)/100)/4 -> -0.01118393086 | LF29: =1-_xlfn.NORM.DIST(LE29,$G$6,$G$7/SQRT(4),TRUE) -> 0.9993955802 | LG29: =MAX(MIN(SQRT(4)*(LE29-$G$6)/$G$10,$G$7),0.01%) -> 0.01 | LH29: =(((100*(1+8*$G$8))-KS29)/100)/5 -> -0.009434092491 | LI29: =1-_xlfn.NORM.DIST(LH29,$G$6,$G$7/SQRT(5),TRUE) -> 0.9993757483 | LJ29: =MAX(MIN(SQRT(5)*(LH29-$G$6)/$G$10,$G$7),0.01%) -> 0.01 | LK29: =(((100*(1+8*$G$8))-KT29)/100)/6 -> -0.006046285983 | LL29: =1-_xlfn.NORM.DIST(LK29,$G$6,$G$7/SQRT(6),TRUE) -> 0.9965927546 | LM29: =MAX(MIN(SQRT(6)*(LK29-$G$6)/$G$10,$G$7),0.01%) -> 0.01 | LN29: =(((100*(1+8*$G$8))-KU29)/100)/7 -> -0.004075914548 | LO29: =1-_xlfn.NORM.DIST(LN29,$G$6,$G$7/SQRT(7),TRUE) -> 0.9918306672 | LP29: =MAX(MIN(SQRT(7)*(LN29-$G$6)/$G$10,$G$7),0.01%) -> 0.01 | LQ29: =MIN(KX29,LA29,LD29,LG29,LJ29,LM29,LP29) -> 0.01 | LS29: -0.00153878647 | LT29: 101.771882 | LU29: 100.8419349 | LV29: 99.95165455 | LW29: 100.318965 | LX29: 100.5620642 | LY29: 99.47446572 | LZ29: 98.70102631 | MA29: =(1+LS29)*100 -> 99.84612135 | MB29: -0.04841934892 | MC29: =1-_xlfn.NORM.DIST(MB29,$G$6,$G$7/SQRT(1),TRUE) -> 0.999999954 | MD29: =MAX(MIN(SQRT(1)*(MB29-$G$6)/$G$10,$G$7),0.01%) -> 0.01 | ME29: =(((100*(1+8*$G$8))-LV29)/100)/2 -> -0.01975827276 | MF29: =1-_xlfn.NORM.DIST(ME29,$G$6,$G$7/SQRT(2),TRUE) -> 0.999768545 | MG29: =MAX(MIN(SQRT(2)*(ME29-$G$6)/$G$10,$G$7),0.01%) -> 0.01 | MH29: =(((100*(1+8*$G$8))-LW29)/100)/3 -> -0.0143965499 | MI29: =1-_xlfn.NORM.DIST(MH29,$G$6,$G$7/SQRT(3),TRUE) -> 0.9996096962 | MJ29: =MAX(MIN(SQRT(3)*(MH29-$G$6)/$G$10,$G$7),0.01%) -> 0.01 | MK29: =(((100*(1+8*$G$8))-LX29)/100)/4 -> -0.01140516054 | ML29: =1-_xlfn.NORM.DIST(MK29,$G$6,$G$7/SQRT(4),TRUE) -> 0.9994828602 | MM29: =MAX(MIN(SQRT(4)*(MK29-$G$6)/$G$10,$G$7),0.01%) -> 0.01 | MN29: =(((100*(1+8*$G$8))-LY29)/100)/5 -> -0.006948931445 | MO29: =1-_xlfn.NORM.DIST(MN29,$G$6,$G$7/SQRT(5),TRUE) -> 0.9962284202 | MP29: =MAX(MIN(SQRT(5)*(MN29-$G$6)/$G$10,$G$7),0.01%) -> 0.01 | MQ29: =(((100*(1+8*$G$8))-LZ29)/100)/6 -> -0.004501710515 | MR29: =1-_xlfn.NORM.DIST(MQ29,$G$6,$G$7/SQRT(6),TRUE) -> 0.9900289175 | MS29: =MAX(MIN(SQRT(6)*(MQ29-$G$6)/$G$10,$G$7),0.01%) -> 0.01 | MT29: =(((100*(1+8*$G$8))-MA29)/100)/7 -> -0.005494459076 | MU29: =1-_xlfn.NORM.DIST(MT29,$G$6,$G$7/SQRT(7),TRUE) -> 0.9972532342 | MV29: =MAX(MIN(SQRT(7)*(MT29-$G$6)/$G$10,$G$7),0.01%) -> 0.01 | MW29: =MIN(MD29,MG29,MJ29,MM29,MP29,MS29,MV29) -> 0.01 | MY29: 0.006535822866 | MZ29: 101.5010199 | NA29: 100.6049209 | NB29: 100.974632 | NC29: 101.2193201 | ND29: 100.1246132 | NE29: 99.34611873 | NF29: 100.4986979 | NG29: =(1+MY29)*100 -> 100.6535823 | NH29: -0.04604920861 | NI29: =1-_xlfn.NORM.DIST(NH29,$G$6,$G$7/SQRT(1),TRUE) -> 0.9999998345 | NJ29: =MAX(MIN(SQRT(1)*(NH29-$G$6)/$G$10,$G$7),0.01%) -> 0.01 | NK29: =(((100*(1+8*$G$8))-NB29)/100)/2 -> -0.02487315978 | NL29: =1-_xlfn.NORM.DIST(NK29,$G$6,$G$7/SQRT(2),TRUE) -> 0.9999880372 | NM29: =MAX(MIN(SQRT(2)*(NK29-$G$6)/$G$10,$G$7),0.01%) -> 0.01 | NN29: =(((100*(1+8*$G$8))-NC29)/100)/3 -> -0.01739773352 | NO29: =1-_xlfn.NORM.DIST(NN29,$G$6,$G$7/SQRT(3),TRUE) -> 0.999947643 | NP29: =MAX(MIN(SQRT(3)*(NN29-$G$6)/$G$10,$G$7),0.01%) -> 0.01 | NQ29: =(((100*(1+8*$G$8))-ND29)/100)/4 -> -0.01031153303 | NR29: =1-_xlfn.NORM.DIST(NQ29,$G$6,$G$7/SQRT(4),TRUE) -> 0.9989018082 | NS29: =MAX(MIN(SQRT(4)*(NQ29-$G$6)/$G$10,$G$7),0.01%) -> 0.01 | NT29: =(((100*(1+8*$G$8))-NE29)/100)/5 -> -0.006692237468 | NU29: =1-_xlfn.NORM.DIST(NT29,$G$6,$G$7/SQRT(5),TRUE) -> 0.9955316182 | NV29: =MAX(MIN(SQRT(5)*(NT29-$G$6)/$G$10,$G$7),0.01%) -> 0.01 | NW29: =(((100*(1+8*$G$8))-NF29)/100)/6 -> -0.00749782986 | NX29: =1-_xlfn.NORM.DIST(NW29,$G$6,$G$7/SQRT(6),TRUE) -> 0.9988982218 | NY29: =MAX(MIN(SQRT(6)*(NW29-$G$6)/$G$10,$G$7),0.01%) -> 0.01 | NZ29: =(((100*(1+8*$G$8))-NG29)/100)/7 -> -0.006647974695 | OA29: =1-_xlfn.NORM.DIST(NZ29,$G$6,$G$7/SQRT(7),TRUE) -> 0.9989711119 | OB29: =MAX(MIN(SQRT(7)*(NZ29-$G$6)/$G$10,$G$7),0.01%) -> 0.01 | OC29: =MIN(NJ29,NM29,NP29,NS29,NV29,NY29,OB29) -> 0.01 | OF29: 0.01 | OG29: 0.01 | OH29: 0.01 | OI29: =JE29 -> 0.01 | OJ29: =KK29 -> 0.01 | OK29: =LQ29 -> 0.01 | OL29: =MW29 -> 0.01 | OM29: =OC29 -> 0.01 | OO29: =IF(SUM(OF29:OM29)=8*OF29,"No","Yes") -> No | OQ29: =$G$7 -> 0.01 | OR29: =K29 -> 0.01 | OS29: =R29 -> 0.01 | OT29: =AD29 -> 0.01 | OU29: =AT29 -> 0.01 | OV29: =BN29 -> 0.01 | OW29: =CL29 -> 0.01 | OX29: =DN29 -> 0.01 | OZ29: =IF(SUM(OQ29:OX29)=8*$G$7,"No","Yes") -> No
F30: 3 | G30: -0.003090889719 | H30: 99.69091103 | I30: -0.00527273004 | J30: 0.9967152038 | K30: 0.01 | M30: -0.02143909757 | N30: 97.55362786 | O30: 97.85609024 | P30: -0.002589379766 | Q30: 0.9684871954 | R30: 0.01 | S30: -0.00265155749 | T30: 0.978536102 | U30: 0.01 | V30: 0.01 | X30: -0.0006066526076 | Y30: 97.4944467 | Z30: 97.79672559 | AA30: 99.93933474 | AB30: -0.002988893393 | AC30: 0.9629803855 | AD30: 0.01 | AE30: -0.002994542651 | AF30: 0.9748999522 | AG30: 0.01 | AH30: -0.005627621056 | AI30: 0.9975367762 | AJ30: 0.01 | AK30: 0.01 | AM30: 0.001486235477 | AN30: 97.6393464 | AO30: 97.94207455 | AP30: 100.0878681 | AQ30: 100.1486235 | AR30: -0.004098366006 | AS30: 0.9655956066 | AT30: 0.01 | AU30: -0.003884149107 | AV30: 0.9765141967 | AW30: 0.01 | AX30: -0.00681311354 | AY30: 0.9980957959 | AZ30: 0.01 | BA30: -0.005926605068 | BB30: 0.998079347 | BC30: 0.01 | BD30: 0.01 | BF30: -0.009356614861 | BG30: 96.72577264 | BH30: 97.02566828 | BI30: 99.15138449 | BJ30: 99.21157145 | BK30: 99.06433851 | BL30: -0.002419242142 | BM30: 0.9006126698 | BN30: 0.01 | BO30: -0.002564170708 | BP30: 0.934839103 | BQ30: 0.01 | BR30: -0.00630276898 | BS30: 0.9942540798 | BT30: 0.01 | BU30: -0.005352619081 | BV30: 0.9943914764 | BW30: 0.01 | BX30: -0.004377626448 | BY30: 0.9934508754 | BZ30: 0.01 | CA30: 0.01 | CC30: 0.02544034491 | CD30: 99.18650966 | CE30: 99.49403475 | CF30: 101.6738299 | CG30: 101.735548 | CH30: 101.5845695 | CI30: 102.5440345 | CJ30: -0.0159325483 | CK30: 0.9984633487 | CL30: 0.01 | CM30: -0.0116467825 | CN30: 0.9980323834 | CO30: 0.01 | CP30: -0.01418457477 | CQ30: 0.9999377052 | CR30: 0.01 | CS30: -0.01147109609 | CT30: 0.9998847696 | CU30: 0.01 | CV30: -0.009307615757 | CW30: 0.9997713838 | CX30: 0.01 | CY30: -0.009348620701 | CZ30: 0.9999265606 | DA30: 0.01 | DB30: 0.01 | DD30: 0.03187103278 | DE30: 102.3476862 | DF30: 102.6650124 | DG30: 104.9142799 | DH30: 104.977965 | DI30: 104.8221746 | DJ30: 105.8122188 | DK30: 103.1871033 | DL30: -0.06347686162 | DM30: 1 | DN30: 0.01 | DO30: -0.03332506197 | DP30: 0.9999999702 | DQ30: 0.01 | DR30: -0.02971426625 | DS30: 0.9999999991 | DT30: 0.01 | DU30: -0.02244491258 | DV30: 0.9999999798 | DW30: 0.01 | DX30: -0.0176443492 | DY30: 0.9999997941 | DZ30: 0.01 | EA30: -0.01635369796 | EB30: 0.9999999155 | EC30: 0.01 | ED30: -0.0102672904 | EE30: 0.9999731997 | EF30: 0.01 | EG30: 0.01 | EI30: 0.01039321245 | EJ30: 103.4114074 | EK30: 103.7320317 | EL30: 106.0046763 | EM30: 106.0690233 | EN30: 105.9116137 | EO30: 106.9119476 | EP30: 104.2595488 | EQ30: 101.0393212 | ER30: -0.07732031678 | ES30: 1 | ET30: 0.01 | EU30: -0.05002338138 | EV30: 1 | EW30: 0.01 | EX30: -0.03356341108 | EY30: 1 | EZ30: 0.01 | FA30: -0.02477903432 | FB30: 0.9999999987 | FC30: 0.01 | FD30: -0.02182389529 | FE30: 0.999999999 | FF30: 0.01 | FG30: -0.01376591461 | FH30: 0.9999978537 | FI30: 0.01 | FJ30: -0.00719903035 | FK30: 0.9993757458 | FL30: 0.01 | FM30: 0.01 | FO30: -0.01520863527 | FP30: 102.154409 | FQ30: 104.3924898 | FR30: 104.4558582 | FS30: 104.3008426 | FT30: 105.2859628 | FU30: 102.6739033 | FV30: 99.50265106 | FW30: 98.47913647 | FX30: -0.08392489818 | FY30: 1 | FZ30: 0.01 | GA30: -0.04227929118 | GB30: 1 | GC30: 0.01 | GD30: -0.02766947541 | GE30: 0.9999999924 | GF30: 0.01 | GG30: -0.02321490707 | GH30: 0.9999999916 | GI30: 0.01 | GJ30: -0.01334780663 | GK30: 0.9999795817 | GL30: 0.01 | GM30: -0.005837751767 | GN30: 0.9960310066 | GO30: 0.01 | GP30: -0.003541623533 | GQ30: 0.9880863072 | GR30: 0.01 | GS30: 0.01 | GU30: 0.00573593588 | GV30: 104.9912784 | GW30: 105.0550103 | GX30: 104.8991056 | GY30: 105.8898764 | GZ30: 103.2628342 | HA30: 100.0733919 | HB30: 99.04400649 | HC30: 100.5735936 | HD30: -0.09055010341 | HE30: 1 | HF30: 0.01 | HG30: -0.04449552785 | HH30: 1 | HI30: 0.01 | HJ30: -0.03296625453 | HK30: 1 | HL30: 0.01 | HM30: -0.0181570856 | HN30: 0.9999981841 | HO30: 0.01 | HP30: -0.008146783774 | HQ30: 0.9983574033 | HR30: 0.01 | HS30: -0.005073344142 | HT30: 0.9931961398 | HU30: 0.01 | HV30: -0.006533705126 | HW30: 0.9988616144 | HX30: 0.01 | HY30: 0.01 | IA30: 0.001048345196 | IB30: 105.1651443 | IC30: 105.009076 | ID30: 106.0008855 | IE30: 103.3710893 | IF30: 100.1783033 | IG30: 99.14783879 | IH30: 100.6790294 | II30: 100.1048345 | IJ30: -0.09009076043 | IK30: 1 | IL30: 0.01 | IM30: -0.05000442752 | IN30: 1 | IO30: 0.01 | IP30: -0.02457029779 | IQ30: 0.9999998486 | IR30: 0.01 | IS30: -0.01044575837 | IT30: 0.9989963553 | IU30: 0.01 | IV30: -0.006295677588 | IW30: 0.9942280817 | IX30: 0.01 | IY30: -0.007798382386 | IZ30: 0.9991405848 | JA30: 0.01 | JB30: -0.005864049314 | JC30: 0.9979757465 | JD30: 0.01 | JE30: 0.01 | JG30: 0.008021718089 | JH30: 105.8514292 | JI30: 106.8511947 | JJ30: 104.2003031 | JK30: 100.9819055 | JL30: 99.94317481 | JM30: 101.4866482 | JN30: 100.9078473 | JO30: 100.8021718 | JP30: -0.1085119472 | JQ30: 1 | JR30: 0.01 | JS30: -0.04100151537 | JT30: 1 | JU30: 0.01 | JV30: -0.01660635151 | JW30: 0.999908839 | JX30: 0.01 | JY30: -0.009857937014 | JZ30: 0.9985186773 | KA30: 0.01 | KB30: -0.01097329645 | KC30: 0.9998226897 | KD30: 0.01 | KE30: -0.008179745469 | KF30: 0.9993775003 | KG30: 0.01 | KH30: -0.006860245441 | KI30: 0.9991492608 | KJ30: 0.01 | KK30: 0.01 | KM30: 0.01690833231 | KN30: 108.6578702 | KO30: 105.9621564 | KP30: 102.6893411 | KQ30: 101.6330472 | KR30: 103.2026182 | KS30: 102.6140307 | KT30: 102.5065684 | KU30: 101.6908332 | KV30: -0.09962156425 | KW30: 1 | KX30: 0.01 | KY30: -0.03344670535 | KZ30: 0.9999999729 | LA30: 0.01 | LB30: -0.01877682406 | LC30: 0.9999809134 | LD30: 0.01 | LE30: -0.01800654549 | LF30: 0.9999979008 | LG30: 0.01 | LH30: -0.01322806139 | LI30: 0.9999770835 | LJ30: 0.01 | LK30: -0.01084428071 | LL30: 0.9999479947 | LM30: 0.01 | LN30: -0.008129761758 | LO30: 0.9997434364 | LP30: 0.01 | LQ30: 0.01 | LS30: 0.007222716719 | LT30: 106.7274911 | LU30: 103.4310371 | LV30: 102.3671139 | LW30: 103.9480215 | LX30: 103.3551828 | LY30: 103.2469443 | LZ30: 102.4253173 | MA30: 100.7222717 | MB30: -0.0743103709 | MC30: 1 | MD30: 0.01 | ME30: -0.03183556963 | MF30: 0.9999999052 | MG30: 0.01 | MH30: -0.02649340491 | MI30: 0.9999999755 | MJ30: 0.01 | MK30: -0.01838795693 | ML30: 0.9999985487 | MM30: 0.01 | MN30: -0.01449388867 | MO30: 0.9999934661 | MP30: 0.01 | MQ30: -0.01070886219 | MR30: 0.9999404253 | MS30: 0.01 | MT30: -0.006746102388 | MU30: 0.999057338 | MV30: 0.01 | MW30: 0.01 | MY30: 0.009201010735 | MZ30: 104.3827072 | NA30: 103.3089948 | NB30: 104.9044483 | NC30: 104.3061549 | ND30: 104.1969206 | NE30: 103.3677338 | NF30: 101.6490184 | NG30: 100.9201011 | NH30: -0.07308994841 | NI30: 1 | NJ30: 0.01 | NK30: -0.04452224167 | NL30: 1 | NM30: 0.01 | NN30: -0.02768718306 | NO30: 0.9999999925 | NP30: 0.01 | NQ30: -0.02049230144 | NR30: 0.9999998288 | NS30: 0.01 | NT30: -0.01473546751 | NU30: 0.9999949022 | NV30: 0.01 | NW30: -0.009415030625 | NX30: 0.9997929626 | NY30: 0.01 | NZ30: -0.007028715819 | OA30: 0.9992699501 | OB30: 0.01 | OC30: 0.01 | OF30: 0.01 | OG30: 0.01 | OH30: 0.01 | OI30: 0.01 | OJ30: 0.01 | OK30: 0.01 | OL30: 0.01 | OM30: 0.01 | OO30: No | OQ30: 0.01 | OR30: 0.01 | OS30: 0.01 | OT30: 0.01 | OU30: 0.01 | OV30: 0.01 | OW30: 0.01 | OX30: 0.01 | OZ30: No
F31: 4 | G31: 0.006745044846 | H31: 100.6745045 | I31: -0.006677863549 | J31: 0.9989981127 | K31: 0.01 | M31: 0.007358234272 | N31: 101.4152911 | O31: 100.7358234 | P31: -0.009025485123 | Q31: 0.9997043 | R31: 0.01 | S31: -0.006765462039 | T31: 0.999073545 | U31: 0.01 | V31: 0.01 | X31: -0.00183466307 | Y31: 101.2292282 | Z31: 100.5510071 | AA31: 99.81653369 | AB31: -0.01045845637 | AC31: 0.9997264981 | AD31: 0.01 | AE31: -0.007585011887 | AF31: 0.9989742917 | AG31: 0.01 | AH31: -0.00545219099 | AI31: 0.9971572594 | AJ31: 0.01 | AK31: 0.01 | AM31: 0.01720187412 | AN31: 102.9705606 | AO31: 102.2806729 | AP31: 101.5335651 | AQ31: 101.7201874 | AR31: -0.01742640156 | AS31: 0.9999963591 | AT31: 0.01 | AU31: -0.0125613458 | AV31: 0.9999569647 | AW31: 0.01 | AX31: -0.009222608567 | AY31: 0.999752838 | AZ31: 0.01 | BA31: -0.008171696303 | BB31: 0.9997538425 | BC31: 0.01 | BD31: 0.01 | BF31: -3.317523826e-05 | BG31: 102.9671446 | BH31: 102.2772797 | BI31: 101.5301967 | BJ31: 101.7168128 | BK31: 99.99668248 | BL31: -0.02322381517 | BM31: 0.999999492 | BN31: 0.01 | BO31: -0.01569319928 | BP31: 0.9999825315 | BQ31: 0.01 | BR31: -0.01106039348 | BS31: 0.9998354289 | BT31: 0.01 | BU31: -0.009528021367 | BV31: 0.9998135986 | BW31: 0.01 | BX31: -0.005709546395 | BY31: 0.997697788 | BZ31: 0.01 | CA31: 0.01 | CC31: 0.009929971808 | CD31: 103.9896054 | CE31: 103.2928902 | CF31: 102.5383887 | CG31: 102.7268579 | CH31: 100.9896467 | CI31: 100.9929972 | CJ31: -0.03994802697 | CK31: 0.9999999999 | CL31: 0.01 | CM31: -0.02430963406 | CN31: 0.9999998079 | CO31: 0.01 | CP31: -0.01634597183 | CQ31: 0.999990191 | CR31: 0.01 | CS31: -0.01345371581 | CT31: 0.9999815738 | CU31: 0.01 | CV31: -0.008316077857 | CW31: 0.999446385 | CX31: 0.01 | CY31: -0.007132853115 | CZ31: 0.9993364434 | DA31: 0.01 | DB31: 0.01 | DD31: 0.005015489225 | DE31: 104.5111641 | DF31: 103.8109546 | DG31: 103.0526689 | DH31: 103.2420834 | DI31: 101.4961592 | DJ31: 101.4995265 | DK31: 100.5015489 | DL31: -0.0851116414 | DM31: 1 | DN31: 0.01 | DO31: -0.03905477298 | DP31: 0.9999999998 | DQ31: 0.01 | DR31: -0.02350889638 | DS31: 0.9999996051 | DT31: 0.01 | DU31: -0.01810520838 | DV31: 0.9999980909 | DW31: 0.01 | DX31: -0.0109923184 | DY31: 0.9998255482 | DZ31: 0.01 | EA31: -0.00916587745 | EB31: 0.9997396905 | EC31: 0.01 | ED31: -0.006430784175 | EE31: 0.9987539591 | EF31: 0.01 | EG31: 0.01 | EI31: -0.007659392775 | EJ31: 103.7106721 | EK31: 103.0158257 | EL31: 102.263348 | EM31: 102.4513117 | EN31: 100.7187603 | EO31: 100.7221017 | EP31: 99.73176808 | EQ31: 99.23406072 | ER31: -0.0701582572 | ES31: 1 | ET31: 0.01 | EU31: -0.03131674024 | EV31: 0.9999998596 | EW31: 0.01 | EX31: -0.02150437229 | EY31: 0.9999977911 | EZ31: 0.01 | FA31: -0.01179690063 | FB31: 0.9996094123 | FC31: 0.01 | FD31: -0.009444203461 | FE31: 0.9993806636 | FF31: 0.01 | FG31: -0.006219613475 | FH31: 0.9970041276 | FI31: 0.01 | FJ31: -0.004620086746 | FK31: 0.9945398003 | FL31: 0.01 | FM31: 0.01 | FO31: -0.009723229302 | FP31: 102.0141792 | FQ31: 101.2690181 | FR31: 101.4551541 | FS31: 99.73944865 | FT31: 99.74275764 | FU31: 98.76205324 | FV31: 98.2691852 | FW31: 99.02767707 | FX31: -0.05269018065 | FY31: 0.999999996 | FZ31: 0.01 | GA31: -0.02727577045 | GB31: 0.9999974964 | GC31: 0.01 | GD31: -0.01246482883 | GE31: 0.9987568224 | GF31: 0.01 | GG31: -0.009356894098 | GH31: 0.9979565728 | GI31: 0.01 | GJ31: -0.00552410647 | GK31: 0.9906952353 | GL31: 0.01 | GM31: -0.003781975326 | GN31: 0.9842672606 | GO31: 0.01 | GP31: -0.004325252957 | GQ31: 0.9931918572 | GR31: 0.01 | GS31: 0.01 | GU31: 0.01340590937 | GV31: 102.6266213 | GW31: 102.8152527 | GX31: 101.0765467 | GY31: 101.0799 | GZ31: 100.0860484 | HA31: 99.58657299 | HB31: 100.3552331 | HC31: 101.3405909 | HD31: -0.06815252691 | HE31: 1 | HF31: 0.01 | HG31: -0.02538273329 | HH31: 0.9999913347 | HI31: 0.01 | HJ31: -0.01693300003 | HK31: 0.9999273322 | HL31: 0.01 | HM31: -0.01021512092 | HN31: 0.9988289325 | HO31: 0.01 | HP31: -0.007173145972 | HQ31: 0.9967555751 | HR31: 0.01 | HS31: -0.007258721889 | HT31: 0.9986622893 | HU31: 0.01 | HV31: -0.007629415624 | HW31: 0.9995832588 | HX31: 0.01 | HY31: 0.01 | IA31: 0.01076930537 | IB31: 103.9225015 | IC31: 102.1650709 | ID31: 102.1684603 | IE31: 101.1639056 | IF31: 100.6590512 | IG31: 101.4359893 | IH31: 102.4319587 | II31: 101.0769305 | IJ31: -0.06165070856 | IK31: 1 | IL31: 0.01 | IM31: -0.03084230159 | IN31: 0.9999997999 | IO31: 0.01 | IP31: -0.01721301863 | IQ31: 0.9999403129 | IR31: 0.01 | IS31: -0.011647628 | IT31: 0.9995650297 | IU31: 0.01 | IV31: -0.01087197857 | IW31: 0.9998067119 | IX31: 0.01 | IY31: -0.01071993118 | IZ31: 0.999941081 | JA31: 0.01 | JB31: -0.00725275791 | JC31: 0.9994060612 | JD31: 0.01 | JE31: 0.01 | JG31: 0.0008353556409 | JH31: 102.250415 | JI31: 102.2538073 | JJ31: 101.2484134 | JK31: 100.7431373 | JL31: 101.5207244 | JM31: 102.5175258 | JN31: 101.1613657 | JO31: 100.0835356 | JP31: -0.06253807318 | JQ31: 1 | JR31: 0.01 | JS31: -0.02624206714 | JT31: 0.9999950259 | JU31: 0.01 | JV31: -0.01581045769 | JW31: 0.9998436089 | JX31: 0.01 | JY31: -0.01380181103 | JZ31: 0.9999151662 | KA31: 0.01 | KB31: -0.01303505164 | KC31: 0.9999724372 | KD31: 0.01 | KE31: -0.008602276202 | KF31: 0.9995686674 | KG31: 0.01 | KH31: -0.005833622234 | KI31: 0.9979235437 | KJ31: 0.01 | KK31: 0.01 | KM31: 0.007142524449 | KN31: 102.9841576 | KO31: 101.9715827 | KP31: 101.4626976 | KQ31: 102.2458387 | KR31: 103.2497598 | KS31: 101.8839132 | KT31: 100.7983847 | KU31: 100.7142524 | KV31: -0.05971582696 | KW31: 1 | KX31: 0.01 | KY31: -0.02731348815 | KZ31: 0.9999975593 | LA31: 0.01 | LB31: -0.02081946222 | LC31: 0.9999961266 | LD31: 0.01 | LE31: -0.01812439939 | LF31: 0.9999981259 | LG31: 0.01 | LH31: -0.0117678265 | LI31: 0.9999113709 | LJ31: 0.01 | LK31: -0.007997307773 | LL31: 0.9992729146 | LM31: 0.01 | LN31: -0.00673464635 | LO31: 0.9990476253 | LP31: 0.01 | LQ31: 0.01 | LS31: 0.005420885543 | LT31: 102.524359 | LU31: 102.0127153 | LV31: 102.8001017 | LW31: 103.8094649 | LX31: 102.4362143 | LY31: 101.3448012 | LZ31: 101.2602129 | MA31: 100.5420886 | MB31: -0.060127153 | MC31: 1 | MD31: 0.01 | ME31: -0.03400050828 | MF31: 0.9999999826 | MG31: 0.01 | MH31: -0.02603154962 | MI31: 0.9999999617 | MJ31: 0.01 | MK31: -0.0160905357 | ML31: 0.9999876819 | MM31: 0.01 | MN31: -0.01068960234 | MO31: 0.9997745114 | MP31: 0.01 | MQ31: -0.008767021467 | MR31: 0.9996271727 | MS31: 0.01 | MT31: -0.006488697935 | MU31: 0.9988156307 | MV31: 0.01 | MW31: 0.01 | MY31: -0.001166995902 | MZ31: 101.8936669 | NA31: 102.6801344 | NB31: 103.6883197 | NC31: 102.3166716 | ND31: 101.2265322 | NE31: 101.1420426 | NF31: 100.4247563 | NG31: 99.88330041 | NH31: -0.06680134358 | NI31: 1 | NJ31: 0.01 | NK31: -0.03844159833 | NL31: 0.9999999996 | NM31: 0.01 | NN31: -0.02105557213 | NO31: 0.9999968035 | NP31: 0.01 | NQ31: -0.01306633051 | NR31: 0.9998488179 | NS31: 0.01 | NT31: -0.01028408525 | NU31: 0.99968415 | NV31: 0.01 | NW31: -0.007374593915 | NX31: 0.9987818552 | NY31: 0.01 | NZ31: -0.005547572014 | OA31: 0.9973696829 | OB31: 0.01 | OC31: 0.01 | OF31: 0.01 | OG31: 0.01 | OH31: 0.01 | OI31: 0.01 | OJ31: 0.01 | OK31: 0.01 | OL31: 0.01 | OM31: 0.01 | OO31: No | OQ31: 0.01 | OR31: 0.01 | OS31: 0.01 | OT31: 0.01 | OU31: 0.01 | OV31: 0.01 | OW31: 0.01 | OX31: 0.01 | OZ31: No
F32: 5 | G32: 0.02425317129 | H32: 102.4253171 | I32: -0.00917902447 | J32: 0.9999120811 | K32: 0.01 | M32: 0.0123365447 | N32: 103.6888916 | O32: 101.2336545 | P32: -0.01281481939 | Q32: 0.9999936066 | R32: 0.01 | S32: -0.007476649243 | T32: 0.9995183147 | U32: 0.01 | V32: 0.01 | X32: 0.01506543266 | Y32: 105.2510096 | Z32: 102.7587833 | AA32: 101.5065433 | AB32: -0.01850201929 | AC32: 0.9999999261 | AD32: 0.01 | AE32: -0.01126463879 | AF32: 0.9999661185 | AG32: 0.01 | AH32: -0.00786649038 | AI32: 0.9996681526 | AJ32: 0.01 | AK32: 0.01 | AM32: 0.01029447171 | AN32: 106.3345132 | AO32: 103.8166307 | AP32: 102.5514995 | AQ32: 101.0294472 | AR32: -0.02583628297 | AS32: 0.9999999997 | AT32: 0.01 | AU32: -0.01563326132 | AV32: 0.9999980225 | AW32: 0.01 | AX32: -0.01091916584 | AY32: 0.999951781 | AZ32: 0.01 | BA32: -0.00718492453 | BB32: 0.9993675533 | BC32: 0.01 | BD32: 0.01 | BF32: 0.003317776287 | BG32: 106.6873073 | BH32: 104.161071 | BI32: 102.8917424 | BJ32: 101.3646403 | BK32: 100.3317776 | BL32: -0.03562435772 | BM32: 1 | BN32: 0.01 | BO32: -0.02040267754 | BP32: 0.9999998118 | BQ32: 0.01 | BR32: -0.01378348488 | BS32: 0.999986661 | BT32: 0.01 | BU32: -0.008941067126 | BV32: 0.9996809144 | BW32: 0.01 | BX32: -0.006188253755 | BY32: 0.9984624722 | BZ32: 0.01 | CA32: 0.01 | CC32: 0.01468715574 | CD32: 108.2542404 | CE32: 105.6909009 | CF32: 104.4029295 | CG32: 102.8533985 | CH32: 101.8053661 | CI32: 101.4687156 | CJ32: -0.06127120207 | CK32: 1 | CL32: 0.01 | CM32: -0.03230300297 | CN32: 0.9999999999 | CO32: 0.01 | CP32: -0.02100732371 | CQ32: 0.9999999011 | CR32: 0.01 | CS32: -0.01370679707 | CT32: 0.9999856135 | CU32: 0.01 | CV32: -0.009675610121 | CW32: 0.9998376644 | CX32: 0.01 | CY32: -0.00781245082 | CZ32: 0.9996503531 | DA32: 0.01 | DB32: 0.01 | DD32: 0.0115135316 | DE32: 109.500629 | DF32: 106.9077764 | DG32: 105.6049759 | DH32: 104.0376044 | DI32: 102.9775054 | DJ32: 102.6369788 | DK32: 101.1513532 | DL32: -0.1350062903 | DM32: 1 | DN32: 0.01 | DO32: -0.05453888209 | DP32: 1 | DQ32: 0.01 | DR32: -0.03201658637 | DS32: 0.9999999999 | DT32: 0.01 | DU32: -0.02009401097 | DV32: 0.99999974 | DW32: 0.01 | DX32: -0.01395501074 | DY32: 0.9999887476 | DZ32: 0.01 | EA32: -0.0110616314 | EB32: 0.9999582768 | EC32: 0.01 | ED32: -0.007359075943 | EE32: 0.9994620803 | EF32: 0.01 | EG32: 0.01 | EI32: 0.01441271196 | EJ32: 111.0788301 | EK32: 108.4486074 | EL32: 107.12703 | EM32: 105.5370684 | EN32: 104.4616905 | EO32: 104.116256 | EP32: 102.6092185 | EQ32: 101.4412712 | ER32: -0.124486074 | ES32: 1 | ET32: 0.01 | EU32: -0.05563515005 | EV32: 1 | EW32: 0.01 | EX32: -0.03179022804 | EY32: 0.9999999999 | EZ32: 0.01 | FA32: -0.02115422624 | FB32: 0.9999999156 | FC32: 0.01 | FD32: -0.0162325121 | FE32: 0.9999989715 | FF32: 0.01 | FG32: -0.01101536413 | FH32: 0.9999562638 | FI32: 0.01 | FJ32: -0.007773244565 | FK32: 0.9996368883 | FL32: 0.01 | FM32: 0.01 | FO32: -0.01251229512 | FP32: 107.0916664 | FQ32: 105.786625 | FR32: 104.2165575 | FS32: 103.154635 | FT32: 102.8135227 | FU32: 101.3253417 | FV32: 100.1720081 | FW32: 98.74877049 | FX32: -0.09786624995 | FY32: 1 | FZ32: 0.01 | GA32: -0.04108278733 | GB32: 1 | GC32: 0.01 | GD32: -0.02384878332 | GE32: 0.9999997085 | GF32: 0.01 | GG32: -0.01703380682 | GH32: 0.9999947536 | GI32: 0.01 | GJ32: -0.01065068331 | GK32: 0.9997670209 | GL32: 0.01 | GM32: -0.006953346788 | GN32: 0.9982940305 | GO32: 0.01 | GP32: -0.003926814982 | GQ32: 0.9909070995 | GR32: 0.01 | GS32: 0.01 | GU32: 0.001717211815 | GV32: 105.968283 | GW32: 104.3955194 | GX32: 103.3317734 | GY32: 102.9900753 | GZ32: 101.4993387 | HA32: 100.3440246 | HB32: 98.91834304 | HC32: 100.1717212 | HD32: -0.0839551937 | HE32: 1 | HF32: 0.01 | HG32: -0.03665886676 | HH32: 0.9999999981 | HI32: 0.01 | HJ32: -0.02330025108 | HK32: 0.9999995251 | HL32: 0.01 | HM32: -0.01374834682 | HN32: 0.9999114661 | HO32: 0.01 | HP32: -0.008688049257 | HQ32: 0.9988960495 | HR32: 0.01 | HS32: -0.004863905071 | HT32: 0.9921572748 | HU32: 0.01 | HV32: -0.005959601688 | HW32: 0.9981320311 | HX32: 0.01 | HY32: 0.01 | IA32: 0.006111598287 | IB32: 105.0335428 | IC32: 103.9632956 | ID32: 103.6195093 | IE32: 102.1196619 | IF32: 100.957287 | IG32: 99.52289222 | IH32: 100.7839305 | II32: 100.6111598 | IJ32: -0.07963295642 | IK32: 1 | IL32: 0.01 | IM32: -0.03809754645 | IN32: 0.9999999995 | IO32: 0.01 | IP32: -0.02039887304 | IQ32: 0.9999945678 | IR32: 0.01 | IS32: -0.01239321749 | IT32: 0.9997480207 | IU32: 0.01 | IV32: -0.007045784438 | IW32: 0.9964648972 | IX32: 0.01 | IY32: -0.007973217502 | IZ32: 0.999257954 | JA32: 0.01 | JB32: -0.006587371184 | JC32: 0.9989143044 | JD32: 0.01 | JE32: 0.01 | JG32: 0.01536479638 | JH32: 105.5606705 | JI32: 105.211602 | JJ32: 103.6887097 | JK32: 102.5084752 | JL32: 101.0520412 | JM32: 102.3324551 | JN32: 102.1570298 | JO32: 101.5364796 | JP32: -0.09211601952 | JQ32: 1 | JR32: 0.01 | JS32: -0.03844354861 | JT32: 0.9999999996 | JU32: 0.01 | JV32: -0.02169491718 | JW32: 0.9999981152 | JX32: 0.01 | JY32: -0.01263010298 | JZ32: 0.9997890729 | KA32: 0.01 | KB32: -0.01266491014 | KC32: 0.9999609234 | KD32: 0.01 | KE32: -0.01026171635 | KF32: 0.999907381 | KG32: 0.01 | KH32: -0.007909256625 | KI32: 0.9996816378 | KJ32: 0.01 | KK32: 0.01 | KM32: 0.007486682514 | KN32: 105.9992878 | KO32: 104.4649942 | KP32: 103.2759236 | KQ32: 101.8085857 | KR32: 103.0985857 | KS32: 102.9218471 | KT32: 102.296651 | KU32: 100.7486683 | KV32: -0.08464994173 | KW32: 1 | KX32: 0.01 | KY32: -0.03637961782 | KZ32: 0.9999999976 | LA32: 0.01 | LB32: -0.01936195247 | LC32: 0.9999877639 | LD32: 0.01 | LE32: -0.01774646418 | LF32: 0.9999973087 | LG32: 0.01 | LH32: -0.01384369412 | LI32: 0.9999874322 | LJ32: 0.01 | LK32: -0.01049441837 | LL32: 0.9999262799 | LM32: 0.01 | LN32: -0.006783811788 | LO32: 0.9990886698 | LP32: 0.01 | LQ32: 0.01 | LS32: -0.009229334118 | LT32: 103.5008518 | LU32: 102.3227556 | LV32: 100.8689603 | LW32: 102.1470544 | LX32: 101.9719469 | LY32: 101.3525211 | LZ32: 99.81882513 | MA32: 99.07706659 | MB32: -0.06322755558 | MC32: 1 | MD32: 0.01 | ME32: -0.02434480144 | MF32: 0.9999833749 | MG32: 0.01 | MH32: -0.02049018126 | MI32: 0.9999949502 | MJ32: 0.01 | MK32: -0.01492986737 | ML32: 0.999966398 | MM32: 0.01 | MN32: -0.01070504211 | MO32: 0.9997774202 | MP32: 0.01 | MQ32: -0.00636470855 | MR32: 0.9973134746 | MS32: 0.01 | MT32: -0.004395809412 | MU32: 0.9935387411 | MV32: 0.01 | MW32: 0.01 | MY32: -0.005011364495 | MZ32: 101.8099789 | NA32: 100.3634692 | NB32: 101.6351583 | NC32: 101.4609284 | ND32: 100.8446066 | NE32: 99.31859661 | NF32: 98.58055529 | NG32: 99.49886355 | NH32: -0.04363469162 | NI32: 0.9999994233 | NJ32: 0.01 | NK32: -0.02817579129 | NL32: 0.9999986457 | NM32: 0.01 | NN32: -0.01820309451 | NO32: 0.999970764 | NP32: 0.01 | NQ32: -0.01211151657 | NR32: 0.999689535 | NS32: 0.01 | NT32: -0.006637193228 | NU32: 0.9953680083 | NV32: 0.01 | NW32: -0.004300925491 | NX32: 0.9886442209 | NY32: 0.01 | NZ32: -0.004998376501 | OA32: 0.9959193366 | OB32: 0.01 | OC32: 0.01 | OF32: 0.01 | OG32: 0.01 | OH32: 0.01 | OI32: 0.01 | OJ32: 0.01 | OK32: 0.01 | OL32: 0.01 | OM32: 0.01 | OO32: No | OQ32: 0.01 | OR32: 0.01 | OS32: 0.01 | OT32: 0.01 | OU32: 0.01 | OV32: 0.01 | OW32: 0.01 | OX32: 0.01 | OZ32: No
F33: 6 | G33: 0.01041191116 | H33: 101.0411911 | I33: -0.007201701594 | J33: 0.9993772862 | K33: 0.01 | M33: 0.01306546414 | N33: 102.3613412 | O33: 101.3065464 | P33: -0.01060223529 | Q33: 0.9999337464 | R33: 0.01 | S33: -0.007580780591 | T33: 0.9995635216 | U33: 0.01 | V33: 0.01 | X33: -0.02163585549 | Y33: 100.146666 | Z33: 99.11469262 | AA33: 97.83641445 | AB33: -0.008293331978 | AC33: 0.9985229748 | AD33: 0.01 | AE33: -0.005191154359 | AF33: 0.9937254058 | AG33: 0.01 | AH33: -0.002623449215 | AI33: 0.9781509428 | AJ33: 0.01 | AK33: 0.01 | AM33: 0.006366464375 | AN33: 100.7842462 | AO33: 99.74570277 | AP33: 98.4592865 | AQ33: 100.6366464 | AR33: -0.01196061543 | AS33: 0.9996532336 | AT33: 0.01 | AU33: -0.00749140555 | AV33: 0.9973902324 | AW33: 0.01 | AX33: -0.00409881083 | AY33: 0.9870845412 | AZ33: 0.01 | BA33: -0.006623780625 | BB33: 0.9989487685 | BC33: 0.01 | BD33: 0.01 | BF33: -0.004721732329 | BG33: 100.3083699 | BH33: 99.27473027 | BI33: 97.9943881 | BJ33: 100.1614671 | BK33: 99.52782677 | BL33: -0.01436123312 | BM33: 0.9996009659 | BN33: 0.01 | BO33: -0.008186825663 | BP33: 0.9958223579 | BQ33: 0.01 | BR33: -0.003988776204 | BS33: 0.9777818369 | BT33: 0.01 | BU33: -0.006935778551 | BV33: 0.9982702698 | BW33: 0.01 | BX33: -0.005039752524 | BY33: 0.9960494701 | BZ33: 0.01 | CA33: 0.01 | CC33: 0.01663392073 | CD33: 101.9768914 | CE33: 100.9260583 | CF33: 99.62441899 | CG33: 101.827545 | CH33: 101.1833647 | CI33: 101.6633921 | CJ33: -0.02988445706 | CK33: 0.999999596 | CL33: 0.01 | CM33: -0.0164201942 | CN33: 0.9998964058 | CO33: 0.01 | CP33: -0.009061047464 | CQ33: 0.9975398777 | CR33: 0.01 | CS33: -0.01165509007 | CT33: 0.9999020289 | CU33: 0.01 | CV33: -0.008638941247 | CW33: 0.9995823803 | CX33: 0.01 | CY33: -0.008090560104 | CZ33: 0.9997333389 | DA33: 0.01 | DB33: 0.01 | DD33: -0.0009234815175 | DE33: 101.8827176 | DF33: 100.8328549 | DG33: 99.53241768 | DH33: 101.7335092 | DI33: 101.0899238 | DJ33: 101.5695078 | DK33: 99.90765185 | DL33: -0.05882717637 | DM33: 0.9999999999 | DN33: 0.01 | DO33: -0.02416427455 | DP33: 0.999981419 | DQ33: 0.01 | DR33: -0.01177472559 | DS33: 0.9981664765 | DT33: 0.01 | DU33: -0.01433377295 | DV33: 0.9999448533 | DW33: 0.01 | DX33: -0.01017984756 | DY33: 0.9996560001 | DZ33: 0.01 | EA33: -0.009282513016 | EB33: 0.999766047 | EC33: 0.01 | ED33: -0.005582359783 | EE33: 0.9974435176 | EF33: 0.01 | EG33: 0.01 | EI33: 0.008247360663 | EJ33: 102.7229812 | EK33: 101.6644598 | EL33: 100.3532974 | EM33: 102.5725421 | EN33: 101.9236488 | EO33: 102.4071882 | EP33: 100.7316263 | EQ33: 100.8247361 | ER33: -0.05664459831 | ES33: 0.9999999996 | ET33: 0.01 | EU33: -0.02176648711 | EV33: 0.9999232547 | EW33: 0.01 | EX33: -0.02190847374 | EY33: 0.9999984242 | EZ33: 0.01 | FA33: -0.0148091221 | FB33: 0.9999628104 | FC33: 0.01 | FD33: -0.01281437635 | FE33: 0.9999660341 | FF33: 0.01 | FG33: -0.00788604381 | FH33: 0.9992014153 | FI33: 0.01 | FJ33: -0.006892480095 | FK33: 0.9991736851 | FL33: 0.01 | FM33: 0.01 | FO33: -0.01700618899 | FP33: 99.93553481 | FQ33: 98.64667028 | FR33: 100.8281741 | FS33: 100.190316 | FT33: 100.6656322 | FU33: 99.01856521 | FV33: 99.11009155 | FW33: 98.2993811 | FX33: -0.02646670281 | FY33: 0.9991742946 | FZ33: 0.01 | GA33: -0.02414087042 | GB33: 0.99998115 | GC33: 0.01 | GD33: -0.01396772002 | GE33: 0.9994906407 | GF33: 0.01 | GG33: -0.01166408044 | GH33: 0.9995701412 | GI33: 0.01 | GJ33: -0.006037130425 | GK33: 0.9932060549 | GL33: 0.01 | GM33: -0.005183485917 | GN33: 0.9936920984 | GO33: 0.01 | GP33: -0.003284830145 | GQ33: 0.9858088033 | GR33: 0.01 | GS33: 0.01 | GU33: 0.01393312689 | GV33: 100.0211269 | GW33: 102.2330258 | GX33: 101.5862804 | GY33: 102.0682192 | GZ33: 100.3982034 | HA33: 100.491005 | HB33: 99.66899885 | HC33: 101.3933127 | HD33: -0.06233025829 | HE33: 1 | HF33: 0.01 | HG33: -0.02793140197 | HH33: 0.9999983973 | HI33: 0.01 | HJ33: -0.02022739735 | HK33: 0.9999937738 | HL33: 0.01 | HM33: -0.01099550862 | HN33: 0.9993107174 | HO33: 0.01 | HP33: -0.008982010064 | HQ33: 0.9991154147 | HR33: 0.01 | HS33: -0.006114998086 | HT33: 0.996761551 | HU33: 0.01 | HV33: -0.007704732413 | HW33: 0.9996121964 | HX33: 0.01 | HY33: 0.01 | IA33: -0.00656068518 | IB33: 101.5623071 | IC33: 100.9198048 | ID33: 101.3985818 | IE33: 99.73952244 | IF33: 99.83171518 | IG33: 99.01510193 | IH33: 100.7281031 | II33: 99.34393148 | IJ33: -0.04919804789 | IK33: 0.9999999702 | IL33: 0.01 | IM33: -0.02699290875 | IN33: 0.9999969728 | IO33: 0.01 | IP33: -0.0124650748 | IQ33: 0.9987569975 | IR33: 0.01 | IS33: -0.009579287961 | IT33: 0.9982264382 | IU33: 0.01 | IV33: -0.006030203856 | IW33: 0.9931766027 | IX33: 0.01 | IY33: -0.007880171809 | IZ33: 0.9991974679 | JA33: 0.01 | JB33: -0.004777044974 | JC33: 0.9951558892 | JD33: 0.01 | JE33: 0.01 | JG33: 0.007075480931 | JH33: 101.6338609 | JI33: 102.1160255 | JJ33: 100.4452275 | JK33: 100.5380726 | JL33: 99.71568139 | JM33: 101.4408029 | JN33: 100.0468376 | JO33: 100.7075481 | JP33: -0.06116025482 | JQ33: 1 | JR33: 0.01 | JS33: -0.02222613765 | JT33: 0.9999410272 | JU33: 0.01 | JV33: -0.01512690861 | JW33: 0.9997549254 | JX33: 0.01 | JY33: -0.009289203483 | JZ33: 0.9978673277 | KA33: 0.01 | KB33: -0.01088160572 | KC33: 0.999808286 | KD33: 0.01 | KE33: -0.006744729291 | KF33: 0.9979917274 | KG33: 0.01 | KH33: -0.006725068704 | KI33: 0.9990394347 | KJ33: 0.01 | KK33: 0.01 | KM33: 0.0107439803 | KN33: 103.213158 | KO33: 101.5244091 | KP33: 101.6182517 | KQ33: 100.7870247 | KR33: 102.5306808 | KS33: 101.1217388 | KT33: 101.789548 | KU33: 101.074398 | KV33: -0.05524409076 | KW33: 0.9999999992 | KX33: 0.01 | KY33: -0.02809125826 | KZ33: 0.9999985643 | LA33: 0.01 | LB33: -0.01595674903 | LC33: 0.999858188 | LD33: 0.01 | LE33: -0.01632670211 | LF33: 0.9999900201 | LG33: 0.01 | LH33: -0.01024347765 | LI33: 0.9996734487 | LJ33: 0.01 | LK33: -0.009649246676 | LL33: 0.9998335909 | LM33: 0.01 | LN33: -0.007249140043 | LO33: 0.9994040634 | LP33: 0.01 | LQ33: 0.01 | LS33: 0.01839746473 | LT33: 103.3922008 | LU33: 103.4877699 | LV33: 102.6412504 | LW33: 104.4169854 | LX33: 102.9821225 | LY33: 103.6622176 | LZ33: 102.9339107 | MA33: 101.8397465 | MB33: -0.07487769854 | MC33: 1 | MD33: 0.01 | ME33: -0.03320625221 | MF33: 0.9999999673 | MG33: 0.01 | MH33: -0.0280566181 | MI33: 0.9999999948 | MJ33: 0.01 | MK33: -0.01745530613 | ML33: 0.9999964565 | MM33: 0.01 | MN33: -0.01532443525 | MO33: 0.9999972491 | MP33: 0.01 | MQ33: -0.01155651784 | MR33: 0.9999749866 | MS33: 0.01 | MT33: -0.008342494962 | MU33: 0.9997922927 | MV33: 0.01 | MW33: 0.01 | MY33: 0.0192244463 | MZ33: 105.4772649 | NA33: 104.6144717 | NB33: 106.4243442 | NC33: 104.9618967 | ND33: 105.6550664 | NE33: 104.9127581 | NF33: 103.7975592 | NG33: 101.9224446 | NH33: -0.0861447165 | NI33: 1 | NJ33: 0.01 | NK33: -0.0521217208 | NL33: 1 | NM33: 0.01 | NN33: -0.02987298911 | NO33: 0.9999999992 | NP33: 0.01 | NQ33: -0.02413766591 | NR33: 0.9999999972 | NS33: 0.01 | NT33: -0.01782551629 | NU33: 0.9999998337 | NV33: 0.01 | NW33: -0.01299593202 | NX33: 0.9999947856 | NY33: 0.01 | NZ33: -0.008460635186 | OA33: 0.9998155231 | OB33: 0.01 | OC33: 0.01 | OF33: 0.01 | OG33: 0.01 | OH33: 0.01 | OI33: 0.01 | OJ33: 0.01 | OK33: 0.01 | OL33: 0.01 | OM33: 0.01 | OO33: No | OQ33: 0.01 | OR33: 0.01 | OS33: 0.01 | OT33: 0.01 | OU33: 0.01 | OV33: 0.01 | OW33: 0.01 | OX33: 0.01 | OZ33: No
F34: 7 | G34: -0.002953125913 | H34: 99.70468741 | I34: -0.005292410584 | J34: 0.9967665315 | K34: 0.01 | M34: 0.009940574346 | N34: 100.6958093 | O34: 100.9940574 | P34: -0.007826348778 | Q34: 0.9991604393 | R34: 0.01 | S34: -0.007134367764 | T34: 0.9993373679 | U34: 0.01 | V34: 0.01 | X34: 0.01757534862 | Y34: 102.4655732 | Z34: 102.7690632 | AA34: 101.7575349 | AB34: -0.01293114644 | AC34: 0.9999695797 | AD34: 0.01 | AE34: -0.011281772 | AF34: 0.9999667122 | AG34: 0.01 | AH34: -0.008225049803 | AI34: 0.9997665136 | AJ34: 0.01 | AK34: 0.01 | AM34: -0.01101467959 | AN34: 101.3369478 | AO34: 101.6370949 | AP34: 100.6367082 | AQ34: 98.89853204 | AR34: -0.0133423694 | AS34: 0.9998779987 | AT34: 0.01 | AU34: -0.0112741898 | AV34: 0.9998631609 | AW34: 0.01 | AX34: -0.007727847033 | AY34: 0.9990885756 | AZ34: 0.01 | BA34: -0.004140760059 | BB34: 0.9922059163 | BC34: 0.01 | BD34: 0.01 | BF34: 0.02413239114 | BG34: 103.7824506 | BH34: 104.089841 | BI34: 103.0653126 | BJ34: 101.2851901 | BK34: 102.4132391 | BL34: -0.02594150207 | BM34: 0.9999999582 | BN34: 0.01 | BO34: -0.02022460257 | BP34: 0.9999997731 | BQ34: 0.01 | BR34: -0.01413062525 | BS34: 0.9999905599 | BT34: 0.01 | BU34: -0.008808650166 | BV34: 0.9996407421 | BW34: 0.01 | BX34: -0.009161770164 | BY34: 0.9999104662 | BZ34: 0.01 | CA34: 0.01 | CC34: 0.01028799011 | CD34: 104.8501634 | CE34: 105.1607163 | CF34: 104.1256475 | CG34: 102.3272111 | CH34: 103.4668655 | CI34: 101.028799 | CJ34: -0.04425081724 | CK34: 1 | CL34: 0.01 | CM34: -0.03053572095 | CN34: 0.9999999996 | CO34: 0.01 | CP34: -0.02031411886 | CQ34: 0.9999997935 | CR34: 0.01 | CS34: -0.01265442227 | CT34: 0.9999605388 | CU34: 0.01 | CV34: -0.01244477584 | CW34: 0.9999903604 | CX34: 0.01 | CY34: -0.007183998587 | CZ34: 0.999367012 | DA34: 0.01 | DB34: 0.01 | DD34: 0.003342581493 | DE34: 105.2006337 | DF34: 105.5122245 | DG34: 104.473696 | DH34: 102.6692482 | DI34: 103.8127119 | DJ34: 101.366496 | DK34: 100.3342581 | DL34: -0.09200633663 | DM34: 1 | DN34: 0.01 | DO34: -0.04756112274 | DP34: 1 | DQ34: 0.01 | DR34: -0.02824565335 | DS34: 0.9999999958 | DT34: 0.01 | DU34: -0.01667312044 | DV34: 0.9999926995 | DW34: 0.01 | DX34: -0.01562542387 | DY34: 0.9999980058 | DZ34: 0.01 | EA34: -0.008944160008 | EB34: 0.9996818007 | EC34: 0.01 | ED34: -0.006191797356 | EE34: 0.998467145 | EF34: 0.01 | EG34: 0.01 | EI34: 0.01211279037 | EJ34: 106.4749069 | EK34: 106.790272 | EL34: 105.739164 | EM34: 103.9128593 | EN34: 105.0701736 | EO34: 102.5943271 | EP34: 101.549586 | EQ34: 101.211279 | ER34: -0.10790272 | ES34: 1 | ET34: 0.01 | EU34: -0.04869581992 | EV34: 1 | EW34: 0.01 | EX34: -0.02637619752 | EY34: 0.9999999725 | EZ34: 0.01 | FA34: -0.02267543388 | FB34: 0.9999999844 | FC34: 0.01 | FD34: -0.01318865424 | FE34: 0.9999761998 | FF34: 0.01 | FG34: -0.009249309975 | FH34: 0.9997588093 | FI34: 0.01 | FJ34: -0.007444684338 | FK34: 0.9995035908 | FL34: 0.01 | FM34: 0.01 | FO34: 0.01839352485 | FP34: 108.7545215 | FQ34: 107.6840799 | FR34: 105.824183 | FS34: 107.0027844 | FT34: 104.4813984 | FU34: 103.4174408 | FV34: 103.0729112 | FW34: 101.8393525 | FX34: -0.1168407992 | FY34: 1 | FZ34: 0.01 | GA34: -0.04912091508 | GB34: 1 | GC34: 0.01 | GD34: -0.036675948 | GE34: 1 | GF34: 0.01 | GG34: -0.02120349607 | GH34: 0.99999992 | GI34: 0.01 | GJ34: -0.01483488164 | GK34: 0.999995401 | GL34: 0.01 | GM34: -0.01178818535 | GN34: 0.9999804088 | GO34: 0.01 | GP34: -0.008341932122 | GQ34: 0.9997921757 | GR34: 0.01 | GS34: 0.01 | GU34: 0.0125276721 | GV34: 109.0331108 | GW34: 107.1499137 | GX34: 108.3432802 | GY34: 105.7903071 | GZ34: 104.7130206 | HA34: 104.3641748 | HB34: 103.1151625 | HC34: 101.2527672 | HD34: -0.1114991368 | HE34: 1 | HF34: 0.01 | HG34: -0.06171640099 | HH34: 1 | HI34: 0.01 | HJ34: -0.03263435709 | HK34: 1 | HL34: 0.01 | HM34: -0.02178255152 | HN34: 0.9999999576 | HO34: 0.01 | HP34: -0.01672834969 | HQ34: 0.9999994089 | HR34: 0.01 | HS34: -0.01185860417 | HT34: 0.9999818222 | HU34: 0.01 | HV34: -0.007503953157 | HW34: 0.9995305701 | HX34: 0.01 | HY34: 0.01 | IA34: -0.007647230387 | IB34: 106.3305136 | IC34: 107.5147542 | ID34: 104.9813043 | IE34: 103.912256 | IF34: 103.566078 | IG34: 102.3266171 | IH34: 100.478464 | II34: 99.23527696 | IJ34: -0.1151475417 | IK34: 1 | IL34: 0.01 | IM34: -0.04490652138 | IN34: 1 | IO34: 0.01 | IP34: -0.02637418671 | IQ34: 0.9999999725 | IR34: 0.01 | IS34: -0.01891519489 | IT34: 0.9999991367 | IU34: 0.01 | IV34: -0.01265323419 | IW34: 0.999960495 | IX34: 0.01 | IY34: -0.007464106619 | IZ34: 0.998867435 | JA34: 0.01 | JB34: -0.00462182423 | JC34: 0.9945469848 | JD34: 0.01 | JE34: 0.01 | JG34: 0.007712097067 | JH34: 108.3439184 | JI34: 105.7909303 | JJ34: 104.7136374 | JK34: 104.3647896 | JL34: 103.1157699 | JM34: 101.2533636 | JN34: 100.000589 | JO34: 100.7712097 | JP34: -0.09790930284 | JQ34: 1 | JR34: 0.01 | JS34: -0.04356818709 | JT34: 1 | JU34: 0.01 | JV34: -0.02788263201 | JW34: 0.9999999938 | JX34: 0.01 | JY34: -0.01778942475 | JZ34: 0.9999974164 | KA34: 0.01 | KB34: -0.01050672728 | KC34: 0.9997372498 | KD34: 0.01 | KE34: -0.006667648416 | KF34: 0.9978682537 | KG34: 0.01 | KH34: -0.006816013867 | KI34: 0.9991146651 | KJ34: 0.01 | KK34: 0.01 | KM34: -0.0006218413511 | KN34: 105.7251451 | KO34: 104.6485221 | KP34: 104.2998913 | KQ34: 103.0516482 | KR34: 101.1904001 | KS34: 99.93840455 | KT34: 100.708546 | KU34: 99.93781586 | KV34: -0.08648522148 | KW34: 1 | KX34: 0.01 | KY34: -0.04149945631 | KZ34: 1 | LA34: 0.01 | LB34: -0.02350549417 | LC34: 0.9999996039 | LD34: 0.01 | LE34: -0.01297600028 | LF34: 0.9998379288 | LG34: 0.01 | LH34: -0.007876809097 | LI34: 0.9980074707 | LJ34: 0.01 | LK34: -0.007847576669 | LL34: 0.9991752272 | LM34: 0.01 | LN34: -0.005625451236 | LO34: 0.9975323765 | LP34: 0.01 | LQ34: 0.01 | LS34: -0.01709493527 | LT34: 102.8595624 | LU34: 102.5168914 | LV34: 101.289987 | LW34: 99.46055677 | LX34: 98.22996399 | LY34: 98.98693993 | LZ34: 98.22938537 | MA34: 98.29050647 | MB34: -0.06516891372 | MC34: 1 | MD34: 0.01 | ME34: -0.02644993497 | MF34: 0.9999956601 | MG34: 0.01 | MH34: -0.01153518924 | MI34: 0.9979082199 | MJ34: 0.01 | MK34: -0.005574909979 | ML34: 0.9827842591 | MM34: 0.01 | MN34: -0.005973879853 | MO34: 0.992932892 | MP34: 0.01 | MQ34: -0.003715642286 | MR34: 0.9836149053 | MS34: 0.01 | MT34: -0.003272152104 | MU34: 0.9856872454 | MV34: 0.01 | MW34: 0.01 | MY34: 0.00298512247 | MZ34: 102.8229168 | NA34: 101.59235 | NB34: 99.75745871 | NC34: 98.52319246 | ND34: 99.28242807 | NE34: 98.52261212 | NF34: 98.58391567 | NG34: 100.2985122 | NH34: -0.05592350009 | NI34: 0.9999999994 | NJ34: 0.01 | NK34: -0.01878729357 | NL34: 0.9996159359 | NM34: 0.01 | NN34: -0.008410641548 | NO34: 0.9899048154 | NP34: 0.01 | NQ34: -0.008206070163 | NR34: 0.9958695243 | NS34: 0.01 | NT34: -0.005045224234 | NU34: 0.9876537732 | NV34: 0.01 | NW34: -0.004306526121 | NX34: 0.9886850017 | NY34: 0.01 | NZ34: -0.006140731781 | OA34: 0.99839854 | OB34: 0.01 | OC34: 0.01 | OF34: 0.01 | OG34: 0.01 | OH34: 0.01 | OI34: 0.01 | OJ34: 0.01 | OK34: 0.01 | OL34: 0.01 | OM34: 0.01 | OO34: No | OQ34: 0.01 | OR34: 0.01 | OS34: 0.01 | OT34: 0.01 | OU34: 0.01 | OV34: 0.01 | OW34: 0.01 | OX34: 0.01 | OZ34: No
F35: 8 | G35: 0.01251518317 | H35: 101.2515183 | I35: -0.007502169025 | J35: 0.9995297782 | K35: 0.01 | M35: -0.004312416385 | N35: 100.8148796 | O35: 99.56875836 | P35: -0.008024799351 | Q35: 0.9992896476 | R35: 0.01 | S35: -0.005098226231 | T35: 0.9962270402 | U35: 0.01 | V35: 0.01 | X35: 0.007494236154 | Y35: 101.5704101 | Z35: 100.3149502 | AA35: 100.7494236 | AB35: -0.01114082025 | AC35: 0.9998464269 | AD35: 0.01 | AE35: -0.007191583584 | AF35: 0.998588196 | AG35: 0.01 | AH35: -0.006784890879 | AI35: 0.9990895522 | AJ35: 0.01 | AK35: 0.01 | AM35: 0.01931103879 | AN35: 103.5318403 | AO35: 102.252136 | AP35: 102.6949996 | AQ35: 101.9311039 | AR35: -0.01882960064 | AS35: 0.99999906 | AT35: 0.01 | AU35: -0.01250427209 | AV35: 0.9999546241 | AW35: 0.01 | AX35: -0.01115833274 | AY35: 0.9999622048 | AZ35: 0.01 | BA35: -0.008473005541 | BB35: 0.9998178097 | BC35: 0.01 | BD35: 0.01 | BF35: 0.01194976748 | BG35: 104.7690217 | BH35: 103.4740253 | BI35: 103.922181 | BJ35: 103.1491569 | BK35: 101.1949767 | BL35: -0.02923007225 | BM35: 0.9999999985 | BN35: 0.01 | BO35: -0.01868506324 | BP35: 0.9999989155 | BQ35: 0.01 | BR35: -0.01584436202 | BS35: 0.9999984262 | BT35: 0.01 | BU35: -0.01191526145 | BV35: 0.9999828885 | BW35: 0.01 | BX35: -0.007421395355 | BY35: 0.9994926021 | BZ35: 0.01 | CA35: 0.01 | CC35: 0.007268253924 | CD35: 105.5305095 | CE35: 104.2261008 | CF35: 104.6775138 | CG35: 103.8988711 | CH35: 101.9304875 | CI35: 100.7268254 | CJ35: -0.04765254764 | CK35: 1 | CL35: 0.01 | CM35: -0.02742033595 | CN35: 0.9999999902 | CO35: 0.01 | CP35: -0.02169378453 | CQ35: 0.9999999532 | CR35: 0.01 | CS35: -0.01579774227 | CT35: 0.9999983445 | CU35: 0.01 | CV35: -0.009884145892 | CW35: 0.9998667485 | CX35: 0.01 | CY35: -0.006752607703 | CZ35: 0.9990628128 | DA35: 0.01 | DB35: 0.01 | DD35: 0.007201211708 | DE35: 106.2904571 | DF35: 104.976655 | DG35: 105.4313187 | DH35: 104.6470689 | DI35: 102.6645106 | DJ35: 101.4521806 | DK35: 100.7201212 | DL35: -0.1029045707 | DM35: 1 | DN35: 0.01 | DO35: -0.04488327501 | DP35: 1 | DQ35: 0.01 | DR35: -0.03143772916 | DS35: 0.9999999999 | DT35: 0.01 | DU35: -0.02161767225 | DV35: 0.9999999491 | DW35: 0.01 | DX35: -0.01332902111 | DY35: 0.9999792076 | DZ35: 0.01 | EA35: -0.009086967645 | EB35: 0.9997203169 | EC35: 0.01 | ED35: -0.006743030244 | EE35: 0.9990547423 | EF35: 0.01 | EG35: 0.01 | EI35: 0.004574652184 | EJ35: 106.7766989 | EK35: 105.4568867 | EL35: 105.9136304 | EM35: 105.1257928 | EN35: 103.134165 | EO35: 101.916289 | EP35: 101.1808807 | EQ35: 100.4574652 | ER35: -0.09456886686 | ES35: 1 | ET35: 0.01 | EU35: -0.0495681518 | EV35: 1 | EW35: 0.01 | EX35: -0.03041930948 | EY35: 0.9999999996 | EZ35: 0.01 | FA35: -0.01783541246 | FB35: 0.9999975272 | FC35: 0.01 | FD35: -0.01183257805 | FE35: 0.999916351 | FF35: 0.01 | FG35: -0.008634801155 | FH35: 0.9995808524 | FI35: 0.01 | FJ35: -0.006367807455 | FK35: 0.9986835722 | FL35: 0.01 | FM35: 0.01 | FO35: -0.003137949823 | FP35: 105.1259683 | FQ35: 105.5812787 | FR35: 104.7959134 | FS35: 102.8105351 | FT35: 101.5964808 | FU35: 100.8633802 | FV35: 100.1422347 | FW35: 99.68620502 | FX35: -0.09581278703 | FY35: 1 | FZ35: 0.01 | GA35: -0.0439795669 | GB35: 1 | GC35: 0.01 | GD35: -0.02270178383 | GE35: 0.9999991991 | GF35: 0.01 | GG35: -0.01399120206 | GH35: 0.9999271365 | GI35: 0.01 | GJ35: -0.009726760333 | GK35: 0.9995043842 | GL35: 0.01 | GM35: -0.006903724555 | GN35: 0.9982261399 | GO35: 0.01 | GP35: -0.005266007168 | GQ35: 0.9966975031 | GR35: 0.01 | GS35: 0.01 | GU35: 0.009278311022 | GV35: 106.5608946 | GW35: 105.7682425 | GX35: 103.7644433 | GY35: 102.5391246 | GZ35: 101.799222 | HA35: 101.0713855 | HB35: 100.6111246 | HC35: 100.9278311 | HD35: -0.09768242458 | HE35: 1 | HF35: 0.01 | HG35: -0.03882221635 | HH35: 0.9999999997 | HI35: 0.01 | HJ35: -0.02179708191 | HK35: 0.9999982696 | HL35: 0.01 | HM35: -0.01449805495 | HN35: 0.9999518263 | HO35: 0.01 | HP35: -0.01014277107 | HQ35: 0.9996454374 | HR35: 0.01 | HS35: -0.007685207721 | HT35: 0.9990557486 | HU35: 0.01 | HV35: -0.007039758717 | HW35: 0.9992772815 | HX35: 0.01 | HY35: 0.01 | IA35: -0.01444441367 | IB35: 104.2404822 | IC35: 102.2656267 | ID35: 101.058007 | IE35: 100.3287919 | IF35: 99.61146863 | IG35: 99.15785593 | IH35: 99.46998776 | II35: 98.55555863 | IJ35: -0.06265626727 | IK35: 1 | IL35: 0.01 | IM35: -0.0252900352 | IN35: 0.9999908077 | IO35: 0.01 | IP35: -0.01442930635 | IQ35: 0.9996176347 | IR35: 0.01 | IS35: -0.009028671577 | IT35: 0.9974898967 | IU35: 0.01 | IV35: -0.006315711857 | IW35: 0.9943012624 | IX35: 0.01 | IY35: -0.005783312932 | IZ35: 0.9958713213 | JA35: 0.01 | JB35: -0.003650798047 | JC35: 0.9889541061 | JD35: 0.01 | JE35: 0.01 | JG35: 0.01187649803 | JH35: 103.4801842 | JI35: 102.2582223 | JJ35: 101.5203466 | JK35: 100.794504 | JL35: 100.335504 | JM35: 100.6513429 | JN35: 99.72605353 | JO35: 101.1876498 | JP35: -0.06258222262 | JQ35: 1 | JR35: 0.01 | JS35: -0.02760173302 | JT35: 0.9999979923 | JU35: 0.01 | JV35: -0.01598168014 | JW35: 0.9998605418 | JX35: 0.01 | JY35: -0.01083876002 | JZ35: 0.9992318875 | KA35: 0.01 | KB35: -0.009302685745 | KC35: 0.999308505 | KD35: 0.01 | KE35: -0.006210089219 | KF35: 0.996982741 | KG35: 0.01 | KH35: -0.00741092829 | KI35: 0.9994875904 | KJ35: 0.01 | KK35: 0.01 | KM35: -0.0158871351 | KN35: 100.6336321 | KO35: 99.90747914 | KP35: 99.19316814 | KQ35: 98.7414603 | KR35: 99.05228139 | KS35: 98.14169225 | KT35: 99.58006794 | KU35: 98.41128649 | KV35: -0.03907479143 | KW35: 0.999994771 | KX35: 0.01 | KY35: -0.01596584069 | KZ35: 0.9984866721 | LA35: 0.01 | LB35: -0.009138201006 | LC35: 0.9928335135 | LD35: 0.01 | LE35: -0.007630703477 | LF35: 0.9942338357 | LG35: 0.01 | LH35: -0.004283384492 | LI35: 0.9810450635 | LJ35: 0.01 | LK35: -0.005966779901 | LL35: 0.9963876067 | LM35: 0.01 | LN35: -0.003444694986 | LO35: 0.9872668925 | LP35: 0.01 | LQ35: 0.01 | LS35: 0.006515875504 | LT35: 100.5584638 | LU35: 99.83949847 | LV35: 99.38484736 | LW35: 99.69769372 | LX35: 98.78117129 | LY35: 100.2289193 | LZ35: 99.05252218 | MA35: 100.6515876 | MB35: -0.03839498473 | MC35: 0.9999928596 | MD35: 0.01 | ME35: -0.01692423682 | MF35: 0.9990342093 | MG35: 0.01 | MH35: -0.01232564575 | MI35: 0.9986540405 | MJ35: 0.01 | MK35: -0.006952928235 | ML35: 0.9915892374 | MM35: 0.01 | MN35: -0.008457838531 | MO35: 0.9986905935 | MP35: 0.01 | MQ35: -0.005087536968 | MR35: 0.9932619248 | MS35: 0.01 | MT35: -0.006645125072 | MU35: 0.9989685031 | MV35: 0.01 | MW35: 0.01 | MY35: 0.01006383574 | MZ35: 100.8442668 | NA35: 100.3850401 | NB35: 100.7010349 | NC35: 99.77528878 | ND35: 101.2376066 | NE35: 100.0493705 | NF35: 101.6645286 | NG35: 101.0063836 | NH35: -0.04385040143 | NI35: 0.999999483 | NJ35: 0.01 | NK35: -0.02350517469 | NL35: 0.9999722584 | NM35: 0.01 | NN35: -0.01258429592 | NO35: 0.9988392624 | NP35: 0.01 | NQ35: -0.01309401661 | NR35: 0.9998520158 | NS35: 0.01 | NT35: -0.008098740988 | NU35: 0.9982995502 | NV35: 0.01 | NW35: -0.009440880991 | NX35: 0.9997978638 | NY35: 0.01 | NZ35: -0.007151976535 | OA35: 0.9993480291 | OB35: 0.01 | OC35: 0.01 | OF35: 0.01 | OG35: 0.01 | OH35: 0.01 | OI35: 0.01 | OJ35: 0.01 | OK35: 0.01 | OL35: 0.01 | OM35: 0.01 | OO35: No | OQ35: 0.01 | OR35: 0.01 | OS35: 0.01 | OT35: 0.01 | OU35: 0.01 | OV35: 0.01 | OW35: 0.01 | OX35: 0.01 | OZ35: No
F36: 9 | G36: -0.006048592137 | H36: 99.39514079 | I36: -0.004850201123 | J36: 0.995421258 | K36: 0.01 | M36: -0.01281162795 | N36: 98.12172722 | O36: 98.71883721 | P36: -0.003536212038 | Q36: 0.9817331164 | R36: 0.01 | S36: -0.00388405315 | T36: 0.9906258843 | U36: 0.01 | V36: 0.01 | X36: 0.01222517587 | Y36: 99.32128259 | Z36: 99.92569235 | AA36: 101.2225176 | AB36: -0.006642565189 | AC36: 0.9953842077 | AD36: 0.01 | AE36: -0.006542820586 | AF36: 0.9976536316 | AG36: 0.01 | AH36: -0.00746073941 | AI36: 0.9995110375 | AJ36: 0.01 | AK36: 0.01 | AM36: -0.001894867262 | AN36: 99.13308195 | AO36: 99.73634643 | AP36: 101.0307144 | AQ36: 99.81051327 | AR36: -0.007832704869 | AS36: 0.9948640756 | AT36: 0.01 | AU36: -0.007472692857 | AV36: 0.9973562746 | AW36: 0.01 | AX36: -0.00838452392 | AY36: 0.9994782451 | AZ36: 0.01 | BA36: -0.005443590391 | BB36: 0.9971373643 | BC36: 0.01 | BD36: 0.01 | BF36: -0.01814836543 | BG36: 97.33397855 | BH36: 97.92629477 | BI36: 99.19717203 | BJ36: 97.9991156 | BK36: 98.18516346 | BL36: -0.004446595167 | BM36: 0.9491009517 | BN36: 0.01 | BO36: -0.004815736916 | BP36: 0.9751854744 | BQ36: 0.01 | BR36: -0.006394344056 | BS36: 0.99458059 | BT36: 0.01 | BU36: -0.003331859342 | BV36: 0.9793686418 | BW36: 0.01 | BX36: -0.003121662081 | BY36: 0.9841744672 | BZ36: 0.01 | CA36: 0.01 | CC36: 0.006518195369 | CD36: 97.96842044 | CE36: 98.56459749 | CF36: 99.84375858 | CG36: 98.63789299 | CH36: 98.82515353 | CI36: 100.6518195 | CJ36: -0.009842102191 | CK36: 0.9820911186 | CL36: 0.01 | CM36: -0.008548658292 | CN36: 0.9905296608 | CO36: 0.01 | CP36: -0.009609396438 | CQ36: 0.9982603682 | CR36: 0.01 | CS36: -0.005275785973 | CT36: 0.9892115788 | CU36: 0.01 | CV36: -0.004708589224 | CW36: 0.9912991588 | CX36: 0.01 | CY36: -0.006645456481 | CZ36: 0.9989688068 | DA36: 0.01 | DB36: 0.01 | DD36: 0.006342565063 | DE36: 98.58979152 | DF36: 99.18974986 | DG36: 100.4770241 | DH36: 99.26351024 | DI36: 99.4519585 | DJ36: 101.2902103 | DK36: 100.6342565 | DL36: -0.02589791519 | DM36: 0.9989985148 | DN36: 0.01 | DO36: -0.0159487493 | DP36: 0.9984747392 | DQ36: 0.01 | DR36: -0.0149234137 | DS36: 0.999720574 | DT36: 0.01 | DU36: -0.008158775601 | DV36: 0.9957527468 | DW36: 0.01 | DX36: -0.006903917001 | DY36: 0.9961137604 | DZ36: 0.01 | EA36: -0.008817017085 | EB36: 0.9996434134 | EC36: 0.01 | ED36: -0.006620366438 | EE36: 0.9989455799 | EF36: 0.01 | EG36: 0.01 | EI36: -0.001537292878 | EJ36: 98.43823013 | EK36: 99.03726616 | EL36: 100.3225615 | EM36: 99.11091315 | EN36: 99.29907171 | EO36: 101.1344975 | EP36: 100.4795522 | EQ36: 99.84627071 | ER36: -0.03037266164 | ES36: 0.999797854 | ET36: 0.01 | EU36: -0.02161280748 | EV36: 0.9999162641 | EW36: 0.01 | EX36: -0.01036971051 | EY36: 0.9961173976 | EZ36: 0.01 | FA36: -0.008247679283 | FB36: 0.9959698791 | FC36: 0.01 | FD36: -0.01026899506 | FE36: 0.999680212 | FF36: 0.01 | FG36: -0.007465920301 | FH36: 0.9988691106 | FI36: 0.01 | FJ36: -0.005494672446 | FK36: 0.9972537112 | FL36: 0.01 | FM36: 0.01 | FO36: 0.01276686815 | FP36: 100.3016619 | FQ36: 101.6033664 | FR36: 100.3762491 | FS36: 100.5668099 | FT36: 102.4256683 | FU36: 101.7623614 | FV36: 101.1209949 | FW36: 101.2766868 | FX36: -0.05603366412 | FY36: 0.9999999995 | FZ36: 0.01 | GA36: -0.02188124557 | GB36: 0.9999281125 | GC36: 0.01 | GD36: -0.01522269957 | GE36: 0.9997696939 | GF36: 0.01 | GG36: -0.01606417082 | GH36: 0.9999873907 | GI36: 0.01 | GJ36: -0.01152472275 | GK36: 0.9998900741 | GL36: 0.01 | GM36: -0.008534991477 | GN36: 0.9995424106 | GO36: 0.01 | GP36: -0.007538124022 | GQ36: 0.9995455008 | GR36: 0.01 | GS36: 0.01 | GU36: 0.009572752958 | GV36: 102.5759903 | GW36: 101.3371261 | GX36: 101.5295111 | GY36: 103.4061639 | GZ36: 102.7365073 | HA36: 102.0890012 | HB36: 102.2461835 | HC36: 100.9572753 | HD36: -0.05337126149 | HE36: 0.9999999973 | HF36: 0.01 | HG36: -0.02764755548 | HH36: 0.9999980539 | HI36: 0.01 | HJ36: -0.02468721316 | HK36: 0.9999998641 | HL36: 0.01 | HM36: -0.0168412683 | HN36: 0.9999937378 | HO36: 0.01 | HP36: -0.01217800238 | HQ36: 0.9999387624 | HR36: 0.01 | HS36: -0.01041030586 | HT36: 0.9999199122 | HU36: 0.01 | HV36: -0.007081821851 | HW36: 0.9993045904 | HX36: 0.01 | HY36: 0.01 | IA36: 0.01586256963 | IB36: 102.9445934 | IC36: 103.14003 | ID36: 105.0464514 | IE36: 104.3661723 | IF36: 103.7083951 | IG36: 103.8680707 | IH36: 102.5587171 | II36: 101.586257 | IJ36: -0.07140030035 | IK36: 1 | IL36: 0.01 | IM36: -0.04523225711 | IN36: 1 | IO36: 0.01 | IP36: -0.02788724107 | IQ36: 0.9999999939 | IR36: 0.01 | IS36: -0.0192709877 | IT36: 0.9999993956 | IU36: 0.01 | IV36: -0.01573614145 | IW36: 0.9999982303 | IX36: 0.01 | IY36: -0.01093119517 | IZ36: 0.9999523644 | JA36: 0.01 | JB36: -0.00798036709 | JC36: 0.9997029375 | JD36: 0.01 | JE36: 0.01 | JG36: 0.002465372084 | JH36: 103.3943086 | JI36: 105.30543 | JJ36: 104.6234738 | JK36: 103.9640749 | JL36: 104.1241442 | JM36: 102.8115625 | JN36: 101.8367049 | JO36: 100.2465372 | JP36: -0.09305430012 | JQ36: 1 | JR36: 0.01 | JS36: -0.04311736885 | JT36: 1 | JU36: 0.01 | JV36: -0.0265469162 | JW36: 0.9999999767 | JX36: 0.01 | JY36: -0.02031036041 | JZ36: 0.9999997926 | KA36: 0.01 | KB36: -0.01362312501 | KC36: 0.9999843816 | KD36: 0.01 | KE36: -0.009727841475 | KF36: 0.9998454607 | KG36: 0.01 | KH36: -0.006066481726 | KI36: 0.9982937881 | KJ36: 0.01 | KK36: 0.01 | KM36: -0.001720889805 | KN36: 105.124211 | KO36: 104.4434283 | KP36: 103.7851641 | KQ36: 103.944958 | KR36: 102.6346351 | KS36: 101.6614551 | KT36: 100.074024 | KU36: 99.82791102 | KV36: -0.084434283 | KW36: 1 | KX36: 0.01 | KY36: -0.03892582072 | KZ36: 0.9999999997 | LA36: 0.01 | LB36: -0.02648319329 | LC36: 0.9999999752 | LD36: 0.01 | LE36: -0.01658658783 | LF36: 0.9999921032 | LG36: 0.01 | LH36: -0.01132291028 | LI36: 0.9998688358 | LJ36: 0.01 | LK36: -0.006790039941 | LL36: 0.998061243 | LM36: 0.01 | LN36: -0.005468444314 | LO36: 0.9971945168 | LP36: 0.01 | LQ36: 0.01 | LS36: -0.001741736994 | LT36: 104.2615153 | LU36: 103.6043977 | LV36: 103.7639132 | LW36: 102.4558726 | LX36: 101.4843876 | LY36: 99.89972133 | LZ36: 99.65403705 | MA36: 99.8258263 | MB36: -0.07604397684 | MC36: 1 | MD36: 0.01 | ME36: -0.03881956605 | MF36: 0.9999999997 | MG36: 0.01 | MH36: -0.02151957531 | MI36: 0.9999978188 | MJ36: 0.01 | MK36: -0.01371096905 | ML36: 0.9999087896 | MM36: 0.01 | MN36: -0.00779944267 | MO36: 0.997895397 | MP36: 0.01 | MQ36: -0.006090061756 | MR36: 0.9967011828 | MS36: 0.01 | MT36: -0.005465466144 | MU36: 0.9971877231 | MV36: 0.01 | MW36: 0.01 | MY36: 0.03000761532 | MZ36: 106.7133186 | NA36: 106.8776208 | NB36: 105.530329 | NC36: 104.5296921 | ND36: 102.8974737 | NE36: 102.6444171 | NF36: 102.8213613 | NG36: 103.0007615 | NH36: -0.108776208 | NI36: 1 | NJ36: 0.01 | NK36: -0.04765164502 | NL36: 1 | NM36: 0.01 | NN36: -0.02843230695 | NO36: 0.9999999965 | NP36: 0.01 | NQ36: -0.01724368436 | NR36: 0.9999956812 | NS36: 0.01 | NT36: -0.01328883413 | NU36: 0.9999783855 | NV36: 0.01 | NW36: -0.01136893549 | NX36: 0.9999695832 | NY36: 0.01 | NZ36: -0.0100010879 | OA36: 0.9999638997 | OB36: 0.01 | OC36: 0.01 | OF36: 0.01 | OG36: 0.01 | OH36: 0.01 | OI36: 0.01 | OJ36: 0.01 | OK36: 0.01 | OL36: 0.01 | OM36: 0.01 | OO36: No | OQ36: 0.01 | OR36: 0.01 | OS36: 0.01 | OT36: 0.01 | OU36: 0.01 | OV36: 0.01 | OW36: 0.01 | OX36: 0.01 | OZ36: No
F37: 10 | G37: -0.0005861336987 | H37: 99.94138663 | I37: -0.005630552329 | J37: 0.9975427085 | K37: 0.01 | M37: 0.00483041399 | N37: 100.4241449 | O37: 100.4830414 | P37: -0.007373574837 | Q37: 0.9987808477 | R37: 0.01 | S37: -0.006404344856 | T37: 0.998724839 | U37: 0.01 | V37: 0.01 | X37: -0.004446062906 | Y37: 99.97765284 | Z37: 100.0362875 | AA37: 99.55539371 | AB37: -0.007955305673 | AC37: 0.9981156171 | AD37: 0.01 | AE37: -0.006727145793 | AF37: 0.9979641468 | AG37: 0.01 | AH37: -0.005079133871 | AI37: 0.9961698644 | AJ37: 0.01 | AK37: 0.01 | AM37: 0.02133423151 | AN37: 102.1105992 | AO37: 102.1704848 | AP37: 101.6793315 | AQ37: 102.1334232 | AR37: -0.01527649807 | AS37: 0.999974965 | AT37: 0.01 | AU37: -0.01234096958 | AV37: 0.9999472451 | AW37: 0.01 | AX37: -0.009465552545 | AY37: 0.9998024402 | AZ37: 0.01 | BA37: -0.008762033073 | BB37: 0.9998642578 | BC37: 0.01 | BD37: 0.01 | BF37: 0.01594395563 | BG37: 103.7386461 | BH37: 103.7994865 | BI37: 103.3005023 | BJ37: 103.7618339 | BK37: 101.5943956 | BL37: -0.02579548697 | BM37: 0.9999999519 | BN37: 0.01 | BO37: -0.01949871617 | BP37: 0.9999995202 | BQ37: 0.01 | BR37: -0.01460100455 | BS37: 0.999994145 | BT37: 0.01 | BU37: -0.01293638986 | BV37: 0.999994423 | BW37: 0.01 | BX37: -0.007991993661 | BY37: 0.9997062911 | BZ37: 0.01 | CA37: 0.01 | CC37: -0.014739945 | CD37: 102.2095442 | CE37: 102.2694877 | CF37: 101.7778586 | CG37: 102.2323902 | CH37: 100.0968998 | CI37: 98.5260055 | CJ37: -0.03104772077 | CK37: 0.9999998283 | CL37: 0.01 | CM37: -0.02089829249 | CN37: 0.9999963665 | CO37: 0.01 | CP37: -0.01444464639 | CQ37: 0.9999496563 | CR37: 0.01 | CS37: -0.01246478038 | CT37: 0.9999529347 | CU37: 0.01 | CV37: -0.006828166266 | CW37: 0.998118035 | CX37: 0.01 | CY37: -0.003608579285 | CZ37: 0.9886252666 | DA37: 0.01 | DB37: 0.01 | DD37: 0.01003077218 | DE37: 103.2347848 | DF37: 103.2953297 | DG37: 102.7987691 | DH37: 103.25786 | DI37: 101.100949 | DJ37: 99.51429741 | DK37: 101.0030772 | DL37: -0.07234784805 | DM37: 1 | DN37: 0.01 | DO37: -0.03647664839 | DP37: 0.9999999978 | DQ37: 0.01 | DR37: -0.02266256356 | DS37: 0.9999991715 | DT37: 0.01 | DU37: -0.01814465002 | DV37: 0.9999981622 | DW37: 0.01 | DX37: -0.01020189791 | DY37: 0.9996621426 | DZ37: 0.01 | EA37: -0.005857162358 | EB37: 0.9960865918 | EC37: 0.01 | ED37: -0.007147253169 | EE37: 0.999345185 | EF37: 0.01 | EG37: 0.01 | EI37: 0.01109706054 | EJ37: 104.3803875 | EK37: 104.4416042 | EL37: 103.9395332 | EM37: 104.4037187 | EN37: 102.2228723 | EO37: 100.6186136 | EP37: 102.1239145 | EQ37: 101.1097061 | ER37: -0.08441604205 | ES37: 1 | ET37: 0.01 | EU37: -0.03969766615 | EV37: 0.9999999999 | EW37: 0.01 | EX37: -0.02801239577 | EY37: 0.9999999946 | EZ37: 0.01 | FA37: -0.01555718077 | FB37: 0.9999803397 | FC37: 0.01 | FD37: -0.009237227195 | FE37: 0.9992725719 | FF37: 0.01 | FG37: -0.01020652413 | FH37: 0.9999022736 | FI37: 0.01 | FJ37: -0.007299580077 | FK37: 0.999431365 | FL37: 0.01 | FM37: 0.01 | FO37: 0.0002568518423 | FP37: 104.4684302 | FQ37: 103.9662303 | FR37: 104.430535 | FS37: 102.2491284 | FT37: 100.6444577 | FU37: 102.1501452 | FV37: 101.1356763 | FW37: 100.0256852 | FX37: -0.07966230291 | FY37: 1 | FZ37: 0.01 | GA37: -0.04215267509 | GB37: 1 | GC37: 0.01 | GD37: -0.02083042814 | GE37: 0.9999961608 | GF37: 0.01 | GG37: -0.01161114418 | GH37: 0.9995534929 | GI37: 0.01 | GJ37: -0.01230029039 | GK37: 0.9999452381 | GL37: 0.01 | GM37: -0.008559460446 | GN37: 0.999552126 | GO37: 0.01 | GP37: -0.005750978835 | GQ37: 0.9977755332 | GR37: 0.01 | GS37: 0.01 | GU37: 0.008922424841 | GV37: 104.8938612 | GW37: 105.3623086 | GX37: 103.1614386 | GY37: 101.5424503 | GZ37: 103.0615722 | HA37: 102.0380517 | HB37: 100.9181568 | HC37: 100.8922425 | HD37: -0.09362308618 | HE37: 1 | HF37: 0.01 | HG37: -0.03580719302 | HH37: 0.9999999961 | HI37: 0.01 | HJ37: -0.01847483428 | HK37: 0.9999760825 | HL37: 0.01 | HM37: -0.01765393047 | HN37: 0.9999970618 | HO37: 0.01 | HP37: -0.01207610348 | HQ37: 0.9999328217 | HR37: 0.01 | HS37: -0.008196928071 | HT37: 0.9993865982 | HU37: 0.01 | HV37: -0.006988917834 | HW37: 0.9992429555 | HX37: 0.01 | HY37: 0.01 | IA37: -0.003436756938 | IB37: 105.000204 | IC37: 102.8068978 | ID37: 101.1934736 | IE37: 102.7073746 | IF37: 101.6873718 | IG37: 100.5713257 | IH37: 100.5455004 | II37: 99.65632431 | IJ37: -0.06806897815 | IK37: 1 | IL37: 0.01 | IM37: -0.02596736781 | IN37: 0.999994051 | IO37: 0.01 | IP37: -0.02235791539 | IQ37: 0.9999989236 | IR37: 0.01 | IS37: -0.01421842939 | IT37: 0.9999393999 | IU37: 0.01 | IV37: -0.009142651333 | IW37: 0.9992176088 | IX37: 0.01 | IY37: -0.00757583395 | IZ37: 0.9989665168 | JA37: 0.01 | JB37: -0.005223320437 | JC37: 0.9965830976 | JD37: 0.01 | JE37: 0.01 | JG37: 0.01159924505 | JH37: 103.9993802 | JI37: 102.3672415 | JJ37: 103.8987026 | JK37: 102.8668685 | JL37: 101.7378771 | JM37: 101.7117523 | JN37: 100.8122624 | JO37: 101.1599245 | JP37: -0.0636724146 | JQ37: 1 | JR37: 0.01 | JS37: -0.03949351311 | JT37: 0.9999999998 | JU37: 0.01 | JV37: -0.02288956166 | JW37: 0.9999993194 | JX37: 0.01 | JY37: -0.0143446928 | JZ37: 0.9999453449 | KA37: 0.01 | KB37: -0.01142350453 | KC37: 0.9998798618 | KD37: 0.01 | KE37: -0.008020437388 | KF37: 0.9992870166 | KG37: 0.01 | KH37: -0.007371320722 | KI37: 0.9994682082 | KJ37: 0.01 | KK37: 0.01 | KM37: 0.004589339142 | KN37: 102.8370394 | KO37: 104.375529 | KP37: 103.3389594 | KQ37: 102.2047867 | KR37: 102.178542 | KS37: 101.2749241 | KT37: 101.6241817 | KU37: 100.4589339 | KV37: -0.08375529005 | KW37: 1 | KX37: 0.01 | KY37: -0.03669479723 | KZ37: 0.9999999981 | LA37: 0.01 | LB37: -0.02068262247 | LC37: 0.9999956736 | LD37: 0.01 | LE37: -0.01544635498 | LF37: 0.9999783634 | LG37: 0.01 | LH37: -0.01054984819 | LI37: 0.99974652 | LJ37: 0.01 | LK37: -0.009373636177 | LL37: 0.9997848825 | LM37: 0.01 | LN37: -0.006369905592 | LO37: 0.9986859746 | LP37: 0.01 | LQ37: 0.01 | LS37: 0.006317497409 | LT37: 105.0349211 | LU37: 103.9918031 | LV37: 102.8504652 | LW37: 102.8240547 | LX37: 101.9147282 | LY37: 102.2661922 | LZ37: 101.093583 | MA37: 100.6317497 | MB37: -0.07991803054 | MC37: 1 | MD37: 0.01 | ME37: -0.03425232608 | MF37: 0.9999999858 | MG37: 0.01 | MH37: -0.02274684889 | MI37: 0.9999992297 | MJ37: 0.01 | MK37: -0.01478682041 | ML37: 0.9999621093 | MM37: 0.01 | MN37: -0.01253238442 | MO37: 0.9999557917 | MP37: 0.01 | MQ37: -0.008489304948 | MR37: 0.9995237461 | MS37: 0.01 | MT37: -0.006616785344 | MU37: 0.9989422259 | MV37: 0.01 | MW37: 0.01 | MY37: 0.01073134726 | MZ37: 105.1077752 | NA37: 103.9541893 | NB37: 103.9274953 | NC37: 103.0084105 | ND37: 103.3636462 | NE37: 102.1784533 | NF37: 101.711664 | NG37: 101.0731347 | NH37: -0.07954189274 | NI37: 1 | NJ37: 0.01 | NK37: -0.03963747653 | NL37: 0.9999999999 | NM37: 0.01 | NN37: -0.02336136835 | NO37: 0.99999955 | NP37: 0.01 | NQ37: -0.01840911558 | NR37: 0.9999985783 | NS37: 0.01 | NT37: -0.01235690663 | NU37: 0.9999480122 | NV37: 0.01 | NW37: -0.009519439989 | NX37: 0.9998121014 | NY37: 0.01 | NZ37: -0.007247335323 | OA37: 0.9994030645 | OB37: 0.01 | OC37: 0.01 | OF37: 0.01 | OG37: 0.01 | OH37: 0.01 | OI37: 0.01 | OJ37: 0.01 | OK37: 0.01 | OL37: 0.01 | OM37: 0.01 | OO37: No | OQ37: 0.01 | OR37: 0.01 | OS37: 0.01 | OT37: 0.01 | OU37: 0.01 | OV37: 0.01 | OW37: 0.01 | OX37: 0.01 | OZ37: No
F38: 11 | G38: 0.005051302214 | H38: 100.5051302 | I38: -0.006435900316 | J38: 0.9987595233 | K38: 0.01 | M38: -0.00195184287 | N38: 100.30896 | O38: 99.80481571 | P38: -0.007181599999 | Q38: 0.9985768636 | R38: 0.01 | S38: -0.005435451019 | T38: 0.9971184205 | U38: 0.01 | V38: 0.01 | X38: 0.01317963239 | Y38: 101.6309952 | Z38: 101.1202065 | AA38: 101.3179632 | AB38: -0.01126199043 | AC38: 0.9998617044 | AD38: 0.01 | AE38: -0.008533677491 | AF38: 0.9995418834 | AG38: 0.01 | AH38: -0.007597090341 | AI38: 0.9995702351 | AJ38: 0.01 | AK38: 0.01 | AM38: -0.00785144988 | AN38: 100.8330446 | AO38: 100.3262663 | AP38: 100.5224703 | AQ38: 99.21485501 | AR38: -0.01208261138 | AS38: 0.9996828676 | AT38: 0.01 | AU38: -0.008652532523 | AV38: 0.9988664116 | AW38: 0.01 | AX38: -0.007537450547 | AY38: 0.9989334116 | AZ38: 0.01 | BA38: -0.004592650017 | BB38: 0.9944252286 | BC38: 0.01 | BD38: 0.01 | BF38: 0.01029220979 | BG38: 101.8708394 | BH38: 101.3588452 | BI38: 101.5570687 | BJ38: 100.2359951 | BK38: 101.029221 | BL38: -0.01956946467 | BM38: 0.9999895735 | BN38: 0.01 | BO38: -0.0133971131 | BP38: 0.9998831187 | BQ38: 0.01 | BR38: -0.01111413736 | BS38: 0.9998428568 | BT38: 0.01 | BU38: -0.007059991857 | BV38: 0.9984319999 | BW38: 0.01 | BX38: -0.007184601398 | BY38: 0.9993673644 | BZ38: 0.01 | CA38: 0.01 | CC38: 0.004361564935 | CD38: 102.3151557 | CE38: 101.8009284 | CF38: 102.0000164 | CG38: 100.6731809 | CH38: 101.4698665 | CI38: 100.4361565 | CJ38: -0.03157577841 | CK38: 0.9999998846 | CL38: 0.01 | CM38: -0.01933642809 | CN38: 0.9999875218 | CO38: 0.01 | CP38: -0.01500004108 | CQ38: 0.9999683299 | CR38: 0.01 | CS38: -0.009346361831 | CT38: 0.9993315624 | CU38: 0.01 | CV38: -0.009116444144 | CW38: 0.9997277058 | CX38: 0.01 | CY38: -0.006337366419 | CZ38: 0.9986482625 | DA38: 0.01 | DB38: 0.01 | DD38: -0.007637645723 | DE38: 101.5337088 | DF38: 101.023409 | DG38: 101.2209764 | DH38: 99.90427483 | DI38: 100.6948756 | DJ38: 99.66906071 | DK38: 99.23623543 | DL38: -0.0553370877 | DM38: 0.9999999992 | DN38: 0.01 | DO38: -0.025117045 | DP38: 0.9999897417 | DQ38: 0.01 | DR38: -0.01740325481 | DS38: 0.9999478485 | DT38: 0.01 | DU38: -0.009760687065 | DV38: 0.9984220877 | DW38: 0.01 | DX38: -0.00938975119 | DY38: 0.9993537643 | DZ38: 0.01 | EA38: -0.006115101187 | EB38: 0.9967617985 | EC38: 0.01 | ED38: -0.004623193468 | EE38: 0.9945526407 | EF38: 0.01 | EG38: 0.01 | EI38: -0.009203327243 | EJ38: 100.5992608 | EK38: 100.0936575 | EL38: 100.2894067 | EM38: 98.98482309 | EN38: 99.7681477 | EO38: 98.75177373 | EP38: 98.32293188 | EQ38: 99.07966728 | ER38: -0.04093657508 | ES38: 0.9999978223 | ET38: 0.01 | EU38: -0.02144703336 | EV38: 0.999908054 | EW38: 0.01 | EX38: -0.009949410306 | EY38: 0.9951916295 | EZ38: 0.01 | FA38: -0.009420369257 | FB38: 0.9980371666 | FC38: 0.01 | FD38: -0.005503547461 | FE38: 0.9905795655 | FF38: 0.01 | FG38: -0.003871553131 | FH38: 0.9851127704 | FI38: 0.01 | FJ38: -0.00439952468 | FK38: 0.9935565656 | FL38: 0.01 | FM38: 0.01 | FO38: 0.01843088727 | FP38: 101.9384724 | FQ38: 102.1378294 | FR38: 100.8092012 | FS38: 101.6069632 | FT38: 100.5718565 | FU38: 100.1351108 | FV38: 100.9057935 | FW38: 101.8430887 | FX38: -0.0613782942 | FY38: 1 | FZ38: 0.01 | GA38: -0.02404600604 | GB38: 0.9999800213 | GC38: 0.01 | GD38: -0.01868987729 | GE38: 0.9999796269 | GF38: 0.01 | GG38: -0.01142964135 | GH38: 0.9994917655 | GI38: 0.01 | GJ38: -0.008270221504 | GK38: 0.998497919 | GL38: 0.01 | GM38: -0.008176322423 | GN38: 0.999375673 | GO38: 0.01 | GP38: -0.008347269609 | GQ38: 0.9997932822 | GR38: 0.01 | GS38: 0.01 | GU38: 0.005453665345 | GV38: 102.694855 | GW38: 101.3589809 | GX38: 102.1610936 | GY38: 101.1203418 | GZ38: 100.6812141 | HA38: 101.4560999 | HB38: 102.3985069 | HC38: 100.5453665 | HD38: -0.05358980854 | HE38: 0.9999999977 | HF38: 0.01 | HG38: -0.0308054678 | HH38: 0.9999997944 | HI38: 0.01 | HJ38: -0.01706780596 | HK38: 0.9999338819 | HL38: 0.01 | HM38: -0.01170303534 | HN38: 0.9995820228 | HO38: 0.01 | HP38: -0.01091219976 | HQ38: 0.9998132094 | HR38: 0.01 | HS38: -0.01066417808 | HT38: 0.9999377076 | HU38: 0.01 | HV38: -0.006493380764 | HW38: 0.9988204932 | HX38: 0.01 | HY38: 0.01 | IA38: 0.0008658067872 | IB38: 101.4467381 | IC38: 102.2495453 | ID38: 101.2078925 | IE38: 100.7683846 | IF38: 101.5439413 | IG38: 102.4871642 | IH38: 100.6324194 | II38: 100.0865807 | IJ38: -0.06249545328 | IK38: 1 | IL38: 0.01 | IM38: -0.02603946233 | IN38: 0.9999943232 | IO38: 0.01 | IP38: -0.01589461538 | IQ38: 0.9998521588 | IR38: 0.01 | IS38: -0.01385985316 | IT38: 0.9999190183 | IU38: 0.01 | IV38: -0.01297432834 | IW38: 0.9999707997 | IX38: 0.01 | IY38: -0.007720698992 | IZ38: 0.9990831467 | JA38: 0.01 | JB38: -0.005837972398 | JC38: 0.9979310812 | JD38: 0.01 | JE38: 0.01 | JG38: 0.01003593333 | JH38: 103.2757149 | JI38: 102.2236081 | JJ38: 101.7796894 | JK38: 102.5630295 | JL38: 103.5157185 | JM38: 101.6423596 | JN38: 101.0910429 | JO38: 101.0035933 | JP38: -0.06223608128 | JQ38: 1 | JR38: 0.01 | JS38: -0.02889844702 | JT38: 0.9999991824 | JU38: 0.01 | JV38: -0.02187676496 | JW38: 0.9999983816 | JX38: 0.01 | JY38: -0.0187892963 | JZ38: 0.9999990217 | KA38: 0.01 | KB38: -0.01128471929 | KC38: 0.9998644065 | KD38: 0.01 | KE38: -0.008485071549 | KF38: 0.9995219814 | KG38: 0.01 | KH38: -0.007147990475 | KI38: 0.9993456297 | KJ38: 0.01 | KK38: 0.01 | KM38: 0.03195090081 | KN38: 105.4897445 | KO38: 105.0316422 | KP38: 105.8400107 | KQ38: 106.823139 | KR38: 104.8899246 | KS38: 104.3209928 | KT38: 104.2307491 | KU38: 103.1950901 | KV38: -0.09031642164 | KW38: 1 | KX38: 0.01 | KY38: -0.04920005334 | KZ38: 1 | LA38: 0.01 | LB38: -0.03607712991 | LC38: 1 | LD38: 0.01 | LE38: -0.0222248115 | LF38: 0.9999999741 | LG38: 0.01 | LH38: -0.01664198563 | LI38: 0.9999993485 | LJ38: 0.01 | LK38: -0.01371791521 | LL38: 0.9999977294 | LM38: 0.01 | LN38: -0.01027870012 | LO38: 0.9999735425 | LP38: 0.01 | LQ38: 0.01 | LS38: 0.007024961535 | LT38: 105.7694854 | LU38: 106.5835327 | LV38: 107.5735674 | LW38: 105.6267723 | LX38: 105.0538438 | LY38: 104.9629661 | LZ38: 103.9200316 | MA38: 100.7024962 | MB38: -0.1058353267 | MC38: 1 | MD38: 0.01 | ME38: -0.05786783708 | MF38: 1 | MG38: 0.01 | MH38: -0.03208924095 | MI38: 0.9999999999 | MJ38: 0.01 | MK38: -0.02263460944 | ML38: 0.9999999837 | MM38: 0.01 | MN38: -0.01792593226 | MO38: 0.9999998523 | MP38: 0.01 | MQ38: -0.0132000527 | MR38: 0.9999958652 | MS38: 0.01 | MT38: -0.006717851648 | MU38: 0.9990332201 | MV38: 0.01 | MW38: 0.01 | MY38: 0.006747920635 | MZ38: 107.3027499 | NA38: 108.2994653 | NB38: 106.3395334 | NC38: 105.7627388 | ND38: 105.6712479 | NE38: 104.6212757 | NF38: 101.3820286 | NG38: 100.6747921 | NH38: -0.1229946531 | NI38: 1 | NJ38: 0.01 | NK38: -0.0516976668 | NL38: 1 | NM38: 0.01 | NN38: -0.03254246259 | NO38: 1 | NP38: 0.01 | NQ38: -0.02417811973 | NR38: 0.9999999973 | NS38: 0.01 | NT38: -0.01724255149 | NU38: 0.9999996714 | NV38: 0.01 | NW38: -0.008970047676 | NX38: 0.99968913 | NY38: 0.01 | NZ38: -0.006678274376 | OA38: 0.9989984793 | OB38: 0.01 | OC38: 0.01 | OF38: 0.01 | OG38: 0.01 | OH38: 0.01 | OI38: 0.01 | OJ38: 0.01 | OK38: 0.01 | OL38: 0.01 | OM38: 0.01 | OO38: No | OQ38: 0.01 | OR38: 0.01 | OS38: 0.01 | OT38: 0.01 | OU38: 0.01 | OV38: 0.01 | OW38: 0.01 | OX38: 0.01 | OZ38: No
F39: 12 | G39: -0.004038259868 | H39: 99.59617401 | I39: -0.005137391447 | J39: 0.996341939 | K39: 0.01 | M39: 0.005732389999 | N39: 100.1670981 | O39: 100.573239 | P39: -0.006945163542 | Q39: 0.998283 | R39: 0.01 | S39: -0.006533198571 | T39: 0.9988611061 | U39: 0.01 | V39: 0.01 | X39: 0.00793362048 | Y39: 100.9617859 | Z39: 101.3711489 | AA39: 100.793362 | AB39: -0.009923571732 | AC39: 0.9995765787 | AD39: 0.01 | AE39: -0.008951914848 | AF39: 0.9996840129 | AG39: 0.01 | AH39: -0.006847660069 | AI39: 0.999139546 | AJ39: 0.01 | AK39: 0.01 | AM39: -0.01300392333 | AN39: 99.64888654 | AO39: 100.0529263 | AP39: 99.4826529 | AQ39: 98.69960767 | AR39: -0.009122216359 | AS39: 0.9976318584 | AT39: 0.01 | AU39: -0.008105852521 | AV39: 0.9983082293 | AW39: 0.01 | AX39: -0.005804421493 | AY39: 0.995933909 | AZ39: 0.01 | BA39: -0.003856582382 | BB39: 0.9904412401 | BC39: 0.01 | BD39: 0.01 | BF39: 0.005916013394 | BG39: 100.2384107 | BH39: 100.6448407 | BI39: 100.0711936 | BJ39: 99.28351587 | BK39: 100.5916013 | BL39: -0.01412803564 | BM39: 0.9995386155 | BN39: 0.01 | BO39: -0.01161210178 | BP39: 0.9995537993 | BQ39: 0.01 | BR39: -0.008142387206 | BS39: 0.9983521845 | BT39: 0.01 | BU39: -0.005472526447 | BV39: 0.9948446969 | BW39: 0.01 | BX39: -0.006559430485 | BY39: 0.9988871575 | BZ39: 0.01 | CA39: 0.01 | CC39: 0.004494081313 | CD39: 100.6888903 | CE39: 101.0971468 | CF39: 100.5209217 | CG39: 99.72970406 | CH39: 101.0436682 | CI39: 100.4494081 | CJ39: -0.0234444513 | CK39: 0.9999712269 | CL39: 0.01 | CM39: -0.01699048937 | CN39: 0.9999301968 | CO39: 0.01 | CP39: -0.01130230421 | CQ39: 0.9994438434 | CR39: 0.01 | CS39: -0.007459408123 | CT39: 0.9973319252 | CU39: 0.01 | CV39: -0.008406113625 | CW39: 0.9994879372 | CX39: 0.01 | CY39: -0.00635629733 | CZ39: 0.9986703215 | DA39: 0.01 | DB39: 0.01 | DD39: 0.02145603849 | DE39: 102.849275 | DF39: 103.2662911 | DG39: 102.6777024 | DH39: 101.8695084 | DI39: 103.211665 | DJ39: 102.6046545 | DK39: 102.1456038 | DL39: -0.06849274964 | DM39: 1 | DN39: 0.01 | DO39: -0.03633145542 | DP39: 0.9999999975 | DQ39: 0.01 | DR39: -0.02225900816 | DS39: 0.9999988289 | DT39: 0.01 | DU39: -0.01467377108 | DV39: 0.9999583591 | DW39: 0.01 | DX39: -0.01442333002 | DY39: 0.9999929785 | DZ39: 0.01 | EA39: -0.0110077575 | EB39: 0.9999559242 | EC39: 0.01 | ED39: -0.00877943407 | EE39: 0.9998666652 | EF39: 0.01 | EG39: 0.01 | EI39: 0.005116775404 | EJ39: 103.3755316 | EK39: 103.7946815 | EL39: 103.2030812 | EM39: 102.3907518 | EN39: 103.7397759 | EO39: 103.1296595 | EP39: 102.66826 | EQ39: 100.5116775 | ER39: -0.07794681502 | ES39: 1 | ET39: 0.01 | EU39: -0.03601540596 | EV39: 0.9999999967 | EW39: 0.01 | EX39: -0.02130250609 | EY39: 0.9999973898 | EZ39: 0.01 | FA39: -0.01934943979 | FB39: 0.9999994417 | FC39: 0.01 | FD39: -0.01425931894 | FE39: 0.9999917077 | FF39: 0.01 | FG39: -0.0111137666 | FH39: 0.9999604401 | FI39: 0.01 | FJ39: -0.006445253629 | FK39: 0.9987696369 | FL39: 0.01 | FM39: 0.01 | FO39: 0.01557586696 | FP39: 105.4113737 | FQ39: 104.8105587 | FR39: 103.9855766 | FS39: 105.3556129 | FT39: 104.7359933 | FU39: 104.2674071 | FV39: 102.0772341 | FW39: 101.5575867 | FX39: -0.08810558653 | FY39: 1 | FZ39: 0.01 | GA39: -0.03992788277 | GB39: 0.9999999999 | GC39: 0.01 | GD39: -0.03118537622 | GE39: 0.9999999998 | GF39: 0.01 | GG39: -0.02183998332 | GH39: 0.9999999602 | GI39: 0.01 | GJ39: -0.01653481424 | GK39: 0.9999992652 | GL39: 0.01 | GM39: -0.01012872343 | GN39: 0.9998946233 | GO39: 0.01 | GP39: -0.007939409565 | GQ39: 0.9996908373 | GR39: 0.01 | GS39: 0.01 | GU39: 0.002314379415 | GV39: 105.0531301 | GW39: 104.2262386 | GX39: 105.5994457 | GY39: 104.9783922 | GZ39: 104.5087215 | HA39: 102.3134795 | HB39: 101.7926295 | HC39: 100.2314379 | HD39: -0.08226238632 | HE39: 1 | HF39: 0.01 | HG39: -0.04799722864 | HH39: 1 | HI39: 0.01 | HJ39: -0.02992797384 | HK39: 0.9999999993 | HL39: 0.01 | HM39: -0.02127180365 | HN39: 0.9999999257 | HO39: 0.01 | HP39: -0.01262695901 | HQ39: 0.9999595145 | HR39: 0.01 | HS39: -0.009654382473 | HT39: 0.9998343918 | HU39: 0.01 | HV39: -0.006044911345 | HW39: 0.9982622081 | HX39: 0.01 | HY39: 0.01 | IA39: 0.0160729704 | IB39: 105.9014639 | IC39: 107.2967425 | ID39: 106.6657067 | IE39: 106.188487 | IF39: 103.957961 | IG39: 103.4287394 | IH39: 101.8424549 | II39: 101.607297 | IJ39: -0.1129674249 | IK39: 1 | IL39: 0.01 | IM39: -0.05332853372 | IN39: 1 | IO39: 0.01 | IP39: -0.03396162349 | IQ39: 1 | IR39: 0.01 | IS39: -0.01989490259 | IT39: 0.9999996804 | IU39: 0.01 | IV39: -0.01485747881 | IW39: 0.9999955076 | IX39: 0.01 | IY39: -0.009737424795 | IZ39: 0.9998468526 | JA39: 0.01 | JB39: -0.008010424343 | JC39: 0.9997115353 | JD39: 0.01 | JE39: 0.01 | JG39: 0.00689620848 | JH39: 108.0366832 | JI39: 107.4012957 | JJ39: 106.920785 | JK39: 104.6748768 | JL39: 104.1420056 | JM39: 102.5447817 | JN39: 102.3080021 | JO39: 100.6896208 | JP39: -0.1140129569 | JQ39: 1 | JR39: 0.01 | JS39: -0.05460392496 | JT39: 1 | JU39: 0.01 | JV39: -0.02891625602 | JW39: 0.9999999979 | JX39: 0.01 | JY39: -0.02035501389 | JZ39: 0.9999998021 | KA39: 0.01 | KB39: -0.01308956336 | KC39: 0.9999738328 | KD39: 0.01 | KE39: -0.01051333691 | KF39: 0.9999276449 | KG39: 0.01 | KH39: -0.006699458354 | KI39: 0.9990172145 | KJ39: 0.01 | KK39: 0.01 | KM39: -0.01522901843 | KN39: 105.7656794 | KO39: 105.2924864 | KP39: 103.0807812 | KQ39: 102.556025 | KR39: 100.9831253 | KS39: 100.7499517 | KT39: 99.15621676 | KU39: 98.47709816 | KV39: -0.09292486388 | KW39: 1 | KX39: 0.01 | KY39: -0.0354039059 | KZ39: 0.9999999945 | LA39: 0.01 | LB39: -0.02185341678 | LC39: 0.9999983495 | LD39: 0.01 | LE39: -0.01245781327 | LF39: 0.9997598981 | LG39: 0.01 | LH39: -0.009499903387 | LI39: 0.9994071064 | LJ39: 0.01 | LK39: -0.005260361261 | LL39: 0.9940190273 | LM39: 0.01 | LN39: -0.003538711653 | LO39: 0.9880623737 | LP39: 0.01 | LQ39: 0.01 | LS39: 0.002052449731 | LT39: 105.5085939 | LU39: 103.2923493 | LV39: 102.7665161 | LW39: 101.1903881 | LX39: 100.9567359 | LY39: 99.35972991 | LZ39: 98.67921745 | MA39: 100.205245 | MB39: -0.07292349301 | MC39: 1 | MD39: 0.01 | ME39: -0.03383258059 | MF39: 0.9999999801 | MG39: 0.01 | MH39: -0.01730129365 | MI39: 0.9999439291 | MJ39: 0.01 | MK39: -0.01239183976 | ML39: 0.9997477615 | MM39: 0.01 | MN39: -0.006719459814 | MO39: 0.9956106085 | MP39: 0.01 | MQ39: -0.004465362418 | MR39: 0.9897897549 | MS39: 0.01 | MT39: -0.006007492819 | MU39: 0.9982061615 | MV39: 0.01 | MW39: 0.01 | MY39: 0.006505495993 | MZ39: 103.9643173 | NA39: 103.4350633 | NB39: 101.8486818 | NC39: 101.6135095 | ND39: 100.0061142 | NE39: 99.3211747 | NF39: 100.8571298 | NG39: 100.6505496 | NH39: -0.07435063278 | NI39: 1 | NJ39: 0.01 | NK39: -0.0292434088 | NL39: 0.9999993597 | NM39: 0.01 | NN39: -0.01871169849 | NO39: 0.9999799573 | NP39: 0.01 | NQ39: -0.01001528558 | NR39: 0.9986635887 | NS39: 0.01 | NT39: -0.00664234941 | NU39: 0.995383558 | NV39: 0.01 | NW39: -0.008095216321 | NX39: 0.9993309015 | NY39: 0.01 | NZ39: -0.006643642285 | OA39: 0.9989671432 | OB39: 0.01 | OC39: 0.01 | OF39: 0.01 | OG39: 0.01 | OH39: 0.01 | OI39: 0.01 | OJ39: 0.01 | OK39: 0.01 | OL39: 0.01 | OM39: 0.01 | OO39: No | OQ39: 0.01 | OR39: 0.01 | OS39: 0.01 | OT39: 0.01 | OU39: 0.01 | OV39: 0.01 | OW39: 0.01 | OX39: 0.01 | OZ39: No
F40: 13 | G40: -0.00549197557 | H40: 99.45080244 | I40: -0.004929717776 | J40: 0.9956949123 | K40: 0.01 | M40: 0.01359820627 | N40: 100.803155 | O40: 101.3598206 | P40: -0.00800525828 | Q40: 0.9992777907 | R40: 0.01 | S40: -0.00765688661 | T40: 0.999594038 | U40: 0.01 | V40: 0.01 | X40: -0.00201480791 | Y40: 100.600056 | Z40: 101.1556001 | AA40: 99.79851921 | AB40: -0.009200111948 | AC40: 0.9992514409 | AD40: 0.01 | AE40: -0.008592666764 | AF40: 0.999565005 | AG40: 0.01 | AH40: -0.005426456013 | AI40: 0.9970973539 | AJ40: 0.01 | AK40: 0.01 | AM40: -0.008416899977 | AN40: 99.75331537 | AO40: 100.3041835 | AP40: 98.95852505 | AQ40: 99.15831 | AR40: -0.009383288413 | AS40: 0.9979904433 | AT40: 0.01 | AU40: -0.008608366981 | AV40: 0.99882854 | AW40: 0.01 | AX40: -0.004930875092 | AY40: 0.9925036981 | AZ40: 0.01 | BA40: -0.004511871432 | BB40: 0.9940754144 | BC40: 0.01 | BD40: 0.01 | BF40: 0.002934882271 | BG40: 100.0460796 | BH40: 100.5985645 | BI40: 99.24895668 | BJ40: 99.44932797 | BK40: 100.2934882 | BL40: -0.01348693201 | BM40: 0.9993176874 | BN40: 0.01 | BO40: -0.01149641115 | BP40: 0.999515338 | BQ40: 0.01 | BR40: -0.006497913351 | BS40: 0.9949299033 | BT40: 0.01 | BU40: -0.005748879947 | BV40: 0.9957673745 | BW40: 0.01 | BX40: -0.00613355461 | BY40: 0.9983886766 | BZ40: 0.01 | CA40: 0.01 | CC40: -0.01226456608 | CD40: 98.81905785 | CE40: 99.36476672 | CF40: 98.03171129 | CG40: 98.22962511 | CH40: 99.06343211 | CI40: 98.77354339 | CJ40: -0.01409528924 | CK40: 0.9965380427 | CL40: 0.01 | CM40: -0.01121588906 | CN40: 0.9975127033 | CO40: 0.01 | CP40: -0.00507927822 | CQ40: 0.9780924635 | CR40: 0.01 | CS40: -0.004459250227 | CT40: 0.9827915306 | CU40: 0.01 | CV40: -0.005105720188 | CW40: 0.993345384 | CX40: 0.01 | CY40: -0.003962204845 | CZ40: 0.9911342199 | DA40: 0.01 | DB40: 0.01 | DD40: -0.000349984445 | DE40: 98.78447271 | DF40: 99.3299906 | DG40: 97.99740171 | DH40: 98.19524627 | DI40: 99.02876145 | DJ40: 98.73897419 | DK40: 99.96500156 | DL40: -0.02784472714 | DM40: 0.999489133 | DN40: 0.01 | DO40: -0.01664995298 | DP40: 0.998899822 | DQ40: 0.01 | DR40: -0.006658005712 | DS40: 0.9782681231 | DT40: 0.01 | DU40: -0.005488115682 | DV40: 0.9820307752 | DW40: 0.01 | DX40: -0.006057522905 | DY40: 0.9932921141 | DZ40: 0.01 | EA40: -0.00456495698 | EB40: 0.9904334215 | EC40: 0.01 | ED40: -0.005664287936 | EE40: 0.9976100582 | EF40: 0.01 | EG40: 0.01 | EI40: -0.005800586076 | EJ40: 98.21146488 | EK40: 98.75381844 | EL40: 97.42895935 | EM40: 97.62565629 | EN40: 98.4543366 | EO40: 98.16623027 | EP40: 99.38514596 | EQ40: 99.41994139 | ER40: -0.02753818436 | ES40: 0.9994306749 | ET40: 0.01 | EU40: -0.007144796749 | EV40: 0.9570591422 | EW40: 0.01 | EX40: -0.005418854314 | EY40: 0.9644312337 | EZ40: 0.01 | FA40: -0.006135841494 | FB40: 0.987031986 | FC40: 0.01 | FD40: -0.004332460538 | FE40: 0.9815469645 | FF40: 0.01 | FG40: -0.005641909932 | FH40: 0.9954293618 | FI40: 0.01 | FJ40: -0.004885630561 | FK40: 0.9955450496 | FL40: 0.01 | FM40: 0.01 | FO40: -0.002516396929 | FP40: 98.50531463 | FQ40: 97.18378942 | FR40: 97.37999139 | FS40: 98.20658641 | FT40: 97.91920507 | FU40: 99.13505348 | FV40: 99.16976136 | FW40: 99.74836031 | FX40: -0.01183789416 | FY40: 0.9538888133 | FZ40: 0.01 | GA40: -0.006899956963 | GB40: 0.9538035538 | GC40: 0.01 | GD40: -0.007355288025 | GE40: 0.9838225625 | GF40: 0.01 | GG40: -0.004798012671 | GH40: 0.9749788675 | GI40: 0.01 | GJ40: -0.006270106966 | GK40: 0.9941334672 | GL40: 0.01 | GM40: -0.005282935595 | GN40: 0.9941121324 | GO40: 0.01 | GP40: -0.005354800439 | GQ40: 0.9969245123 | GR40: 0.01 | GS40: 0.01 | GU40: 0.005725211235 | GV40: 97.74018714 | GW40: 97.93751241 | GX40: 98.76883986 | GY40: 98.4798132 | GZ40: 99.70262261 | HA40: 99.73752919 | HB40: 100.3194407 | HC40: 100.5725211 | HD40: -0.01937512413 | HE40: 0.9926056468 | HF40: 0.01 | HG40: -0.0138441993 | HH40: 0.9961502659 | HI40: 0.01 | HJ40: -0.008266044005 | HK40: 0.9892118815 | HL40: 0.01 | HM40: -0.009256556513 | HN40: 0.997823034 | HO40: 0.01 | HP40: -0.007475058378 | HQ40: 0.9973605892 | HR40: 0.01 | HS40: -0.0071990679 | HT40: 0.9985966374 | HU40: 0.01 | HV40: -0.006532173034 | HW40: 0.9988600763 | HX40: 0.01 | HY40: 0.01 | IA40: 0.02045146759 | IB40: 99.94047827 | IC40: 100.7888076 | ID40: 100.4938699 | IE40: 101.7416876 | IF40: 101.777308 | IG40: 102.3711205 | IH40: 102.6293768 | II40: 102.0451468 | IJ40: -0.04788807586 | IK40: 0.9999999384 | IL40: 0.01 | IM40: -0.02246934955 | IN40: 0.9999487829 | IO40: 0.01 | IP40: -0.01913895853 | IQ40: 0.9999854879 | IR40: 0.01 | IS40: -0.01444327009 | IT40: 0.9999495992 | IU40: 0.01 | IV40: -0.01274224106 | IW40: 0.9999636521 | IX40: 0.01 | IY40: -0.0110489613 | IZ40: 0.9999577344 | JA40: 0.01 | JB40: -0.008635923941 | JC40: 0.999845554 | JD40: 0.01 | JE40: 0.01 | JG40: -0.01428279008 | JH40: 99.34926221 | JI40: 99.05853706 | JJ40: 100.2885324 | JK40: 100.3236441 | JL40: 100.9089753 | JM40: 101.1635429 | JN40: 100.5876573 | JO40: 98.57172099 | JP40: -0.03058537061 | JQ40: 0.9998135369 | JR40: 0.01 | JS40: -0.02144266197 | JT40: 0.9999078276 | JU40: 0.01 | JV40: -0.01441214703 | JW40: 0.999613495 | JX40: 0.01 | JY40: -0.01227243827 | JZ40: 0.9997243303 | KA40: 0.01 | KB40: -0.01032708587 | KC40: 0.9996951257 | KD40: 0.01 | KE40: -0.007646095582 | KF40: 0.9990246856 | KG40: 0.01 | KH40: -0.003673887132 | KI40: 0.9891304238 | KJ40: 0.01 | KK40: 0.01 | KM40: -0.002491015983 | KN40: 98.81178066 | KO40: 100.0387121 | KP40: 100.0737363 | KQ40: 100.6576094 | KR40: 100.9115429 | KS40: 100.3370919 | KT40: 98.32617726 | KU40: 99.7508984 | KV40: -0.04038712057 | KW40: 0.9999971701 | KX40: 0.01 | KY40: -0.02036868154 | KZ40: 0.999833179 | LA40: 0.01 | LB40: -0.01552536479 | LC40: 0.9998110805 | LD40: 0.01 | LE40: -0.01227885733 | LF40: 0.9997256398 | LG40: 0.01 | LH40: -0.008674183774 | LI40: 0.9988845646 | LJ40: 0.01 | LK40: -0.0038769621 | LL40: 0.9851625495 | LM40: 0.01 | LN40: -0.005358426288 | LO40: 0.9969334761 | LP40: 0.01 | LQ40: 0.01 | LS40: -0.01511293622 | LT40: 98.52683338 | LU40: 98.56132831 | LV40: 99.1363774 | LW40: 99.38647322 | LX40: 98.82070382 | LY40: 96.84018001 | LZ40: 98.24336944 | MA40: 98.48870638 | MB40: -0.02561328314 | MC40: 0.9988982134 | MD40: 0.01 | ME40: -0.01568188702 | MF40: 0.9982769467 | MG40: 0.01 | MH40: -0.01128824407 | MI40: 0.9976078312 | MJ40: 0.01 | MK40: -0.007051759543 | ML40: 0.99203143 | MM40: 0.01 | MN40: -0.001680360029 | MO40: 0.932382639 | MP40: 0.01 | MQ40: -0.003738949061 | MR40: 0.9838467087 | MS40: 0.01 | MT40: -0.003555294826 | MU40: 0.9881981196 | MV40: 0.01 | MW40: 0.01 | MY40: 0.005187565846 | MZ40: 99.07262169 | NA40: 99.65065389 | NB40: 99.90204709 | NC40: 99.33334273 | ND40: 97.34254482 | NE40: 98.75301338 | NF40: 98.99962303 | NG40: 100.5187566 | NH40: -0.0365065389 | NI40: 0.9999834237 | NJ40: 0.01 | NK40: -0.01951023547 | NL40: 0.9997361342 | NM40: 0.01 | NN40: -0.01111114242 | NO40: 0.9973689228 | NP40: 0.01 | NQ40: -0.003356362062 | NR40: 0.9526660585 | NS40: 0.01 | NT40: -0.005506026769 | NU40: 0.990593581 | NV40: 0.01 | NW40: -0.004999371713 | NX40: 0.9928440035 | NY40: 0.01 | NZ40: -0.006455366549 | OA40: 0.9987804869 | OB40: 0.01 | OC40: 0.01 | OF40: 0.01 | OG40: 0.01 | OH40: 0.01 | OI40: 0.01 | OJ40: 0.01 | OK40: 0.01 | OL40: 0.01 | OM40: 0.01 | OO40: No | OQ40: 0.01 | OR40: 0.01 | OS40: 0.01 | OT40: 0.01 | OU40: 0.01 | OV40: 0.01 | OW40: 0.01 | OX40: 0.01 | OZ40: No
F41: 14 | G41: 0.02519292254 | H41: 102.5192923 | I41: -0.009313274649 | J41: 0.999923742 | K41: 0.01 | M41: 0.005090440795 | N41: 103.0411606 | O41: 100.5090441 | P41: -0.01173526774 | Q41: 0.9999792787 | R41: 0.01 | S41: -0.006441491542 | T41: 0.9987655781 | U41: 0.01 | V41: 0.01 | X41: -0.01874982824 | Y41: 101.1091566 | Z41: 98.62451677 | AA41: 98.12501718 | AB41: -0.01021831316 | AC41: 0.9996666489 | AD41: 0.01 | AE41: -0.004374194611 | AF41: 0.9891677573 | AG41: 0.01 | AH41: -0.003035738823 | AI41: 0.9832507287 | AJ41: 0.01 | AK41: 0.01 | AM41: -0.02233679909 | AN41: 98.85070166 | AO41: 96.42156075 | AP41: 95.93321838 | AQ41: 97.76632009 | AR41: -0.007126754153 | AS41: 0.9923532003 | AT41: 0.01 | AU41: -0.0008431214997 | AV41: 0.9043191922 | AW41: 0.01 | AX41: 0.0001113026977 | AY41: 0.8844405115 | AZ41: 0.009343996933 | BA41: -0.002523314416 | BB41: 0.9767310619 | BC41: 0.01 | BD41: 0.009343996933 | BF41: 0.01262250009 | BG41: 100.0984447 | BH41: 97.63864191 | BI41: 97.14413544 | BJ41: 99.00037548 | BK41: 101.26225 | BL41: -0.01366148217 | BM41: 0.9993859313 | BN41: 0.01 | BO41: -0.004096604774 | BP41: 0.9655687609 | BQ41: 0.01 | BR41: -0.002288270879 | BS41: 0.9484182721 | BT41: 0.01 | BU41: -0.005000625792 | BV41: 0.9928501048 | BW41: 0.01 | BX41: -0.007517500013 | BY41: 0.9995365429 | BZ41: 0.01 | CA41: 0.01 | CC41: 0.02258043379 | CD41: 102.358711 | CE41: 99.8433648 | CF41: 99.33769216 | CG41: 101.2358469 | CH41: 103.5487955 | CI41: 102.2580434 | CJ41: -0.03179355477 | CK41: 0.9999999022 | CL41: 0.01 | CM41: -0.012811216 | CN41: 0.9989822156 | CO41: 0.01 | CP41: -0.008344230395 | CQ41: 0.9961943839 | CR41: 0.01 | CS41: -0.0104716938 | CT41: 0.9997294866 | CU41: 0.01 | CV41: -0.0125813259 | CW41: 0.9999917081 | CX41: 0.01 | CY41: -0.008940061971 | CZ41: 0.9998870742 | DA41: 0.01 | DB41: 0.01 | DD41: 0.02149101694 | DE41: 104.5585037 | DF41: 101.9891002 | DG41: 101.4725602 | DH41: 103.4115082 | DI41: 105.7741645 | DJ41: 104.4556727 | DK41: 102.1491017 | DL41: -0.08558503746 | DM41: 1 | DN41: 0.01 | DO41: -0.02994550122 | DP41: 0.9999996135 | DQ41: 0.01 | DR41: -0.01824186728 | DS41: 0.999971586 | DT41: 0.01 | DU41: -0.0185287705 | DV41: 0.9999987354 | DW41: 0.01 | DX41: -0.01954832892 | DY41: 0.9999999798 | DZ41: 0.01 | EA41: -0.01409278787 | EB41: 0.9999985428 | EC41: 0.01 | ED41: -0.008784430992 | EE41: 0.9998673491 | EF41: 0.01 | EG41: 0.01 | EI41: 0.0003467883623 | EJ41: 104.5947634 | EK41: 102.0244689 | EL41: 101.5077497 | EM41: 103.4473701 | EN41: 105.8108457 | EO41: 104.4918967 | EP41: 102.1845258 | EQ41: 100.0346788 | ER41: -0.06024468877 | ES41: 1 | ET41: 0.01 | EU41: -0.02753874843 | EV41: 0.9999979045 | EW41: 0.01 | EX41: -0.02482456703 | EY41: 0.9999998803 | EZ41: 0.01 | FA41: -0.02452711428 | FB41: 0.9999999982 | FC41: 0.01 | FD41: -0.01698379347 | FE41: 0.9999995577 | FF41: 0.01 | FG41: -0.01030754302 | FH41: 0.9999114299 | FI41: 0.01 | FJ41: -0.005763826909 | FK41: 0.9977991539 | FL41: 0.01 | FM41: 0.01 | FO41: 0.0008128924794 | FP41: 102.1074038 | FQ41: 101.5902646 | FR41: 103.5314617 | FS41: 105.8968586 | FT41: 104.5768374 | FU41: 102.2675908 | FV41: 100.1159963 | FW41: 100.0812892 | FX41: -0.05590264573 | FY41: 0.9999999994 | FZ41: 0.01 | GA41: -0.03765730849 | GB41: 0.9999999992 | GC41: 0.01 | GD41: -0.0329895285 | GE41: 1 | GF41: 0.01 | GG41: -0.02144209353 | GH41: 0.9999999383 | GI41: 0.01 | GJ41: -0.01253518169 | GK41: 0.9999559063 | GL41: 0.01 | GM41: -0.006859993791 | GN41: 0.9981642819 | GO41: 0.01 | GP41: -0.005830413211 | GQ41: 0.9979179674 | GR41: 0.01 | GS41: 0.01 | GU41: -0.004368467783 | GV41: 101.1464708 | GW41: 103.0791878 | GX41: 105.4342515 | GY41: 104.1199969 | GZ41: 101.8208382 | HA41: 99.67864277 | HB41: 99.64408736 | HC41: 99.56315322 | HD41: -0.07079187842 | HE41: 1 | HF41: 0.01 | HG41: -0.04717125768 | HH41: 1 | HI41: 0.01 | HJ41: -0.02706665622 | HK41: 0.999999986 | HL41: 0.01 | HM41: -0.01455209543 | HN41: 0.9999539319 | HO41: 0.01 | HP41: -0.00735728554 | HQ41: 0.9971378795 | HR41: 0.01 | HS41: -0.006073478934 | HT41: 0.9966604793 | HU41: 0.01 | HV41: -0.005090218888 | HW41: 0.9962031545 | HX41: 0.01 | HY41: 0.01 | IA41: -0.009598046377 | IB41: 102.089829 | IC41: 104.4222887 | ID41: 103.1206483 | IE41: 100.843557 | IF41: 98.72192253 | IG41: 98.68769879 | IH41: 98.60754146 | II41: 99.04019536 | IJ41: -0.084222887 | IK41: 1 | IL41: 0.01 | IM41: -0.03560324154 | IN41: 0.9999999953 | IO41: 0.01 | IP41: -0.01614519015 | IQ41: 0.9998750949 | IR41: 0.01 | IS41: -0.006804806335 | IT41: 0.9908861829 | IU41: 0.01 | IV41: -0.005375397577 | IW41: 0.9898298163 | IX41: 0.01 | IY41: -0.004345902433 | IZ41: 0.9889681424 | JA41: 0.01 | JB41: -0.004343136232 | JC41: 0.9932813005 | JD41: 0.01 | JE41: 0.01 | JG41: 0.003682464084 | JH41: 104.80682 | JI41: 103.5003864 | JJ41: 101.2149098 | JK41: 99.08546247 | JL41: 99.05111269 | JM41: 98.97066019 | JN41: 99.40490732 | JO41: 100.3682464 | JP41: -0.07500386391 | JQ41: 1 | JR41: 0.01 | JS41: -0.0260745491 | JT41: 0.9999944513 | JU41: 0.01 | JV41: -0.01028487489 | JW41: 0.9959445485 | JX41: 0.01 | JY41: -0.007627781737 | JZ41: 0.9942242372 | KA41: 0.01 | KB41: -0.005941320379 | KC41: 0.9927885328 | KD41: 0.01 | KE41: -0.005674845541 | KF41: 0.9955359157 | KG41: 0.01 | KH41: -0.006240352012 | KI41: 0.9985298799 | KJ41: 0.01 | KK41: 0.01 | KM41: 0.002164217061 | KN41: 103.7243837 | KO41: 101.4339609 | KP41: 99.29990492 | KQ41: 99.2654808 | KR41: 99.18485418 | KS41: 99.62004112 | KT41: 100.5854651 | KU41: 100.2164217 | KV41: -0.05433960856 | KW41: 0.9999999985 | KX41: 0.01 | KY41: -0.01649952458 | KZ41: 0.9988190399 | LA41: 0.01 | LB41: -0.01088493601 | LC41: 0.997032505 | LD41: 0.01 | LE41: -0.007962135452 | LF41: 0.995234931 | LG41: 0.01 | LH41: -0.007240082242 | LI41: 0.9968995611 | LJ41: 0.01 | LK41: -0.0076424418 | LL41: 0.9990217364 | LM41: 0.01 | LN41: -0.00602345958 | LO41: 0.9982302751 | LP41: 0.01 | LQ41: 0.01 | LS41: 0.01777032735 | LT41: 103.2364755 | LU41: 101.0644967 | LV41: 101.0294609 | LW41: 100.9474015 | LX41: 101.3903219 | LY41: 102.3729017 | LZ41: 101.9973003 | MA41: 101.7770327 | MB41: -0.05064496733 | MC41: 0.9999999869 | MD41: 0.01 | ME41: -0.02514730446 | MF41: 0.9999899363 | MG41: 0.01 | MH41: -0.01649133836 | MI41: 0.9999013345 | MJ41: 0.01 | MK41: -0.01347580466 | ML41: 0.9998901262 | MM41: 0.01 | MN41: -0.01274580344 | MO41: 0.9999637733 | MP41: 0.01 | MQ41: -0.009995500543 | MR41: 0.9998802024 | MS41: 0.01 | MT41: -0.008252903907 | MU41: 0.9997728844 | MV41: 0.01 | MW41: 0.01 | MY41: -0.006493063767 | MZ41: 100.4082785 | NA41: 100.3734702 | NB41: 100.2919436 | NC41: 100.731988 | ND41: 101.7081879 | NE41: 101.3350254 | NF41: 101.116188 | NG41: 99.35069362 | NH41: -0.04373470159 | NI41: 0.9999994517 | NJ41: 0.01 | NK41: -0.02145971796 | NL41: 0.9999087081 | NM41: 0.01 | NN41: -0.01577329346 | NO41: 0.9998396878 | NP41: 0.01 | NQ41: -0.01427046986 | NR41: 0.9999419205 | NS41: 0.01 | NT41: -0.0106700507 | NU41: 0.999770777 | NV41: 0.01 | NW41: -0.008526979953 | NX41: 0.9995391874 | NY41: 0.01 | NZ41: -0.004786705176 | OA41: 0.9951916991 | OB41: 0.01 | OC41: 0.01 | OF41: 0.01 | OG41: 0.01 | OH41: 0.01 | OI41: 0.01 | OJ41: 0.01 | OK41: 0.01 | OL41: 0.01 | OM41: 0.01 | OO41: No | OQ41: 0.01 | OR41: 0.01 | OS41: 0.01 | OT41: 0.01 | OU41: 0.01 | OV41: 0.01 | OW41: 0.01 | OX41: 0.01 | OZ41: No
F42: 15 | G42: -0.002967615109 | H42: 99.70323849 | I42: -0.005290340699 | J42: 0.9967611673 | K42: 0.01 | M42: 0.01217550766 | N42: 100.917176 | O42: 101.2175508 | P42: -0.008195293388 | Q42: 0.999385738 | R42: 0.01 | S42: -0.007453643951 | T42: 0.9995077593 | U42: 0.01 | V42: 0.01 | X42: 0.007809292991 | Y42: 101.7052678 | Z42: 102.0079883 | AA42: 100.7809293 | AB42: -0.01141053566 | AC42: 0.9998784908 | AD42: 0.01 | AE42: -0.01001331379 | AF42: 0.9998822325 | AG42: 0.01 | AH42: -0.006829898999 | AI42: 0.9991256622 | AJ42: 0.01 | AK42: 0.01 | AM42: 0.004480147417 | AN42: 102.1609224 | AO42: 102.4649991 | AP42: 101.2324427 | AQ42: 100.4480147 | AR42: -0.01540230605 | AS42: 0.9999775268 | AT42: 0.01 | AU42: -0.0129299982 | AV42: 0.9999695466 | AW42: 0.01 | AX42: -0.008720737865 | AY42: 0.9996115281 | AZ42: 0.01 | BA42: -0.006354306774 | BB42: 0.9986680176 | BC42: 0.01 | BD42: 0.01 | BF42: 0.008970809604 | BG42: 103.0773886 | BH42: 103.3841931 | BI42: 102.1405797 | BJ42: 101.3491148 | BK42: 100.897081 | BL42: -0.02359129535 | BM42: 0.999999633 | BN42: 0.01 | BO42: -0.01846048275 | BP42: 0.9999986479 | BQ42: 0.01 | BR42: -0.01228115938 | BS42: 0.9999442696 | BT42: 0.01 | BU42: -0.008915191262 | BV42: 0.9996734087 | BW42: 0.01 | BX42: -0.006995829943 | BY42: 0.9992477089 | BZ42: 0.01 | CA42: 0.01 | CC42: -0.01659599045 | CD42: 101.3667172 | CE42: 101.66843 | CF42: 100.4454556 | CG42: 99.66712582 | CH42: 99.22259397 | CI42: 98.34040095 | CJ42: -0.02683358624 | CK42: 0.9999966333 | CL42: 0.01 | CM42: -0.01889476672 | CN42: 0.9999825357 | CO42: 0.01 | CP42: -0.01111363901 | CQ42: 0.9993651192 | CR42: 0.01 | CS42: -0.007334251632 | CT42: 0.9970923903 | CU42: 0.01 | CV42: -0.005370989947 | CW42: 0.9944631321 | CX42: 0.01 | CY42: -0.003343429935 | CZ42: 0.9863591727 | DA42: 0.01 | DB42: 0.01 | DD42: 0.01011417718 | DE42: 102.3919582 | DF42: 102.6967225 | DG42: 101.4613787 | DH42: 100.6751768 | DI42: 100.2261489 | DJ42: 99.33503319 | DK42: 101.0114177 | DL42: -0.06391958186 | DM42: 1 | DN42: 0.01 | DO42: -0.03348361266 | DP42: 0.9999999737 | DQ42: 0.01 | DR42: -0.01820459579 | DS42: 0.9999707962 | DT42: 0.01 | DU42: -0.01168794196 | DV42: 0.9995774558 | DW42: 0.01 | DX42: -0.008452297726 | DY42: 0.9986852434 | DZ42: 0.01 | EA42: -0.005558388656 | EB42: 0.9951489055 | EC42: 0.01 | ED42: -0.007159168168 | EE42: 0.9993523375 | EF42: 0.01 | EG42: 0.01 | EI42: -0.003198374131 | EJ42: 102.0644704 | EK42: 102.36826 | EL42: 101.1368673 | EM42: 100.3531799 | EN42: 99.90558814 | EO42: 99.01732259 | EP42: 100.6883454 | EQ42: 99.68016259 | ER42: -0.06368259991 | ES42: 1 | ET42: 0.01 | EU42: -0.02568433644 | EV42: 0.9999928571 | EW42: 0.01 | EX42: -0.01451059968 | EY42: 0.9996366929 | EZ42: 0.01 | FA42: -0.009763970354 | FB42: 0.9984254402 | FC42: 0.01 | FD42: -0.006034645186 | FE42: 0.9931955005 | FF42: 0.01 | FG42: -0.00781390902 | FH42: 0.9991516605 | FI42: 0.01 | FJ42: -0.005257375124 | FK42: 0.9966746499 | FL42: 0.01 | FM42: 0.01 | FO42: 0.02258127569 | FP42: 104.6798659 | FQ42: 103.4206668 | FR42: 102.6192827 | FS42: 102.1615838 | FT42: 101.2532601 | FU42: 102.9620167 | FV42: 101.9310678 | FW42: 102.2581276 | FX42: -0.07420666771 | FY42: 1 | FZ42: 0.01 | GA42: -0.03309641363 | GB42: 0.9999999643 | GC42: 0.01 | GD42: -0.02053861257 | GE42: 0.9999951424 | GF42: 0.01 | GG42: -0.01313315013 | GH42: 0.9998564279 | GI42: 0.01 | GJ42: -0.0139240334 | GK42: 0.9999883953 | GL42: 0.01 | GM42: -0.009885113032 | GN42: 0.9998668713 | GO42: 0.01 | GP42: -0.008940182241 | GQ42: 0.9998870883 | GR42: 0.01 | GS42: 0.01 | GU42: 0.001494606649 | GV42: 103.57524 | GW42: 102.7726582 | GX42: 102.3142752 | GY42: 101.4045938 | GZ42: 103.1159044 | HA42: 102.0834147 | HB42: 102.4109632 | HC42: 100.1494607 | HD42: -0.06772658188 | HE42: 1 | HF42: 0.01 | HG42: -0.03157137576 | HH42: 0.9999998842 | HI42: 0.01 | HJ42: -0.01801531283 | HK42: 0.9999664539 | HL42: 0.01 | HM42: -0.01778976103 | HN42: 0.9999974173 | HO42: 0.01 | HP42: -0.01216682934 | HQ42: 0.9999381361 | HR42: 0.01 | HS42: -0.01068493874 | HT42: 0.9999389845 | HU42: 0.01 | HV42: -0.00592780095 | HW42: 0.9980812798 | HX42: 0.01 | HY42: 0.01 | IA42: 0.002579555677 | IB42: 103.037766 | IC42: 102.5782005 | ID42: 101.6661726 | IE42: 103.3818976 | IF42: 102.3467445 | IG42: 102.675138 | IH42: 100.4078018 | II42: 100.2579556 | IJ42: -0.06578200522 | IK42: 1 | IL42: 0.01 | IM42: -0.02833086322 | IN42: 0.9999987837 | IO42: 0.01 | IP42: -0.02460632543 | IQ42: 0.9999998536 | IR42: 0.01 | IS42: -0.01586686131 | IT42: 0.9999849938 | IU42: 0.01 | IV42: -0.01335027606 | IW42: 0.9999796304 | IX42: 0.01 | IY42: -0.007346336291 | IZ42: 0.9987536344 | JA42: 0.01 | JB42: -0.006082793668 | JC42: 0.9983173216 | JD42: 0.01 | JE42: 0.01 | JG42: 0.006636362121 | JH42: 103.2589466 | JI42: 102.3408662 | JJ42: 104.0679773 | JK42: 103.0259546 | JL42: 103.3565274 | JM42: 101.0741443 | JN42: 100.9233037 | JO42: 100.6636362 | JP42: -0.06340866181 | JQ42: 1 | JR42: 0.01 | JS42: -0.0403398867 | JT42: 0.9999999999 | JU42: 0.01 | JV42: -0.0234198486 | JW42: 0.9999995727 | JX42: 0.01 | JY42: -0.01839131856 | JZ42: 0.9999985534 | KA42: 0.01 | KB42: -0.01014828861 | KC42: 0.9996470281 | KD42: 0.01 | KE42: -0.008205506111 | KF42: 0.9993910941 | KG42: 0.01 | KH42: -0.006662337446 | KI42: 0.9989841691 | KJ42: 0.01 | KK42: 0.01 | KM42: 0.01804332336 | KN42: 104.1874355 | KO42: 105.9457095 | KP42: 104.8848852 | KQ42: 105.2214227 | KR42: 102.8978578 | KS42: 102.7442955 | KT42: 102.4799428 | KU42: 101.8043323 | KV42: -0.09945709506 | KW42: 1 | KX42: 0.01 | KY42: -0.04442442597 | KZ42: 1 | LA42: 0.01 | LB42: -0.03073807557 | LC42: 0.9999999997 | LD42: 0.01 | LE42: -0.01724464444 | LF42: 0.999995685 | LG42: 0.01 | LH42: -0.01348859094 | LI42: 0.9999821884 | LJ42: 0.01 | LK42: -0.01079990459 | LL42: 0.9999456204 | LM42: 0.01 | LN42: -0.008291903338 | LO42: 0.9997815321 | LP42: 0.01 | LQ42: 0.01 | LS42: 0.01416038202 | LT42: 107.4459412 | LU42: 106.3700952 | LV42: 106.7113982 | LW42: 104.3549308 | LX42: 104.1991939 | LY42: 103.9310979 | LZ42: 103.2459206 | MA42: 101.4160382 | MB42: -0.1037009524 | MC42: 1 | MD42: 0.01 | ME42: -0.05355699106 | MF42: 1 | MG42: 0.01 | MH42: -0.02784976917 | MI42: 0.9999999936 | MJ42: 0.01 | MK42: -0.02049798486 | ML42: 0.9999998298 | MM42: 0.01 | MN42: -0.01586219578 | MO42: 0.9999984564 | MP42: 0.01 | MQ42: -0.01207653429 | MR42: 0.999985608 | MS42: 0.01 | MT42: -0.007737197431 | MU42: 0.999624085 | MV42: 0.01 | MW42: 0.01 | MY42: -0.0005067516734 | MZ42: 106.316192 | NA42: 106.657322 | NB42: 104.3020487 | NC42: 104.1463908 | ND42: 103.8784306 | NE42: 103.1936005 | NF42: 101.3646455 | NG42: 99.94932483 | NH42: -0.1065732203 | NI42: 1 | NJ42: 0.01 | NK42: -0.04151024358 | NL42: 1 | NM42: 0.01 | NN42: -0.02715463609 | NO42: 0.9999999872 | NP42: 0.01 | NQ42: -0.01969607658 | NR42: 0.9999996078 | NS42: 0.01 | NT42: -0.01438720106 | NU42: 0.9999927156 | NV42: 0.01 | NW42: -0.008941075757 | NX42: 0.9996809169 | NY42: 0.01 | NZ42: -0.005641892618 | OA42: 0.9975655374 | OB42: 0.01 | OC42: 0.01 | OF42: 0.01 | OG42: 0.01 | OH42: 0.01 | OI42: 0.01 | OJ42: 0.01 | OK42: 0.01 | OL42: 0.01 | OM42: 0.01 | OO42: No | OQ42: 0.01 | OR42: 0.01 | OS42: 0.01 | OT42: 0.01 | OU42: 0.01 | OV42: 0.01 | OW42: 0.01 | OX42: 0.01 | OZ42: No
F43: 16 | G43: 0.01867224038 | H43: 101.867224 | I43: -0.008381748626 | J43: 0.9998002985 | K43: 0.01 | M43: 0.002411015871 | N43: 102.1128275 | O43: 100.2411016 | P43: -0.01018804589 | Q43: 0.9999005054 | R43: 0.01 | S43: -0.006058716553 | T43: 0.9982824802 | U43: 0.01 | V43: 0.01 | X43: 0.006976188177 | Y43: 102.8251858 | Z43: 100.9404024 | AA43: 100.6976188 | AB43: -0.01365037166 | AC43: 0.9999847934 | AD43: 0.01 | AE43: -0.008234003958 | AF43: 0.9994058125 | AG43: 0.01 | AH43: -0.006710884025 | AI43: 0.9990271854 | AJ43: 0.01 | AK43: 0.01 | AM43: 0.02280691236 | AN43: 105.1703108 | AO43: 103.2425413 | AP43: 102.9942206 | AQ43: 102.2806912 | AR43: -0.02292577708 | AS43: 0.9999999883 | AT43: 0.01 | AU43: -0.01448508257 | AV43: 0.999993407 | AW43: 0.01 | AX43: -0.01165703431 | AY43: 0.9999774941 | AZ43: 0.01 | BA43: -0.008972416051 | BB43: 0.999890813 | BC43: 0.01 | BD43: 0.01 | BF43: 0.01535974057 | BG43: 106.7856995 | BH43: 104.8283199 | BI43: 104.5761851 | BJ43: 103.8516961 | BK43: 101.5359741 | BL43: -0.03595233175 | BM43: 1 | BN43: 0.01 | BO43: -0.02207079984 | BP43: 0.9999999692 | BQ43: 0.01 | BR43: -0.01715237019 | BS43: 0.9999996354 | BT43: 0.01 | BU43: -0.0130861602 | BV43: 0.9999952924 | BW43: 0.01 | BX43: -0.007908534368 | BY43: 0.9996814143 | BZ43: 0.01 | CA43: 0.01 | CC43: 0.01080270049 | CD43: 107.9392735 | CE43: 105.9607489 | CF43: 105.7058903 | CG43: 104.9735749 | CH43: 102.6328368 | CI43: 101.08027 | CJ43: -0.05969636726 | CK43: 1 | CL43: 0.01 | CM43: -0.03320249626 | CN43: 1 | CO43: 0.01 | CP43: -0.02426472575 | CQ43: 0.9999999976 | CR43: 0.01 | CS43: -0.01794714977 | CT43: 0.999999856 | CU43: 0.01 | CV43: -0.01105472796 | CW43: 0.9999579821 | CX43: 0.01 | CY43: -0.007257528641 | CZ43: 0.9994086863 | DA43: 0.01 | DB43: 0.01 | DD43: 0.00127503143 | DE43: 108.0768994 | DF43: 106.0958522 | DG43: 105.8406686 | DH43: 105.1074195 | DI43: 102.7636969 | DJ43: 101.2091506 | DK43: 100.1275031 | DL43: -0.1207689942 | DM43: 1 | DN43: 0.01 | DO43: -0.05047926082 | DP43: 1 | DQ43: 0.01 | DR43: -0.03280222877 | DS43: 1 | DT43: 0.01 | DU43: -0.02276854874 | DV43: 0.999999986 | DW43: 0.01 | DX43: -0.01352739373 | DY43: 0.9999828493 | DZ43: 0.01 | EA43: -0.008681917617 | EB43: 0.9995979385 | EC43: 0.01 | ED43: -0.005896433061 | EE43: 0.9980299951 | EF43: 0.01 | EG43: 0.01 | EI43: -0.006046795494 | EJ43: 107.4233805 | EK43: 105.4543122 | EL43: 105.2006718 | EM43: 104.4718564 | EN43: 102.1423058 | EO43: 100.5971595 | EP43: 99.52205261 | EQ43: 99.39532045 | ER43: -0.09454312243 | ES43: 1 | ET43: 0.01 | EU43: -0.04600335877 | EV43: 1 | EW43: 0.01 | EX43: -0.02823952141 | EY43: 0.9999999957 | EZ43: 0.01 | FA43: -0.01535576452 | FB43: 0.9999766095 | FC43: 0.01 | FD43: -0.009194319069 | FE43: 0.9992480923 | FF43: 0.01 | FG43: -0.00587008768 | FH43: 0.9961232175 | FI43: 0.01 | FJ43: -0.004850457787 | FK43: 0.9954221657 | FL43: 0.01 | FM43: 0.01 | FO43: 0.01200978414 | FP43: 106.7207958 | FQ43: 106.4641091 | FR43: 105.7265409 | FS43: 103.3690129 | FT43: 101.8053097 | FU43: 100.717291 | FV43: 100.5890368 | FW43: 101.2009784 | FX43: -0.1046410911 | FY43: 1 | FZ43: 0.01 | GA43: -0.04863270434 | GB43: 1 | GC43: 0.01 | GD43: -0.02456337617 | GE43: 0.9999998477 | GF43: 0.01 | GG43: -0.01451327426 | GH43: 0.9999524283 | GI43: 0.01 | GJ43: -0.009434581955 | GK43: 0.9993759871 | GL43: 0.01 | GM43: -0.007648394657 | GN43: 0.9990265372 | GO43: 0.01 | GP43: -0.007429969163 | GQ43: 0.9994966735 | GR43: 0.01 | GS43: 0.01 | GU43: -0.003727162969 | GV43: 106.0673 | GW43: 105.3324808 | GX43: 102.9837397 | GY43: 101.4258647 | GZ43: 100.3419012 | HA43: 100.2141251 | HB43: 100.8237859 | HC43: 99.6272837 | HD43: -0.0933248082 | HE43: 1 | HF43: 0.01 | HG43: -0.03491869847 | HH43: 0.9999999918 | HI43: 0.01 | HJ43: -0.01808621575 | HK43: 0.9999681476 | HL43: 0.01 | HM43: -0.01085475305 | HN43: 0.9992402951 | HO43: 0.01 | HP43: -0.008428250122 | HQ43: 0.998661791 | HR43: 0.01 | HS43: -0.008039643125 | HT43: 0.9992985341 | HU43: 0.01 | HV43: -0.005181833862 | HW43: 0.9964685091 | HX43: 0.01 | HY43: 0.01 | IA43: -0.006359357948 | IB43: 104.6626339 | IC43: 102.3288292 | ID43: 100.7808613 | IE43: 99.70379115 | IF43: 99.57682757 | IG43: 100.1826113 | IH43: 98.99371814 | II43: 99.36406421 | IJ43: -0.06328829231 | IK43: 1 | IL43: 0.01 | IM43: -0.02390430673 | IN43: 0.9999782152 | IO43: 0.01 | IP43: -0.01234597051 | IQ43: 0.9986695186 | IR43: 0.01 | IS43: -0.00894206892 | IT43: 0.9973516578 | IU43: 0.01 | IV43: -0.008365222662 | IW43: 0.9985984981 | IX43: 0.01 | IY43: -0.004989530241 | IZ43: 0.9927959629 | JA43: 0.01 | JB43: -0.004805806007 | JC43: 0.995261811 | JD43: 0.01 | JE43: 0.01 | JG43: -0.008054569781 | JH43: 101.5046145 | JI43: 99.96911487 | JJ43: 98.90072001 | JK43: 98.77477906 | JL43: 99.3756835 | JM43: 98.19636633 | JN43: 98.56372942 | JO43: 99.19454302 | JP43: -0.03969114866 | JQ43: 0.9999960728 | JR43: 0.01 | JS43: -0.01450360005 | JT43: 0.997094196 | JU43: 0.01 | JV43: -0.00924926354 | JW43: 0.993207335 | JX43: 0.01 | JY43: -0.008439208743 | JZ43: 0.9964042265 | KA43: 0.01 | KB43: -0.004392732668 | KC43: 0.9821478417 | KD43: 0.01 | KE43: -0.00427288236 | KF43: 0.9884380994 | KG43: 0.01 | KH43: -0.004563632888 | KI43: 0.9943017388 | KJ43: 0.01 | KK43: 0.01 | KM43: 0.01820112134 | KN43: 101.7886649 | KO43: 100.700824 | KP43: 100.5725908 | KQ43: 101.1844324 | KR43: 99.98365031 | KS43: 100.3576998 | KT43: 100.9999949 | KU43: 101.8201121 | KV43: -0.04700824015 | KW43: 0.9999999008 | KX43: 0.01 | KY43: -0.022862954 | KZ43: 0.9999593299 | LA43: 0.01 | LB43: -0.01728144124 | LC43: 0.9999431343 | LD43: 0.01 | LE43: -0.009959125781 | LF43: 0.9986134248 | LG43: 0.01 | LH43: -0.00871539963 | LI43: 0.9989183869 | LJ43: 0.01 | LK43: -0.008333324893 | LL43: 0.9994545784 | LM43: 0.01 | LN43: -0.008314445905 | LO43: 0.9997863895 | LP43: 0.01 | LQ43: 0.01 | LS43: -0.01842103097 | LT43: 98.84581102 | LU43: 98.71993999 | LV43: 99.32051081 | LW43: 98.14184839 | LX43: 98.50900752 | LY43: 99.1394709 | LZ43: 99.94448069 | MA43: 98.1578969 | MB43: -0.02719939991 | MC43: 0.9993589128 | MD43: 0.01 | ME43: -0.01660255404 | MF43: 0.9988749318 | MG43: 0.01 | MH43: -0.007139494645 | MI43: 0.982250594 | MJ43: 0.01 | MK43: -0.006272518796 | ML43: 0.9879177528 | MM43: 0.01 | MN43: -0.006278941802 | MO43: 0.9941663116 | MP43: 0.01 | MQ43: -0.006574134491 | MR43: 0.9977092347 | MS43: 0.01 | MT43: -0.003082709861 | MU43: 0.9837612602 | MV43: 0.01 | MW43: 0.01 | MY43: 0.007071952165 | MZ43: 99.41808268 | NA43: 100.0229007 | NB43: 98.83590285 | NC43: 99.20565851 | ND43: 99.8405805 | NE43: 100.6512833 | NF43: 98.85206485 | NG43: 100.7071952 | NH43: -0.0402290071 | NI43: 0.9999969501 | NJ43: 0.01 | NK43: -0.01417951425 | NL43: 0.996660032 | NM43: 0.01 | NN43: -0.01068552836 | NO43: 0.9967043102 | NP43: 0.01 | NQ43: -0.009601451242 | NR43: 0.9982514724 | NS43: 0.01 | NT43: -0.009302566563 | NU43: 0.9993084411 | NV43: 0.01 | NW43: -0.004753441424 | NX43: 0.9915550437 | NY43: 0.01 | NZ43: -0.006724564595 | OA43: 0.9990390018 | OB43: 0.01 | OC43: 0.01 | OF43: 0.01 | OG43: 0.01 | OH43: 0.01 | OI43: 0.01 | OJ43: 0.01 | OK43: 0.01 | OL43: 0.01 | OM43: 0.01 | OO43: No | OQ43: 0.01 | OR43: 0.01 | OS43: 0.01 | OT43: 0.01 | OU43: 0.01 | OV43: 0.01 | OW43: 0.01 | OX43: 0.01 | OZ43: No
F44: 17 | G44: 0.01656723686 | H44: 101.6567237 | I44: -0.008081033837 | J44: 0.9997308299 | K44: 0.01 | M44: -0.004117566462 | N44: 101.2381454 | O44: 99.58824335 | P44: -0.008730242283 | Q44: 0.9996147896 | R44: 0.01 | S44: -0.005126061934 | T44: 0.9963090287 | U44: 0.01 | V44: 0.01 | X44: -0.01639160818 | Y44: 99.57868936 | Z44: 97.95583189 | AA44: 98.36083918 | AB44: -0.007157378717 | AC44: 0.9967207949 | AD44: 0.01 | AE44: -0.003259719816 | AF44: 0.9784742441 | AG44: 0.01 | AH44: -0.003372627403 | AI44: 0.9866264525 | AJ44: 0.01 | AK44: 0.01 | AM44: 0.01391579115 | AN44: 100.9644056 | AO44: 99.31896479 | AP44: 99.72960808 | AQ44: 101.3915791 | AR44: -0.01241101401 | AS44: 0.9997513465 | AT44: 0.01 | AU44: -0.006637929577 | AV44: 0.9953702318 | AW44: 0.01 | AX44: -0.006216013463 | AY44: 0.9969960599 | AZ44: 0.01 | BA44: -0.007702255879 | BB44: 0.9996112753 | BC44: 0.01 | BD44: 0.01 | BF44: 0.03237064457 | BG44: 104.2326885 | BH44: 102.5339837 | BI44: 102.9579198 | BJ44: 104.6736899 | BK44: 103.2370645 | BL44: -0.02744229497 | BM44: 0.9999999904 | BN44: 0.01 | BO44: -0.01633495924 | BP44: 0.9999900937 | BQ44: 0.01 | BR44: -0.01391583955 | BS44: 0.9999883004 | BT44: 0.01 | BU44: -0.01445614981 | BV44: 0.9999990593 | BW44: 0.01 | BX44: -0.01033866351 | BY44: 0.9999752769 | BZ44: 0.01 | CA44: 0.01 | CC44: 0.001656668971 | CD44: 104.4053676 | CE44: 102.7038486 | CF44: 103.128487 | CG44: 104.8470995 | CH44: 103.4080941 | CI44: 100.1656669 | CJ44: -0.04202683776 | CK44: 1 | CL44: 0.01 | CM44: -0.02234616189 | CN44: 0.9999989128 | CO44: 0.01 | CP44: -0.01782121741 | CQ44: 0.9999974935 | CR44: 0.01 | CS44: -0.01769419908 | CT44: 0.9999998058 | CU44: 0.01 | CV44: -0.0123468235 | CW44: 0.9999892678 | CX44: 0.01 | CY44: -0.00595095271 | CZ44: 0.9981183502 | DA44: 0.01 | DB44: 0.01 | DD44: 0.003580482151 | DE44: 104.7791891 | DF44: 103.0715779 | DG44: 103.4977367 | DH44: 105.2225027 | DI44: 103.7783449 | DJ44: 100.5243083 | DK44: 100.3580482 | DL44: -0.08779189107 | DM44: 1 | DN44: 0.01 | DO44: -0.03535788931 | DP44: 0.9999999943 | DQ44: 0.01 | DR44: -0.02499245557 | DS44: 0.9999998976 | DT44: 0.01 | DU44: -0.02305625677 | DV44: 0.99999999 | DW44: 0.01 | DX44: -0.01555668987 | DY44: 0.999997853 | DZ44: 0.01 | EA44: -0.007540513799 | EB44: 0.9989360889 | EC44: 0.01 | ED44: -0.006225783164 | EE44: 0.9985113068 | EF44: 0.01 | EG44: 0.01 | EI44: -0.01682162035 | EJ44: 103.0166334 | EK44: 101.3377469 | EL44: 101.756737 | EM44: 103.4524897 | EN44: 102.032625 | EO44: 98.83332653 | EP44: 98.66986323 | EQ44: 98.31783796 | ER44: -0.05337746911 | ES44: 0.9999999974 | ET44: 0.01 | EU44: -0.02878368519 | EV44: 0.9999991136 | EW44: 0.01 | EX44: -0.02484163238 | EY44: 0.9999998822 | EZ44: 0.01 | FA44: -0.01508156254 | FB44: 0.9999704421 | FC44: 0.01 | FD44: -0.005666653059 | FE44: 0.9914635988 | FF44: 0.01 | FG44: -0.004449772048 | FH44: 0.9896856499 | FI44: 0.01 | FJ44: -0.003311197093 | FK44: 0.9860587655 | FL44: 0.01 | FM44: 0.01 | FO44: -0.001656271071 | FP44: 101.1699041 | FQ44: 101.5882003 | FR44: 103.2811443 | FS44: 101.8636313 | FT44: 98.66963175 | FU44: 98.50643919 | FV44: 98.15499697 | FW44: 99.83437289 | FX44: -0.05588200299 | FY44: 0.9999999994 | FZ44: 0.01 | GA44: -0.03640572175 | GB44: 0.9999999976 | GC44: 0.01 | GD44: -0.01954543776 | GE44: 0.9999893778 | GF44: 0.01 | GG44: -0.006674079375 | GH44: 0.9902234792 | GI44: 0.01 | GJ44: -0.005012878377 | GK44: 0.9874203394 | GL44: 0.01 | GM44: -0.003591661623 | GN44: 0.9823333875 | GO44: 0.01 | GP44: -0.005477675561 | GQ44: 0.9972154809 | GR44: 0.01 | GS44: 0.01 | GU44: -0.004067034473 | GV44: 101.1750376 | GW44: 102.8610964 | GX44: 101.4493484 | GY44: 98.26833896 | GZ44: 98.1058101 | HA44: 97.75579722 | HB44: 99.42834306 | HC44: 99.59329655 | HD44: -0.06861096375 | HE44: 1 | HF44: 0.01 | HG44: -0.02724674215 | HH44: 0.9999974469 | HI44: 0.01 | HJ44: -0.007561129854 | HK44: 0.9852093357 | HL44: 0.01 | HM44: -0.005264525262 | HN44: 0.9799591065 | HO44: 0.01 | HP44: -0.003511594435 | HQ44: 0.9714960586 | HR44: 0.01 | HS44: -0.005713905094 | HT44: 0.9956594021 | HU44: 0.01 | HV44: -0.00513328079 | HW44: 0.9963300288 | HX44: 0.01 | HY44: 0.01 | IA44: 0.0121524956 | IB44: 104.1111154 | IC44: 102.6822112 | ID44: 99.46254451 | IE44: 99.29804053 | IF44: 98.94377411 | IG44: 100.6366456 | IH44: 100.8036037 | II44: 101.2152496 | IJ44: -0.0668221119 | IK44: 1 | IL44: 0.01 | IM44: -0.01731272257 | IN44: 0.9991988713 | IO44: 0.01 | IP44: -0.01099346844 | IQ44: 0.9971984758 | IR44: 0.01 | IS44: -0.007359435284 | IT44: 0.9932799015 | IU44: 0.01 | IV44: -0.009273291117 | IW44: 0.9992925764 | IX44: 0.01 | IY44: -0.008006006085 | IZ44: 0.9992782478 | JA44: 0.01 | JB44: -0.007450356515 | JC44: 0.9995062336 | JD44: 0.01 | JE44: 0.01 | JG44: 0.01208795846 | JH44: 103.9234295 | JI44: 100.6648436 | JJ44: 100.4983511 | JK44: 100.1398023 | JL44: 101.8531371 | JM44: 102.0221134 | JN44: 102.4387353 | JO44: 101.2087958 | JP44: -0.0466484362 | JQ44: 0.9999998797 | JR44: 0.01 | JS44: -0.0224917556 | JT44: 0.9999494468 | JU44: 0.01 | JV44: -0.01379934115 | JW44: 0.9994353125 | JX44: 0.01 | JY44: -0.01463284287 | JZ44: 0.9999569168 | KA44: 0.01 | KB44: -0.01204422685 | KC44: 0.9999308545 | KD44: 0.01 | KE44: -0.01073122549 | KF44: 0.9999417431 | KG44: 0.01 | KH44: -0.007441136923 | KI44: 0.9995019314 | KJ44: 0.01 | KK44: 0.01 | KM44: 0.03298091694 | KN44: 103.9848625 | KO44: 103.8128789 | KP44: 103.4425048 | KQ44: 105.212347 | KR44: 105.3868963 | KS44: 105.8172587 | KT44: 104.5467547 | KU44: 103.2980917 | KV44: -0.07812878891 | KW44: 1 | KX44: 0.01 | KY44: -0.03721252424 | KZ44: 0.9999999988 | LA44: 0.01 | LB44: -0.03070782335 | LC44: 0.9999999997 | LD44: 0.01 | LE44: -0.02346724068 | LF44: 0.9999999938 | LG44: 0.01 | LH44: -0.01963451743 | LI44: 0.9999999819 | LJ44: 0.01 | LK44: -0.01424459123 | LL44: 0.9999987852 | LM44: 0.01 | LN44: -0.01042584528 | LO44: 0.9999776073 | LP44: 0.01 | LQ44: 0.01 | LS44: 0.006738574488 | LT44: 104.5124297 | LU44: 104.1395599 | LV44: 105.9213282 | LW44: 106.0970537 | LX44: 106.5303162 | LY44: 105.2512508 | LZ44: 103.9941736 | MA44: 100.6738574 | MB44: -0.08139559873 | MC44: 1 | MD44: 0.01 | ME44: -0.04960664122 | MF44: 1 | MG44: 0.01 | MH44: -0.03365684575 | MI44: 1 | MJ44: 0.01 | MK44: -0.02632579048 | ML44: 0.9999999998 | MM44: 0.01 | MN44: -0.01850250166 | MO44: 0.9999999261 | MP44: 0.01 | MQ44: -0.01332362263 | MR44: 0.9999964112 | MS44: 0.01 | MT44: -0.006676939213 | MU44: 0.9989972875 | MV44: 0.01 | MW44: 0.01 | MY44: 0.01336416951 | MZ44: 105.5312986 | NA44: 107.3368788 | NB44: 107.5149527 | NC44: 107.9540054 | ND44: 106.6578464 | NE44: 105.3839693 | NF44: 102.0192799 | NG44: 101.336417 | NH44: -0.1133687883 | NI44: 1 | NJ44: 0.01 | NK44: -0.05757476367 | NL44: 1 | NM44: 0.01 | NN44: -0.03984668465 | NO44: 1 | NP44: 0.01 | NQ44: -0.02664461597 | NR44: 0.9999999999 | NS44: 0.01 | NT44: -0.01876793869 | NU44: 0.9999999466 | NV44: 0.01 | NW44: -0.01003213324 | NX44: 0.9998843422 | NY44: 0.01 | NZ44: -0.007623452787 | OA44: 0.9995808843 | OB44: 0.01 | OC44: 0.01 | OF44: 0.01 | OG44: 0.01 | OH44: 0.01 | OI44: 0.01 | OJ44: 0.01 | OK44: 0.01 | OL44: 0.01 | OM44: 0.01 | OO44: No | OQ44: 0.01 | OR44: 0.01 | OS44: 0.01 | OT44: 0.01 | OU44: 0.01 | OV44: 0.01 | OW44: 0.01 | OX44: 0.01 | OZ44: No
F45: 18 | G45: 0.02028835804 | H45: 102.0288358 | I45: -0.008612622577 | J45: 0.9998418442 | K45: 0.01 | M45: 0.008483139807 | N45: 102.8943607 | O45: 100.848314 | P45: -0.01149060114 | Q45: 0.9999732009 | R45: 0.01 | S45: -0.00692616283 | T45: 0.9991985159 | U45: 0.01 | V45: 0.01 | X45: 0.0170125491 | Y45: 104.644856 | Z45: 102.5640009 | AA45: 101.7012549 | AB45: -0.01728971209 | AC45: 0.9999996888 | AD45: 0.01 | AE45: -0.01094000146 | AF45: 0.9999527873 | AG45: 0.01 | AH45: -0.008144649872 | AI45: 0.999747177 | AJ45: 0.01 | AK45: 0.01 | AM45: -0.007382139042 | AN45: 103.8723532 | AO45: 101.8068592 | AP45: 100.9504821 | AQ45: 99.2617861 | AR45: -0.01968088292 | AS45: 0.9999996017 | AT45: 0.01 | AU45: -0.01161371832 | AV45: 0.9998983742 | AW45: 0.01 | AX45: -0.008250803509 | AY45: 0.9994143343 | AZ45: 0.01 | BA45: -0.004659694423 | BB45: 0.9947015051 | BC45: 0.01 | BD45: 0.01 | BF45: 0.00851537704 | BG45: 104.7568654 | BH45: 102.6737829 | BI45: 101.8101135 | BJ45: 100.1070376 | BK45: 100.8515377 | BL45: -0.0291895514 | BM45: 0.9999999984 | BN45: 0.01 | BO45: -0.01668445737 | BP45: 0.9999927744 | BQ45: 0.01 | BR45: -0.01162022705 | BS45: 0.9998989575 | BT45: 0.01 | BU45: -0.006845062717 | BV45: 0.9981427165 | BW45: 0.01 | BX45: -0.006930768149 | BY45: 0.999201857 | BZ45: 0.01 | CA45: 0.01 | CC45: 0.0004914806848 | CD45: 104.8083514 | CE45: 102.7242451 | CF45: 101.8601512 | CG45: 100.1562383 | CH45: 100.9011043 | CI45: 100.0491481 | CJ45: -0.04404175698 | CK45: 1 | CL45: 0.01 | CM45: -0.02241415044 | CN45: 0.9999989742 | CO45: 0.01 | CP45: -0.01465037807 | CQ45: 0.9999575404 | CR45: 0.01 | CS45: -0.008312476611 | CT45: 0.9985434415 | CU45: 0.01 | CV45: -0.008168507145 | CW45: 0.9993714825 | CX45: 0.01 | CY45: -0.005784497241 | CZ45: 0.9978366788 | DA45: 0.01 | DB45: 0.01 | DD45: 0.009022529333 | DE45: 105.7539878 | DF45: 103.6510776 | DG45: 102.7791874 | DH45: 101.0599009 | DI45: 101.8114875 | DJ45: 100.9518444 | DK45: 100.9022529 | DL45: -0.0975398782 | DM45: 1 | DN45: 0.01 | DO45: -0.03825538823 | DP45: 0.9999999995 | DQ45: 0.01 | DR45: -0.02259729143 | DS45: 0.9999991235 | DT45: 0.01 | DU45: -0.01264975226 | DV45: 0.9997921813 | DW45: 0.01 | DX45: -0.01162297492 | DY45: 0.9998992028 | DZ45: 0.01 | EA45: -0.008253074069 | EB45: 0.9994154774 | EC45: 0.01 | ED45: -0.007003218476 | EE45: 0.9992527596 | EF45: 0.01 | EG45: 0.01 | EI45: -0.002657666722 | EJ45: 105.472929 | EK45: 103.3756076 | EL45: 102.5060346 | EM45: 100.7913174 | EN45: 101.5409065 | EO45: 100.6835481 | EP45: 100.6340884 | EQ45: 99.73423333 | ER45: -0.07375607626 | ES45: 1 | ET45: 0.01 | EU45: -0.03253017302 | EV45: 0.9999999445 | EW45: 0.01 | EX45: -0.01597105789 | EY45: 0.9998595435 | EZ45: 0.01 | FA45: -0.01385226614 | FB45: 0.9999185243 | FC45: 0.01 | FD45: -0.009367096168 | FE45: 0.9993422583 | FF45: 0.01 | FG45: -0.007723480622 | FH45: 0.9990852628 | FI45: 0.01 | FJ45: -0.00533461904 | FK45: 0.9968741874 | FL45: 0.01 | FM45: 0.01 | FO45: -0.01406431502 | FP45: 101.9217005 | FQ45: 101.0643574 | FR45: 99.37375653 | FS45: 100.1128032 | FT45: 99.26750295 | FU45: 99.21873885 | FV45: 98.33153965 | FW45: 98.5935685 | FX45: -0.05064357441 | FY45: 0.9999999868 | FZ45: 0.01 | GA45: -0.01686878264 | GB45: 0.9990083204 | GC45: 0.01 | GD45: -0.01370934387 | GE45: 0.9994035104 | GF45: 0.01 | GG45: -0.008168757366 | GH45: 0.9957776363 | GI45: 0.01 | GJ45: -0.006437477705 | GK45: 0.9947285882 | GL45: 0.01 | GM45: -0.00388589942 | GN45: 0.9852444868 | GO45: 0.01 | GP45: -0.003705097854 | GQ45: 0.9893648652 | GR45: 0.01 | GS45: 0.01 | GU45: 0.0038516722 | GV45: 101.4536242 | GW45: 99.75651166 | GX45: 100.4984049 | GY45: 99.64984883 | GZ45: 99.60089691 | HA45: 98.71028051 | HB45: 98.9733186 | HC45: 100.3851672 | HD45: -0.03756511664 | HE45: 0.9999896179 | HF45: 0.01 | HG45: -0.02249202431 | HH45: 0.9999494547 | HI45: 0.01 | HJ45: -0.01216616276 | HK45: 0.998526758 | HL45: 0.01 | HM45: -0.009002242277 | HN45: 0.9974484172 | HO45: 0.01 | HP45: -0.005420561019 | HQ45: 0.9900997855 | HR45: 0.01 | HS45: -0.004955531008 | HT45: 0.9926278017 | HU45: 0.01 | HV45: -0.0062645246 | HW45: 0.9985602304 | HX45: 0.01 | HY45: 0.01 | IA45: 0.004922341086 | IB45: 100.2475472 | IC45: 100.9930923 | ID45: 100.1403594 | IE45: 100.0911665 | IF45: 99.19616618 | IG45: 99.46049904 | IH45: 100.8792973 | II45: 100.4922341 | IJ45: -0.0499309229 | IK45: 0.9999999803 | IL45: 0.01 | IM45: -0.02070179686 | IN45: 0.9998608926 | IO45: 0.01 | IP45: -0.01363722166 | IQ45: 0.9993768391 | IR45: 0.01 | IS45: -0.007990415447 | IT45: 0.9953127097 | IU45: 0.01 | IV45: -0.006920998075 | IW45: 0.9961576316 | IX45: 0.01 | IY45: -0.008132162088 | IZ45: 0.9993516512 | JA45: 0.01 | JB45: -0.006417477298 | JC45: 0.9987393799 | JD45: 0.01 | JE45: 0.01 | JG45: 0.02513471233 | JH45: 103.5315246 | JI45: 102.6573585 | JJ45: 102.6069292 | JK45: 101.6894333 | JL45: 101.9604101 | JM45: 103.4148694 | JN45: 103.0180775 | JO45: 102.5134712 | JP45: -0.06657358499 | JQ45: 1 | JR45: 0.01 | JS45: -0.03303464587 | JT45: 0.9999999625 | JU45: 0.01 | JV45: -0.0189647776 | JW45: 0.9999834358 | JX45: 0.01 | JY45: -0.01490102517 | JZ45: 0.9999655721 | KA45: 0.01 | KB45: -0.01482973874 | KC45: 0.9999953764 | KD45: 0.01 | KE45: -0.01169679584 | KF45: 0.9999784186 | KG45: 0.01 | KH45: -0.009304958905 | KI45: 0.9999230642 | KJ45: 0.01 | KK45: 0.01 | KM45: 0.02139151824 | KN45: 104.8533553 | KO45: 104.8018472 | KP45: 103.8647246 | KQ45: 104.141498 | KR45: 105.6270704 | KS45: 105.2217906 | KT45: 104.70639 | KU45: 102.1391518 | KV45: -0.08801847172 | KW45: 1 | KX45: 0.01 | KY45: -0.03932362324 | KZ45: 0.9999999998 | LA45: 0.01 | LB45: -0.0271383268 | LC45: 0.999999987 | LD45: 0.01 | LE45: -0.02406767609 | LF45: 0.9999999969 | LG45: 0.01 | LH45: -0.01844358118 | LI45: 0.9999999206 | LJ45: 0.01 | LK45: -0.01451065004 | LL45: 0.9999991197 | LM45: 0.01 | LN45: -0.008770216892 | LO45: 0.9998653951 | LP45: 0.01 | LQ45: 0.01 | LS45: 0.01360003672 | LT45: 106.2271561 | LU45: 105.2772887 | LV45: 105.5578262 | LW45: 107.0636025 | LX45: 106.6528108 | LY45: 106.1304008 | LZ45: 103.528248 | MA45: 101.3600037 | MB45: -0.09277288716 | MC45: 1 | MD45: 0.01 | ME45: -0.04778913119 | MF45: 1 | MG45: 0.01 | MH45: -0.0368786749 | MI45: 1 | MJ45: 0.01 | MK45: -0.02663202701 | ML45: 0.9999999999 | MM45: 0.01 | MN45: -0.02026080154 | MO45: 0.9999999919 | MP45: 0.01 | MQ45: -0.01254708007 | MR45: 0.9999913881 | MS45: 0.01 | MT45: -0.007657148103 | MU45: 0.9995941393 | MV45: 0.01 | MW45: 0.01 | MY45: 0.002409967083 | MZ45: 105.5310035 | NA45: 105.8122171 | NB45: 107.3216222 | NC45: 106.9098406 | ND45: 106.3861715 | NE45: 103.7777477 | NF45: 101.6042779 | NG45: 100.2409967 | NH45: -0.09812217125 | NI45: 1 | NJ45: 0.01 | NK45: -0.05660811114 | NL45: 1 | NM45: 0.01 | NN45: -0.03636613523 | NO45: 1 | NP45: 0.01 | NQ45: -0.02596542886 | NR45: 0.9999999997 | NS45: 0.01 | NT45: -0.01555549542 | NU45: 0.9999978502 | NV45: 0.01 | NW45: -0.009340463241 | NX45: 0.9997781958 | NY45: 0.01 | NZ45: -0.006058566726 | OA45: 0.9982822614 | OB45: 0.01 | OC45: 0.01 | OF45: 0.01 | OG45: 0.01 | OH45: 0.01 | OI45: 0.01 | OJ45: 0.01 | OK45: 0.01 | OL45: 0.01 | OM45: 0.01 | OO45: No | OQ45: 0.01 | OR45: 0.01 | OS45: 0.01 | OT45: 0.01 | OU45: 0.01 | OV45: 0.01 | OW45: 0.01 | OX45: 0.01 | OZ45: No
F46: 19 | G46: 0.004285536462 | H46: 100.4285536 | I46: -0.006326505209 | J46: 0.9986354562 | K46: 0.01 | M46: 0.004725392653 | N46: 100.903118 | O46: 100.4725393 | P46: -0.008171863326 | Q46: 0.9993732852 | R46: 0.01 | S46: -0.006389341808 | T46: 0.9987080393 | U46: 0.01 | V46: 0.01 | X46: -0.01090378417 | Y46: 99.80289218 | Z46: 99.37700838 | AA46: 98.90962158 | AB46: -0.00760578435 | AC46: 0.9975893654 | AD46: 0.01 | AE46: -0.005628347304 | AF46: 0.9953848278 | AG46: 0.01 | AH46: -0.004156602262 | AI46: 0.9922952541 | AJ46: 0.01 | AK46: 0.01 | AM46: -0.0002487748828 | AN46: 99.77806372 | AO46: 99.35228588 | AP46: 98.88501535 | AQ46: 99.97512251 | AR46: -0.009445159306 | AS46: 0.9980678504 | AT46: 0.01 | AU46: -0.006704571757 | AV46: 0.9955675642 | AW46: 0.01 | AX46: -0.004808358923 | AY46: 0.9918593391 | AZ46: 0.01 | BA46: -0.005678746445 | BB46: 0.9976384083 | BC46: 0.01 | BD46: 0.01 | BF46: 0.02405241627 | BG46: 102.1779672 | BH46: 101.7419484 | BI46: 101.2634389 | BJ46: 102.3797658 | BK46: 102.4052416 | BL46: -0.02059322415 | BM46: 0.9999953508 | BN46: 0.01 | BO46: -0.01435487104 | BP46: 0.9999457994 | BQ46: 0.01 | BR46: -0.01052687781 | BS46: 0.9997416204 | BT46: 0.01 | BU46: -0.01063294296 | BV46: 0.9999357389 | BW46: 0.01 | BX46: -0.009150345181 | BY46: 0.9999093816 | BZ46: 0.01 | CA46: 0.01 | CC46: 0.008818095468 | CD46: 103.0789823 | CE46: 102.6391186 | CF46: 102.1563896 | CG46: 103.2825603 | CH46: 103.3082608 | CI46: 100.8818095 | CJ46: -0.03539491158 | CK46: 0.9999999944 | CL46: 0.01 | CM46: -0.02213039543 | CN46: 0.9999986936 | CO46: 0.01 | CP46: -0.01539097394 | CQ46: 0.9999773066 | CR46: 0.01 | CS46: -0.01456512065 | CT46: 0.9999939254 | CU46: 0.01 | CV46: -0.01218043471 | CW46: 0.9999871367 | CX46: 0.01 | CY46: -0.006974013638 | CZ46: 0.9992326116 | DA46: 0.01 | DB46: 0.01 | DD46: 0.01884244297 | DE46: 105.0212422 | DF46: 104.5730904 | DG46: 104.0812655 | DH46: 105.2286561 | DI46: 105.2548408 | DJ46: 102.7826693 | DK46: 101.8842443 | DL46: -0.09021242161 | DM46: 1 | DN46: 0.01 | DO46: -0.04286545185 | DP46: 1 | DQ46: 0.01 | DR46: -0.02693755174 | DS46: 0.9999999841 | DT46: 0.01 | DU46: -0.02307164019 | DV46: 0.9999999901 | DW46: 0.01 | DX46: -0.01850968167 | DY46: 0.9999999268 | DZ46: 0.01 | EA46: -0.01130444882 | EB46: 0.9999674829 | EC46: 0.01 | ED46: -0.008406063282 | EE46: 0.9998051118 | EF46: 0.01 | EG46: 0.01 | EI46: 0.01361403834 | EJ46: 106.4510054 | EK46: 105.9967524 | EL46: 105.4982319 | EM46: 106.661243 | EN46: 106.6877843 | EO46: 104.1819565 | EP46: 103.2713003 | EQ46: 101.3614038 | ER46: -0.09996752431 | ES46: 1 | ET46: 0.01 | EU46: -0.04749115931 | EV46: 1 | EW46: 0.01 | EX46: -0.03553747678 | EY46: 1 | EZ46: 0.01 | FA46: -0.02671946069 | FB46: 0.9999999999 | FC46: 0.01 | FD46: -0.01636391298 | FE46: 0.9999991109 | FF46: 0.01 | FG46: -0.01211883384 | FH46: 0.9999862501 | FI46: 0.01 | FJ46: -0.007659148335 | FK46: 0.9995949138 | FL46: 0.01 | FM46: 0.01 | FO46: 0.003130786555 | FP46: 106.3286056 | FQ46: 105.8285243 | FR46: 106.9951766 | FS46: 107.021801 | FT46: 104.508128 | FU46: 103.5946207 | FV46: 101.6787448 | FW46: 100.3130787 | FX46: -0.09828524307 | FY46: 1 | FZ46: 0.01 | GA46: -0.0549758831 | GB46: 1 | GC46: 0.01 | GD46: -0.03673933652 | GE46: 1 | GF46: 0.01 | GG46: -0.0212703199 | GH46: 0.9999999256 | GI46: 0.01 | GJ46: -0.01518924141 | GK46: 0.999996826 | GL46: 0.01 | GM46: -0.009464574591 | GN46: 0.9998022607 | GO46: 0.01 | GP46: -0.006161540936 | GQ46: 0.9984268274 | GR46: 0.01 | GS46: 0.01 | GU46: -0.003596461401 | GV46: 105.4479161 | GW46: 106.6103726 | GX46: 106.6369012 | GY46: 104.1322685 | GZ46: 103.2220466 | HA46: 101.3130611 | HB46: 99.95230654 | HC46: 99.64035386 | HD46: -0.106103726 | HE46: 1 | HF46: 0.01 | HG46: -0.0531845059 | HH46: 1 | HI46: 0.01 | HJ46: -0.0271075617 | HK46: 0.9999999866 | HL46: 0.01 | HM46: -0.01805511662 | HN46: 0.9999979965 | HO46: 0.01 | HP46: -0.01062612215 | HQ46: 0.9997621749 | HR46: 0.01 | HS46: -0.006587177567 | HT46: 0.9977320407 | HU46: 0.01 | HV46: -0.005200505514 | HW46: 0.9965205017 | HX46: 0.01 | HY46: 0.01 | IA46: 0.003215997028 | IB46: 106.9532312 | IC46: 106.9798451 | ID46: 104.4671576 | IE46: 103.5540084 | IF46: 101.6388836 | IG46: 100.2737529 | IH46: 99.96079694 | II46: 100.3215997 | IJ46: -0.1097984514 | IK46: 1 | IL46: 0.01 | IM46: -0.04233578789 | IN46: 1 | IO46: 0.01 | IP46: -0.02518002815 | IQ46: 0.999999914 | IR46: 0.01 | IS46: -0.01409720894 | IT46: 0.999933123 | IU46: 0.01 | IV46: -0.008547505722 | IW46: 0.9987744526 | IX46: 0.01 | IY46: -0.006601328236 | IZ46: 0.9977565506 | JA46: 0.01 | JB46: -0.006173713861 | JC46: 0.998443163 | JD46: 0.01 | JE46: 0.01 | JG46: -0.006786002467 | JH46: 106.2538796 | JI46: 103.7582432 | JJ46: 102.8512907 | JK46: 100.9491619 | JL46: 99.59329493 | JM46: 99.28246273 | JN46: 99.64081708 | JO46: 99.32139975 | JP46: -0.07758243188 | JQ46: 1 | JR46: 0.01 | JS46: -0.03425645344 | JT46: 0.9999999859 | JU46: 0.01 | JV46: -0.01649720621 | JW46: 0.999901731 | JX46: 0.01 | JY46: -0.008983237316 | JZ46: 0.9974182079 | KA46: 0.01 | KB46: -0.006564925454 | KC46: 0.9951450964 | KD46: 0.01 | KE46: -0.006068028466 | KF46: 0.9966470025 | KG46: 0.01 | KH46: -0.00474485679 | KI46: 0.9950348472 | KJ46: 0.01 | KK46: 0.01 | KM46: 0.004366035259 | KN46: 104.2112553 | KO46: 103.300343 | KP46: 101.3899095 | KQ46: 100.0281228 | KR46: 99.71593346 | KS46: 100.0758524 | KT46: 99.75504049 | KU46: 100.4366035 | KV46: -0.07300343049 | KW46: 1 | KX46: 0.01 | KY46: -0.02694954731 | KZ46: 0.9999968838 | LA46: 0.01 | LB46: -0.01342707588 | LC46: 0.9992927191 | LD46: 0.01 | LE46: -0.00928983365 | LF46: 0.9978681745 | LG46: 0.01 | LH46: -0.008151704801 | LI46: 0.9983632268 | LJ46: 0.01 | LK46: -0.006258400811 | LL46: 0.9970898207 | LM46: 0.01 | LN46: -0.006338005037 | LO46: 0.9986490121 | LP46: 0.01 | LQ46: 0.01 | LS46: -0.001931373819 | LT46: 103.1008315 | LU46: 101.1940876 | LV46: 99.83493107 | LW46: 99.52334472 | LX46: 99.88256852 | LY46: 99.56237621 | LZ46: 100.2426229 | MA46: 99.80686262 | MB46: -0.05194087646 | MC46: 0.9999999938 | MD46: 0.01 | ME46: -0.01917465533 | MF46: 0.9996855248 | MG46: 0.01 | MH46: -0.01174448239 | MI46: 0.9981355519 | MJ46: 0.01 | MK46: -0.009706421298 | ML46: 0.9983657278 | MM46: 0.01 | MN46: -0.007124752426 | MO46: 0.9966477593 | MP46: 0.01 | MQ46: -0.007071038166 | MR46: 0.9984456932 | MS46: 0.01 | MT46: -0.005438375169 | MU46: 0.9971252392 | MV46: 0.01 | MW46: 0.01 | MY46: 0.0002120852991 | MZ46: 101.2155494 | NA46: 99.85610459 | NB46: 99.54445216 | NC46: 99.90375214 | ND46: 99.58349193 | NE46: 100.2638829 | NF46: 99.82803019 | NG46: 100.0212085 | NH46: -0.03856104588 | NI46: 0.9999933801 | NJ46: 0.01 | NK46: -0.01772226078 | NL46: 0.9993441622 | NM46: 0.01 | NN46: -0.01301250714 | NO46: 0.999095308 | NP46: 0.01 | NQ46: -0.008958729823 | NR46: 0.9973787752 | NS46: 0.01 | NT46: -0.008527765772 | NU46: 0.9987564249 | NV46: 0.01 | NW46: -0.006380050311 | NX46: 0.9973444367 | NY46: 0.01 | NZ46: -0.005744583614 | OA46: 0.9977636904 | OB46: 0.01 | OC46: 0.01 | OF46: 0.01 | OG46: 0.01 | OH46: 0.01 | OI46: 0.01 | OJ46: 0.01 | OK46: 0.01 | OL46: 0.01 | OM46: 0.01 | OO46: No | OQ46: 0.01 | OR46: 0.01 | OS46: 0.01 | OT46: 0.01 | OU46: 0.01 | OV46: 0.01 | OW46: 0.01 | OX46: 0.01 | OZ46: No
F47: 20 | G47: 0.005076460957 | H47: 100.5076461 | I47: -0.006439494422 | J47: 0.9987634185 | K47: 0.01 | M47: -0.003512253773 | N47: 100.1546377 | O47: 99.64877462 | P47: -0.006924396228 | Q47: 0.9982547151 | R47: 0.01 | S47: -0.005212535175 | T47: 0.9965536339 | U47: 0.01 | V47: 0.01 | X47: 0.004006434156 | Y47: 100.5559007 | Z47: 100.0480109 | AA47: 100.4006434 | AB47: -0.009111801396 | AC47: 0.9991988692 | AD47: 0.01 | AE47: -0.006746684795 | AF47: 0.9979947736 | AG47: 0.01 | AH47: -0.006286633451 | AI47: 0.9985874877 | AJ47: 0.01 | AK47: 0.01 | AM47: -0.0001866080082 | AN47: 100.5371362 | AO47: 100.0293411 | AP47: 100.3819079 | AQ47: 99.9813392 | AR47: -0.0113428404 | AS47: 0.9994595342 | AT47: 0.01 | AU47: -0.008058682234 | AV47: 0.9982498999 | AW47: 0.01 | AX47: -0.007303179753 | AY47: 0.9987093783 | AZ47: 0.01 | BA47: -0.005687627427 | BB47: 0.9976556707 | BC47: 0.01 | BD47: 0.01 | BF47: 0.01152188952 | BG47: 101.6955139 | BH47: 101.1818681 | BI47: 101.5384971 | BJ47: 101.1333131 | BK47: 101.152189 | BL47: -0.01898504646 | BM47: 0.999983688 | BN47: 0.01 | BO47: -0.01295467034 | BP47: 0.9998352525 | BQ47: 0.01 | BR47: -0.01107699421 | BS47: 0.9998377576 | BT47: 0.01 | BU47: -0.008555521906 | BV47: 0.9995505752 | BW47: 0.01 | BX47: -0.007360269932 | BY47: 0.9994626807 | BZ47: 0.01 | CA47: 0.01 | CC47: 0.02627329918 | CD47: 104.3673906 | CE47: 103.8402496 | CF47: 104.2062484 | CG47: 103.7904189 | CH47: 103.8097907 | CI47: 102.6273299 | CJ47: -0.041836953 | CK47: 1 | CL47: 0.01 | CM47: -0.02613416543 | CN47: 0.9999999653 | CO47: 0.01 | CP47: -0.02051562104 | CQ47: 0.999999833 | CR47: 0.01 | CS47: -0.01558083787 | CT47: 0.9999979079 | CU47: 0.01 | CV47: -0.01301631779 | CW47: 0.9999949045 | CX47: 0.01 | CY47: -0.009467614169 | CZ47: 0.9999353455 | DA47: 0.01 | DB47: 0.01 | DD47: 0.003531541247 | DE47: 104.7359683 | DF47: 104.2069658 | DG47: 104.5742571 | DH47: 104.1569591 | DI47: 104.1763992 | DJ47: 102.9897626 | DK47: 100.3531541 | DL47: -0.08735968345 | DM47: 1 | DN47: 0.01 | DO47: -0.04103482876 | DP47: 1 | DQ47: 0.01 | DR47: -0.02858085694 | DS47: 0.999999997 | DT47: 0.01 | DU47: -0.02039239771 | DV47: 0.9999998098 | DW47: 0.01 | DX47: -0.01635279847 | DY47: 0.9999990998 | DZ47: 0.01 | EA47: -0.01164960428 | EB47: 0.9999773172 | EC47: 0.01 | ED47: -0.006218791607 | EE47: 0.9985023179 | EF47: 0.01 | EG47: 0.01 | EI47: 0.01750294471 | EJ47: 106.5691562 | EK47: 106.0308945 | EL47: 106.4046145 | EM47: 105.9800126 | EN47: 105.999793 | EO47: 104.7923867 | EP47: 102.1096298 | EQ47: 101.7502945 | ER47: -0.1003089451 | ES47: 1 | ET47: 0.01 | EU47: -0.05202307261 | EV47: 1 | EW47: 0.01 | EX47: -0.0332667086 | EY47: 1 | EZ47: 0.01 | FA47: -0.02499948247 | FB47: 0.999999999 | FC47: 0.01 | FD47: -0.01758477337 | FE47: 0.9999997792 | FF47: 0.01 | FG47: -0.01018271639 | FH47: 0.9998999898 | FI47: 0.01 | FJ47: -0.008214706387 | FK47: 0.9997641057 | FL47: 0.01 | FM47: 0.01 | FO47: -0.006937316344 | FP47: 105.2953247 | FQ47: 105.666452 | FR47: 105.2447957 | FS47: 105.2644389 | FT47: 104.0654088 | FU47: 101.401263 | FV47: 101.0444205 | FW47: 99.30626837 | FX47: -0.0966645205 | FY47: 1 | FZ47: 0.01 | GA47: -0.04622397853 | GB47: 1 | GC47: 0.01 | GD47: -0.03088146298 | GE47: 0.9999999997 | GF47: 0.01 | GG47: -0.02016352188 | GH47: 0.9999997582 | GI47: 0.01 | GJ47: -0.01080252606 | GK47: 0.9997949925 | GL47: 0.01 | GM47: -0.008407367484 | GN47: 0.9994884949 | GO47: 0.01 | GP47: -0.004723240522 | GQ47: 0.9949520552 | GR47: 0.01 | GS47: 0.01 | GU47: 0.007808193477 | GV47: 106.4915162 | GW47: 106.0665674 | GX47: 106.086364 | GY47: 104.8779716 | GZ47: 102.1930237 | HA47: 101.8333949 | HB47: 100.0816709 | HC47: 100.7808193 | HD47: -0.1006656743 | HE47: 1 | HF47: 0.01 | HG47: -0.05043181999 | HH47: 1 | HI47: 0.01 | HJ47: -0.02959323865 | HK47: 0.999999999 | HL47: 0.01 | HM47: -0.01548255927 | HN47: 0.9999790289 | HO47: 0.01 | HP47: -0.01166678975 | HQ47: 0.9999030398 | HR47: 0.01 | HS47: -0.006802784871 | HT47: 0.9980803984 | HU47: 0.01 | HV47: -0.006829741925 | HW47: 0.9991255385 | HX47: 0.01 | HY47: 0.01 | IA47: -0.01164050017 | IB47: 104.8318995 | IC47: 104.8514657 | ID47: 103.6571395 | IE47: 101.0034458 | IF47: 100.6480032 | IG47: 98.91667021 | IH47: 99.6076802 | II47: 98.83594998 | IJ47: -0.0885146566 | IK47: 1 | IL47: 0.01 | IM47: -0.03828569775 | IN47: 0.9999999995 | IO47: 0.01 | IP47: -0.01667815267 | IQ47: 0.9999132483 | IR47: 0.01 | IS47: -0.01162000806 | IT47: 0.9995563216 | IU47: 0.01 | IV47: -0.00583334043 | IW47: 0.9922909973 | IX47: 0.01 | IY47: -0.006012800338 | IZ47: 0.9965076636 | JA47: 0.01 | JB47: -0.004051357118 | JC47: 0.9916844669 | JD47: 0.01 | JE47: 0.01 | JG47: 0.003197582228 | JH47: 105.1867368 | JI47: 103.9885918 | JJ47: 101.3264126 | JK47: 100.9698335 | JL47: 99.2329644 | JM47: 99.92618395 | JN47: 99.15198606 | JO47: 100.3197582 | JP47: -0.07988591777 | JQ47: 1 | JR47: 0.01 | JS47: -0.02663206311 | JT47: 0.9999961516 | JU47: 0.01 | JV47: -0.01656611164 | JW47: 0.9999062766 | JX47: 0.01 | JY47: -0.008082411004 | JZ47: 0.9955579502 | KA47: 0.01 | KB47: -0.007852367902 | KC47: 0.9979726647 | KD47: 0.01 | KE47: -0.0052533101 | KF47: 0.9939896793 | KG47: 0.01 | KH47: -0.006171083175 | KI47: 0.9984396459 | KJ47: 0.01 | KK47: 0.01 | KM47: 0.01366598923 | KN47: 105.4096988 | KO47: 102.7111383 | KP47: 102.3496861 | KQ47: 100.589081 | KR47: 101.2917741 | KS47: 100.506996 | KT47: 101.690727 | KU47: 101.3665989 | KV47: -0.06711138287 | KW47: 1 | KX47: 0.01 | KY47: -0.03174843074 | KZ47: 0.9999998987 | LA47: 0.01 | LB47: -0.01529693675 | LC47: 0.9997805635 | LD47: 0.01 | LE47: -0.01322943526 | LF47: 0.9998667645 | LG47: 0.01 | LH47: -0.009013992068 | LI47: 0.9991366899 | LJ47: 0.01 | LK47: -0.009484544931 | LL47: 0.999805897 | LM47: 0.01 | LN47: -0.007666569891 | LO47: 0.9995977754 | LP47: 0.01 | LQ47: 0.01 | LS47: 0.01106874803 | LT47: 103.848022 | LU47: 103.482569 | LV47: 101.7024762 | LW47: 102.4129472 | LX47: 101.6194826 | LY47: 102.816316 | LZ47: 102.4886003 | MA47: 101.1068748 | MB47: -0.07482569035 | MC47: 1 | MD47: 0.01 | ME47: -0.02851238109 | MF47: 0.9999989281 | MG47: 0.01 | MH47: -0.02137649077 | MI47: 0.9999975444 | MJ47: 0.01 | MK47: -0.01404870662 | ML47: 0.9999304439 | MM47: 0.01 | MN47: -0.01363263198 | MO47: 0.9999845265 | MP47: 0.01 | MQ47: -0.01081433378 | MR47: 0.9999464034 | MS47: 0.01 | MT47: -0.007295535433 | MU47: 0.9994292192 | MV47: 0.01 | MW47: 0.01 | MY47: 0.0007341355635 | MZ47: 103.5585393 | NA47: 101.7771396 | NB47: 102.4881322 | NC47: 101.6940851 | ND47: 102.8917971 | NE47: 102.5638408 | NF47: 101.181101 | NG47: 100.0734136 | NH47: -0.05777139622 | NI47: 0.9999999998 | NJ47: 0.01 | NK47: -0.03244066108 | NL47: 0.9999999405 | NM47: 0.01 | NN47: -0.01898028375 | NO47: 0.9999836291 | NP47: 0.01 | NQ47: -0.01722949277 | NR47: 0.9999956237 | NS47: 0.01 | NT47: -0.01312768158 | NU47: 0.9999747686 | NV47: 0.01 | NW47: -0.008635168259 | NX47: 0.9995809881 | NY47: 0.01 | NZ47: -0.005819162223 | OA47: 0.9978983094 | OB47: 0.01 | OC47: 0.01 | OF47: 0.01 | OG47: 0.01 | OH47: 0.01 | OI47: 0.01 | OJ47: 0.01 | OK47: 0.01 | OL47: 0.01 | OM47: 0.01 | OO47: No | OQ47: 0.01 | OR47: 0.01 | OS47: 0.01 | OT47: 0.01 | OU47: 0.01 | OV47: 0.01 | OW47: 0.01 | OX47: 0.01 | OZ47: No
F48: 21 | G48: 0.01785550493 | H48: 101.7855505 | I48: -0.008265072133 | J48: 0.9997756163 | K48: 0.01 | M48: 0.005380536159 | N48: 102.3332113 | O48: 100.5380536 | P48: -0.01055535221 | Q48: 0.9999305918 | R48: 0.01 | S48: -0.006482933737 | T48: 0.9988096202 | U48: 0.01 | V48: 0.01 | X48: 0.006186124513 | Y48: 102.9662573 | Z48: 101.1599945 | AA48: 100.6186125 | AB48: -0.01393251463 | AC48: 0.9999884928 | AD48: 0.01 | AE48: -0.00859999089 | AF48: 0.999567799 | AG48: 0.01 | AH48: -0.006598017788 | AI48: 0.9989244878 | AJ48: 0.01 | AK48: 0.01 | AM48: 0.01115751953 | AN48: 104.1151053 | AO48: 102.2886891 | AP48: 101.7412666 | AQ48: 101.115752 | AR48: -0.02028776335 | AS48: 0.9999997877 | AT48: 0.01 | AU48: -0.0125773783 | AV48: 0.9999576014 | AW48: 0.01 | AX48: -0.009568777641 | AY48: 0.999820558 | AZ48: 0.01 | BA48: -0.007308217076 | BB48: 0.9994359223 | BC48: 0.01 | BD48: 0.01 | BF48: 0.002335478791 | BG48: 104.358264 | BH48: 102.5275822 | BI48: 101.9788812 | BJ48: 101.3519056 | BK48: 100.2335479 | BL48: -0.02786087987 | BM48: 0.9999999937 | BN48: 0.01 | BO48: -0.01631895553 | BP48: 0.9999899506 | BQ48: 0.01 | BR48: -0.01195776231 | BS48: 0.9999252417 | BT48: 0.01 | BU48: -0.008919842745 | BV48: 0.9996747699 | BW48: 0.01 | BX48: -0.006047925542 | BY48: 0.9982666528 | BZ48: 0.01 | CA48: 0.01 | CC48: 0.01762597007 | CD48: 106.1976796 | CE48: 104.3347303 | CF48: 103.7763579 | CG48: 103.1383313 | CH48: 102.0002614 | CI48: 101.762597 | CJ48: -0.050988398 | CK48: 1 | CL48: 0.01 | CM48: -0.02778243436 | CN48: 0.9999999932 | CO48: 0.01 | CP48: -0.01944089465 | CQ48: 0.9999994911 | CR48: 0.01 | CS48: -0.0142766626 | CT48: 0.9999918518 | CU48: 0.01 | CV48: -0.01000043566 | CW48: 0.9998807681 | CX48: 0.01 | CY48: -0.008232281438 | CZ48: 0.9997681835 | DA48: 0.01 | DB48: 0.01 | DD48: 0.005306304507 | DE48: 106.7611968 | DF48: 104.8883622 | DG48: 104.3270268 | DH48: 103.6856147 | DI48: 102.5415058 | DJ48: 102.3025803 | DK48: 100.5306305 | DL48: -0.1076119682 | DM48: 1 | DN48: 0.01 | DO48: -0.04444181079 | DP48: 1 | DQ48: 0.01 | DR48: -0.02775675606 | DS48: 0.999999993 | DT48: 0.01 | DU48: -0.01921403674 | DV48: 0.9999993599 | DW48: 0.01 | DX48: -0.01308301168 | DY48: 0.9999736687 | DZ48: 0.01 | EA48: -0.01050430056 | EB48: 0.9999269959 | EC48: 0.01 | ED48: -0.006472329215 | EE48: 0.9987984895 | EF48: 0.01 | EG48: 0.01 | EI48: -0.001873364002 | EJ48: 106.5611942 | EK48: 104.6918681 | EL48: 104.1315843 | EM48: 103.4913738 | EN48: 102.3494083 | EO48: 102.1109304 | EP48: 100.3423 | EQ48: 99.8126636 | ER48: -0.08691868076 | ES48: 1 | ET48: 0.01 | EU48: -0.0406579216 | EV48: 0.9999999999 | EW48: 0.01 | EX48: -0.02497124599 | EY48: 0.9999998955 | EZ48: 0.01 | FA48: -0.01587352069 | FB48: 0.9999850813 | FC48: 0.01 | FD48: -0.01222186073 | FE48: 0.9999411638 | FF48: 0.01 | FG48: -0.007237166644 | FH48: 0.9986388977 | FI48: 0.01 | FJ48: -0.005446662285 | FK48: 0.9971444847 | FL48: 0.01 | FM48: 0.01 | FO48: -0.01219000291 | FP48: 103.4156739 | FQ48: 102.86222 | FR48: 102.2298136 | FS48: 101.1017687 | FT48: 100.8661978 | FU48: 99.11912706 | FV48: 98.59594694 | FW48: 98.78099971 | FX48: -0.06862220005 | FY48: 1 | FZ48: 0.01 | GA48: -0.03114906825 | GB48: 0.9999998408 | GC48: 0.01 | GD48: -0.01700589564 | GE48: 0.9999309462 | GF48: 0.01 | GG48: -0.01216549456 | GH48: 0.9997016378 | GI48: 0.01 | GJ48: -0.006238254116 | GK48: 0.9940136851 | GL48: 0.01 | GM48: -0.004326578234 | GN48: 0.9888299686 | GO48: 0.01 | GP48: -0.003972856728 | GQ48: 0.9912015995 | GR48: 0.01 | GS48: 0.01 | GU48: 0.01228045461 | GV48: 104.1254148 | GW48: 103.4852422 | GX48: 102.3433444 | GY48: 102.1048806 | GZ48: 100.336355 | HA48: 99.80674999 | HB48: 99.99407529 | HC48: 101.2280455 | HD48: -0.07485242236 | HE48: 1 | HF48: 0.01 | HG48: -0.03171672186 | HH48: 0.9999998963 | HI48: 0.01 | HJ48: -0.02034960196 | HK48: 0.9999943502 | HL48: 0.01 | HM48: -0.0108408875 | HN48: 0.9992330108 | HO48: 0.01 | HP48: -0.007613499984 | HQ48: 0.9976022898 | HR48: 0.01 | HS48: -0.006656792155 | HT48: 0.9978503208 | HU48: 0.01 | HV48: -0.007468636373 | HW48: 0.9995146622 | HX48: 0.01 | HY48: 0.01 | IA48: 0.01976745038 | IB48: 105.5308816 | IC48: 104.3664114 | ID48: 104.1232337 | IE48: 102.3197489 | IF48: 101.779675 | IG48: 101.9707032 | IH48: 103.2290658 | II48: 101.976745 | IJ48: -0.08366411353 | IK48: 1 | IL48: 0.01 | IM48: -0.04061616875 | IN48: 0.9999999999 | IO48: 0.01 | IP48: -0.02106582972 | IQ48: 0.9999968302 | IR48: 0.01 | IS48: -0.01444918742 | IT48: 0.9999498443 | IU48: 0.01 | IV48: -0.01194140643 | IW48: 0.9999241328 | IX48: 0.01 | IY48: -0.01204844304 | IZ48: 0.9999851659 | JA48: 0.01 | JB48: -0.008538207196 | JC48: 0.9998294301 | JD48: 0.01 | JE48: 0.01 | JG48: 0.01029858095 | JH48: 105.4412373 | JI48: 105.1955553 | JJ48: 103.3734971 | JK48: 102.8278612 | JL48: 103.0208568 | JM48: 104.2921787 | JN48: 103.0269608 | JO48: 101.0298581 | JP48: -0.09195555301 | JQ48: 1 | JR48: 0.01 | JS48: -0.03686748567 | JT48: 0.9999999984 | JU48: 0.01 | JV48: -0.0227595373 | JW48: 0.9999992381 | JX48: 0.01 | JY48: -0.01755214189 | JZ48: 0.9999967652 | KA48: 0.01 | KB48: -0.01658435743 | KC48: 0.9999993049 | KD48: 0.01 | KE48: -0.01171160134 | KF48: 0.9999787535 | KG48: 0.01 | KH48: -0.007185511564 | KI48: 0.9993678962 | KJ48: 0.01 | KK48: 0.01 | KM48: -0.004907247772 | KN48: 104.6793346 | KO48: 102.8662178 | KP48: 102.3232594 | KQ48: 102.5153079 | KR48: 103.7803912 | KS48: 102.521382 | KT48: 100.5340795 | KU48: 99.50927522 | KV48: -0.06866217771 | KW48: 1 | KX48: 0.01 | KY48: -0.03161629699 | KZ48: 0.9999998881 | LA48: 0.01 | LB48: -0.02171769295 | LC48: 0.9999981507 | LD48: 0.01 | LE48: -0.01945097789 | LF48: 0.9999994963 | LG48: 0.01 | LH48: -0.01304276395 | LI48: 0.9999726389 | LJ48: 0.01 | LK48: -0.007556799248 | LL48: 0.9989502193 | LM48: 0.01 | LN48: -0.005013250318 | LO48: 0.9959665521 | LP48: 0.01 | LQ48: 0.01 | LS48: 0.01643232288 | LT48: 104.5565487 | LU48: 104.0046682 | LV48: 104.1998725 | LW48: 105.4857441 | LX48: 104.2060464 | LY48: 102.186088 | LZ48: 101.1444438 | MA48: 101.6432323 | MB48: -0.08004668235 | MC48: 1 | MD48: 0.01 | ME48: -0.04099936262 | MF48: 1 | MG48: 0.01 | MH48: -0.03161914684 | MI48: 0.9999999999 | MJ48: 0.01 | MK48: -0.02051511607 | ML48: 0.9999998329 | MM48: 0.01 | MN48: -0.01237217601 | MO48: 0.9999487374 | MP48: 0.01 | MQ48: -0.008574072938 | MR48: 0.9995578363 | MS48: 0.01 | MT48: -0.008061760411 | MU48: 0.9997256861 | MV48: 0.01 | MW48: 0.01 | MY48: 0.004951767339 | MZ48: 104.5196752 | NA48: 104.7158461 | NB48: 106.0080849 | NC48: 104.7220505 | ND48: 102.6920897 | NE48: 101.6452875 | NF48: 102.1465459 | NG48: 100.4951767 | NH48: -0.0871584605 | NI48: 1 | NJ48: 0.01 | NK48: -0.05004042457 | NL48: 1 | NM48: 0.01 | NN48: -0.02907350175 | NO48: 0.9999999982 | NP48: 0.01 | NQ48: -0.01673022434 | NR48: 0.9999930693 | NS48: 0.01 | NT48: -0.01129057503 | NU48: 0.9998650946 | NV48: 0.01 | NW48: -0.01024424321 | NX48: 0.9999057919 | NY48: 0.01 | NZ48: -0.006421681048 | OA48: 0.9987440024 | OB48: 0.01 | OC48: 0.01 | OF48: 0.01 | OG48: 0.01 | OH48: 0.01 | OI48: 0.01 | OJ48: 0.01 | OK48: 0.01 | OL48: 0.01 | OM48: 0.01 | OO48: No | OQ48: 0.01 | OR48: 0.01 | OS48: 0.01 | OT48: 0.01 | OU48: 0.01 | OV48: 0.01 | OW48: 0.01 | OX48: 0.01 | OZ48: No
F49: 22 | G49: 0.02239045844 | H49: 102.2390458 | I49: -0.008912922634 | J49: 0.9998838456 | K49: 0.01 | M49: -0.006413601516 | N49: 101.5833253 | O49: 99.35863985 | P49: -0.009305542241 | Q49: 0.9997709474 | R49: 0.01 | S49: -0.004798056926 | T49: 0.9952334778 | U49: 0.01 | V49: 0.01 | X49: -0.001329340881 | Y49: 101.4482865 | Z49: 99.22655835 | AA49: 99.86706591 | AB49: -0.01089657295 | AC49: 0.9998107096 | AD49: 0.01 | AE49: -0.005377597244 | AF49: 0.9944887044 | AG49: 0.01 | AH49: -0.005524379874 | AI49: 0.9973193946 | AJ49: 0.01 | AK49: 0.01 | AM49: 0.01907855823 | AN49: 103.3837735 | AO49: 101.119658 | AP49: 101.7723855 | AQ49: 101.9078558 | AR49: -0.0184594338 | AS49: 0.9999986465 | AT49: 0.01 | AU49: -0.01023931604 | AV49: 0.9996723332 | AW49: 0.01 | AX49: -0.009620642574 | AY49: 0.9998290631 | AZ49: 0.01 | BA49: -0.008439794033 | BB49: 0.9998116099 | BC49: 0.01 | BD49: 0.01 | BF49: -0.01697378074 | BG49: 101.62896 | BH49: 99.40327511 | BI49: 100.0449234 | BJ49: 100.1780942 | BK49: 98.30262193 | BL49: -0.01876320005 | BM49: 0.999980717 | BN49: 0.01 | BO49: -0.008508187785 | BP49: 0.9965500534 | BQ49: 0.01 | BR49: -0.008089846772 | BS49: 0.9982886385 | BT49: 0.01 | BU49: -0.00696349037 | BV49: 0.9983076138 | BW49: 0.01 | BX49: -0.003289459894 | BY49: 0.9858529714 | BZ49: 0.01 | CA49: 0.01 | CC49: -0.007271946445 | CD49: 100.8899197 | CE49: 98.68041982 | CF49: 99.31740206 | CG49: 99.44960449 | CH49: 97.58777052 | CI49: 99.27280536 | CJ49: -0.0244495983 | CK49: 0.9999844189 | CL49: 0.01 | CM49: -0.008934732736 | CN49: 0.9921013778 | CO49: 0.01 | CP49: -0.008293505153 | CQ49: 0.9960778731 | CR49: 0.01 | CS49: -0.006899208972 | CT49: 0.9961015896 | CU49: 0.01 | CV49: -0.002646284206 | CW49: 0.9694623187 | CX49: 0.01 | CY49: -0.004675436222 | CZ49: 0.9947645815 | DA49: 0.01 | DB49: 0.01 | DD49: 0.009318088394 | DE49: 101.8300208 | DF49: 99.5999327 | DG49: 100.2428504 | DH49: 100.3762847 | DI49: 98.497102 | DJ49: 100.1978381 | DK49: 100.9318088 | DL49: -0.05830020849 | DM49: 0.9999999999 | DN49: 0.01 | DO49: -0.01799966348 | DP49: 0.999428316 | DQ49: 0.01 | DR49: -0.01414283464 | DS49: 0.9995428262 | DT49: 0.01 | DU49: -0.01094071173 | DV49: 0.9992840499 | DW49: 0.01 | DX49: -0.004994203991 | DY49: 0.9872838379 | DZ49: 0.01 | EA49: -0.006996396885 | EB49: 0.9983510039 | EC49: 0.01 | ED49: -0.007045441199 | EE49: 0.9992810277 | EF49: 0.01 | EG49: 0.01 | EI49: 0.00599606898 | EJ49: 102.4406007 | EK49: 100.1971408 | EL49: 100.8439134 | EM49: 100.9781478 | EN49: 99.08769741 | EO49: 100.7986313 | EP49: 101.5370029 | EQ49: 100.5996069 | ER49: -0.04197140762 | ES49: 0.9999986809 | ET49: 0.01 | EU49: -0.02421956719 | EV49: 0.9999820402 | EW49: 0.01 | EX49: -0.01659382606 | EY49: 0.9999080486 | EZ49: 0.01 | FA49: -0.007719243534 | FB49: 0.9945180719 | FC49: 0.01 | FD49: -0.00959726256 | FE49: 0.9994508355 | FF49: 0.01 | FG49: -0.009228338212 | FH49: 0.9997541308 | FI49: 0.01 | FJ49: -0.006570866997 | FK49: 0.9988983434 | FL49: 0.01 | FM49: 0.01 | FO49: 0.03262344444 | FP49: 103.4659166 | FQ49: 104.1337892 | FR49: 104.2724028 | FS49: 102.3202794 | FT49: 104.0870298 | FU49: 104.8494897 | FV49: 103.8815126 | FW49: 103.2623444 | FX49: -0.08133789245 | FY49: 1 | FZ49: 0.01 | GA49: -0.04136201407 | GB49: 1 | GC49: 0.01 | GD49: -0.02106759801 | GE49: 0.9999968348 | GF49: 0.01 | GG49: -0.02021757457 | GH49: 0.9999997715 | GI49: 0.01 | GJ49: -0.0176989794 | GK49: 0.9999998069 | GL49: 0.01 | GM49: -0.01313585431 | GN49: 0.9999955511 | GO49: 0.01 | GP49: -0.01037477778 | GQ49: 0.9999762688 | GR49: 0.01 | GS49: 0.01 | GU49: 0.01703154865 | GV49: 105.9073489 | GW49: 106.0483233 | GX49: 104.0629522 | GY49: 105.8597931 | GZ49: 106.6352389 | HA49: 105.6507756 | HB49: 105.0210621 | HC49: 101.7031549 | HD49: -0.1004832331 | HE49: 1 | HF49: 0.01 | HG49: -0.0403147611 | HH49: 0.9999999999 | HI49: 0.01 | HJ49: -0.03286597713 | HK49: 1 | HL49: 0.01 | HM49: -0.02658809721 | HN49: 0.9999999999 | HO49: 0.01 | HP49: -0.01930155124 | HQ49: 0.9999999724 | HR49: 0.01 | HS49: -0.01503510348 | HT49: 0.999999539 | HU49: 0.01 | HV49: -0.008147364092 | HW49: 0.9997478534 | HX49: 0.01 | HY49: 0.01 | IA49: 0.02323238495 | IB49: 108.5120788 | IC49: 106.4805828 | ID49: 108.3191686 | IE49: 109.1126298 | IF49: 108.1052951 | IG49: 107.4609518 | IH49: 104.0659617 | II49: 102.3232385 | IJ49: -0.1048058279 | IK49: 1 | IL49: 0.01 | IM49: -0.06159584302 | IN49: 1 | IO49: 0.01 | IP49: -0.04370876601 | IQ49: 1 | IR49: 0.01 | IS49: -0.03026323777 | IT49: 1 | IU49: 0.01 | IV49: -0.02292190366 | IW49: 0.9999999998 | IX49: 0.01 | IY49: -0.01344326952 | IZ49: 0.9999968737 | JA49: 0.01 | JB49: -0.00903319785 | JC49: 0.9998975248 | JD49: 0.01 | JE49: 0.01 | JG49: -0.01257067969 | JH49: 105.1420495 | JI49: 106.957523 | JJ49: 107.7410099 | JK49: 106.7463381 | JL49: 106.1100946 | JM49: 102.7577818 | JN49: 101.0369658 | JO49: 98.74293203 | JP49: -0.1095752303 | JQ49: 1 | JR49: 0.01 | JS49: -0.05870504942 | JT49: 1 | JU49: 0.01 | JV49: -0.0358211269 | JW49: 1 | JX49: 0.01 | JY49: -0.02527523656 | JZ49: 0.9999999993 | KA49: 0.01 | KB49: -0.01351556368 | KC49: 0.9999826503 | KD49: 0.01 | KE49: -0.008394943066 | KF49: 0.9994829435 | KG49: 0.01 | KH49: -0.00391847433 | KI49: 0.9908528359 | KJ49: 0.01 | KK49: 0.01 | KM49: 0.007156696727 | KN49: 107.7229856 | KO49: 108.5120796 | KP49: 107.5102892 | KQ49: 106.8694924 | KR49: 103.4931881 | KS49: 101.7600568 | KT49: 99.44960525 | KU49: 100.7156697 | KV49: -0.1251207962 | KW49: 1 | KX49: 0.01 | KY49: -0.0575514462 | KZ49: 1 | LA49: 0.01 | LB49: -0.0362316413 | LC49: 1 | LD49: 0.01 | LE49: -0.0187329703 | LF49: 0.9999989656 | LG49: 0.01 | LH49: -0.01152011352 | LI49: 0.9998896273 | LJ49: 0.01 | LK49: -0.005749342083 | LL49: 0.9957687849 | LM49: 0.01 | LN49: -0.006736670961 | LO49: 0.9990493485 | LP49: 0.01 | LQ49: 0.01 | LS49: -0.01823737207 | LT49: 106.5331044 | LU49: 105.5495841 | LV49: 104.9204737 | LW49: 101.6057443 | LX49: 99.90422075 | LY49: 97.6359058 | LZ49: 98.87888053 | MA49: 98.17626279 | MB49: -0.09549584094 | MC49: 1 | MD49: 0.01 | ME49: -0.04460236848 | MF49: 1 | MG49: 0.01 | MH49: -0.01868581447 | MI49: 0.9999795648 | MJ49: 0.01 | MK49: -0.009760551864 | ML49: 0.9984219495 | MM49: 0.01 | MN49: -0.003271811594 | MO49: 0.9678167902 | MP49: 0.01 | MQ49: -0.00479813422 | MR49: 0.9918034254 | MS49: 0.01 | MT49: -0.003108946848 | MU49: 0.984040586 | MV49: 0.01 | MW49: 0.01 | MY49: -0.01306095946 | MZ49: 104.1710053 | NA49: 103.5501116 | NB49: 100.2786758 | NC49: 98.59937577 | ND49: 96.36068719 | NE49: 97.58742748 | NF49: 96.8939866 | NG49: 98.69390405 | NH49: -0.07550111642 | NI49: 1 | NJ49: 0.01 | NK49: -0.02139337916 | NL49: 0.9999052386 | NM49: 0.01 | NN49: -0.008664585893 | NO49: 0.9910280981 | NP49: 0.01 | NQ49: -0.0009017179725 | NR49: 0.881068207 | NS49: 0.009210270006 | NT49: -0.003174854963 | NU49: 0.9662217077 | NV49: 0.01 | NW49: -0.001489977675 | NX49: 0.9440502862 | NY49: 0.01 | NZ49: -0.003848434362 | OA49: 0.9903858655 | OB49: 0.01 | OC49: 0.009210270006 | OF49: 0.01 | OG49: 0.01 | OH49: 0.01 | OI49: 0.01 | OJ49: 0.01 | OK49: 0.01 | OL49: 0.01 | OM49: 0.009210270006 | OO49: Yes | OQ49: 0.01 | OR49: 0.01 | OS49: 0.01 | OT49: 0.01 | OU49: 0.01 | OV49: 0.01 | OW49: 0.01 | OX49: 0.01 | OZ49: No
F50: 23 | G50: 0.03612781658 | H50: 103.6127817 | I50: -0.01087540237 | J50: 0.9999866682 | K50: 0.01 | M50: 0.0104903039 | N50: 104.6997112 | O50: 101.0490304 | P50: -0.01449951871 | Q50: 0.9999991076 | R50: 0.01 | S50: -0.007212900557 | T50: 0.9993837059 | U50: 0.01 | V50: 0.01 | X50: 0.006109216862 | Y50: 105.3393445 | Z50: 101.6663608 | AA50: 100.6109217 | AB50: -0.01867868893 | AC50: 0.9999999404 | AD50: 0.01 | AE50: -0.009443934717 | AF50: 0.9997984356 | AG50: 0.01 | AH50: -0.00658703098 | AI50: 0.9989139776 | AJ50: 0.01 | AK50: 0.01 | AM50: -0.005759587047 | AN50: 104.7326333 | AO50: 101.0808046 | AP50: 100.0314443 | AQ50: 99.4240413 | AR50: -0.02183158336 | AS50: 0.9999999598 | AT50: 0.01 | AU50: -0.01016160915 | AV50: 0.9996508413 | AW50: 0.01 | AX50: -0.006719073875 | AY50: 0.9979513709 | AZ50: 0.01 | BA50: -0.004891487565 | BB50: 0.9955652237 | BC50: 0.01 | BD50: 0.01 | BF50: 0.00174279292 | BG50: 104.9151606 | BH50: 101.2569675 | BI50: 100.2057784 | BJ50: 99.59731681 | BK50: 100.1742793 | BL50: -0.02971720211 | BM50: 0.9999999991 | BN50: 0.01 | BO50: -0.01314241871 | BP50: 0.9998574547 | BQ50: 0.01 | BR50: -0.008411556835 | BS50: 0.9986452868 | BT50: 0.01 | BU50: -0.005995528018 | BV50: 0.9964630306 | BW50: 0.01 | BX50: -0.005963256131 | BY50: 0.9981377844 | BZ50: 0.01 | CA50: 0.01 | CC50: 0.004679951259 | CD50: 105.4061585 | CE50: 101.7308452 | CF50: 100.6747366 | CG50: 100.0634274 | CH50: 100.64309 | CI50: 100.4679951 | CJ50: -0.04703079236 | CK50: 1 | CL50: 0.01 | CM50: -0.01910281719 | CN50: 0.999985083 | CO50: 0.01 | CP50: -0.01168684144 | CQ50: 0.999577121 | CR50: 0.01 | CS50: -0.008126854797 | CT50: 0.998333626 | CU50: 0.01 | CV50: -0.007738483394 | CW50: 0.9990965992 | CX50: 0.01 | CY50: -0.00638285018 | CZ50: 0.9987007077 | DA50: 0.01 | DB50: 0.01 | DD50: 0.01124100475 | DE50: 106.5910296 | DF50: 102.8744021 | DG50: 101.8064218 | DH50: 101.1882409 | DI50: 101.7744195 | DJ50: 101.5973563 | DK50: 101.1241005 | DL50: -0.105910296 | DM50: 1 | DN50: 0.01 | DO50: -0.03437201036 | DP50: 0.9999999871 | DQ50: 0.01 | DR50: -0.01935473923 | DS50: 0.999987696 | DT50: 0.01 | DU50: -0.01297060215 | DV50: 0.9998372554 | DW50: 0.01 | DX50: -0.01154883898 | DY50: 0.999892384 | DZ50: 0.01 | EA50: -0.009328927227 | EB50: 0.9997758253 | EC50: 0.01 | ED50: -0.007320143535 | EE50: 0.9994421599 | EF50: 0.01 | EG50: 0.01 | EI50: 0.004559168982 | EJ50: 107.0769961 | EK50: 103.3434239 | EL50: 102.2705744 | EM50: 101.6495752 | EN50: 102.2384263 | EO50: 102.0605559 | EP50: 101.5851423 | EQ50: 100.4559169 | ER50: -0.07343423854 | ES50: 1 | ET50: 0.01 | EU50: -0.03135287224 | EV50: 0.9999998634 | EW50: 0.01 | EX50: -0.01883191717 | EY50: 0.9999816882 | EZ50: 0.01 | FA50: -0.01559606566 | FB50: 0.9999809916 | FC50: 0.01 | FD50: -0.0121211117 | FE50: 0.9999355097 | FF50: 0.01 | FG50: -0.009308570562 | FH50: 0.9997715846 | FI50: 0.01 | FJ50: -0.006365595569 | FK50: 0.9986810352 | FL50: 0.01 | FM50: 0.01 | FO50: -0.001712299748 | FP50: 103.1664689 | FQ50: 102.0954566 | FR50: 101.4755206 | FS50: 102.0633634 | FT50: 101.8857976 | FU50: 101.4111981 | FV50: 100.2839063 | FW50: 99.82877003 | FX50: -0.0609545657 | FY50: 1 | FZ50: 0.01 | GA50: -0.02737760304 | GB50: 0.9999976627 | GC50: 0.01 | GD50: -0.02021121145 | GE50: 0.9999936934 | GF50: 0.01 | GG50: -0.01471449397 | GH50: 0.9999597487 | GI50: 0.01 | GJ50: -0.01082239625 | GK50: 0.9997984114 | GL50: 0.01 | GM50: -0.007139843762 | GN50: 0.9985285603 | GO50: 0.01 | GP50: -0.005469671465 | GQ50: 0.9971973119 | GR50: 0.01 | GS50: 0.01 | GU50: 0.005840990599 | GV50: 102.6917952 | GW50: 102.0682382 | GX50: 102.6595146 | GY50: 102.4809116 | GZ50: 102.00354 | HA50: 100.8696636 | HB50: 100.4118689 | HC50: 100.5840991 | HD50: -0.0606823817 | HE50: 1 | HF50: 0.01 | HG50: -0.0332975729 | HH50: 0.9999999695 | HI50: 0.01 | HJ50: -0.02160303858 | HK50: 0.9999979651 | HL50: 0.01 | HM50: -0.01500884995 | HN50: 0.9999685648 | HO50: 0.01 | HP50: -0.009739327221 | HQ50: 0.9995093148 | HR50: 0.01 | HS50: -0.007353114887 | HT50: 0.9987604582 | HU50: 0.01 | HV50: -0.006548712943 | HW50: 0.9988765804 | HX50: 0.01 | HY50: 0.01 | IA50: -0.005075734429 | IB50: 101.5501669 | IC50: 102.1384421 | ID50: 101.9607457 | IE50: 101.4857971 | IF50: 100.357676 | IG50: 99.90220495 | IH50: 100.0735609 | II50: 99.49242656 | IJ50: -0.06138442148 | IK50: 1 | IL50: 0.01 | IM50: -0.02980372841 | IN50: 0.9999995717 | IO50: 0.01 | IP50: -0.01828599033 | IQ50: 0.9999724949 | IR50: 0.01 | IS50: -0.01089418997 | IT50: 0.9992606664 | IU50: 0.01 | IV50: -0.007804409904 | IW50: 0.9979027608 | IX50: 0.01 | IY50: -0.006789268142 | IZ50: 0.9980600774 | JA50: 0.01 | JB50: -0.004989180796 | JC50: 0.9958898989 | JD50: 0.01 | JE50: 0.01 | JG50: 0.0126266473 | JH50: 103.4281082 | JI50: 103.2481681 | JJ50: 102.7672225 | JK50: 101.624857 | JL50: 101.1636349 | JM50: 101.3371544 | JN50: 100.7486823 | JO50: 101.2626647 | JP50: -0.07248168056 | JQ50: 1 | JR50: 0.01 | JS50: -0.03383611232 | JT50: 0.9999999802 | JU50: 0.01 | JV50: -0.01874952322 | JW50: 0.999980518 | JX50: 0.01 | JY50: -0.01290908715 | JZ50: 0.9998293939 | KA50: 0.01 | KB50: -0.01067430889 | KC50: 0.9997715952 | KD50: 0.01 | KE50: -0.00791447056 | KF50: 0.9992202738 | KG50: 0.01 | KH50: -0.007518092471 | KI50: 0.9995368025 | KJ50: 0.01 | KK50: 0.01 | KM50: 0.02373149832 | KN50: 105.6984018 | KO50: 105.2060426 | KP50: 104.0365671 | KQ50: 103.5643995 | KR50: 103.742037 | KS50: 103.1395995 | KT50: 103.6657795 | KU50: 102.3731498 | KV50: -0.09206042631 | KW50: 1 | KX50: 0.01 | KY50: -0.04018283543 | KZ50: 0.9999999999 | LA50: 0.01 | LB50: -0.02521466496 | LC50: 0.9999999168 | LD50: 0.01 | LE50: -0.01935509238 | LF50: 0.9999994449 | LG50: 0.01 | LH50: -0.01427919904 | LI50: 0.9999918726 | LJ50: 0.01 | LK50: -0.01277629915 | LL50: 0.9999933249 | LM50: 0.01 | LN50: -0.00910449976 | LO50: 0.999904904 | LP50: 0.01 | LQ50: 0.01 | LS50: 0.002780128684 | LT50: 105.498529 | LU50: 104.3258021 | LV50: 103.8523218 | LW50: 104.0304532 | LX50: 103.4263409 | LY50: 103.9539837 | LZ50: 102.6577604 | MA50: 100.2780129 | MB50: -0.08325802131 | MC50: 1 | MD50: 0.01 | ME50: -0.03926160923 | MF50: 0.9999999998 | MG50: 0.01 | MH50: -0.02676817722 | MI50: 0.9999999813 | MJ50: 0.01 | MK50: -0.0185658522 | ML50: 0.9999987805 | MM50: 0.01 | MN50: -0.01590796739 | MO50: 0.9999985314 | MP50: 0.01 | MQ50: -0.01109626727 | MR50: 0.9999597261 | MS50: 0.01 | MT50: -0.006111446955 | MU50: 0.9983579456 | MV50: 0.01 | MW50: 0.01 | MY50: 0.005629391063 | MZ50: 104.9130929 | NA50: 104.4369472 | NB50: 104.6160813 | NC50: 104.0085682 | ND50: 104.5391813 | NE50: 103.235661 | NF50: 100.842517 | NG50: 100.5629391 | NH50: -0.08436947179 | NI50: 1 | NJ50: 0.01 | NK50: -0.04308040634 | NL50: 1 | NM50: 0.01 | NN50: -0.02669522733 | NO50: 0.9999999799 | NP50: 0.01 | NQ50: -0.0213479533 | NR50: 0.9999999316 | NS50: 0.01 | NT50: -0.01447132208 | NU50: 0.9999933138 | NV50: 0.01 | NW50: -0.008070861696 | NX50: 0.9993168902 | NY50: 0.01 | NZ50: -0.006518484438 | OA50: 0.9988462498 | OB50: 0.01 | OC50: 0.01 | OF50: 0.01 | OG50: 0.01 | OH50: 0.01 | OI50: 0.01 | OJ50: 0.01 | OK50: 0.01 | OL50: 0.01 | OM50: 0.01 | OO50: No | OQ50: 0.01 | OR50: 0.01 | OS50: 0.01 | OT50: 0.01 | OU50: 0.01 | OV50: 0.01 | OW50: 0.01 | OX50: 0.01 | OZ50: No
F51: 24 | G51: 0.02584939656 | H51: 102.5849397 | I51: -0.009407056651 | J51: 0.9999310065 | K51: 0.01 | M51: -0.004554392828 | N51: 102.1177275 | O51: 99.54456072 | P51: -0.01019621257 | Q51: 0.9999012906 | R51: 0.01 | S51: -0.005063658167 | T51: 0.9961229509 | U51: 0.01 | V51: 0.01 | X51: 0.007861495369 | Y51: 102.9205256 | Z51: 100.3271298 | AA51: 100.7861495 | AB51: -0.01384105117 | AC51: 0.9999873992 | AD51: 0.01 | AE51: -0.007211883034 | AF51: 0.9986109842 | AG51: 0.01 | AH51: -0.006837356481 | AI51: 0.9991315166 | AJ51: 0.01 | AK51: 0.01 | AM51: -0.01022821359 | AN51: 101.8678325 | AO51: 99.30096251 | AP51: 99.75528727 | AQ51: 98.97717864 | AR51: -0.01466958117 | AS51: 0.9999582135 | AT51: 0.01 | AU51: -0.006601925016 | AV51: 0.9952603897 | AW51: 0.01 | AX51: -0.006258812122 | AY51: 0.9970907174 | AZ51: 0.01 | BA51: -0.004253112345 | BB51: 0.9928202756 | BC51: 0.01 | BD51: 0.01 | BF51: 0.005689968366 | BG51: 102.4474572 | BH51: 99.86598184 | BI51: 100.3228917 | BJ51: 99.54035566 | BK51: 100.5689968 | BL51: -0.02149152404 | BM51: 0.9999977674 | BN51: 0.01 | BO51: -0.009664954609 | BP51: 0.9983214315 | BQ51: 0.01 | BR51: -0.008645783404 | BS51: 0.9988606978 | BT51: 0.01 | BU51: -0.005900592762 | BV51: 0.996208443 | BW51: 0.01 | BX51: -0.006527138338 | BY51: 0.9988550086 | BZ51: 0.01 | CA51: 0.01 | CC51: 0.002197051477 | CD51: 102.6725395 | CE51: 100.0853925 | CF51: 100.5433063 | CG51: 99.75905094 | CH51: 100.7899521 | CI51: 100.2197051 | CJ51: -0.03336269774 | CK51: 0.9999999711 | CL51: 0.01 | CM51: -0.01361797515 | CN51: 0.9993695377 | CO51: 0.01 | CP51: -0.01135826565 | CQ51: 0.9994653967 | CR51: 0.01 | CS51: -0.007518101885 | CT51: 0.9974379961 | CU51: 0.01 | CV51: -0.007983253499 | CW51: 0.9992642207 | CX51: 0.01 | CY51: -0.006028150211 | CZ51: 0.9982373028 | DA51: 0.01 | DB51: 0.01 | DD51: 0.02045643438 | DE51: 104.7728536 | DF51: 102.1327828 | DG51: 102.6000638 | DH51: 101.7997654 | DI51: 102.8517551 | DJ51: 102.269843 | DK51: 102.0456434 | DL51: -0.08772853616 | DM51: 1 | DN51: 0.01 | DO51: -0.03066391406 | DP51: 0.9999997716 | DQ51: 0.01 | DR51: -0.02200021269 | DS51: 0.9999985415 | DT51: 0.01 | DU51: -0.01449941356 | DV51: 0.9999518804 | DW51: 0.01 | DX51: -0.01370351028 | DY51: 0.9999855669 | DZ51: 0.01 | EA51: -0.01044973828 | EB51: 0.9999229593 | EC51: 0.01 | ED51: -0.008636633483 | EE51: 0.9998456657 | EF51: 0.01 | EG51: 0.01 | EI51: -0.009537268219 | EJ51: 103.7736068 | EK51: 101.1587151 | EL51: 101.6215395 | EM51: 100.8288738 | EN51: 101.8708304 | EO51: 101.294468 | EP51: 101.0724068 | EQ51: 99.04627318 | ER51: -0.05158715068 | ES51: 0.9999999924 | ET51: 0.01 | EU51: -0.02810769739 | EV51: 0.9999985805 | EW51: 0.01 | EX51: -0.01609624585 | EY51: 0.9998708953 | EZ51: 0.01 | FA51: -0.01467707591 | FB51: 0.9999584735 | FC51: 0.01 | FD51: -0.01058893609 | FE51: 0.9997546589 | FF51: 0.01 | FG51: -0.008454011277 | FH51: 0.9995088474 | FI51: 0.01 | FJ51: -0.004351818826 | FK51: 0.9933243509 | FL51: 0.01 | FM51: 0.01 | FO51: -0.00660077239 | FP51: 100.4909894 | FQ51: 100.9507588 | FR51: 100.1633253 | FS51: 101.1984042 | FT51: 100.6258463 | FU51: 100.4052508 | FV51: 98.39249127 | FW51: 99.33992276 | FX51: -0.04950758827 | FY51: 0.9999999749 | FZ51: 0.01 | GA51: -0.02081662654 | GB51: 0.9998694007 | GC51: 0.01 | GD51: -0.017328014 | GE51: 0.9999449822 | GF51: 0.01 | GG51: -0.0115646158 | GH51: 0.9995383683 | GI51: 0.01 | GJ51: -0.008810501629 | GK51: 0.9989928713 | GL51: 0.01 | GM51: -0.003987485455 | GN51: 0.9861488048 | GO51: 0.01 | GP51: -0.00477131823 | GQ51: 0.9951345484 | GR51: 0.01 | GS51: 0.01 | GU51: 0.006805036799 | GV51: 101.6377325 | GW51: 100.8449404 | GX51: 101.8870631 | GY51: 101.3106089 | GZ51: 101.0885122 | HA51: 99.0620558 | HB51: 100.0159346 | HC51: 100.6805037 | HD51: -0.04844940423 | HE51: 0.9999999548 | HF51: 0.01 | HG51: -0.02943531533 | HH51: 0.9999994417 | HI51: 0.01 | HJ51: -0.01770202969 | HK51: 0.9999578977 | HL51: 0.01 | HM51: -0.0127212806 | HN51: 0.9998031387 | HO51: 0.01 | HP51: -0.006124111593 | HQ51: 0.9935664566 | HR51: 0.01 | HS51: -0.006693224318 | HT51: 0.997909966 | HU51: 0.01 | HV51: -0.006686433828 | HW51: 0.999005734 | HX51: 0.01 | HY51: 0.01 | IA51: 0.01891341 | IB51: 102.7522621 | IC51: 103.8140949 | ID51: 103.226738 | IE51: 103.0004407 | IF51: 100.9356571 | IG51: 101.907577 | IH51: 102.5847153 | II51: 101.891341 | IJ51: -0.07814094864 | IK51: 1 | IL51: 0.01 | IM51: -0.03613368995 | IN51: 0.999999997 | IO51: 0.01 | IP51: -0.0233348024 | IQ51: 0.9999995393 | IR51: 0.01 | IS51: -0.01233914268 | IT51: 0.999737659 | IU51: 0.01 | IV51: -0.01181515394 | IW51: 0.9999150375 | IX51: 0.01 | IY51: -0.01097452554 | IZ51: 0.9999544111 | JA51: 0.01 | JB51: -0.008416201429 | JC51: 0.9998070866 | JD51: 0.01 | JE51: 0.01 | JG51: 0.003406007769 | JH51: 104.1676865 | JI51: 103.5783291 | JJ51: 103.351261 | JK51: 101.2794447 | JL51: 102.254675 | JM51: 102.9341197 | JN51: 102.2383837 | JO51: 100.3406008 | JP51: -0.07578329062 | JQ51: 1 | JR51: 0.01 | JS51: -0.0367563051 | JT51: 0.9999999982 | JU51: 0.01 | JV51: -0.01759814902 | JW51: 0.9999546317 | JX51: 0.01 | JY51: -0.01563668742 | JZ51: 0.9999816506 | KA51: 0.01 | KB51: -0.01386823933 | KC51: 0.9999877342 | KD51: 0.01 | KE51: -0.01039730617 | KF51: 0.9999188831 | KG51: 0.01 | KH51: -0.006200858253 | KI51: 0.9984790342 | KJ51: 0.01 | KK51: 0.01 | KM51: 0.01279871533 | KN51: 104.9039986 | KO51: 104.6740244 | KP51: 102.5756915 | KQ51: 103.5634034 | KR51: 104.2515442 | KS51: 103.5469037 | KT51: 101.6248316 | KU51: 101.2798715 | KV51: -0.0867402439 | KW51: 1 | KX51: 0.01 | KY51: -0.03287845744 | KZ51: 0.9999999577 | LA51: 0.01 | LB51: -0.02521134481 | LC51: 0.9999999165 | LD51: 0.01 | LE51: -0.02062886039 | LF51: 0.9999998518 | LG51: 0.01 | LH51: -0.01509380734 | LI51: 0.9999964905 | LJ51: 0.01 | LK51: -0.00937471927 | LL51: 0.9997850977 | LM51: 0.01 | LN51: -0.007542673618 | LO51: 0.9995474552 | LP51: 0.01 | LQ51: 0.01 | LS51: -0.003128456587 | LT51: 104.3465562 | LU51: 102.2547879 | LV51: 103.2394098 | LW51: 103.9253977 | LX51: 103.2229617 | LY51: 101.3069027 | LZ51: 100.9630219 | MA51: 99.68715434 | MB51: -0.0625478789 | MC51: 1 | MD51: 0.01 | ME51: -0.03619704916 | MF51: 0.9999999972 | MG51: 0.01 | MH51: -0.02641799243 | MI51: 0.9999999736 | MJ51: 0.01 | MK51: -0.01805740419 | ML51: 0.9999980009 | MM51: 0.01 | MN51: -0.01061380538 | MO51: 0.9997597096 | MP51: 0.01 | MQ51: -0.008271703086 | MR51: 0.9994247783 | MS51: 0.01 | MT51: -0.005267363345 | MU51: 0.9967010806 | MV51: 0.01 | MW51: 0.01 | MY51: 0.01473731224 | MZ51: 103.7617486 | NA51: 104.7608813 | NB51: 105.4569788 | NC51: 104.7441907 | ND51: 102.7998941 | NE51: 102.4509454 | NF51: 101.1562751 | NG51: 101.4737312 | NH51: -0.08760881251 | NI51: 1 | NJ51: 0.01 | NK51: -0.04728489382 | NL51: 1 | NM51: 0.01 | NN51: -0.02914730231 | NO51: 0.9999999983 | NP51: 0.01 | NQ51: -0.01699973536 | NR51: 0.9999945861 | NS51: 0.01 | NT51: -0.01290189086 | NU51: 0.9999687258 | NV51: 0.01 | NW51: -0.008593791769 | NX51: 0.9995654352 | NY51: 0.01 | NZ51: -0.007819616035 | OA51: 0.9996527631 | OB51: 0.01 | OC51: 0.01 | OF51: 0.01 | OG51: 0.01 | OH51: 0.01 | OI51: 0.01 | OJ51: 0.01 | OK51: 0.01 | OL51: 0.01 | OM51: 0.01 | OO51: No | OQ51: 0.01 | OR51: 0.01 | OS51: 0.01 | OT51: 0.01 | OU51: 0.01 | OV51: 0.01 | OW51: 0.01 | OX51: 0.01 | OZ51: No
F52: 25 | G52: 0.01100667427 | H52: 101.1006674 | I52: -0.007286667752 | J52: 0.9994244883 | K52: 0.01 | M52: 0.007358082126 | N52: 101.8445744 | O52: 100.7358082 | P52: -0.009740957401 | Q52: 0.9998473626 | R52: 0.01 | S52: -0.006765440304 | T52: 0.9990735269 | U52: 0.01 | V52: 0.01 | X52: -0.006782611723 | Y52: 101.1538022 | Z52: 100.0525563 | AA52: 99.32173883 | AB52: -0.01030760447 | AC52: 0.9996901979 | AD52: 0.01 | AE52: -0.006754260565 | AF52: 0.9980065355 | AG52: 0.01 | AH52: -0.004745341182 | AI52: 0.9950366885 | AJ52: 0.01 | AK52: 0.01 | AM52: 0.003768092191 | AN52: 101.5349591 | AO52: 100.4295636 | AP52: 99.6959923 | AQ52: 100.3768092 | AR52: -0.01383739772 | AS52: 0.999917548 | AT52: 0.01 | AU52: -0.00885912719 | AV52: 0.9990291087 | AW52: 0.01 | AX52: -0.00615998716 | AY52: 0.9968679558 | AZ52: 0.01 | BA52: -0.006252584599 | BB52: 0.9985453111 | BC52: 0.01 | BD52: 0.01 | BF52: 0.0001722703664 | BG52: 101.5524506 | BH52: 100.4468646 | BI52: 99.71316696 | BJ52: 100.3941012 | BK52: 100.017227 | BL52: -0.01850816851 | BM52: 0.9999766678 | BN52: 0.01 | BO52: -0.01111716158 | BP52: 0.9993666789 | BQ52: 0.01 | BR52: -0.007426333923 | BS52: 0.9972704217 | BT52: 0.01 | BU52: -0.007323501948 | BV52: 0.9987303943 | BW52: 0.01 | BX52: -0.005738895767 | BY52: 0.9977531096 | BZ52: 0.01 | CA52: 0.01 | CC52: 0.01287489144 | CD52: 102.8599273 | CE52: 101.7401071 | CF52: 100.9969632 | CG52: 101.6866643 | CH52: 101.304938 | CI52: 101.2874891 | CJ52: -0.03429963665 | CK52: 0.9999999863 | CL52: 0.01 | CM52: -0.01913369037 | CN52: 0.9999854295 | CO52: 0.01 | CP52: -0.0124924079 | CQ52: 0.9997660423 | CR52: 0.01 | CS52: -0.01137332865 | CT52: 0.9998744756 | CU52: 0.01 | CV52: -0.008841563295 | CW52: 0.9996511441 | CX52: 0.01 | CY52: -0.00755355592 | CZ52: 0.9995520984 | DA52: 0.01 | DB52: 0.01 | DD52: 0.02223219417 | DE52: 105.1467292 | DF52: 104.0020129 | DG52: 103.2423473 | DH52: 103.947382 | DI52: 103.557169 | DJ52: 103.5393323 | DK52: 102.2232194 | DL52: -0.09146729206 | DM52: 1 | DN52: 0.01 | DO52: -0.04001006463 | DP52: 0.9999999999 | DQ52: 0.01 | DR52: -0.02414115752 | DS52: 0.9999997761 | DT52: 0.01 | DU52: -0.01986845497 | DV52: 0.9999996716 | DW52: 0.01 | DX52: -0.01511433806 | DY52: 0.9999965654 | DZ52: 0.01 | EA52: -0.01256555378 | EB52: 0.9999915622 | EC52: 0.01 | ED52: -0.008890313453 | EE52: 0.99988109 | EF52: 0.01 | EG52: 0.01 | EI52: 0.009684950372 | EJ52: 106.1650701 | EK52: 105.0092673 | EL52: 104.2422443 | EM52: 104.9541072 | EN52: 104.5601151 | EO52: 104.5421056 | EP52: 103.2132462 | EQ52: 100.968495 | ER52: -0.09009267261 | ES52: 1 | ET52: 0.01 | EU52: -0.04121122133 | EV52: 1 | EW52: 0.01 | EX52: -0.02984702408 | EY52: 0.9999999992 | EZ52: 0.01 | FA52: -0.02140028768 | FB52: 0.9999999354 | FC52: 0.01 | FD52: -0.01708421113 | FE52: 0.9999996057 | FF52: 0.01 | FG52: -0.01202207704 | FH52: 0.9999847393 | FI52: 0.01 | FJ52: -0.007097850053 | FK52: 0.9993147437 | FL52: 0.01 | FM52: 0.01 | FO52: 0.001069149023 | FP52: 105.1215378 | FQ52: 104.3536948 | FR52: 105.0663188 | FS52: 104.6719054 | FT52: 104.6538767 | FU52: 103.3235966 | FV52: 101.0764454 | FW52: 100.1069149 | FX52: -0.0835369476 | FY52: 1 | FZ52: 0.01 | GA52: -0.04533159403 | GB52: 1 | GC52: 0.01 | GD52: -0.02890635139 | GE52: 0.9999999979 | GF52: 0.01 | GG52: -0.02163469164 | GH52: 0.9999999501 | GI52: 0.01 | GJ52: -0.01464719313 | GK52: 0.9999944165 | GL52: 0.01 | GM52: -0.008460742342 | GN52: 0.9995117217 | GO52: 0.01 | GP52: -0.005867021289 | GQ52: 0.997980781 | GR52: 0.01 | GS52: 0.01 | GU52: -0.004023071998 | GV52: 103.9338723 | GW52: 104.6436294 | GX52: 104.2508028 | GY52: 104.2328466 | GZ52: 102.9079183 | HA52: 100.6698076 | HB52: 99.70417758 | HC52: 99.5976928 | HD52: -0.08643629441 | HE52: 1 | HF52: 0.01 | HG52: -0.04125401402 | HH52: 1 | HI52: 0.01 | HJ52: -0.02744282191 | HK52: 0.9999999904 | HL52: 0.01 | HM52: -0.01726979574 | HN52: 0.9999957849 | HO52: 0.01 | HP52: -0.009339615176 | HQ52: 0.9993280477 | HR52: 0.01 | HS52: -0.006173629294 | HT52: 0.9968995935 | HU52: 0.01 | HV52: -0.005139561143 | HW52: 0.9963482114 | HX52: 0.01 | HY52: 0.01 | IA52: 0.01797215509 | IB52: 106.524301 | IC52: 106.1244144 | ID52: 106.1061355 | IE52: 104.7573954 | IF52: 102.479061 | IG52: 101.4960765 | IH52: 101.387678 | II52: 101.7972155 | IJ52: -0.101244144 | IK52: 1 | IL52: 0.01 | IM52: -0.05053067729 | IN52: 1 | IO52: 0.01 | IP52: -0.02919131788 | IQ52: 0.9999999984 | IR52: 0.01 | IS52: -0.01619765246 | IT52: 0.9999888006 | IU52: 0.01 | IV52: -0.01099215304 | IW52: 0.9998255236 | IX52: 0.01 | IY52: -0.008979463303 | IZ52: 0.9996917565 | JA52: 0.01 | JB52: -0.008281736441 | JC52: 0.9997793079 | JD52: 0.01 | JE52: 0.01 | JG52: 0.004925212031 | JH52: 106.6470996 | JI52: 106.6287307 | JJ52: 105.2733477 | JK52: 102.9837921 | JL52: 101.9959662 | JM52: 101.8870338 | JN52: 102.2985884 | JO52: 100.4925212 | JP52: -0.1062873067 | JQ52: 1 | JR52: 0.01 | JS52: -0.04636673874 | JT52: 1 | JU52: 0.01 | JV52: -0.02327930696 | JW52: 0.9999995162 | JX52: 0.01 | JY52: -0.01498991554 | JZ52: 0.9999680577 | KA52: 0.01 | KB52: -0.01177406759 | KC52: 0.9999118628 | KD52: 0.01 | KE52: -0.0104976473 | KF52: 0.9999265146 | KG52: 0.01 | KH52: -0.006417887433 | KI52: 0.9987398316 | KJ52: 0.01 | KK52: 0.01 | KM52: 0.00337948043 | KN52: 106.9890804 | KO52: 105.629117 | KP52: 103.3318238 | KQ52: 102.3406596 | KR52: 102.231359 | KS52: 102.6443045 | KT52: 100.8321337 | KU52: 100.337948 | KV52: -0.09629116967 | KW52: 1 | KX52: 0.01 | KY52: -0.03665911898 | KZ52: 0.9999999981 | LA52: 0.01 | LB52: -0.02113553196 | LC52: 0.9999970059 | LD52: 0.01 | LE52: -0.01557839757 | LF52: 0.999980698 | LG52: 0.01 | LH52: -0.01328860891 | LI52: 0.9999783808 | LJ52: 0.01 | LK52: -0.008053556186 | LL52: 0.9993067703 | LM52: 0.01 | LN52: -0.006197068633 | LO52: 0.9984740719 | LP52: 0.01 | LQ52: 0.01 | LS52: 0.003156088198 | LT52: 105.9624918 | LU52: 103.6579481 | LV52: 102.6636557 | LW52: 102.5540102 | LX52: 102.9682589 | LY52: 101.1503688 | LZ52: 100.6546235 | MA52: 100.3156088 | MB52: -0.07657948146 | MC52: 1 | MD52: 0.01 | ME52: -0.03331827868 | MF52: 0.99999997 | MG52: 0.01 | MH52: -0.02184670072 | MI52: 0.9999983402 | MJ52: 0.01 | MK52: -0.01742064734 | ML52: 0.9999963394 | MM52: 0.01 | MN52: -0.01030073764 | MO52: 0.9996884434 | MP52: 0.01 | MQ52: -0.007757705761 | MR52: 0.9991109352 | MS52: 0.01 | MT52: -0.006165155457 | MU52: 0.9984316942 | MV52: 0.01 | MW52: 0.01 | MY52: -0.005202600286 | MZ52: 103.1186573 | NA52: 102.1295378 | NB52: 102.0204627 | NC52: 102.4325562 | ND52: 100.6241239 | NE52: 100.1309577 | NF52: 99.7937068 | NG52: 99.47973997 | NH52: -0.06129537771 | NI52: 1 | NJ52: 0.01 | NK52: -0.03010231346 | NL52: 0.9999996551 | NM52: 0.01 | NN52: -0.02144185414 | NO52: 0.9999976736 | NP52: 0.01 | NQ52: -0.0115603097 | NR52: 0.9995369448 | NS52: 0.01 | NT52: -0.008261915368 | NU52: 0.9984888194 | NV52: 0.01 | NW52: -0.006322844674 | NX52: 0.9972273215 | NY52: 0.01 | NZ52: -0.004971057102 | OA52: 0.9958313234 | OB52: 0.01 | OC52: 0.01 | OF52: 0.01 | OG52: 0.01 | OH52: 0.01 | OI52: 0.01 | OJ52: 0.01 | OK52: 0.01 | OL52: 0.01 | OM52: 0.01 | OO52: No | OQ52: 0.01 | OR52: 0.01 | OS52: 0.01 | OT52: 0.01 | OU52: 0.01 | OV52: 0.01 | OW52: 0.01 | OX52: 0.01 | OZ52: No
F53: 26 | G53: -0.00545567506 | H53: 99.45443249 | I53: -0.004934903563 | J53: 0.9957122404 | K53: 0.01 | M53: 0.007169967765 | N53: 100.1675176 | O53: 100.7169968 | P53: -0.006945862615 | Q53: 0.9982839449 | R53: 0.01 | S53: -0.006738566824 | T53: 0.9990509595 | U53: 0.01 | V53: 0.01 | X53: -0.002824108217 | Y53: 99.88463366 | Z53: 100.4325611 | AA53: 99.71758918 | AB53: -0.007769267319 | AC53: 0.9978501563 | AD53: 0.01 | AE53: -0.007387601797 | AF53: 0.9987946485 | AG53: 0.01 | AH53: -0.005310841683 | AI53: 0.9968139451 | AJ53: 0.01 | AK53: 0.01 | AM53: 0.01075933476 | AN53: 100.9593259 | AO53: 101.5131486 | AP53: 100.7904841 | AQ53: 101.0759335 | AR53: -0.01239831468 | AS53: 0.9997489775 | AT53: 0.01 | AU53: -0.01102629725 | AV53: 0.9998305474 | AW53: 0.01 | AX53: -0.00798414017 | AY53: 0.999264772 | AZ53: 0.01 | BA53: -0.007251333537 | BB53: 0.9994052754 | BC53: 0.01 | BD53: 0.01 | BF53: 0.005364960331 | BG53: 101.5009686 | BH53: 102.0577626 | BI53: 101.3312211 | BJ53: 101.6182018 | BK53: 100.536496 | BL53: -0.01833656216 | BM53: 0.9999735026 | BN53: 0.01 | BO53: -0.0151444066 | BP53: 0.9999719785 | BQ53: 0.01 | BR53: -0.0106624421 | BS53: 0.9997693081 | BT53: 0.01 | BU53: -0.009363669749 | BV53: 0.9997828936 | BW53: 0.01 | BX53: -0.006480708619 | BY53: 0.9988072925 | BZ53: 0.01 | CA53: 0.01 | CC53: 0.01916492325 | CD53: 103.4462269 | CE53: 104.0136918 | CF53: 103.2732261 | CG53: 103.5657069 | CH53: 102.4632703 | CI53: 101.9164923 | CJ53: -0.03723113462 | CK53: 0.9999999988 | CL53: 0.01 | CM53: -0.02671230609 | CN53: 0.9999999802 | CO53: 0.01 | CP53: -0.01818306531 | CQ53: 0.9999982292 | CR53: 0.01 | CS53: -0.01513141378 | CT53: 0.9999966266 | CU53: 0.01 | CV53: -0.01077211711 | CW53: 0.9999440819 | CX53: 0.01 | CY53: -0.008452131893 | CZ53: 0.9998139358 | DA53: 0.01 | DB53: 0.01 | DD53: 0.009663480407 | DE53: 104.4458775 | DF53: 105.0188261 | DG53: 104.2712049 | DH53: 104.5665121 | DI53: 103.4534221 | DJ53: 102.9013604 | DK53: 100.966348 | DL53: -0.0844587751 | DM53: 1 | DN53: 0.01 | DO53: -0.0450941305 | DP53: 1 | DQ53: 0.01 | DR53: -0.02757068307 | DS53: 0.9999999916 | DT53: 0.01 | DU53: -0.02141628017 | DV53: 0.9999999365 | DW53: 0.01 | DX53: -0.01490684414 | DY53: 0.9999957325 | DZ53: 0.01 | EA53: -0.01150226725 | EB53: 0.9999735255 | EC53: 0.01 | ED53: -0.007094782915 | EE53: 0.9993128115 | EF53: 0.01 | EG53: 0.01 | EI53: -0.01360309034 | EJ53: 103.0250908 | EK53: 103.5902455 | EL53: 102.8527943 | EM53: 103.1440844 | EN53: 102.0461358 | EO53: 101.5015839 | EP53: 99.59289369 | EQ53: 98.63969097 | ER53: -0.07590245522 | ES53: 1 | ET53: 0.01 | EU53: -0.03426397151 | EV53: 0.9999999859 | EW53: 0.01 | EX53: -0.02381361453 | EY53: 0.9999996991 | EZ53: 0.01 | FA53: -0.01511533955 | FB53: 0.9999712775 | FC53: 0.01 | FD53: -0.0110031677 | FE53: 0.9998271593 | FF53: 0.01 | FG53: -0.005988156145 | FH53: 0.9964438257 | FI53: 0.01 | FJ53: -0.003770987094 | FK53: 0.9898453754 | FL53: 0.01 | FM53: 0.01 | FO53: 0.006131773414 | FP53: 104.2254374 | FQ53: 103.4834643 | FR53: 103.7765405 | FS53: 102.6718596 | FT53: 102.1239686 | FU53: 100.2035747 | FV53: 99.2445272 | FW53: 100.6131773 | FX53: -0.07483464332 | FY53: 1 | FZ53: 0.01 | GA53: -0.03888270256 | GB53: 0.9999999997 | GC53: 0.01 | GD53: -0.02223953201 | GE53: 0.9999988093 | GF53: 0.01 | GG53: -0.01530992141 | GH53: 0.9999756713 | GI53: 0.01 | GJ53: -0.00840714949 | GK53: 0.9986408985 | GL53: 0.01 | GM53: -0.005407545334 | GN53: 0.9946033015 | GO53: 0.01 | GP53: -0.006590253345 | GQ53: 0.9989170699 | GR53: 0.01 | GS53: 0.01 | GU53: -0.009732747869 | GV53: 102.4762859 | GW53: 102.7665096 | GX53: 101.6725803 | GY53: 101.1300217 | GZ53: 99.22831862 | HA53: 98.27860524 | HB53: 99.63393465 | HC53: 99.02672521 | HD53: -0.06766509609 | HE53: 1 | HF53: 0.01 | HG53: -0.02836290141 | HH53: 0.9999988105 | HI53: 0.01 | HJ53: -0.01710007242 | HK53: 0.9999353649 | HL53: 0.01 | HM53: -0.008070796541 | HN53: 0.9955276341 | HO53: 0.01 | HP53: -0.00455721048 | HQ53: 0.9837033315 | HR53: 0.01 | HS53: -0.006056557757 | HT53: 0.9966184804 | HU53: 0.01 | HV53: -0.004323893162 | HW53: 0.9931850133 | HX53: 0.01 | HY53: 0.01 | IA53: 0.00278378292 | IB53: 103.0525893 | IC53: 101.9556147 | ID53: 101.4115458 | IE53: 99.50454871 | IF53: 98.55219154 | IG53: 99.9112939 | IH53: 99.30239412 | II53: 100.2783783 | IJ53: -0.05955614674 | IK53: 0.9999999999 | IL53: 0.01 | IM53: -0.02705772877 | IN53: 0.9999971013 | IO53: 0.01 | IP53: -0.01168182905 | IQ53: 0.9980699734 | IR53: 0.01 | IS53: -0.006380478857 | IT53: 0.9885798609 | IU53: 0.01 | IV53: -0.007822587799 | IW53: 0.9979295104 | IX53: 0.01 | IY53: -0.005503990199 | IZ53: 0.9949580893 | JA53: 0.01 | JB53: -0.006111968989 | JC53: 0.9983586774 | JD53: 0.01 | JE53: 0.01 | JG53: 0.003688602937 | JH53: 102.3316885 | JI53: 101.7856127 | JJ53: 99.87158149 | JK53: 98.91571145 | JL53: 100.279827 | JM53: 99.66868122 | JN53: 100.6482654 | JO53: 100.3688603 | JP53: -0.05785612679 | JQ53: 0.9999999998 | JR53: 0.01 | JS53: -0.01935790743 | JT53: 0.9997141832 | JU53: 0.01 | JV53: -0.009719038153 | JW53: 0.994604766 | JX53: 0.01 | JY53: -0.01069956748 | JZ53: 0.9991550114 | KA53: 0.01 | KB53: -0.007337362444 | KC53: 0.9970985717 | KD53: 0.01 | KE53: -0.007747109021 | KF53: 0.9991030583 | KG53: 0.01 | KH53: -0.006241228991 | KI53: 0.9985309912 | KJ53: 0.01 | KK53: 0.01 | KM53: 0.00806055626 | KN53: 102.6060613 | KO53: 100.676602 | KP53: 99.7130271 | KQ53: 101.0881382 | KR53: 100.4720662 | KS53: 101.4595464 | KT53: 101.1778891 | KU53: 100.8060556 | KV53: -0.04676601987 | KW53: 0.999999887 | KX53: 0.01 | KY53: -0.01856513551 | KZ53: 0.999569828 | LA53: 0.01 | LB53: -0.0169604606 | LC53: 0.999928714 | LD53: 0.01 | LE53: -0.01118016559 | LF53: 0.9993939834 | LG53: 0.01 | LH53: -0.01091909284 | LI53: 0.9998143022 | LJ53: 0.01 | LK53: -0.008629815231 | LL53: 0.9995790054 | LM53: 0.01 | LN53: -0.006865793751 | LO53: 0.9991535116 | LP53: 0.01 | LQ53: 0.01 | LS53: -0.007625791043 | LT53: 99.90886326 | LU53: 98.95263639 | LV53: 100.3172612 | LW53: 99.70588725 | LX53: 100.6858371 | LY53: 100.4063277 | LZ53: 100.0373297 | MA53: 99.2374209 | MB53: -0.02952636394 | MC53: 0.9997224316 | MD53: 0.01 | ME53: -0.0215863058 | MF53: 0.9999149996 | MG53: 0.01 | MH53: -0.01235295751 | MI53: 0.9986748018 | MJ53: 0.01 | MK53: -0.0117145928 | ML53: 0.9995854889 | MM53: 0.01 | MN53: -0.008812655396 | MO53: 0.9989945023 | MP53: 0.01 | MQ53: -0.00672888285 | MR53: 0.9979668867 | MS53: 0.01 | MT53: -0.004624886994 | MU53: 0.9945596289 | MV53: 0.01 | MW53: 0.01 | MY53: 0.005069289597 | MZ53: 99.45425596 | NA53: 100.8257984 | NB53: 100.2113253 | NC53: 101.1962428 | ND53: 100.9153165 | NE53: 100.5444479 | NF53: 99.74048412 | NG53: 100.506929 | NH53: -0.04825798409 | NI53: 0.9999999497 | NJ53: 0.01 | NK53: -0.02105662634 | NL53: 0.9998856323 | NM53: 0.01 | NN53: -0.01732080928 | NO53: 0.9999447001 | NP53: 0.01 | NQ53: -0.01228829113 | NR53: 0.9997275539 | NS53: 0.01 | NT53: -0.009088895809 | NU53: 0.999184689 | NV53: 0.01 | NW53: -0.006234140202 | NX53: 0.9970364844 | NY53: 0.01 | NZ53: -0.006438469942 | OA53: 0.9987623093 | OB53: 0.01 | OC53: 0.01 | OF53: 0.01 | OG53: 0.01 | OH53: 0.01 | OI53: 0.01 | OJ53: 0.01 | OK53: 0.01 | OL53: 0.01 | OM53: 0.01 | OO53: No | OQ53: 0.01 | OR53: 0.01 | OS53: 0.01 | OT53: 0.01 | OU53: 0.01 | OV53: 0.01 | OW53: 0.01 | OX53: 0.01 | OZ53: No
F54: 27 | G54: 0.01015938153 | H54: 101.0159382 | I54: -0.007165625932 | J54: 0.9993561839 | K54: 0.01 | M54: 0.0118832949 | N54: 102.2163403 | O54: 101.1883295 | P54: -0.01036056722 | Q54: 0.9999159069 | R54: 0.01 | S54: -0.007411899271 | T54: 0.9994880572 | U54: 0.01 | V54: 0.01 | X54: 0.0003352272943 | Y54: 102.250606 | Z54: 101.2222506 | AA54: 100.0335227 | AB54: -0.01250121208 | AC54: 0.9999544953 | AD54: 0.01 | AE54: -0.008703750966 | AF54: 0.9996056349 | AG54: 0.01 | AH54: -0.005762175328 | AI54: 0.9977961303 | AJ54: 0.01 | AK54: 0.01 | AM54: 0.003008288183 | AN54: 102.5582053 | AO54: 101.5267563 | AP54: 100.3344524 | AQ54: 100.3008288 | AR54: -0.01639551333 | AS54: 0.9999906176 | AT54: 0.01 | AU54: -0.01105351256 | AV54: 0.9998344545 | AW54: 0.01 | AX54: -0.007224087323 | AY54: 0.9986245226 | AZ54: 0.01 | BA54: -0.006144041169 | BB54: 0.9984030695 | BC54: 0.01 | BD54: 0.01 | BF54: -0.006474985339 | BG54: 101.8941425 | BH54: 100.869372 | BI54: 99.68478829 | BJ54: 99.65138242 | BK54: 99.35250147 | BL54: -0.01964714152 | BM54: 0.9999901829 | BN54: 0.01 | BO54: -0.01217343005 | BP54: 0.9997033796 | BQ54: 0.01 | BR54: -0.007369576571 | BS54: 0.9971618893 | BT54: 0.01 | BU54: -0.00608563737 | BV54: 0.9966903667 | BW54: 0.01 | BX54: -0.004789287809 | BY54: 0.9952012328 | BZ54: 0.01 | CA54: 0.01 | CC54: 0.01870754403 | CD54: 103.8003316 | CE54: 102.7563902 | CF54: 101.5496459 | CG54: 101.515615 | CH54: 101.2111428 | CI54: 101.8707544 | CJ54: -0.03900165806 | CK54: 0.9999999998 | CL54: 0.01 | CM54: -0.0225213008 | CN54: 0.9999990643 | CO54: 0.01 | CP54: -0.01387411463 | CQ54: 0.9999199393 | CR54: 0.01 | CS54: -0.01103123009 | CT54: 0.9998312619 | CU54: 0.01 | CV54: -0.008685237937 | CW54: 0.9995991179 | CX54: 0.01 | CY54: -0.008386792005 | CZ54: 0.9998013059 | DA54: 0.01 | DB54: 0.01 | DD54: -0.002552870559 | DE54: 103.5353428 | DF54: 102.4940665 | DG54: 101.2904028 | DH54: 101.2564588 | DI54: 100.9527638 | DJ54: 101.6106916 | DK54: 99.74471294 | DL54: -0.07535342802 | DM54: 1 | DN54: 0.01 | DO54: -0.03247033238 | DP54: 0.9999999418 | DQ54: 0.01 | DR54: -0.01763467584 | DS54: 0.9999558064 | DT54: 0.01 | DU54: -0.01314114706 | DV54: 0.9998573142 | DW54: 0.01 | DX54: -0.009905527631 | DY54: 0.9995703902 | DZ54: 0.01 | EA54: -0.00935115259 | EB54: 0.9997803713 | EC54: 0.01 | ED54: -0.00534958992 | EE54: 0.9969115896 | EF54: 0.01 | EG54: 0.01 | EI54: 0.004856142687 | EJ54: 104.0381252 | EK54: 102.9917923 | EL54: 101.7822834 | EM54: 101.7481746 | EN54: 101.4430048 | EO54: 102.1041276 | EP54: 100.2290875 | EQ54: 100.4856143 | ER54: -0.06991792288 | ES54: 1 | ET54: 0.01 | EU54: -0.028911417 | EV54: 0.9999991899 | EW54: 0.01 | EX54: -0.01916058211 | EY54: 0.9999857251 | EZ54: 0.01 | FA54: -0.0136075121 | FB54: 0.9999009795 | FC54: 0.01 | FD54: -0.01220825514 | FE54: 0.9999404285 | FF54: 0.01 | FG54: -0.007048479171 | FH54: 0.9984176114 | FI54: 0.01 | FJ54: -0.006408020384 | FK54: 0.9987289241 | FL54: 0.01 | FM54: 0.01 | FO54: 0.003738481461 | FP54: 103.3768252 | FQ54: 102.1627946 | FR54: 102.1285583 | FS54: 101.8222476 | FT54: 102.485842 | FU54: 100.6037921 | FV54: 100.8612779 | FW54: 100.3738481 | FX54: -0.06162794579 | FY54: 1 | FZ54: 0.01 | GA54: -0.03064279149 | GB54: 0.999999768 | GC54: 0.01 | GD54: -0.01940749211 | GE54: 0.999988185 | GF54: 0.01 | GG54: -0.0162146049 | GH54: 0.9999889685 | GI54: 0.01 | GJ54: -0.009207584176 | GK54: 0.9992557401 | GL54: 0.01 | GM54: -0.008102129791 | GN54: 0.9993348303 | GO54: 0.01 | GP54: -0.006248354494 | GQ54: 0.9985399917 | GR54: 0.01 | GS54: 0.01 | GU54: 0.008653882803 | GV54: 103.0468994 | GW54: 103.0123669 | GX54: 102.7034054 | GY54: 103.3727424 | GZ54: 101.4744055 | HA54: 101.7341196 | HB54: 101.2424717 | HC54: 100.8653883 | HD54: -0.07012366873 | HE54: 1 | HF54: 0.01 | HG54: -0.03351702716 | HH54: 0.9999999744 | HI54: 0.01 | HJ54: -0.02457580808 | HK54: 0.9999998494 | HL54: 0.01 | HM54: -0.01368601379 | HN54: 0.9999069606 | HO54: 0.01 | HP54: -0.01146823911 | HQ54: 0.9998844804 | HR54: 0.01 | HS54: -0.008737452774 | HT54: 0.999617247 | HU54: 0.01 | HV54: -0.006950554686 | HW54: 0.9992160666 | HX54: 0.01 | HY54: 0.01 | IA54: 0.006846304218 | IB54: 103.7176209 | IC54: 103.4065442 | ID54: 104.0804637 | IE54: 102.1691302 | IF54: 102.4306223 | IG54: 101.9356084 | IH54: 101.5559434 | II54: 100.6846304 | IJ54: -0.0740654419 | IK54: 1 | IL54: 0.01 | IM54: -0.04040231833 | IN54: 0.9999999999 | IO54: 0.01 | IP54: -0.02056376722 | IQ54: 0.9999952395 | IR54: 0.01 | IS54: -0.01607655571 | IT54: 0.9999875283 | IU54: 0.01 | IV54: -0.01187121685 | IW54: 0.9999191961 | IX54: 0.01 | IY54: -0.009259905689 | IZ54: 0.9997611414 | JA54: 0.01 | JB54: -0.006692329174 | JC54: 0.9990109456 | JD54: 0.01 | JE54: 0.01 | JG54: 0.01683924165 | JH54: 105.147832 | JI54: 105.8330997 | JJ54: 103.8895808 | JK54: 104.1554763 | JL54: 103.6521268 | JM54: 103.2660685 | JN54: 102.3800832 | JO54: 101.6839242 | JP54: -0.09833099745 | JQ54: 1 | JR54: 0.01 | JS54: -0.03944790418 | JT54: 0.9999999998 | JU54: 0.01 | JV54: -0.02718492095 | JW54: 0.9999999876 | JX54: 0.01 | JY54: -0.01913031692 | JZ54: 0.9999993037 | KA54: 0.01 | KB54: -0.01453213697 | KC54: 0.9999937167 | KD54: 0.01 | KE54: -0.01063347207 | KF54: 0.9999357727 | KG54: 0.01 | KH54: -0.008119891664 | KI54: 0.9997409282 | KJ54: 0.01 | KK54: 0.01 | KM54: 0.005351680686 | KN54: 106.3994847 | KO54: 104.4455647 | KP54: 104.7128831 | KQ54: 104.2068399 | KR54: 103.8187155 | KS54: 102.9279888 | KT54: 102.2281041 | KU54: 100.5351681 | KV54: -0.084455647 | KW54: 1 | KX54: 0.01 | KY54: -0.04356441568 | KZ54: 1 | LA54: 0.01 | LB54: -0.02735613284 | LC54: 0.9999999895 | LD54: 0.01 | LE54: -0.01954678878 | LF54: 0.9999995431 | LG54: 0.01 | LH54: -0.01385597752 | LI54: 0.9999875842 | LJ54: 0.01 | LK54: -0.01038017343 | LL54: 0.9999175077 | LM54: 0.01 | LN54: -0.006478811527 | LO54: 0.9988053047 | LP54: 0.01 | LQ54: 0.01 | LS54: 0.02241046047 | LT54: 106.7862379 | LU54: 107.0595471 | LV54: 106.5421631 | LW54: 106.1453407 | LX54: 105.2346524 | LY54: 104.5190829 | LZ54: 102.7882075 | MA54: 102.241046 | MB54: -0.1105954706 | MC54: 1 | MD54: 0.01 | ME54: -0.05271081559 | MF54: 1 | MG54: 0.01 | MH54: -0.03381780243 | MI54: 1 | MJ54: 0.01 | MK54: -0.02308663095 | ML54: 0.9999999903 | MM54: 0.01 | MN54: -0.01703816589 | MO54: 0.9999995844 | MP54: 0.01 | MQ54: -0.01131367913 | MR54: 0.9999677917 | MS54: 0.01 | MT54: -0.008915780067 | MU54: 0.9998841895 | MV54: 0.01 | MW54: 0.01 | MY54: -0.006057692762 | MZ54: 106.4110132 | NA54: 105.8967634 | NB54: 105.5023449 | NC54: 104.5971732 | ND54: 103.8859385 | NE54: 102.1655481 | NF54: 101.6217012 | NG54: 99.39423072 | NH54: -0.09896763428 | NI54: 1 | NJ54: 0.01 | NK54: -0.04751172434 | NL54: 1 | NM54: 0.01 | NN54: -0.02865724396 | NO54: 0.9999999972 | NP54: 0.01 | NQ54: -0.01971484613 | NR54: 0.9999996153 | NS54: 0.01 | NT54: -0.0123310962 | NU54: 0.9999467644 | NV54: 0.01 | NW54: -0.009369502003 | NX54: 0.9997840596 | NY54: 0.01 | NZ54: -0.004848901034 | OA54: 0.9954166576 | OB54: 0.01 | OC54: 0.01 | OF54: 0.01 | OG54: 0.01 | OH54: 0.01 | OI54: 0.01 | OJ54: 0.01 | OK54: 0.01 | OL54: 0.01 | OM54: 0.01 | OO54: No | OQ54: 0.01 | OR54: 0.01 | OS54: 0.01 | OT54: 0.01 | OU54: 0.01 | OV54: 0.01 | OW54: 0.01 | OX54: 0.01 | OZ54: No
F55: 28 | G55: 0.006534571913 | H55: 100.6534572 | I55: -0.006647795988 | J55: 0.9989709485 | K55: 0.01 | M55: 0.02722897207 | N55: 103.3941474 | O55: 102.7228972 | P55: -0.01232357894 | Q55: 0.9999889917 | R55: 0.01 | S55: -0.009604138867 | T55: 0.9999442027 | U55: 0.01 | V55: 0.01 | X55: -0.001094741169 | Y55: 103.2809575 | Z55: 102.6104422 | AA55: 99.89052588 | AB55: -0.01456191507 | AC55: 0.9999939054 | AD55: 0.01 | AE55: -0.0110174037 | AF55: 0.9999563544 | AG55: 0.01 | AH55: -0.005557894119 | AI55: 0.9973917894 | AJ55: 0.01 | AK55: 0.01 | AM55: -0.01155537776 | AN55: 102.0875071 | AO55: 101.4247398 | AP55: 98.73625312 | AQ55: 98.84446222 | AR55: -0.01521876764 | AS55: 0.9999736989 | AT55: 0.01 | AU55: -0.0108494796 | AV55: 0.9998029858 | AW55: 0.01 | AX55: -0.004560421869 | AY55: 0.9904049014 | AZ55: 0.01 | BA55: -0.004063517462 | BB55: 0.991757147 | BC55: 0.01 | BD55: 0.01 | BF55: 0.005380211706 | BG55: 102.6367595 | BH55: 101.9704264 | BI55: 99.26747507 | BJ55: 99.37626636 | BK55: 100.5380212 | BL55: -0.02212253152 | BM55: 0.9999986849 | BN55: 0.01 | BO55: -0.01492606593 | BP55: 0.9999662902 | BQ55: 0.01 | BR55: -0.006534950133 | BS55: 0.995049865 | BT55: 0.01 | BU55: -0.005627110594 | BV55: 0.9953807477 | BW55: 0.01 | BX55: -0.006482887387 | BY55: 0.9988095717 | BZ55: 0.01 | CA55: 0.01 | CC55: 0.01273962077 | CD55: 103.9443128 | CE55: 103.2694909 | CF55: 100.5321051 | CG55: 100.6422823 | CH55: 101.8188374 | CI55: 101.2739621 | CJ55: -0.03972156424 | CK55: 0.9999999999 | CL55: 0.01 | CM55: -0.02423163644 | CN55: 0.9999997937 | CO55: 0.01 | CP55: -0.01133026263 | CQ55: 0.9994547099 | CR55: 0.01 | CS55: -0.009284564606 | CT55: 0.999298725 | CU55: 0.01 | CV55: -0.009698062388 | CW55: 0.9998410598 | CX55: 0.01 | CY55: -0.007534231538 | CZ55: 0.9995438225 | DA55: 0.01 | DB55: 0.01 | DD55: 0.003041895399 | DE55: 104.2605006 | DF55: 103.5836259 | DG55: 100.8379132 | DH55: 100.9484256 | DI55: 102.1285597 | DJ55: 101.5820269 | DK55: 100.3041895 | DL55: -0.08260500575 | DM55: 1 | DN55: 0.01 | DO55: -0.03791812961 | DP55: 0.9999999994 | DQ55: 0.01 | DR55: -0.01612637734 | DS55: 0.9998734961 | DT55: 0.01 | DU55: -0.012371064 | DV55: 0.9997438227 | DW55: 0.01 | DX55: -0.01225711937 | DY55: 0.9999430296 | DZ55: 0.01 | EA55: -0.009303378126 | EB55: 0.999770491 | EC55: 0.01 | ED55: -0.0061488422 | EE55: 0.9984096198 | EF55: 0.01 | EG55: 0.01 | EI55: -0.005261598309 | EJ55: 103.7119237 | EK55: 103.0386105 | EL55: 100.3073446 | EM55: 100.4172755 | EN55: 101.5912002 | EO55: 101.0475431 | EP55: 99.77642919 | EQ55: 99.47384017 | ER55: -0.07038610492 | ES55: 1 | ET55: 0.01 | EU55: -0.02153672304 | EV55: 0.9999125855 | EW55: 0.01 | EX55: -0.01472425178 | EY55: 0.999682656 | EZ55: 0.01 | FA55: -0.01397800057 | FB55: 0.9999263566 | FC55: 0.01 | FD55: -0.01009508611 | FE55: 0.9996314092 | FF55: 0.01 | FG55: -0.006294048643 | FH55: 0.9971666221 | FI55: 0.01 | FJ55: -0.004962628813 | FK55: 0.9958038298 | FL55: 0.01 | FM55: 0.01 | FO55: 0.001430431525 | FP55: 103.1860002 | FQ55: 100.4508274 | FR55: 100.5609156 | FS55: 101.7365195 | FT55: 101.1920846 | FU55: 99.91915254 | FV55: 99.61613069 | FW55: 100.1430432 | FX55: -0.04450827395 | FY55: 0.9999996305 | FZ55: 0.01 | GA55: -0.02280457785 | GB55: 0.9999579072 | GC55: 0.01 | GD55: -0.01912173161 | GE55: 0.9999852962 | GF55: 0.01 | GG55: -0.01298021162 | GH55: 0.9998384524 | GI55: 0.01 | GJ55: -0.007838305071 | GK55: 0.997952389 | GL55: 0.01 | GM55: -0.006026884477 | GN55: 0.9965436829 | GO55: 0.01 | GP55: -0.005918633075 | GQ55: 0.9980664177 | GR55: 0.01 | GS55: 0.01 | GU55: -0.001900231691 | GV55: 100.2599475 | GW55: 100.3698265 | GX55: 101.5431965 | GY55: 100.9997962 | GZ55: 99.729283 | HA55: 99.42683696 | HB55: 99.95274817 | HC55: 99.80997683 | HD55: -0.04369826531 | HE55: 0.9999994415 | HF55: 0.01 | HG55: -0.02771598263 | HH55: 0.9999981427 | HI55: 0.01 | HJ55: -0.01666598747 | HK55: 0.9999125156 | HL55: 0.01 | HM55: -0.009323207488 | HN55: 0.9979125921 | HO55: 0.01 | HP55: -0.006853673915 | HQ55: 0.9959821019 | HR55: 0.01 | HS55: -0.006587913614 | HT55: 0.9977333216 | HU55: 0.01 | HV55: -0.005442824044 | HW55: 0.9971355855 | HX55: 0.01 | HY55: 0.01 | IA55: 0.01578451923 | IB55: 101.954116 | IC55: 103.1460071 | ID55: 102.5940295 | IE55: 101.3034618 | IF55: 100.9962418 | IG55: 101.5304542 | IH55: 101.3854293 | II55: 101.5784519 | IJ55: -0.07146007064 | IK55: 1 | IL55: 0.01 | IM55: -0.03297014733 | IN55: 0.9999999606 | IO55: 0.01 | IP55: -0.01767820594 | IQ55: 0.9999571689 | IR55: 0.01 | IS55: -0.01249060444 | IT55: 0.9997657256 | IU55: 0.01 | IV55: -0.01106090849 | IW55: 0.9998355016 | IX55: 0.01 | IY55: -0.008975715549 | IZ55: 0.9996907135 | JA55: 0.01 | JB55: -0.007969217033 | JC55: 0.9996996878 | JD55: 0.01 | JE55: 0.01 | JG55: 0.01245467917 | JH55: 104.4306575 | JI55: 103.8718052 | JJ55: 102.5651639 | JK55: 102.2541176 | JL55: 102.7949835 | JM55: 102.6481523 | JN55: 102.843579 | JO55: 101.2454679 | JP55: -0.07871805188 | JQ55: 1 | JR55: 0.01 | JS55: -0.03282581948 | JT55: 0.9999999559 | JU55: 0.01 | JV55: -0.02084705856 | JW55: 0.9999962122 | JX55: 0.01 | JY55: -0.0169874587 | JZ55: 0.9999945245 | KA55: 0.01 | KB55: -0.01329630465 | KC55: 0.9999785406 | KD55: 0.01 | KE55: -0.01140596492 | KF55: 0.9999707305 | KG55: 0.01 | KH55: -0.007493525596 | KI55: 0.9995259242 | KJ55: 0.01 | KK55: 0.01 | KM55: 0.02658484279 | KN55: 106.6332208 | KO55: 105.2918427 | KP55: 104.9725272 | KQ55: 105.527772 | KR55: 105.3770373 | KS55: 105.5776593 | KT55: 103.9370628 | KU55: 102.6584843 | KV55: -0.09291842654 | KW55: 1 | KX55: 0.01 | KY55: -0.04486263603 | KZ55: 1 | LA55: 0.01 | LB55: -0.03175923984 | LC55: 0.9999999999 | LD55: 0.01 | LE55: -0.02344259329 | LF55: 0.9999999936 | LG55: 0.01 | LH55: -0.01915531866 | LI55: 0.9999999669 | LJ55: 0.01 | LK55: -0.01322843794 | LL55: 0.9999959973 | LM55: 0.01 | LN55: -0.009512120398 | LO55: 0.999938369 | LP55: 0.01 | LQ55: 0.01 | LS55: -0.004773240809 | LT55: 104.7892593 | LU55: 104.4714681 | LV55: 105.0240625 | LW55: 104.8740473 | LX55: 105.0737117 | LY55: 103.4409461 | LZ55: 102.1684706 | MA55: 99.52267592 | MB55: -0.08471468056 | MC55: 1 | MD55: 0.01 | ME55: -0.04512031243 | MF55: 1 | MG55: 0.01 | MH55: -0.02958015781 | MI55: 0.9999999989 | MJ55: 0.01 | MK55: -0.02268427935 | ML55: 0.9999999846 | MM55: 0.01 | MN55: -0.01488189227 | MO55: 0.9999956202 | MP55: 0.01 | MQ55: -0.01028078435 | MR55: 0.9999090864 | MS55: 0.01 | MT55: -0.00503239417 | MU55: 0.9960266023 | MV55: 0.01 | MW55: 0.01 | MY55: -0.01819713337 | MZ55: 102.5703868 | NA55: 103.1129256 | NB55: 102.9656403 | NC55: 103.1616714 | ND55: 101.5586174 | NE55: 100.3092973 | NF55: 97.71164851 | NG55: 98.18028666 | NH55: -0.07112925614 | NI55: 1 | NJ55: 0.01 | NK55: -0.03482820158 | NL55: 0.9999999911 | NM55: 0.01 | NN55: -0.02387223798 | NO55: 0.9999997146 | NP55: 0.01 | NQ55: -0.01389654361 | NR55: 0.9999213678 | NS55: 0.01 | NT55: -0.008618594653 | NU55: 0.9988374118 | NV55: 0.01 | NW55: -0.002852747521 | NX55: 0.9727927651 | NY55: 0.01 | NZ55: -0.003114695234 | OA55: 0.9841012317 | OB55: 0.01 | OC55: 0.01 | OF55: 0.01 | OG55: 0.01 | OH55: 0.01 | OI55: 0.01 | OJ55: 0.01 | OK55: 0.01 | OL55: 0.01 | OM55: 0.01 | OO55: No | OQ55: 0.01 | OR55: 0.01 | OS55: 0.01 | OT55: 0.01 | OU55: 0.01 | OV55: 0.01 | OW55: 0.01 | OX55: 0.01 | OZ55: No
